Workbook

Sheet Setup
A2: =IF(Language=1,Language!$A$3,Language!$B$3) -> AVANCE-TAR : Approche Ver une Amélioration Nette Concernant les Effectifs pour la prestation différenciée de services de traitement antirétroviral (TAR) Un outil pour maximiser les ressources humaines pour la santé | F2: =IF(Language=1,Language!$A$4,Language!$B$4) -> AVANCE-TAR_Région ou Etablissement_Date
B4: =IF(Language=1,Language!$A$6,Language!$B$6) -> Setup (Configurer)
B6: =IF(Language=1,Language!$A$18,Language!$B$18) -> 1. Choisissez votre langue : | D6: Français | E6: =IF($D$6="Français",2,1) -> 2 | F6: 2
B8: =IF(Language=1,Language!$A$19,Language!$B$19) -> 2. Choisissez le niveau : | D8: Niveau district, région, etc. | E8: =IF(OR($D$8=Language!$A$24,$D$8=Language!$B$24),2,1) -> 2 | F8: 2
B10: 3. | C10: =IF(AND(Language=1,Site_Level=1),Language!$A$20,IF(AND(Language=1,Site_Level=2),Language!$A$21,IF(AND(Language=2,Site_Level=1),Language!$B$20,Language!$B$21))) -> Nom pour le niveau supérieur (district, région, etc.) :
B12: 4. | C12: =IF(Language=1,Language!$A$22,Language!$B$22) -> Niveau d'expertise avec PSD : | D12: Non précisé | E12: =IF(OR($D$12=Language!$A$28,$D$12=Language!$B$28),2,IF(OR($D$12=Language!$A$29,$D$12=Language!$B$29),3,IF(OR($D$12=Language!$A$30,$D$12=Language!$B$30),4,1))) -> 1
B14: 5. | C14: =IF(Language=1,Language!$A$25,Language!$B$25) -> Nom de l’utilisateur :
B16: 6. | C16: =IF(Language=1,Language!$A$26,Language!$B$26) -> Date de la dernière modification de l’outil :
B18: Tool Version 1.501 - April 2020 | F18: =IF(ISERR(SEARCH("1",B18))=TRUE,0,SEARCH("1",B18)) -> 14 | G18: =VALUE(MID(B18,14,1)&MID(B18,16,3)) -> 1501
A19: =IF(Language=1,Language!$A$31,Language!$B$31) -> Cet outil est rendu possible grâce au généreux soutien du peuple américain par le biais de l’Agence des Etats-Unis pour le développement international (USAID) dans le cadre de l'accord de coopération no. AID-OAA-A-15-00046 (2015-2020) en partenariat avec le Plan d'Urgence du Président Américain pour la Lutte contre le SIDA (PEPFAR). Le contenu est la responsabilité de Chemonics International et ne reflète pas nécessairement les points de vue de PEPFAR, de l'USAID ou du gouvernement des États-Unis. | F19: =IF(Language=1,Language!$A$32,Language!$B$32) -> Si la 1. Langue ou le 2. Niveau du soins sont modifiés, veuillez attendre la surbrillance jaune / noire, puis appuyez sur le bouton "Update Tool".
A25: =IF(Language=1,Language!$A$33,Language!$B$33) -> Pour toute question ou suggestion et pour en apprendre plus sur les mises à jour de l'outil et les expériences de son utilisation, contactez: HOT4ART@hrh2030program.org. Mentionnez " AVANCE-TAR " sur la ligne d'objet.
B31: =IF(Language=1,Language!$A$35,Language!$B$35) -> Importation de données après la mise à jour de l'outil vers une version plus récente :
B32: =IF(Language=1,Language!$A$36,Language!$B$36) -> Les utilisateurs de l'outil reçoivent périodiquement de nouvelles versions avec de nouvelles fonctionnalités et des problèmes résolus. Les mises à jour de l'outil ne contiendront aucune donnée. Cliquez sur le bouton ci-dessous pour importer toutes les données utilisateur d'une version antérieure de l'outil. L'importation appliquera les options de langue et de niveau de site/district de la version antérieure de l'outil dans l'onglet « Setup ». Après avoir cliqué sur le bouton ci-dessous, l'utilisateur sera invité à sélectionner le fichier Excel à partir duquel importer les données. Normalement, ce sera la dernière version de l'outil enregistrée par l'utilisateur. Un message informera l'utilisateur lorsque l'importation des données a été effectuée avec succès et recommandera d'enregistrer l'outil sous un nouveau nom.
B33: =IF(Language=1,Language!$A$37,Language!$B$37) -> Attention: L'importation de données ne doit être effectuée que avant la saisie des données dans l'outil. L'importation de données remplacera toutes les données déjà saisies par l'utilisateur. Les utilisateurs seront invités à confirmer l'importation et peuvent annuler la procédure. Si aucun fichier n'est sélectionné pour l'importation de données, l'importation sera également annulée. Seules les données de la version 1 de l'outil seront importées.
C96: Credits
C97: Tool development: Eva Weissman and Eckhard Kleinau
C98: Initial conceptualization: Samson Kironde and Adrienne Hurst
C99: Adaptation to Bahasa Indonesia: Katy Gorentz
C101: Tool Versions Change Log
C103: 1.501 May 04, 2020 | D103: Updated ART provider cadres
C105: 1.500 April 24, 2020 | D105: Major update with new features
C106: Simplified user interface for rapid analysis allowing finetuning on demand. Provided users greater flexibility configuring the tool.
C107: User can define new treatment models and adjust all client contact times
C109: 1.011 December 10, 2018
C110: Updated tool title and minor formatting changes
C112: 1.010 November 30, 2018 | D112: Major update of the Tool addressing feedback from trainings in Zambia, South Africa and Cote d'Ivoire in Sep. 2018
C113: Treatment models: Added userform with standard ART task definitions.
C114: Service Providers tab: replaced 'full-time' and 'part-time' language with 'maximum hours available for ART' and 'staff working less than the maximum hours available for ART'. Updated instructions in English and French.
C115: Service Providers: Restructured columns to allow for a more natural sequencing of data entries. Column S 'Average number of hours spent on ART' is hidden but needed in calculations.
C116: Service Providers: Added userform with standard service provider definitions. Added pop-up calculator to estimate time providers spend on ART as a proportion of outpatient visits.
C117: Task Assignment: Added user-defined group option for health education and adherence counseling tasks for all models, which divides time by group size.
C118: Task Assignment: User-added tasks can be groups or community outreach. Added a calculator that helps estimate client contact times for these.
C119: Daily Workload: Formulas to calculate number of exam rooms needed adjusted (rounding up) to avoid zero rooms needed.
C120: Other formatting changes on several tabs.
C122: 1.008 September 04, 2018
C123: Fixed drop-down list for additional service providers. Added conditional formatting on Task Assignments.
C125: 1.007 September 04, 2018
C126: Adjusted formulas on Task Assignment to work with new translation into French. Added error checking when users zero out a task with assigned clients on Taskshifting.
C128: 1.006 September 04, 2018
C129: Changed default provider assignment to 'full-time' and added error check to 'part-time' entries. Added error check to Client Distribution.
C131: 1.005 August 14, 2018
C132: Adjusted formulas on Task Assignment tab for 'Other' to allow non-alpha order. Fixed formulas calculating FTE ranges on Taskshifting, Taskshifting+ and Modelshifting tabs.
C133: Fixed data ranges for charts on Modelshifting tab.
C135: 1.004 August 09, 2018
C136: Fixed formula for tasks involving groups (health education and counseling) on Task Assignments tab. Copy clean formulas before data import on Task- and Modelshifting tabs.
C137: Fixed formulas for tables on the left on Modelshifting tab that reference the Taskshifting tab.
C139: 1.003 July 31, 2018
C140: Fixed protection of Task- and Modelshifting sheets after clicking Setup. Fixed cell references in DI18 & GE18. Fixed % formulas on Modelshifting tab to avoid rounding errors.
C141: Improved data import to only import values from Task- and Modelshifting sheets but not formulas to avoid overwriting changes to formulas on these sheets.
C143: 1.002 July 30, 2018
C144: Added data import macro to facilitate upgrades to new versions of the Tool. Allow more than 10 part-time service providers. No changes to functionality.
C146: 1.001 July 18, 2018
C147: Enhanced error checking on Service Providers tab. Fixed cell protection and language label on Taskshifting tab. Adjusted fonts to display French text better on several tabs.
C148: Fixed macro textbox copy timing issue that caused VBA run time error on some computers when switching between site-level and above site. No changes to functionality.
C150: 1.0 June 30, 2018
C151: Fully functional and tested tool.

Sheet Dashboard (hidden)
C1: =IF(Language=1,Language!$A$40,Language!$B$40) -> Feuilles dans cet Outil | F1: =IF(Language=1,Language!$A$49,Language!$B$49) -> Description de Chaque Feuille
E3: =IF(Language=1,Language!$A$50,Language!$B$50) -> Description des modèles de prestation de services utilisant la nomenclature internationale et définitions locales ajoutées par l'utilisateur. Chaque modèle comporte 8 tâches TAR standard et jusqu'à 3 tâches définies par l'utilisateur. Les fréquences avec lesquelles les tâches TAR doivent être effectuées par an sont indiquées pour les modèles actuellement utilisés ou prévus pour être utilisés. L'utilisateur peut adapter ces fréquences aux directives du pays pour des modèles de prestation de services différenciés.
E8: =IF(Language=1,Language!$A$51,Language!$B$51) -> Calcul des équivalents temps plein (ETP) pour chaque type de prestataire de services en fonction du nombre et de la proportion de temps disponible pour le traitement antirétroviral. Comprend des catégories standards et des catégories spécifiques au pays, ajoutés par l'utilisateur. Pour chaque catégorie, l'utilisateur spécifie le nombre moyen d'heures par jour consacrées au traitement antirétroviral, le temps consacré à d'autres tâches cliniques et administratives et le nombre de jours par semaine consacrés au TAR.
E12: =IF(Language=1,Language!$A$52,Language!$B$52) -> Répartition des clients TAR aux modèles de prestation de services selon l'état clinique (stable / instable) et les populations spécifiques (adultes, adolescents, enfants, femmes enceintes et allaitantes). L'utilisateur détermine la Répartition initiale des clients, qui est utilisée comme scénario de référence.
E17: =IF(Language=1,Language!$A$53,Language!$B$53) -> Attribution de tâches spécifiques TAR à des Prestataires de soins pour tous les modèles de prestation de services actuellement utilisés ou prévus pour être utilisés. Les Attributions doivent être effectuées pour toutes les tâches pour lesquelles des fréquences ont été attribuées dans la feuille des modèles de traitement. Pour les tâches standard, le temps par contact client est attribué par l'outil en fonction des données recueillies sur le terrain ; Pour les tâches définies par l'utilisateur, l'utilisateur estime et insère le temps de contact client. Une calculatrice aide à estimer les temps de contact des clients pour les activités de groupe et les activités communautaires.
E22: =IF(Language=1,Language!$A$54,Language!$B$54) -> Le Partage de Tâches permet à l'utilisateur de réaffecter les client parmi les Prestataires de soins en fonction du scénario de référence afin d'identifier le potentiel d'amélioration de l'efficacité de la main-d'œuvre. Cela peut être fait pour chaque modèle de prestation de services. L'effet du transfert ou partage des tâches sur les exigences ETP et les pénuries ou les excès apparaîtra immédiatement.
E26: =IF(Language=1,Language!$A$55,Language!$B$55) -> Le Mise à l'échelle la PDT permet à l'utilisateur de réattribuer des client à partir d'un modèle de prestation de services qui nécessite des Prestataires de soins plus qualifiés à un autre avec des besoins moindres en ressources humaines. Cela peut être fait pour le scénario de base avant le Partage de Tâches (dans la feuille précédente) ou pour les scénarios qui incluent un transfert précédent de tâches.
E30: =IF(Language=1,Language!$A$56,Language!$B$56) -> Les résultats du scénario de référence sont résumés ici et, si le Partage de Tâches ou de modèles a été appliqué, ceux-ci sont également affichés ici. Cette feuille montre également l'intervalle pour les estimations d'ETP afin de refléter la variabilité des données sur le temps de contact clients. Les résultats peuvent être imprimés en utilisant les boutons dédiés.
E34: =IF(Language=1,Language!$A$57,Language!$B$57) -> La charge de travail quotidienne indique si l'infrastructure disponible (salles de consultation / lieux de consultation des clients) est suffisante ou non pour chaque modèle de prestation de services. Cette feuille indique également le nombre d'ETP des Prestataires de soins requis le jour de la clinique. L'utilisateur peut varier les heures de travail et de service clinique et tenir compte des roulements des équipes. Cette feuille n'est utile que pour une application au niveau du site et est expérimentale dans cette version de l'outil.

Sheet Treatment Models
B1: =IF(Language=1,Language!$A$59,Language!$B$59) -> Modèles TAR | F1: HIDE
C2: =IF(Language=1,Language!$A$60,Language!$B$60) -> Modèle TAR 1 | D2: =IF(Language=1,Language!$A$61,Language!$B$61) -> Modèle TAR 2 | E2: =IF(Language=1,Language!$A$62,Language!$B$62) -> Modèle TAR 3 | F2: =IF(Language=1,Language!$A$63,Language!$B$63) -> Modèle TAR 4 (caché) | G2: =IF(Language=1,Language!$A$64,Language!$B$64) -> Modèle TAR 4 | H2: =IF(Language=1,Language!$A$65,Language!$B$65) -> Modèle TAR 5
B3: =IF(Language=1,Language!$A$66,Language!$B$66) -> Nom du Modèle | C3: =IF(Language=1,Language!$A$86,Language!$B$86) -> Modèle individuel en établissement géré par un agent de santé pour les clients instables et nouveaux clients (Soins Standard) | D3: 3 month MMD for stable ART initiators | E3: 3 month MMD for established patients | G3: 6 month MMD with appointment spacing | H3: 12 month MMD with appointment spacing | M3: =IF(Language=1,Language!$A$87,Language!$B$87) -> Modèle individuel en établissement géré par un agent de santé (suivi accéléré) | N3: =IF(Language=1,Language!$A$88,Language!$B$88) -> Modèle de groupe en établissement géré par un agent de santé (dans ou hors de l'établissement) | O3: =IF(Language=1,Language!$A$89,Language!$B$89) -> Modèle de groupe en dehors de l’établissement géré par un agent de santé (AS) | P3: =IF(Language=1,Language!$A$90,Language!$B$90) -> Modèle individuel en dehors de l’établissement géré par un agent de santé (AS) | Q3: =IF(Language=1,Language!$A$91,Language!$B$91) -> Modèle de groupe en dehors de l’établissement géré par les clients | R3: 3 month MMD for stable ART initiators | S3: 3 month MMD for established patients | U3: 6 month MMD with appointment spacing | V3: 12 month MMD with appointment spacing
B4: =IF(Language=1,Language!$A$67,Language!$B$67) -> Nom du Modèle TAR abrégé | C4: =IF(Language=1,Language!$A$94,Language!$B$94) -> 1. Soins standard | D4: 3 month MMD ART initiators | E4: Interim 3 month MMD | G4: 6 month MMD | H4: 12 month MMD | M4: =IF(Language=1,Language!$A$95,Language!$B$95) -> 2. Etablissement individuel | N4: =IF(Language=1,Language!$A$96,Language!$B$96) -> 3. Groupe géré par AS | O4: =IF(Language=1,Language!$A$97,Language!$B$97) -> 4. Groupe communautaire géré par AS (caché) | P4: =IF(Language=1,Language!$A$98,Language!$B$98) -> 4. Individu communautaire géré par AS | Q4: =IF(Language=1,Language!$A$99,Language!$B$99) -> 5. Groupe communautaire géré par client | R4: 3 month MMD ART initiators | S4: Interim 3 month MMD | U4: 6 month MMD | V4: 12 month MMD
B5: =IF(Language=1,Language!$A$68,Language!$B$68) -> Dans ou en dehors de l’établissement | C5: F | D5: F | E5: FO | F5: O | G5: O | H5: O | M5: F | N5: FO | O5: O | P5: O | Q5: O | R5: F | S5: FO | T5: O | U5: O | V5: O
B6: =IF(Language=1,Language!$A$69,Language!$B$69) -> Géré par un agent de santé (AS) ou un client | C6: H | D6: H | E6: H | F6: H | G6: H | H6: C | M6: H | N6: H | O6: H | P6: H | Q6: C | R6: H | S6: H | T6: H | U6: H | V6: C
B7: =IF(Language=1,Language!$A$70,Language!$B$70) -> Individuel ou Groupe | C7: I | D7: I | E7: G | F7: G | G7: I | H7: G | M7: I | N7: G | O7: G | P7: I | Q7: G | R7: I | S7: G | T7: G | U7: I | V7: G
B8: =IF(Language=1,Language!$A$71,Language!$B$71) -> Abréviation | C8: SM | D8: FHI | E8: FHG | F8: OHG | G8: OHI | H8: OCG | M8: FHI | N8: FHG | O8: OHG | P8: OHI | Q8: OCG | R8: FHI | S8: FHG | T8: OHG | U8: OHI | V8: OCG
B9: =IF(Language=1,Language!$A$72,Language!$B$72) -> Nom du Modèle (adapté au pays) | C9: Standard Care | D9: 3 month MMD for stable ART initiators | E9: 3 month MMD for established patients | G9: 6 month MMD with appointment spacing | H9: 12 month MMD with appointment spacing | M9: 2. Facility Individual | N9: 3. HW-Managed Group | O9: 4. Out-of-Facility Group, HW-Managed (hidden) | P9: 4. Out-of-Facility Individual, HW-Managed | Q9: 5. Out-of-Facility Group, Client-Managed | R9: 3 month MMD for stable ART initiators | S9: 3 month MMD for established patients | U9: 6 month MMD with appointment spacing | V9: 12 month MMD with appointment spacing
B10: =IF(Language=1,Language!$A$73,Language!$B$73) -> Description | D10: Stable ART initiators enrolled in 3 month MMD following a few weeks of standard care; 2 follow-up home visits within 1st 6 months | E10: 3 month MMD for established patients as an interim solution to DSD scale-up.vMove rapidly from 3 month MMD to 6 month MMD. | G10: Rapid scale-up of 6 month MMD for all established stable clients with appointment spacing | H10: 12 months MMD for adhering clients with difficult access to care | R10: Stable ART initiators enrolled in 3 month MMD following a few weeks of standard care; 2 follow-up home visits within 1st 6 months | S10: 3 month MMD for established patients as an interim solution to DSD scale-up.vMove rapidly from 3 month MMD to 6 month MMD. | U10: Rapid scale-up of 6 month MMD for all established stable clients with appointment spacing | V10: 12 months MMD for adhering clients with difficult access to care
B11: =IF(Language=1,Language!$A$74,Language!$B$74) -> Fréquence des Tâches dans Une Année
B12: =IF(Language=1,Language!$A$76, Language!$B$76) -> Enregistrement | C12: 12 | D12: 4 | E12: 4 | G12: 2 | H12: 1 | J12: 4 | K12: 2
B13: =IF(Language=1,Language!$A$77,Language!$B$77) -> Éducation à la santé | C13: 12 | D13: 2 | E13: 2 | G13: 1 | H13: 1 | J13: 2 | K13: 1
B14: =IF(Language=1,Language!$A$78, Language!$B$78) -> Suivi et traçage des clients | C14: 2 | D14: 3 | E14: 0.3 | G14: 1 | H14: 1 | J14: 0.7 | K14: 0.7
B15: =IF(Language=1,Language!A79,Language!B79) -> Consultation / Évaluation clinique | C15: 12 | D15: 4 | E15: 4 | G15: 2 | H15: 1 | J15: 4 | K15: 2
B16: =IF(Language=1,Language!$A$80,Language!$B$80) -> Prise de sang ou taches de sang sec | C16: 2 | D16: 1 | E16: 1 | G16: 1 | H16: 1 | J16: 0.3 | K16: 0.3
B17: =IF(Language=1,Language!$A$81,Language!$B$81) -> Counseling d'adhésion | C17: 12 | D17: 2 | E17: 2 | G17: 1 | H17: 1 | J17: 2 | K17: 1
B18: =IF(Language=1,Language!$A$82,Language!$B$82) -> Reapprovisionnement en médicaments | C18: 4 | D18: 0.1 | E18: 0.1 | G18: 0.1 | H18: 0.1 | J18: 0.1 | K18: 0.1
B19: =IF(Language=1,Language!$A$83, Language!$B$83) -> Mise à jour des outils | C19: 12 | D19: 4 | E19: 4 | G19: 2 | H19: 1 | J19: 4 | K19: 2
B20: =IF(Language=1,Language!$A$84,Language!$B$84) -> Tâches Supplémentaires et leurs Fréquences pour chaque modèle TAR par Année
B21: Dépistage et conseil à l'initiative du prestataire | C21: 1 | D21: 1 | E21: 1 | G21: 1 | H21: 1 | J21: 1 | K21: 1
B22: Couplage Client-Expert Client | C22: 0.2 | D22: 0.1 | E22: 0.1 | G22: 0.1 | H22: 0.05 | J22: 0.1 | K22: 0.1
B23: Supervision des agents communautaires | C23: 0.1 | D23: 0.1 | E23: 0.1 | F23: 0.1 | G23: 0.1 | H23: 0.1 | J23: 0.3 | K23: 0.3
B24: =IF(Language=1,Language!$A$374,Language!$B$374) -> Cocher si le Model TAR 2 est réservé aux initiateurs TAR stables | M24: TRUE

Sheet Service Providers
B1: =IF(Language=1,Language!$A$111,Language!$B$111) -> Nombre et Type de Prestataires de soins Disponibles | AA1: =GET.CELL(63,INDIRECT("rc",FALSE)) | AR1: FALSE
B3: =Setup!$C$10 -> Nom pour le niveau supérieur (district, région, etc.) : | C3: =Health_Facility_Name -> 0 | AR3: 30
AH4: =IF(Language=1,Language!$A$383,Language!$B$383) -> Atténuer les pénuries aiguës de RHS grâce à la mise à l'échelle de PDT | AJ4: =IF(Language=1,Language!$A$405,Language!$B$405) -> Sélectionnez le niveau de réduction de prestataires de TAR avec l'échelle mobile ci-dessous
C5: =IF(Language=1,Language!$A$117,Language!$B$117) -> Heures de travail disponibles dans une semaine pour TAR et autres taches cliniques et administratives | D5: =IF(Language=1,Language!$A$118,Language!$B$118) -> Heures maximales par semaine consacrées au TAR | E5: =IF(Language=1,Language!$A$121,Language!$B$121) -> Heures par semaine consacrées aux autres taches cliniques et administra-tives (col. C-D) | F5: =IF(Language=1,Language!$A$113,Language!$B$113)&IF(Staff_red="",IF(Language=1,Language!$A$375,Language!$B$375),"") -> No. Total de prestataires disponibles pour TAR | G5: =IF(Language=1,Language!$A$114,Language!$B$114) -> Nombre d'employés travaillant le nombre maximal d'heures / semaine sur le TAR (colonne D) | H5: =IF(Language=1,Language!$A$115,Language!$B$115) -> Nombre d'employés travaillant moins que le nombre maximal d'heures / semaine sur le TAR | I5: =IF(Language=1,Language!$A$119,Language!$B$119) -> Pour chaque prestataire travaillant moins que les heures maximales par semaine consacrées au TAR (colonne H) : saisisez le no. moyen d'heures par semaine consacrées au TAR | S5: =IF(Language=1,Language!$A$120,Language!$B$120) -> Nombre moyen d'heures disponibles pour TAR par semaine (tout personnel) | T5: =IF(Language=1,Language!$A$123,Language!$B$123) -> No. des ETP disponibles pour les services TAR | V5: =IF(AND(Site_Level=1,AG25>0),IF(Language=1,Language!$A$136,Language!$B$136),"") ->  | AK5: =IF(Language=1,Language!$A$408,Language!$B$408) -> Appliquer la réduction à tous les prestataires de TAR | AL5: 0 | AP5: =AR3/100 -> 0.3 | AR5: TRUE
B6: =IF(Language=1,Language!$A$112,Language!$B$112) -> Catégorie de prestataires | I6: 1 | J6: 2 | K6: 3 | L6: 4 | M6: 5 | N6: 6 | O6: 7 | P6: 8 | Q6: 9 | R6: 10 | V6: =IF(AND(W25>0,Site_Level=1),IF(Language=1,Language!$A$137,Language!$B$137),"") ->  | AH6: =IF(Language=1,Language!$A$384,Language!$B$384) -> Effet des réductions des prestataires de TAR (exprimées en ETP) en raison des urgences de santé publique et de l'atténuation des pénuries de personnel grâce à la mise à l'échelle de PDT (DMM sur 6 mois) | AI6: =IF(Language=1,Language!$A$404,Language!$B$404) -> ETPs disponibles avant réduction de prestataires de TAR | AJ6: =IF(Language=1,Language!$A$407,Language!$B$407) -> Réduction appliquée | AK6: =IF(Language=1,Language!$A$406,Language!$B$406) -> ETPs disponibles après réduction de prestataires de TAR * | AL6: =IF(Language=1,Language!$A$385,Language!$B$385) -> Pénurie / excès de personnel avant réduction de prestataires de TAR | AM6: =IF(Language=1,Language!$A$386,Language!$B$386) -> Pénurie / excès de personnel en raison de la réduction des prestataires de TAR avant la mise à l'échelle de PDT | AN6: =IF(Language=1,Language!$A$387,Language!$B$387) -> Pénurie / excès de personnel en raison de la réduction des prestataires de TAR après la mise à l'échelle de PDT | AO6: =IF(Language=1,Language!$A$388,Language!$B$388) -> Pénurie maximale / excès minimal en raison de la réduction des prestataires de TAR après la mise à l'échelle de PDT | AP6: =IF(Language=1,Language!$A$389,Language!$B$389) -> Pénurie minimale / excès maximal en raison de la réduction des prestataires de TAR après la mise à l'échelle de PDT
B7: =IF(Language=1,Language!$A$116,Language!$B$116) -> Prestataire de services standard | F7: ▼▼▼ | AH7: =IF(Language=1,Language!$A$390,Language!$B$390) -> Niveau de l'effectif réduit à (échelle mobile) | AI7: 1 | AK7: =AM7 -> 0.3 | AL7: =AI7 -> 1 | AM7: =AP5 -> 0.3 | AR7: Reduced Staff | AS7: Baseline staff | AT7: Staff_100 | AU7: Staff before MS | AV7: Staff after MS | AW7: FTE available before reduction
A8: =COUNT(I8:R8) -> 0 | B8: =IF(Language=1,Language!$A125,Language!$B125) -> Docteur en Médecine (MD) | E8: =C8-D8 -> 0 | G8: =F8-H8 -> 0 | S8: =IFERROR((G8*D8+SUM(I8:R8)+IF(H8>10,(H8-10)*R8,0))/F8,0) -> 0 | T8: =IF(F8=0,0,F8) -> 0 | W8: =IF(H8>10, 1,0) -> 0 | X8: =IF(OR(AND(I$6<=$H8,I8=0),AND(I$6>$H8,I8>0)),1,0) -> 0 | Y8: =IF(OR(AND(J$6<=$H8,J8=0),AND(J$6>$H8,J8>0)),1,0) -> 0 | Z8: 0 | AA8: 0 | AB8: 0 | AC8: 0 | AD8: 0 | AE8: 0 | AF8: 0 | AG8: 0 | AH8: =B8 -> Docteur en Médecine (MD) | AI8: =T8 -> 0 | AK8: =AR8 -> 0 | AL8: =Results!G52 -> 0 | AM8: =$AK8-Results!$B52 -> 0 | AN8: =$AK8-Results!$B74 -> 0 | AO8: =$AK8-Results!$E74 -> 0 | AP8: =$AK8-Results!$C74 -> 0 | AR8: =IF($BA8=TRUE,$T8*$AP$5, $T8) -> 0 | AS8: 14 | AT8: 2.515555556 | AU8: 2.515555556 | AV8: 12.34826667 | AW8: 14 | AZ8: 14 | BA8: TRUE
A9: =COUNT(I9:R9) -> 0 | B9: =IF(Language=1,Language!$A126,Language!$B126) -> Clinicien non-médecin (CNP) | E9: 0 | G9: 0 | S9: 0 | T9: =IF(F9=0,0,F9) -> 0 | W9: 0 | X9: =IF(OR(AND(I$6<=$H9,I9=0),AND(I$6>$H9,I9>0)),1,0) -> 0 | Y9: 0 | Z9: 0 | AA9: 0 | AB9: 0 | AC9: 0 | AD9: 0 | AE9: 0 | AF9: 0 | AG9: 0 | AH9: =B9 -> Clinicien non-médecin (CNP) | AI9: =T9 -> 0 | AK9: 0 | AL9: =Results!G53 -> 0 | AM9: =$AK9-Results!$B53 -> 0 | AN9: =$AK9-Results!$B75 -> 0 | AO9: =$AK9-Results!$E75 -> 0 | AP9: =$AK9-Results!$C75 -> 0 | AR9: =IF($BA9=TRUE,$T9*$AP$5, $T9) -> 0 | AS9: 580 | AT9: -6.613333333 | AU9: -6.613333333 | AV9: 419.8445333 | AW9: 580 | AZ9: 580 | BA9: TRUE
A10: 0 | B10: =IF(Language=1,Language!$A127,Language!$B127) -> Pharmacien ou assistant en pharmacie (PTA) | E10: 0 | G10: 0 | S10: 0 | T10: 0 | W10: 0 | X10: 0 | Y10: 0 | Z10: 0 | AA10: 0 | AB10: 0 | AC10: 0 | AD10: 0 | AE10: 0 | AF10: 0 | AG10: 0 | AH10: Pharmacien ou assistant en pharmacie (PTA) | AI10: 0 | AK10: 0 | AL10: =Results!G54 -> 0 | AM10: =$AK10-Results!$B54 -> 0 | AN10: =$AK10-Results!$B76 -> 0 | AO10: =$AK10-Results!$E76 -> 0 | AP10: =$AK10-Results!$C76 -> 0 | AR10: 0 | AS10: 66 | AT10: 2.835555556 | AU10: 2.835555556 | AV10: 56.91546667 | AW10: 66 | AZ10: 66 | BA10: TRUE
A11: 0 | B11: =IF(Language=1,Language!$A128,Language!$B128) -> Infirmier (N) | E11: 0 | G11: 0 | S11: 0 | T11: 0 | W11: 0 | X11: 0 | Y11: 0 | Z11: 0 | AA11: 0 | AB11: 0 | AC11: 0 | AD11: 0 | AE11: 0 | AF11: 0 | AG11: 0 | AH11: Infirmier (N) | AI11: 0 | AK11: 0 | AL11: =Results!G55 -> 0 | AM11: =$AK11-Results!$B55 -> 0 | AN11: =$AK11-Results!$B77 -> 0 | AO11: =$AK11-Results!$E77 -> 0 | AP11: =$AK11-Results!$C77 -> 0 | AR11: 0 | AS11: 745 | AT11: -8.137777778 | AU11: -8.137777778 | AV11: 559.0544 | AW11: 745 | AZ11: 745 | BA11: TRUE
A12: 0 | B12: =IF(Language=1,Language!$A129,Language!$B129) -> Technicien de laboratoire (LT) | E12: 0 | G12: 0 | S12: 0 | T12: 0 | W12: 0 | X12: 0 | Y12: 0 | Z12: 0 | AA12: 0 | AB12: 0 | AC12: 0 | AD12: 0 | AE12: 0 | AF12: 0 | AG12: 0 | AH12: Technicien de laboratoire (LT) | AI12: 0 | AK12: 0 | AL12: =Results!G56 -> 0 | AM12: =$AK12-Results!$B56 -> 0 | AN12: =$AK12-Results!$B78 -> 0 | AO12: =$AK12-Results!$E78 -> 0 | AP12: =$AK12-Results!$C78 -> 0 | AR12: 0 | AS12: 141 | AT12: 5 | AU12: 5 | AV12: 56.75111111 | AW12: 141 | AZ12: 141 | BA12: TRUE
A13: 0 | B13: =IF(Language=1,Language!$A130,Language!$B130) -> Agent de santé communautaire (ASC) | E13: 0 | G13: 0 | S13: 0 | T13: 0 | V13: =IF(SUM(U19:U24)=0,"",IF(Language=1,Language!$A$141,Language!$B$141)) ->  | W13: 0 | X13: 0 | Y13: 0 | Z13: 0 | AA13: 0 | AB13: 0 | AC13: 0 | AD13: 0 | AE13: 0 | AF13: 0 | AG13: 0 | AH13: Agent de santé communautaire (ASC) | AI13: 0 | AK13: 0 | AL13: =Results!G57 -> 0 | AM13: =$AK13-Results!$B57 -> 0 | AN13: =$AK13-Results!$B79 -> 0 | AO13: =$AK13-Results!$E79 -> 0 | AP13: =$AK13-Results!$C79 -> 0 | AR13: 0 | AS13: 639 | AT13: -5.64 | AU13: -5.64 | AV13: 546.2856 | AW13: 639 | AZ13: 639 | BA13: TRUE
A14: 0 | B14: =IF(Language=1,Language!$A131,Language!$B131) -> Auxiliaire de soins/Aide-soignant (FBA) | E14: 0 | G14: 0 | S14: 0 | T14: 0 | W14: 0 | X14: 0 | Y14: 0 | Z14: 0 | AA14: 0 | AB14: 0 | AC14: 0 | AD14: 0 | AE14: 0 | AF14: 0 | AG14: 0 | AH14: Auxiliaire de soins/Aide-soignant (FBA) | AI14: 0 | AK14: 0 | AL14: =Results!G58 -> 0 | AM14: =$AK14-Results!$B58 -> 0 | AN14: =$AK14-Results!$B80 -> 0 | AO14: =$AK14-Results!$E80 -> 0 | AP14: =$AK14-Results!$C80 -> 0 | AR14: 0 | AS14: 177 | AT14: -7.96 | AU14: -7.96 | AV14: 150.3984 | AW14: 177 | AZ14: 177 | BA14: TRUE
A15: 0 | B15: =IF(Language=1,Language!$A132,Language!$B132) -> Pair (P) | E15: 0 | G15: 0 | S15: 0 | T15: 0 | W15: 0 | X15: 0 | Y15: 0 | Z15: 0 | AA15: 0 | AB15: 0 | AC15: 0 | AD15: 0 | AE15: 0 | AF15: 0 | AG15: 0 | AH15: Pair (P) | AI15: 0 | AK15: 0 | AL15: =Results!G59 -> 0 | AM15: =$AK15-Results!$B59 -> 0 | AN15: =$AK15-Results!$B81 -> 0 | AO15: =$AK15-Results!$E81 -> 0 | AP15: =$AK15-Results!$C81 -> 0 | AR15: 0 | AS15: 1444 | AT15: 7.84 | AU15: 7.84 | AV15: 964.9451654 | AW15: 1444 | AZ15: 1444 | BA15: TRUE
A16: 0 | B16: =IF(Language=1,Language!$A133,Language!$B133) -> Assistant social (SSW) | E16: 0 | G16: 0 | S16: 0 | T16: 0 | W16: 0 | X16: 0 | Y16: 0 | Z16: 0 | AA16: 0 | AB16: 0 | AC16: 0 | AD16: 0 | AE16: 0 | AF16: 0 | AG16: 0 | AH16: Assistant social (SSW) | AI16: 0 | AK16: 0 | AL16: =Results!G60 -> 0 | AM16: =$AK16-Results!$B60 -> 0 | AN16: =$AK16-Results!$B82 -> 0 | AO16: =$AK16-Results!$E82 -> 0 | AP16: =$AK16-Results!$C82 -> 0 | AR16: 0 | AS16: 58 | AT16: -4.56 | AU16: -4.56 | AV16: 14.0704 | AW16: 58 | AZ16: 58 | BA16: TRUE
A17: 0 | B17: =IF(Language=1,Language!$A134,Language!$B134) -> Conseiller (C) | E17: 0 | G17: 0 | S17: 0 | T17: 0 | V17: ▼▼▼ | W17: 0 | X17: 0 | Y17: 0 | Z17: 0 | AA17: 0 | AB17: 0 | AC17: 0 | AD17: 0 | AE17: 0 | AF17: 0 | AG17: 0 | AH17: Conseiller (C) | AI17: 0 | AK17: 0 | AL17: =Results!G61 -> 0 | AM17: =$AK17-Results!$B61 -> 0 | AN17: =$AK17-Results!$B83 -> 0 | AO17: =$AK17-Results!$E83 -> 0 | AP17: =$AK17-Results!$C83 -> 0 | AR17: 0 | AS17: 26 | AT17: -3.013333333 | AU17: -3.013333333 | AV17: 21.8272 | AW17: 26 | AZ17: 26 | BA17: TRUE
B18: =IF(Language=1,Language!$A$138,Language!$B$138) -> Prestataires supplémentaires (veuillez préciser, jusqu'à un maximum de 6) : | V18: =IF(Language=1,Language!$A$139,Language!$B$139) -> Choisissez un prestataire similaire à partir de la liste standard
A19: 0 | B19: Data/ART Clerk/Officers | E19: =C19-D19 -> 0 | G19: =F19-H19 -> 0 | S19: =IFERROR((G19*D19+SUM(I19:R19)+IF(H19>10,(H19-10)*R19,0))/F19,0) -> 0 | T19: 0 | U19: =IF(AND(B19<>"",OR(V19="",LEFT(V19,3)="---")),1,0) -> 0 | V19: Auxiliaire de soins/Aide-soignant (FBA) | W19: =IF(H19>10, 1,0) -> 0 | X19: =IF(OR(AND(I$6<=$H19,I19=0),AND(I$6>$H19,I19>0)),1,0) -> 0 | Y19: =IF(OR(AND(J$6<=$H19,J19=0),AND(J$6>$H19,J19>0)),1,0) -> 0 | Z19: =IF(OR(AND(K$6<=$H19,K19=0),AND(K$6>$H19,K19>0)),1,0) -> 0 | AA19: =IF(OR(AND(L$6<=$H19,L19=0),AND(L$6>$H19,L19>0)),1,0) -> 0 | AB19: =IF(OR(AND(M$6<=$H19,M19=0),AND(M$6>$H19,M19>0)),1,0) -> 0 | AC19: =IF(OR(AND(N$6<=$H19,N19=0),AND(N$6>$H19,N19>0)),1,0) -> 0 | AD19: =IF(OR(AND(O$6<=$H19,O19=0),AND(O$6>$H19,O19>0)),1,0) -> 0 | AE19: =IF(OR(AND(P$6<=$H19,P19=0),AND(P$6>$H19,P19>0)),1,0) -> 0 | AF19: =IF(OR(AND(Q$6<=$H19,Q19=0),AND(Q$6>$H19,Q19>0)),1,0) -> 0 | AG19: =IF(OR(AND(R$6<=$H19,R19=0),AND(R$6>$H19,R19>0)),1,0) -> 0 | AH19: Data/ART Clerk/Officers | AI19: =T19 -> 0 | AK19: 200 | AL19: =Results!G62 -> 0 | AM19: =$AK19-Results!$B62 -> 200 | AN19: =$AK19-Results!$B84 -> 200 | AO19: =$AK19-Results!$E84 -> 200 | AP19: =$AK19-Results!$C84 -> 200 | AR19: =IF($BA19=TRUE,$T19*$AP$5, $T19) -> 0 | AS19: 200 | AT19: 19.38461538 | AU19: 19.38461538 | AV19: 194.1553773 | AW19: 396 | AZ19: 396 | BA19: FALSE
A20: 0 | B20: HDAs | E20: 0 | G20: 0 | S20: 0 | T20: 0 | U20: 0 | V20: Agent de santé communautaire (ASC) | W20: 0 | X20: 0 | Y20: 0 | Z20: 0 | AA20: 0 | AB20: 0 | AC20: 0 | AD20: 0 | AE20: 0 | AF20: 0 | AG20: 0 | AH20: HDAs | AI20: 0 | AK20: 1200 | AL20: =Results!G63 -> 0 | AM20: =$AK20-Results!$B63 -> 1200 | AN20: =$AK20-Results!$B85 -> 1200 | AO20: =$AK20-Results!$E85 -> 1200 | AP20: =$AK20-Results!$C85 -> 1200 | AR20: 0 | AS20: 1200 | AT20: 7.866666667 | AU20: 7.866666667 | AV20: 236.0482698 | AW20: 1437 | AZ20: 1437 | BA20: FALSE
A21: 0 | E21: 0 | G21: 0 | S21: 0 | T21: 0 | U21: 0 | W21: 0 | X21: 0 | Y21: 0 | Z21: 0 | AA21: 0 | AB21: 0 | AC21: 0 | AD21: 0 | AE21: 0 | AF21: 0 | AG21: 0 | AH21: 0 | AI21: 0 | AL21: =Results!G64 -> 0 | AM21: =$AK21-Results!$B64 -> 0 | AN21: =$AK21-Results!$B86 -> 0 | AO21: =$AK21-Results!$E86 -> 0 | AP21: =$AK21-Results!$C86 -> 0 | AR21: 0 | AT21: 0 | AU21: 0 | AV21: 0 | AW21: 0 | BA21: FALSE
A22: 0 | E22: 0 | F22: 0 | G22: 0 | S22: 0 | T22: 0 | U22: 0 | W22: 0 | X22: 0 | Y22: 0 | Z22: 0 | AA22: 0 | AB22: 0 | AC22: 0 | AD22: 0 | AE22: 0 | AF22: 0 | AG22: 0 | AH22: 0 | AI22: 0 | AK22: 0 | AL22: =Results!G65 -> 0 | AM22: =$AK22-Results!$B65 -> 0 | AN22: =$AK22-Results!$B87 -> 0 | AO22: =$AK22-Results!$E87 -> 0 | AP22: =$AK22-Results!$C87 -> 0 | AR22: 0 | AS22: 0 | AT22: 0 | AU22: 0 | AV22: 0 | AW22: 0 | BA22: FALSE
A23: 0 | E23: 0 | F23: 0 | G23: 0 | S23: 0 | T23: 0 | U23: 0 | W23: 0 | X23: 0 | Y23: 0 | Z23: 0 | AA23: 0 | AB23: 0 | AC23: 0 | AD23: 0 | AE23: 0 | AF23: 0 | AG23: 0 | AH23: 0 | AI23: 0 | AK23: 0 | AL23: =Results!G66 -> 0 | AM23: =$AK23-Results!$B66 -> 0 | AN23: =$AK23-Results!$B88 -> 0 | AO23: =$AK23-Results!$E88 -> 0 | AP23: =$AK23-Results!$C88 -> 0 | AR23: 0 | AS23: 0 | AT23: 0 | AU23: 0 | AV23: 0 | AW23: 0 | BA23: FALSE
A24: 0 | E24: 0 | F24: 0 | G24: 0 | S24: 0 | T24: 0 | U24: 0 | W24: 0 | X24: 0 | Y24: 0 | Z24: 0 | AA24: 0 | AB24: 0 | AC24: 0 | AD24: 0 | AE24: 0 | AF24: 0 | AG24: 0 | AH24: 0 | AI24: 0 | AK24: 0 | AL24: =Results!G67 -> 0 | AM24: =$AK24-Results!$B67 -> 0 | AN24: =$AK24-Results!$B89 -> 0 | AO24: =$AK24-Results!$E89 -> 0 | AP24: =$AK24-Results!$C89 -> 0 | AR24: 0 | AS24: 0 | AT24: 0 | AU24: 0 | AV24: 0 | AW24: 0 | BA24: FALSE
A25: =COUNT(I24:R24)-F24 -> 0 | B25: =IF(Language=1,Language!$A$372,Language!$B$372) -> ▼▼▼ Cette colonne est obligatoire; commencez à saisir des données ici | W25: =SUM(W8:W24) -> 0 | AG25: =SUM(X8:AG24) -> 0 | AH25: Total | AI25: =SUM(AI8:AI24) -> 0 | AK25: =SUM(AK8:AK24) -> 1400 | AL25: =SUM(AL8:AL24) -> 0 | AM25: =SUM(AM8:AM24) -> 1400 | AN25: 1400 | AO25: 1400 | AP25: 1400
X26: 19 | Y26: 20 | Z26: 21 | AA26: 22 | AB26: 23 | AC26: 24 | AD26: 25 | AE26: 26 | AF26: 27 | AG26: 28 | AH26: =IF(Language=1,Language!$A$382,Language!$B$382) -> * Décochez pour modifier les valeurs
F61: 1 | G61: 2 | H61: 3 | I61: 4 | J61: 5 | K61: 6 | L61: 7 | M61: 8 | N61: 9 | O61: 10 | P61: 11 | Q61: 12 | R61: 13 | S61: 14

Sheet Providers (hidden)
B1: =IF(Language=1,Language!$A$111,Language!$B$111) -> Nombre et Type de Prestataires de soins Disponibles
B3: =Setup!$C$10 -> Nom pour le niveau supérieur (district, région, etc.) : | C3: =Health_Facility_Name -> 0
C5: =IF(Language=1,Language!$A$113,Language!$B$113) -> No. Total de prestataires disponibles pour TAR | D5: Total hours worked per wek | E5: Hours per week spent on ART | F5: % time spent on ART | P5: Average % spent on ART | Q5: =IF(Language=1,Language!$A$123,Language!$B$123) -> No. des ETP disponibles pour les services TAR
B6: =IF(Language=1,Language!$A$112,Language!$B$112) -> Catégorie de prestataires | F6: 1 | G6: 2 | H6: 3 | I6: 4 | J6: 5 | K6: 6 | L6: 7 | M6: 8 | N6: 9 | O6: 10
B7: =IF(Language=1,Language!$A$116,Language!$B$116) -> Prestataire de services standard
B8: =IF(Language=1,Language!$A$125,Language!$B$125) -> Docteur en Médecine (MD) | C8: ='Service Providers'!F8 -> 0 | D8: ='Service Providers'!D8+'Service Providers'!E8 -> 0 | E8: ='Service Providers'!D8 -> 0 | P8: =IFERROR('Service Providers'!S8/('Service Providers'!D8),0) -> 0 | Q8: =IF(Site_Level=1,C8*P8,'Service Providers'!T8) -> 0
B9: =IF(Language=1,Language!$A$126,Language!$B$126) -> Clinicien non-médecin (CNP) | C9: ='Service Providers'!F9 -> 0 | D9: ='Service Providers'!D9+'Service Providers'!E9 -> 0 | E9: ='Service Providers'!D9 -> 0 | P9: =IFERROR('Service Providers'!S9/('Service Providers'!D9),0) -> 0 | Q9: =IF(Site_Level=1,C9*P9,'Service Providers'!T9) -> 0
B10: =IF(Language=1,Language!$A$127,Language!$B$127) -> Pharmacien ou assistant en pharmacie (PTA) | C10: ='Service Providers'!F10 -> 0 | D10: ='Service Providers'!D10+'Service Providers'!E10 -> 0 | E10: ='Service Providers'!D10 -> 0 | P10: =IFERROR('Service Providers'!S10/('Service Providers'!D10),0) -> 0 | Q10: =IF(Site_Level=1,C10*P10,'Service Providers'!T10) -> 0
B11: =IF(Language=1,Language!$A$128,Language!$B$128) -> Infirmier (N) | C11: ='Service Providers'!F11 -> 0 | D11: ='Service Providers'!D11+'Service Providers'!E11 -> 0 | E11: ='Service Providers'!D11 -> 0 | P11: =IFERROR('Service Providers'!S11/('Service Providers'!D11),0) -> 0 | Q11: =IF(Site_Level=1,C11*P11,'Service Providers'!T11) -> 0
B12: =IF(Language=1,Language!$A$129,Language!$B$129) -> Technicien de laboratoire (LT) | C12: ='Service Providers'!F12 -> 0 | D12: ='Service Providers'!D12+'Service Providers'!E12 -> 0 | E12: ='Service Providers'!D12 -> 0 | P12: =IFERROR('Service Providers'!S12/('Service Providers'!D12),0) -> 0 | Q12: =IF(Site_Level=1,C12*P12,'Service Providers'!T12) -> 0
B13: =IF(Language=1,Language!$A$130,Language!$B$130) -> Agent de santé communautaire (ASC) | C13: ='Service Providers'!F13 -> 0 | D13: ='Service Providers'!D13+'Service Providers'!E13 -> 0 | E13: ='Service Providers'!D13 -> 0 | P13: =IFERROR('Service Providers'!S13/('Service Providers'!D13),0) -> 0 | Q13: =IF(Site_Level=1,C13*P13,'Service Providers'!T13) -> 0
B14: =IF(Language=1,Language!$A$131,Language!$B$131) -> Auxiliaire de soins/Aide-soignant (FBA) | C14: ='Service Providers'!F14 -> 0 | D14: ='Service Providers'!D14+'Service Providers'!E14 -> 0 | E14: ='Service Providers'!D14 -> 0 | P14: =IFERROR('Service Providers'!S14/('Service Providers'!D14),0) -> 0 | Q14: =IF(Site_Level=1,C14*P14,'Service Providers'!T14) -> 0
B15: =IF(Language=1,Language!$A$132,Language!$B$132) -> Pair (P) | C15: ='Service Providers'!F15 -> 0 | D15: ='Service Providers'!D15+'Service Providers'!E15 -> 0 | E15: ='Service Providers'!D15 -> 0 | P15: =IFERROR('Service Providers'!S15/('Service Providers'!D15),0) -> 0 | Q15: =IF(Site_Level=1,C15*P15,'Service Providers'!T15) -> 0
B16: =IF(Language=1,Language!$A$133,Language!$B$133) -> Assistant social (SSW) | C16: ='Service Providers'!F16 -> 0 | D16: ='Service Providers'!D16+'Service Providers'!E16 -> 0 | E16: ='Service Providers'!D16 -> 0 | P16: =IFERROR('Service Providers'!S16/('Service Providers'!D16),0) -> 0 | Q16: =IF(Site_Level=1,C16*P16,'Service Providers'!T16) -> 0
B17: =IF(Language=1,Language!$A$134,Language!$B$134) -> Conseiller (C) | C17: ='Service Providers'!F17 -> 0 | D17: ='Service Providers'!D17+'Service Providers'!E17 -> 0 | E17: ='Service Providers'!D17 -> 0 | P17: =IFERROR('Service Providers'!S17/('Service Providers'!D17),0) -> 0 | Q17: =IF(Site_Level=1,C17*P17,'Service Providers'!T17) -> 0
B18: =IF(Language=1,Language!$A$138,Language!$B$138) -> Prestataires supplémentaires (veuillez préciser, jusqu'à un maximum de 6) : | S18: =IF(Language=1,Language!$A$139,Language!$B$139) -> Choisissez un prestataire similaire à partir de la liste standard
B19: ='Service Providers'!B19 -> Data/ART Clerk/Officers | C19: ='Service Providers'!F19 -> 0 | D19: ='Service Providers'!D19+'Service Providers'!E19 -> 0 | E19: ='Service Providers'!D19 -> 0 | P19: =IFERROR('Service Providers'!S19/('Service Providers'!D19),0) -> 0 | Q19: =IF(Site_Level=1,C19*P19,'Service Providers'!T19) -> 0 | S19: =IF(AND(ISNUMBER(MATCH('Service Providers'!V19,Language!$A$124:$A$134,0)),Language=1),'Service Providers'!V19,IF(AND(ISNUMBER(MATCH('Service Providers'!V19,Language!$A$124:$A$134,0)),Language=2),VLOOKUP('Service Providers'!V19,'Drop-down Lists'!$G$3:$I$13,2,FALSE),IF(AND(ISNUMBER(MATCH('Service Providers'!V19,Language!$B$124:$B$134,0)),Language=2),'Service Providers'!V19,IF(AND(ISNUMBER(MATCH('Service Providers'!V19,Language!$B$124:$B$134,0)),Language=1),VLOOKUP('Service Providers'!V19,'Drop-down Lists'!$H$3:$I$13,2,FALSE),"")))) -> Auxiliaire de soins/Aide-soignant (FBA)
B20: ='Service Providers'!B20 -> HDAs | C20: ='Service Providers'!F20 -> 0 | D20: ='Service Providers'!D20+'Service Providers'!E20 -> 0 | E20: ='Service Providers'!D20 -> 0 | P20: =IFERROR('Service Providers'!S20/('Service Providers'!D20),0) -> 0 | Q20: =IF(Site_Level=1,C20*P20,'Service Providers'!T20) -> 0 | S20: =IF(AND(ISNUMBER(MATCH('Service Providers'!V20,Language!$A$124:$A$134,0)),Language=1),'Service Providers'!V20,IF(AND(ISNUMBER(MATCH('Service Providers'!V20,Language!$A$124:$A$134,0)),Language=2),VLOOKUP('Service Providers'!V20,'Drop-down Lists'!$G$3:$I$13,2,FALSE),IF(AND(ISNUMBER(MATCH('Service Providers'!V20,Language!$B$124:$B$134,0)),Language=2),'Service Providers'!V20,IF(AND(ISNUMBER(MATCH('Service Providers'!V20,Language!$B$124:$B$134,0)),Language=1),VLOOKUP('Service Providers'!V20,'Drop-down Lists'!$H$3:$I$13,2,FALSE),"")))) -> Agent de santé communautaire (ASC)
B21: ='Service Providers'!B21 -> 0 | C21: ='Service Providers'!F21 -> 0 | D21: ='Service Providers'!D21+'Service Providers'!E21 -> 0 | E21: ='Service Providers'!D21 -> 0 | P21: =IFERROR('Service Providers'!S21/('Service Providers'!D21),0) -> 0 | Q21: =IF(Site_Level=1,C21*P21,'Service Providers'!T21) -> 0 | S21: =IF(AND(ISNUMBER(MATCH('Service Providers'!V21,Language!$A$124:$A$134,0)),Language=1),'Service Providers'!V21,IF(AND(ISNUMBER(MATCH('Service Providers'!V21,Language!$A$124:$A$134,0)),Language=2),VLOOKUP('Service Providers'!V21,'Drop-down Lists'!$G$3:$I$13,2,FALSE),IF(AND(ISNUMBER(MATCH('Service Providers'!V21,Language!$B$124:$B$134,0)),Language=2),'Service Providers'!V21,IF(AND(ISNUMBER(MATCH('Service Providers'!V21,Language!$B$124:$B$134,0)),Language=1),VLOOKUP('Service Providers'!V21,'Drop-down Lists'!$H$3:$I$13,2,FALSE),"")))) -> 
B22: ='Service Providers'!B22 -> 0 | C22: ='Service Providers'!F22 -> 0 | D22: ='Service Providers'!D22+'Service Providers'!E22 -> 0 | E22: ='Service Providers'!D22 -> 0 | P22: =IFERROR('Service Providers'!S22/('Service Providers'!D22),0) -> 0 | Q22: =IF(Site_Level=1,C22*P22,'Service Providers'!T22) -> 0 | S22: =IF(AND(ISNUMBER(MATCH('Service Providers'!V22,Language!$A$124:$A$134,0)),Language=1),'Service Providers'!V22,IF(AND(ISNUMBER(MATCH('Service Providers'!V22,Language!$A$124:$A$134,0)),Language=2),VLOOKUP('Service Providers'!V22,'Drop-down Lists'!$G$3:$I$13,2,FALSE),IF(AND(ISNUMBER(MATCH('Service Providers'!V22,Language!$B$124:$B$134,0)),Language=2),'Service Providers'!V22,IF(AND(ISNUMBER(MATCH('Service Providers'!V22,Language!$B$124:$B$134,0)),Language=1),VLOOKUP('Service Providers'!V22,'Drop-down Lists'!$H$3:$I$13,2,FALSE),"")))) -> 
B23: ='Service Providers'!B23 -> 0 | C23: ='Service Providers'!F23 -> 0 | D23: ='Service Providers'!D23+'Service Providers'!E23 -> 0 | E23: ='Service Providers'!D23 -> 0 | P23: =IFERROR('Service Providers'!S23/('Service Providers'!D23),0) -> 0 | Q23: =IF(Site_Level=1,C23*P23,'Service Providers'!T23) -> 0 | S23: =IF(AND(ISNUMBER(MATCH('Service Providers'!V23,Language!$A$124:$A$134,0)),Language=1),'Service Providers'!V23,IF(AND(ISNUMBER(MATCH('Service Providers'!V23,Language!$A$124:$A$134,0)),Language=2),VLOOKUP('Service Providers'!V23,'Drop-down Lists'!$G$3:$I$13,2,FALSE),IF(AND(ISNUMBER(MATCH('Service Providers'!V23,Language!$B$124:$B$134,0)),Language=2),'Service Providers'!V23,IF(AND(ISNUMBER(MATCH('Service Providers'!V23,Language!$B$124:$B$134,0)),Language=1),VLOOKUP('Service Providers'!V23,'Drop-down Lists'!$H$3:$I$13,2,FALSE),"")))) -> 
B24: ='Service Providers'!B24 -> 0 | C24: ='Service Providers'!F24 -> 0 | D24: ='Service Providers'!D24+'Service Providers'!E24 -> 0 | E24: ='Service Providers'!D24 -> 0 | P24: =IFERROR('Service Providers'!S24/('Service Providers'!D24),0) -> 0 | Q24: =IF(Site_Level=1,C24*P24,'Service Providers'!T24) -> 0 | S24: =IF(AND(ISNUMBER(MATCH('Service Providers'!V24,Language!$A$124:$A$134,0)),Language=1),'Service Providers'!V24,IF(AND(ISNUMBER(MATCH('Service Providers'!V24,Language!$A$124:$A$134,0)),Language=2),VLOOKUP('Service Providers'!V24,'Drop-down Lists'!$G$3:$I$13,2,FALSE),IF(AND(ISNUMBER(MATCH('Service Providers'!V24,Language!$B$124:$B$134,0)),Language=2),'Service Providers'!V24,IF(AND(ISNUMBER(MATCH('Service Providers'!V24,Language!$B$124:$B$134,0)),Language=1),VLOOKUP('Service Providers'!V24,'Drop-down Lists'!$H$3:$I$13,2,FALSE),"")))) -> 
A25: =COUNT(F24:O24)-C24 -> 0

Sheet Client Distribution
B1: =IF(Language=1,Language!$A$143,Language!$B$143) -> Répartition des Clients | D1: =IF(F4+F19<>Clients_Annual_Total,IF(Language=1,Language!$A$159,Language!$B$159),"") -> 
F3: ▼▼▼
E4: =IF(Language=1,Language!$A$145,Language!$B$145) -> Nouveaux Clients | K4: F | L4: =IF(Language=1,Language!$A$94,Language!$B$94) -> 1. Soins standard | M4: =N4*Clients_New_and_Unstable -> 0 | N4: 1 | O4: =IF(M4+M5<>Clients_New_and_Unstable,IF(Language=1,Language!$A$154,Language!$B$154),"") ->  | R4: 148761
B5: =IF(ROUND(E34,0)<>Clients_Annual_Total,IF(Language=1,Language!$A$160,Language!$B$160),IF(Language=1,Language!$A$161,Language!$B$161)) -> Tous les clients attendus ont été répartis totalement. | E5: =IF(Language=1,Language!$A$162,Language!$B$162) -> % du no. Total de cas | F5: =IF(Clients_Annual_Total>0,Clients_New_and_Unstable/Clients_Annual_Total,0) -> 0 | K5: F | L5: =B29 -> 3 month MMD for stable ART initiators | M5: =N5*Clients_New_and_Unstable -> 0 | N5: 0
E7: Check Total-Existing | F7: =Clients_Annual_Total-Clients_Existing -> 0 | K7: F | L7: =IF(Language=1,Language!$A$94,Language!$B$94) -> 1. Soins standard | M7: =N7*Clients_Adults -> 0 | N7: 1
K8: F | L8: =$B$29 -> 3 month MMD for stable ART initiators | M8: 0 | O8: =IF(Language=1,Language!$A$153,Language!$B$153) -> Vérifiez le Total
H9: =IF(Language=1,Language!$A$147,Language!$B$147) -> Adultes | I9: =Clients_Existing*I11 -> 0 | K9: FO | L9: =$B$30 -> 3 month MMD for established patients | M9: 0 | O9: =SUM(M7:M12) -> 0
K10: C | L10: =$B$31 -> 4. Groupe communautaire géré par AS (caché) | M10: 0 | O10: =IF(O9<>Clients_Adults,IF(Language=1,Language!$A$155,Language!$B$155),"") -> 
B11: =IF(Language=1,Language!$A$144,Language!$B$144) -> Cible prévue de clients TAR pour les 12 prochains mois | C11: =Clients_New_and_Unstable+Clients_Existing -> 0 | H11: =IF(Language=1,Language!$A$163,Language!$B$163) -> % cas existants | I11: 0.85 | K11: O | L11: =$B$32 -> 6 month MMD with appointment spacing | M11: 0 | O11: =IF(O9<>Clients_Adults,IF(Language=1,Language!$A$155,Language!$B$155),"") -> 
K12: O | L12: =$B$33 -> 12 month MMD with appointment spacing | M12: 0
K14: F | L14: =IF(Language=1,Language!$A$94,Language!$B$94) -> 1. Soins standard | M14: =N14*Clients_Adolescents -> 0 | N14: 1
K15: F | L15: =$B$29 -> 3 month MMD for stable ART initiators | M15: 0 | O15: =IF(Language=1,Language!$A$153,Language!$B$153) -> Vérifiez le Total
H16: =IF(Language=1,Language!$A$148,Language!$B$148) -> Adolescents | I16: =Clients_Existing*I18 -> 0 | K16: FO | L16: =$B$30 -> 3 month MMD for established patients | M16: 0 | O16: =SUM(M14:M19) -> 0
K17: C | L17: =$B$31 -> 4. Groupe communautaire géré par AS (caché) | M17: 0 | O17: =IF(O16<>Clients_Adolescents,IF(Language=1,Language!$A$156,Language!$B$156),"") -> 
F18: ▼▼▼ | H18: =IF(Language=1,Language!$A$163,Language!$B$163) -> % cas existants | I18: 0.05 | K18: O | L18: =$B$32 -> 6 month MMD with appointment spacing | M18: 0 | O18: =IF(O16<>Clients_Adolescents,IF(Language=1,Language!$A$156,Language!$B$156),"") -> 
E19: =IF(Language=1,Language!$A$146,Language!$B$146) -> Anciens Clients (Stables et Instables) | K19: O | L19: =$B$33 -> 12 month MMD with appointment spacing | M19: 0 | R19: 842981
K21: F | L21: =IF(Language=1,Language!$A$94,Language!$B$94) -> 1. Soins standard | M21: =N21*Clients_Children -> 0 | N21: 1
E22: =IF(Language=1,Language!$A$162,Language!$B$162) -> % du no. Total de cas | F22: =IF(Clients_Annual_Total>0,Clients_Existing/Clients_Annual_Total,0) -> 0 | K22: F | L22: =$B$29 -> 3 month MMD for stable ART initiators | M22: 0 | O22: =IF(Language=1,Language!$A$153,Language!$B$153) -> Vérifiez le Total
H23: =IF(Language=1,Language!$A$149,Language!$B$149) -> Enfants | I23: =Clients_Existing*I25 -> 0 | K23: FO | L23: =$B$30 -> 3 month MMD for established patients | M23: 0 | O23: =SUM(M21:M26) -> 0
K24: C | L24: =$B$31 -> 4. Groupe communautaire géré par AS (caché) | M24: 0 | O24: =IF(O23<>Clients_Children,IF(Language=1,Language!$A$157,Language!$B$157),"") -> 
E25: Check Total-New | F25: =Clients_Annual_Total-Clients_New_and_Unstable -> 0 | H25: =IF(Language=1,Language!$A$163,Language!$B$163) -> % cas existants | I25: 0.05 | K25: O | L25: =$B$32 -> 6 month MMD with appointment spacing | M25: 0 | O25: =IF(O23<>Clients_Children,IF(Language=1,Language!$A$157,Language!$B$157),"") -> 
K26: O | L26: =$B$33 -> 12 month MMD with appointment spacing | M26: 0
B27: =IF(Language=1,Language!$A$152,Language!$B$152) -> Nombre total de clients et répartition en pourcentage selon le modèle
B28: =IF(Language=1,Language!$A$94,Language!$B$94) -> 1. Soins standard | D28: SM | E28: =M4+M7+M14+M21+M28 -> 0 | F28: =IF($E$34>0,E28/$E$34,0) -> 0 | K28: F | L28: =IF(Language=1,Language!$A$94,Language!$B$94) -> 1. Soins standard | M28: =N28*Clients_PBFW -> 0 | N28: 1
B29: ='Treatment Models'!D9 -> 3 month MMD for stable ART initiators | D29: FHI | E29: =M5+M8+M15+M22+M29 -> 0 | F29: =IF($E$34>0,E29/$E$34,0) -> 0 | K29: F | L29: =$B$29 -> 3 month MMD for stable ART initiators | M29: 0 | O29: =IF(Language=1,Language!$A$153,Language!$B$153) -> Vérifiez le Total
B30: ='Treatment Models'!E9 -> 3 month MMD for established patients | D30: FHI | E30: =M9+M16+M23+M30 -> 0 | F30: 0 | H30: =IF(Language=1,Language!$A$151,Language!$B$151) -> FEA | I30: =Clients_Existing*I32 -> 0 | K30: FO | L30: =$B$30 -> 3 month MMD for established patients | M30: 0 | O30: =SUM(M28:M33) -> 0
B31: =IF(Language=1,Language!$A$97,Language!$B$97) -> 4. Groupe communautaire géré par AS (caché) | D31: OHG | E31: =M10+M17+M24+M31 -> 0 | F31: 0 | K31: C | L31: =$B$31 -> 4. Groupe communautaire géré par AS (caché) | M31: 0 | O31: =IF(O30<>Clients_PBFW,IF(Language=1,Language!$A$158,Language!$B$158),"") -> 
B32: ='Treatment Models'!G9 -> 6 month MMD with appointment spacing | D32: OHI | E32: =M11+M18+M25+M32 -> 0 | F32: 0 | H32: =IF(Language=1,Language!$A$163,Language!$B$163) -> % cas existants | I32: 0.05 | K32: O | L32: =$B$32 -> 6 month MMD with appointment spacing | M32: 0 | O32: =IF(O30<>Clients_PBFW,IF(Language=1,Language!$A$158,Language!$B$158),"") -> 
B33: ='Treatment Models'!H9 -> 12 month MMD with appointment spacing | D33: OCG | E33: =M12+M19+M26+M33 -> 0 | F33: 0 | K33: O | L33: =$B$33 -> 12 month MMD with appointment spacing | M33: 0
B34: TOTAL | E34: =SUM(E28:E33) -> 0
H35: Check Total | I35: =Clients_Adults+Clients_Adolescents+Clients_Children+Clients_PBFW -> 0
B36: =IF(Language=1,Language!$A$373,Language!$B$373) -> ▼▼▼Ces cellules sont obligatoires; commencez à saisir des données ici

Sheet Task Assignment
D1: =IF(Language=1,Language!$A$165,Language!$B$165) -> Attribution de tâches critiques à des Prestataires de soins spécifiques | V1: Average no. of hours spent on group work or community outreach per day | W1: Average group size | X1: Minimum group size | Y1: Maximum group size | Z1: Number of groups or communities visited per day | AA1: Total no. of ART clients served through groups or community outreach | AB1: Total number of groups or communities supported | AC1: Annual contact frequency | AD1: Total no. of days per year/ week spent on group visits or community outreach | AG1: Use tool data | AH1: 1 | AO1: Detect TA change | AP1: Service provider backup
A2: LOOKUP VALUE IN TIME DATA TABLE (Translation into English, if necessary) | B2: Combination Model-Task-Service Provider | E2: =IF(TA_Change1>0,IF(Language=1,Language!$A$416,Language!$B$416),"") ->  | N2: =IF(Language=1,Language!$A$173,Language!$B$173) -> Clients par groupe pour les tâches menés en groupe
E3: =IF(Language=1,Language!$A$166,Language!$B$166) -> Type de modèle TAR : | F3: =IF(Language=1,Language!$A$169,Language!$B$169) -> Etablissement | L3: =IF(Language=1,Language!$A$171,Language!$B$171) -> Nombre de Clients
A4: =B4 -> SM | B4: SM | E4: =IF(Language=1,Language!$A$167,Language!$B$167) -> Modèle TAR : | F4: ='Treatment Models'!$C$4 -> 1. Soins standard | AP4: 1. Soins standard
E5: =IF(Language=1,Language!$A$168,Language!$B$168) -> Description spécifique au pays : | F5: ='Treatment Models'!$C$9 -> Standard Care | L5: =Clients_SM -> 0 | N5: 1 | AP5: Standard Care
U6: 1
E7: =IF(Language=1,Language!$A$174,Language!$B$174) -> Tâches critiques pour la prestation de services TAR | F7: =IF(Language=1,Language!$A$175,Language!$B$175) -> Prestataire de service (fournissant les tâches TAR le plus souvent) | G7: =IF(Language=1,Language!$A$184,Language!$B$184) -> Groupe (O/-) | H7: =IF(Language=1,Language!$A$176,Language!$B$176) -> Temps de contact par client (minutes) | I7: =IF(Language=1,Language!$A$177,Language!$B$177) -> Variation (Min - Max) | L7: =IF(Language=1,Language!$A$178,Language!$B$178) -> Nombre de fois par année | M7: =IF(Language=1,Language!$A$179,Language!$B$179) -> Heures nécessaires | N7: =IF(Language=1,Language!$A$177,Language!$B$177) -> Variation (Min - Max) | U7: 2 | AG7: Reference tool data | AK7: User data backup | AP7: Prestataire de service (fournissant les tâches TAR le plus souvent)
A8: =IF(Language=2,VLOOKUP(B8,'Staff Time Data'!$S$4:$T$550,2,FALSE),B8) -> SM-Registration-Auxiliary/assistant nurse - HSA | B8: =IF(ISNUMBER(MATCH(F8,'Drop-down Lists'!$J$3:$J$24,0)),$B$4&"-"&E8&"-"&F8,$B$4&"-"&E8&"-"&VLOOKUP(F8,Providers!$B$19:$S$24,18,FALSE)) -> SM-Enregistrement-Auxiliaire de soins/Aide-soignant (FBA) | C8: =IF(AND(AND(OR($F8="",LEFT($F8,3)="---"),'Treatment Models'!B12<>"",'Treatment Models'!C12>0),$L$5>0),1,0) -> 0 | E8: =IF(Language=1,Language!$A$185,Language!$B$185) -> Enregistrement | F8: Data/ART Clerk/Officers | H8: =AG8 -> 1.076923077 | I8: 0.8051765887 | J8: - | K8: 1.348669565 | L8: ='Treatment Models'!$C$12 -> 12 | M8: =$L$5*H8*L8/60 -> 0 | N8: =$L$5*I8*L8/60 -> 0 | O8: - | P8: =$L$5*K8*L8/60 -> 0 | R8: =IF(AND(OR(F8="",LEFT(F8,3)="---"),E8<>""),1,0) -> 0 | U8: 3 | V8: 6 | W8: 10 | X8: 5 | Y8: 20 | Z8: 2 | AA8: 100000 | AB8: 10000 | AC8: 0.1 | AD8: 500 | AE8: 10 | AG8: =IF(OR($F8="",LEFT($F8,3)="---"),0,IF(VLOOKUP($A8,'Staff Time Data'!$A$4:$N$600,2,FALSE)>0,VLOOKUP($A8,'Staff Time Data'!$A$4:$N$600,3,FALSE),VLOOKUP($A8,'Staff Time Data'!$A$4:$N$600,9,FALSE))/IF(OR($G8="O",$G8="o",$G8="Y",$G8="y"),$N$5,1)) -> 1.076923077 | AH8: =IF(OR($F8="",LEFT($F8,3)="---"),0,IF(VLOOKUP($A8,'Staff Time Data'!$A$4:$N$600,2,FALSE)>0,VLOOKUP($A8,'Staff Time Data'!$A$4:$N$600,7,FALSE),VLOOKUP($A8,'Staff Time Data'!$A$4:$N$600,13,FALSE))/IF(OR($G8="O",$G8="o",$G8="Y",$G8="y"),$N$5,1)) -> 0.8051765887 | AI8: - | AJ8: =IF(OR($F8="",LEFT($F8,3)="---"),0,IF(VLOOKUP($A8,'Staff Time Data'!$A$4:$N$600,2,FALSE)>0,VLOOKUP($A8,'Staff Time Data'!$A$4:$N$600,8,FALSE),VLOOKUP($A8,'Staff Time Data'!$A$4:$N$600,14,FALSE))/IF(OR($G8="O",$G8="o",$G8="Y",$G8="y"),$N$5,1)) -> 1.348669565 | AK8: 1.076923077 | AL8: 0.8051765887 | AM8: - | AN8: 1.348669565 | AO8: =IF(AP8=F8,0,1) -> 0 | AP8: Data/ART Clerk/Officers
A9: =IF(Language=2,VLOOKUP(B9,'Staff Time Data'!$S$4:$T$550,2,FALSE),B9) -> SM-Health Education-Expert Clients/Peer Educators | B9: =IF(ISNUMBER(MATCH(F9,'Drop-down Lists'!$J$3:$J$24,0)),$B$4&"-"&E9&"-"&F9,$B$4&"-"&E9&"-"&VLOOKUP(F9,Providers!$B$19:$S$24,18,FALSE)) -> SM-Éducation à la santé-Pair (P) | C9: =IF(AND(AND(OR($F9="",LEFT($F9,3)="---"),'Treatment Models'!B13<>"",'Treatment Models'!C13>0),$L$5>0),1,0) -> 0 | E9: =IF(Language=1,Language!$A$186,Language!$B$186) -> Éducation à la santé | F9: Pair (P) | H9: 8 | I9: 8 | J9: - | K9: 8 | L9: ='Treatment Models'!$C$13 -> 12 | M9: =$L$5*H9*L9/60 -> 0 | N9: 0 | O9: - | P9: 0 | R9: =IF(AND(OR(F9="",LEFT(F9,3)="---"),E9<>""),1,0) -> 0 | U9: 1 | AG9: =IF(OR($F9="",LEFT($F9,3)="---"),0,IF(VLOOKUP($A9,'Staff Time Data'!$A$4:$N$600,2,FALSE)>0,VLOOKUP($A9,'Staff Time Data'!$A$4:$N$600,3,FALSE),VLOOKUP($A9,'Staff Time Data'!$A$4:$N$600,9,FALSE))/IF(OR($G9="O",$G9="o",$G9="Y",$G9="y"),$N$5,1)) -> 8 | AH9: =IF(OR($F9="",LEFT($F9,3)="---"),0,IF(VLOOKUP($A9,'Staff Time Data'!$A$4:$N$600,2,FALSE)>0,VLOOKUP($A9,'Staff Time Data'!$A$4:$N$600,7,FALSE),VLOOKUP($A9,'Staff Time Data'!$A$4:$N$600,13,FALSE))/IF(OR($G9="O",$G9="o",$G9="Y",$G9="y"),$N$5,1)) -> 8 | AI9: - | AJ9: =IF(OR($F9="",LEFT($F9,3)="---"),0,IF(VLOOKUP($A9,'Staff Time Data'!$A$4:$N$600,2,FALSE)>0,VLOOKUP($A9,'Staff Time Data'!$A$4:$N$600,8,FALSE),VLOOKUP($A9,'Staff Time Data'!$A$4:$N$600,14,FALSE))/IF(OR($G9="O",$G9="o",$G9="Y",$G9="y"),$N$5,1)) -> 8 | AK9: 8 | AL9: 8 | AM9: - | AN9: 8 | AO9: =IF(AP9=F9,0,1) -> 0 | AP9: Pair (P)
A10: =IF(Language=2,VLOOKUP(B10,'Staff Time Data'!$S$4:$T$550,2,FALSE),B10) -> SM-Client follow-up & tracing-Community Health Workers | B10: =IF(ISNUMBER(MATCH(F10,'Drop-down Lists'!$J$3:$J$24,0)),$B$4&"-"&E10&"-"&F10,$B$4&"-"&E10&"-"&VLOOKUP(F10,Providers!$B$19:$S$24,18,FALSE)) -> SM-Suivi et traçage des clients-Agent de santé communautaire (ASC) | C10: =IF(AND(AND(OR($F10="",LEFT($F10,3)="---"),'Treatment Models'!B14<>"",'Treatment Models'!C14>0),$L$5>0),1,0) -> 0 | E10: =IF(Language=1,Language!$A$187,Language!$B$187) -> Suivi et traçage des clients | F10: HDAs | H10: 45 | I10: 30 | J10: - | K10: 60 | L10: ='Treatment Models'!$C$14 -> 2 | M10: 0 | N10: 0 | O10: - | P10: 0 | R10: 0 | U10: 2 | AG10: =IF(OR($F10="",LEFT($F10,3)="---"),0,IF(VLOOKUP($A10,'Staff Time Data'!$A$4:$N$600,2,FALSE)>0,VLOOKUP($A10,'Staff Time Data'!$A$4:$N$600,3,FALSE),VLOOKUP($A10,'Staff Time Data'!$A$4:$N$600,9,FALSE))/IF(OR($G10="O",$G10="o",$G10="Y",$G10="y"),$N$5,1)) -> 45 | AH10: =IF(OR($F10="",LEFT($F10,3)="---"),0,IF(VLOOKUP($A10,'Staff Time Data'!$A$4:$N$600,2,FALSE)>0,VLOOKUP($A10,'Staff Time Data'!$A$4:$N$600,7,FALSE),VLOOKUP($A10,'Staff Time Data'!$A$4:$N$600,13,FALSE))/IF(OR($G10="O",$G10="o",$G10="Y",$G10="y"),$N$5,1)) -> 30 | AI10: - | AJ10: =IF(OR($F10="",LEFT($F10,3)="---"),0,IF(VLOOKUP($A10,'Staff Time Data'!$A$4:$N$600,2,FALSE)>0,VLOOKUP($A10,'Staff Time Data'!$A$4:$N$600,8,FALSE),VLOOKUP($A10,'Staff Time Data'!$A$4:$N$600,14,FALSE))/IF(OR($G10="O",$G10="o",$G10="Y",$G10="y"),$N$5,1)) -> 60 | AK10: 45 | AL10: 30 | AM10: - | AN10: 60 | AO10: 0 | AP10: HDAs
A11: =IF(Language=2,VLOOKUP(B11,'Staff Time Data'!$S$4:$T$550,2,FALSE),B11) -> SM-Consultation/ART Refill-Non-physician Clinicians | B11: =IF(ISNUMBER(MATCH(F11,'Drop-down Lists'!$J$3:$J$24,0)),$B$4&"-"&E11&"-"&F11,$B$4&"-"&E11&"-"&VLOOKUP(F11,Providers!$B$19:$S$24,18,FALSE)) -> SM-Consultation / Évaluation clinique-Clinicien non-médecin (CNP) | C11: =IF(AND(AND(OR($F11="",LEFT($F11,3)="---"),'Treatment Models'!B15<>"",'Treatment Models'!C15>0),$L$5>0),1,0) -> 0 | E11: =IF(Language=1,Language!$A$188,Language!$B$188) -> Consultation / Évaluation clinique | F11: Clinicien non-médecin (CNP) | H11: 3.166666667 | I11: 0.8500599528 | J11: - | K11: 5.483273381 | L11: ='Treatment Models'!$C$15 -> 12 | M11: 0 | N11: 0 | O11: - | P11: 0 | R11: 0 | U11: 3 | AG11: =IF(OR($F11="",LEFT($F11,3)="---"),0,IF(VLOOKUP($A11,'Staff Time Data'!$A$4:$N$600,2,FALSE)>0,VLOOKUP($A11,'Staff Time Data'!$A$4:$N$600,3,FALSE),VLOOKUP($A11,'Staff Time Data'!$A$4:$N$600,9,FALSE))/IF(OR($G11="O",$G11="o",$G11="Y",$G11="y"),$N$5,1)) -> 3.166666667 | AH11: =IF(OR($F11="",LEFT($F11,3)="---"),0,IF(VLOOKUP($A11,'Staff Time Data'!$A$4:$N$600,2,FALSE)>0,VLOOKUP($A11,'Staff Time Data'!$A$4:$N$600,7,FALSE),VLOOKUP($A11,'Staff Time Data'!$A$4:$N$600,13,FALSE))/IF(OR($G11="O",$G11="o",$G11="Y",$G11="y"),$N$5,1)) -> 0.8500599528 | AI11: - | AJ11: =IF(OR($F11="",LEFT($F11,3)="---"),0,IF(VLOOKUP($A11,'Staff Time Data'!$A$4:$N$600,2,FALSE)>0,VLOOKUP($A11,'Staff Time Data'!$A$4:$N$600,8,FALSE),VLOOKUP($A11,'Staff Time Data'!$A$4:$N$600,14,FALSE))/IF(OR($G11="O",$G11="o",$G11="Y",$G11="y"),$N$5,1)) -> 5.483273381 | AK11: 3.166666667 | AL11: 0.8500599528 | AM11: - | AN11: 5.483273381 | AO11: 0 | AP11: Clinicien non-médecin (CNP)
A12: =IF(Language=2,VLOOKUP(B12,'Staff Time Data'!$S$4:$T$550,2,FALSE),B12) -> SM-Plasma Sample Collection or DBS-Lab Assistants/Technicians | B12: =IF(ISNUMBER(MATCH(F12,'Drop-down Lists'!$J$3:$J$24,0)),$B$4&"-"&E12&"-"&F12,$B$4&"-"&E12&"-"&VLOOKUP(F12,Providers!$B$19:$S$24,18,FALSE)) -> SM-Prise de sang ou taches de sang sec-Technicien de laboratoire (LT) | C12: =IF(AND(AND(OR($F12="",LEFT($F12,3)="---"),'Treatment Models'!B16<>"",'Treatment Models'!C16>0),$L$5>0),1,0) -> 0 | E12: =IF(Language=1,Language!$A$189,Language!$B$189) -> Prise de sang ou taches de sang sec | F12: Technicien de laboratoire (LT) | H12: 5 | I12: 3 | J12: - | K12: 9 | L12: ='Treatment Models'!$C$16 -> 2 | M12: 0 | N12: 0 | O12: - | P12: 0 | R12: 0 | U12: 1 | AG12: =IF(OR($F12="",LEFT($F12,3)="---"),0,IF(VLOOKUP($A12,'Staff Time Data'!$A$4:$N$600,2,FALSE)>0,VLOOKUP($A12,'Staff Time Data'!$A$4:$N$600,3,FALSE),VLOOKUP($A12,'Staff Time Data'!$A$4:$N$600,9,FALSE))/IF(OR($G12="O",$G12="o",$G12="Y",$G12="y"),$N$5,1)) -> 5 | AH12: =IF(OR($F12="",LEFT($F12,3)="---"),0,IF(VLOOKUP($A12,'Staff Time Data'!$A$4:$N$600,2,FALSE)>0,VLOOKUP($A12,'Staff Time Data'!$A$4:$N$600,7,FALSE),VLOOKUP($A12,'Staff Time Data'!$A$4:$N$600,13,FALSE))/IF(OR($G12="O",$G12="o",$G12="Y",$G12="y"),$N$5,1)) -> 3 | AI12: - | AJ12: =IF(OR($F12="",LEFT($F12,3)="---"),0,IF(VLOOKUP($A12,'Staff Time Data'!$A$4:$N$600,2,FALSE)>0,VLOOKUP($A12,'Staff Time Data'!$A$4:$N$600,8,FALSE),VLOOKUP($A12,'Staff Time Data'!$A$4:$N$600,14,FALSE))/IF(OR($G12="O",$G12="o",$G12="Y",$G12="y"),$N$5,1)) -> 9 | AK12: 5 | AL12: 3 | AM12: - | AN12: 9 | AO12: 0 | AP12: Technicien de laboratoire (LT)
A13: =IF(Language=2,VLOOKUP(B13,'Staff Time Data'!$S$4:$T$550,2,FALSE),B13) -> SM-Adherence counseling-Expert Clients/Peer Educators | B13: =IF(ISNUMBER(MATCH(F13,'Drop-down Lists'!$J$3:$J$24,0)),$B$4&"-"&E13&"-"&F13,$B$4&"-"&E13&"-"&VLOOKUP(F13,Providers!$B$19:$S$24,18,FALSE)) -> SM-Counseling d'adhésion-Pair (P) | C13: =IF(AND(AND(OR($F13="",LEFT($F13,3)="---"),'Treatment Models'!B17<>"",'Treatment Models'!C17>0),$L$5>0),1,0) -> 0 | E13: =IF(Language=1,Language!$A$190,Language!$B$190) -> Counseling d'adhésion | F13: Pair (P) | H13: 3 | I13: 3 | J13: - | K13: 3 | L13: ='Treatment Models'!$C$17 -> 12 | M13: 0 | N13: 0 | O13: - | P13: 0 | R13: 0 | U13: 2 | AG13: =IF(OR($F13="",LEFT($F13,3)="---"),0,IF(VLOOKUP($A13,'Staff Time Data'!$A$4:$N$600,2,FALSE)>0,VLOOKUP($A13,'Staff Time Data'!$A$4:$N$600,3,FALSE),VLOOKUP($A13,'Staff Time Data'!$A$4:$N$600,9,FALSE))/IF(OR($G13="O",$G13="o",$G13="Y",$G13="y"),$N$5,1)) -> 3 | AH13: =IF(OR($F13="",LEFT($F13,3)="---"),0,IF(VLOOKUP($A13,'Staff Time Data'!$A$4:$N$600,2,FALSE)>0,VLOOKUP($A13,'Staff Time Data'!$A$4:$N$600,7,FALSE),VLOOKUP($A13,'Staff Time Data'!$A$4:$N$600,13,FALSE))/IF(OR($G13="O",$G13="o",$G13="Y",$G13="y"),$N$5,1)) -> 3 | AI13: - | AJ13: =IF(OR($F13="",LEFT($F13,3)="---"),0,IF(VLOOKUP($A13,'Staff Time Data'!$A$4:$N$600,2,FALSE)>0,VLOOKUP($A13,'Staff Time Data'!$A$4:$N$600,8,FALSE),VLOOKUP($A13,'Staff Time Data'!$A$4:$N$600,14,FALSE))/IF(OR($G13="O",$G13="o",$G13="Y",$G13="y"),$N$5,1)) -> 3 | AK13: 3 | AL13: 3 | AM13: - | AN13: 3 | AO13: 0 | AP13: Pair (P)
A14: =IF(Language=2,VLOOKUP(B14,'Staff Time Data'!$S$4:$T$550,2,FALSE),B14) -> SM-Index Testing-Nurses/Midwives | B14: =IF(ISNUMBER(MATCH(F14,'Drop-down Lists'!$J$3:$J$24,0)),$B$4&"-"&E14&"-"&F14,$B$4&"-"&E14&"-"&VLOOKUP(F14,Providers!$B$19:$S$24,18,FALSE)) -> SM-Reapprovisionnement en médicaments-Infirmier (N) | C14: =IF(AND(AND(OR($F14="",LEFT($F14,3)="---"),'Treatment Models'!B18<>"",'Treatment Models'!C18>0),$L$5>0),1,0) -> 0 | E14: =IF(Language=1,Language!$A$191,Language!$B$191) -> Reapprovisionnement en médicaments | F14: Infirmier (N) | H14: 10 | I14: 5 | J14: - | K14: 15 | L14: ='Treatment Models'!$C$18 -> 4 | M14: 0 | N14: 0 | O14: - | P14: 0 | R14: 0 | U14: 3 | AG14: =IF(OR($F14="",LEFT($F14,3)="---"),0,IF(VLOOKUP($A14,'Staff Time Data'!$A$4:$N$600,2,FALSE)>0,VLOOKUP($A14,'Staff Time Data'!$A$4:$N$600,3,FALSE),VLOOKUP($A14,'Staff Time Data'!$A$4:$N$600,9,FALSE))/IF(OR($G14="O",$G14="o",$G14="Y",$G14="y"),$N$5,1)) -> 10 | AH14: =IF(OR($F14="",LEFT($F14,3)="---"),0,IF(VLOOKUP($A14,'Staff Time Data'!$A$4:$N$600,2,FALSE)>0,VLOOKUP($A14,'Staff Time Data'!$A$4:$N$600,7,FALSE),VLOOKUP($A14,'Staff Time Data'!$A$4:$N$600,13,FALSE))/IF(OR($G14="O",$G14="o",$G14="Y",$G14="y"),$N$5,1)) -> 5 | AI14: - | AJ14: =IF(OR($F14="",LEFT($F14,3)="---"),0,IF(VLOOKUP($A14,'Staff Time Data'!$A$4:$N$600,2,FALSE)>0,VLOOKUP($A14,'Staff Time Data'!$A$4:$N$600,8,FALSE),VLOOKUP($A14,'Staff Time Data'!$A$4:$N$600,14,FALSE))/IF(OR($G14="O",$G14="o",$G14="Y",$G14="y"),$N$5,1)) -> 15 | AK14: 10 | AL14: 5 | AM14: - | AN14: 15 | AO14: 0 | AP14: Infirmier (N)
A15: =IF(Language=2,VLOOKUP(B15,'Staff Time Data'!$S$4:$T$550,2,FALSE),B15) -> SM-Updating Records-Auxiliary/assistant nurse - HSA | B15: =IF(ISNUMBER(MATCH(F15,'Drop-down Lists'!$J$3:$J$24,0)),$B$4&"-"&E15&"-"&F15,$B$4&"-"&E15&"-"&VLOOKUP(F15,Providers!$B$19:$S$24,18,FALSE)) -> SM-Mise à jour des outils-Auxiliaire de soins/Aide-soignant (FBA) | C15: =IF(AND(AND(OR($F15="",LEFT($F15,3)="---"),'Treatment Models'!B19<>"",'Treatment Models'!C19>0),$L$5>0),1,0) -> 0 | E15: =IF(Language=1,Language!$A$192,Language!$B$192) -> Mise à jour des outils | F15: Data/ART Clerk/Officers | H15: 1 | I15: 1 | J15: - | K15: 1 | L15: ='Treatment Models'!$C$19 -> 12 | M15: 0 | N15: 0 | O15: - | P15: 0 | R15: 0 | U15: 1 | AG15: =IF(OR($F15="",LEFT($F15,3)="---"),0,IF(VLOOKUP($A15,'Staff Time Data'!$A$4:$N$600,2,FALSE)>0,VLOOKUP($A15,'Staff Time Data'!$A$4:$N$600,3,FALSE),VLOOKUP($A15,'Staff Time Data'!$A$4:$N$600,9,FALSE))/IF(OR($G15="O",$G15="o",$G15="Y",$G15="y"),$N$5,1)) -> 1 | AH15: =IF(OR($F15="",LEFT($F15,3)="---"),0,IF(VLOOKUP($A15,'Staff Time Data'!$A$4:$N$600,2,FALSE)>0,VLOOKUP($A15,'Staff Time Data'!$A$4:$N$600,7,FALSE),VLOOKUP($A15,'Staff Time Data'!$A$4:$N$600,13,FALSE))/IF(OR($G15="O",$G15="o",$G15="Y",$G15="y"),$N$5,1)) -> 1 | AI15: - | AJ15: =IF(OR($F15="",LEFT($F15,3)="---"),0,IF(VLOOKUP($A15,'Staff Time Data'!$A$4:$N$600,2,FALSE)>0,VLOOKUP($A15,'Staff Time Data'!$A$4:$N$600,8,FALSE),VLOOKUP($A15,'Staff Time Data'!$A$4:$N$600,14,FALSE))/IF(OR($G15="O",$G15="o",$G15="Y",$G15="y"),$N$5,1)) -> 1 | AK15: 1 | AL15: 1 | AM15: - | AN15: 1 | AO15: 0 | AP15: Data/ART Clerk/Officers
E16: =IF(Language=1,Language!$A$180,Language!$B$180) -> Tâches Supplémentaires | U16: 2
C17: =IF(AND(AND(OR($F17="",LEFT($F17,3)="---"),'Treatment Models'!B21<>"",'Treatment Models'!C21>0),$L$5>0),1,0) -> 0 | E17: =IF('Treatment Models'!$C21>0,'Treatment Models'!$B21,"") -> Dépistage et conseil à l'initiative du prestataire | F17: Infirmier (N) | H17: 5 | I17: 4 | J17: - | K17: 6 | L17: ='Treatment Models'!$C$21 -> 1 | M17: 0 | N17: =$L$5*I17*L17/60 -> 0 | O17: - | P17: =$L$5*K17*L17/60 -> 0 | R17: 0 | U17: 3 | AO17: 0 | AP17: Infirmier (N)
C18: =IF(AND(AND(OR($F18="",LEFT($F18,3)="---"),'Treatment Models'!B22<>"",'Treatment Models'!C22>0),$L$5>0),1,0) -> 0 | E18: =IF('Treatment Models'!$C22>0,'Treatment Models'!$B22,"") -> Couplage Client-Expert Client | F18: Pair (P) | H18: 60 | I18: 30 | J18: - | K18: 90 | L18: ='Treatment Models'!$C$22 -> 0.2 | M18: 0 | N18: =$L$5*I18*L18/60 -> 0 | O18: - | P18: =$L$5*K18*L18/60 -> 0 | R18: 0 | U18: 1 | AO18: 0 | AP18: Pair (P)
C19: =IF(AND(AND(OR($F19="",LEFT($F19,3)="---"),'Treatment Models'!B23<>"",'Treatment Models'!C23>0),$L$5>0),1,0) -> 0 | E19: =IF('Treatment Models'!$C23>0,'Treatment Models'!$B23,"") -> Supervision des agents communautaires | F19: Infirmier (N) | G19: y | H19: 18 | I19: 9 | J19: - | K19: 36 | L19: ='Treatment Models'!$C$23 -> 0.1 | M19: 0 | N19: =$L$5*I19*L19/60 -> 0 | O19: - | P19: =$L$5*K19*L19/60 -> 0 | R19: 0 | U19: 2 | AO19: 0 | AP19: Infirmier (N)
U20: 3 | AO20: =SUM(AO8:AO19) -> 0
E22: =IF(TA_Change2>0,IF(Language=1,Language!$A$416,Language!$B$416),"") ->  | N22: =IF(Language=1,Language!$A$173,Language!$B$173) -> Clients par groupe pour les tâches menés en groupe
E23: =IF(Language=1,Language!$A$166,Language!$B$166) -> Type de modèle TAR : | F23: =IF(Language=1,Language!$A$169,Language!$B$169) -> Etablissement | L23: =IF(Language=1,Language!$A$171,Language!$B$171) -> Nombre de Clients | AP23: Etablissement
A24: =B24 -> FHI | B24: FHI | E24: =IF(Language=1,Language!$A$167,Language!$B$167) -> Modèle TAR : | F24: ='Treatment Models'!$D$4 -> 3 month MMD ART initiators | AP24: 3 month MMD ART initiators
E25: =IF(Language=1,Language!$A$168,Language!$B$168) -> Description spécifique au pays : | F25: ='Treatment Models'!$D$9 -> 3 month MMD for stable ART initiators | L25: =Clients_FHI -> 0 | N25: 1 | AP25: 3 month MMD for stable ART initiators
E27: =IF(Language=1,Language!$A$174,Language!$B$174) -> Tâches critiques pour la prestation de services TAR | F27: =IF(Language=1,Language!$A$175,Language!$B$175) -> Prestataire de service (fournissant les tâches TAR le plus souvent) | G27: =IF(Language=1,Language!$A$184,Language!$B$184) -> Groupe (O/-) | H27: =IF(Language=1,Language!$A$176,Language!$B$176) -> Temps de contact par client (minutes) | I27: =IF(Language=1,Language!$A$177,Language!$B$177) -> Variation (Min - Max) | L27: =IF(Language=1,Language!$A$178,Language!$B$178) -> Nombre de fois par année | M27: =IF(Language=1,Language!$A$179,Language!$B$179) -> Heures nécessaires | N27: =IF(Language=1,Language!$A$177,Language!$B$177) -> Variation (Min - Max) | AP27: Prestataire de service (fournissant les tâches TAR le plus souvent)
A28: =IF(Language=2,VLOOKUP(B28,'Staff Time Data'!$S$4:$T$550,2,FALSE),B28) -> FHI-Registration-Auxiliary/assistant nurse - HSA | B28: =IF(ISNUMBER(MATCH(F28,'Drop-down Lists'!$J$3:$J$24,0)),$B$24&"-"&E28&"-"&F28,$B$24&"-"&E28&"-"&VLOOKUP(F28,Providers!$B$19:$S$24,18,FALSE)) -> FHI-Enregistrement-Auxiliaire de soins/Aide-soignant (FBA) | C28: =IF(AND(AND(OR($F28="",LEFT($F28,3)="---"),'Treatment Models'!B12<>"",'Treatment Models'!D12>0),$L$25>0),1,0) -> 0 | E28: =IF(Language=1,Language!$A$185,Language!$B$185) -> Enregistrement | F28: =F8 -> Data/ART Clerk/Officers | H28: =AG28 -> 1.48 | I28: 0.7448754097 | J28: - | K28: 2.21512459 | L28: ='Treatment Models'!$D$12 -> 4 | M28: =$L$25*H28*L28/60 -> 0 | N28: =$L$25*I28*L28/60 -> 0 | O28: - | P28: =$L$25*K28*L28/60 -> 0 | R28: =IF(AND(OR(F28="",LEFT(F28,3)="---"),E28<>""),1,0) -> 0 | AG28: =IF(OR($F28="",LEFT($F28,3)="---"),0,IF(VLOOKUP($A28,'Staff Time Data'!$A$4:$N$600,2,FALSE)>0,VLOOKUP($A28,'Staff Time Data'!$A$4:$N$600,3,FALSE),VLOOKUP($A28,'Staff Time Data'!$A$4:$N$600,9,FALSE))/IF(OR($G28="O",$G28="o",$G28="Y",$G28="y"),$N$25,1)) -> 1.48 | AH28: =IF(OR($F28="",LEFT($F28,3)="---"),0,IF(VLOOKUP($A28,'Staff Time Data'!$A$4:$N$600,2,FALSE)>0,VLOOKUP($A28,'Staff Time Data'!$A$4:$N$600,7,FALSE),VLOOKUP($A28,'Staff Time Data'!$A$4:$N$600,13,FALSE))/IF(OR($G28="O",$G28="o",$G28="Y",$G28="y"),$N$25,1)) -> 0.7448754097 | AI28: - | AJ28: =IF(OR($F28="",LEFT($F28,3)="---"),0,IF(VLOOKUP($A28,'Staff Time Data'!$A$4:$N$600,2,FALSE)>0,VLOOKUP($A28,'Staff Time Data'!$A$4:$N$600,8,FALSE),VLOOKUP($A28,'Staff Time Data'!$A$4:$N$600,14,FALSE))/IF(OR($G28="O",$G28="o",$G28="Y",$G28="y"),$N$25,1)) -> 2.21512459 | AK28: 1.48 | AL28: 0.7448754097 | AM28: - | AN28: 2.21512459 | AO28: =IF(AP28=F28,0,1) -> 0 | AP28: Data/ART Clerk/Officers
A29: =IF(Language=2,VLOOKUP(B29,'Staff Time Data'!$S$4:$T$550,2,FALSE),B29) -> FHI-Health Education-Expert Clients/Peer Educators | B29: =IF(ISNUMBER(MATCH(F29,'Drop-down Lists'!$J$3:$J$24,0)),$B$24&"-"&E29&"-"&F29,$B$24&"-"&E29&"-"&VLOOKUP(F29,Providers!$B$19:$S$24,18,FALSE)) -> FHI-Éducation à la santé-Pair (P) | C29: =IF(AND(AND(OR($F29="",LEFT($F29,3)="---"),'Treatment Models'!B13<>"",'Treatment Models'!D13>0),$L$25>0),1,0) -> 0 | E29: =IF(Language=1,Language!$A$186,Language!$B$186) -> Éducation à la santé | F29: Pair (P) | G29: =G9 -> 0 | H29: 6 | I29: 6 | J29: - | K29: 6 | L29: ='Treatment Models'!$D$13 -> 2 | M29: 0 | N29: 0 | O29: - | P29: 0 | R29: =IF(AND(OR(F29="",LEFT(F29,3)="---"),E29<>""),1,0) -> 0 | AG29: =IF(OR($F29="",LEFT($F29,3)="---"),0,IF(VLOOKUP($A29,'Staff Time Data'!$A$4:$N$600,2,FALSE)>0,VLOOKUP($A29,'Staff Time Data'!$A$4:$N$600,3,FALSE),VLOOKUP($A29,'Staff Time Data'!$A$4:$N$600,9,FALSE))/IF(OR($G29="O",$G29="o",$G29="Y",$G29="y"),$N$25,1)) -> 6 | AH29: =IF(OR($F29="",LEFT($F29,3)="---"),0,IF(VLOOKUP($A29,'Staff Time Data'!$A$4:$N$600,2,FALSE)>0,VLOOKUP($A29,'Staff Time Data'!$A$4:$N$600,7,FALSE),VLOOKUP($A29,'Staff Time Data'!$A$4:$N$600,13,FALSE))/IF(OR($G29="O",$G29="o",$G29="Y",$G29="y"),$N$25,1)) -> 6 | AI29: - | AJ29: =IF(OR($F29="",LEFT($F29,3)="---"),0,IF(VLOOKUP($A29,'Staff Time Data'!$A$4:$N$600,2,FALSE)>0,VLOOKUP($A29,'Staff Time Data'!$A$4:$N$600,8,FALSE),VLOOKUP($A29,'Staff Time Data'!$A$4:$N$600,14,FALSE))/IF(OR($G29="O",$G29="o",$G29="Y",$G29="y"),$N$25,1)) -> 6 | AK29: 6 | AL29: 6 | AM29: - | AN29: 6 | AO29: =IF(AP29=F29,0,1) -> 0 | AP29: Pair (P)
A30: =IF(Language=2,VLOOKUP(B30,'Staff Time Data'!$S$4:$T$550,2,FALSE),B30) -> FHI-Client follow-up & tracing-Community Health Workers | B30: =IF(ISNUMBER(MATCH(F30,'Drop-down Lists'!$J$3:$J$24,0)),$B$24&"-"&E30&"-"&F30,$B$24&"-"&E30&"-"&VLOOKUP(F30,Providers!$B$19:$S$24,18,FALSE)) -> FHI-Suivi et traçage des clients-Agent de santé communautaire (ASC) | C30: =IF(AND(AND(OR($F30="",LEFT($F30,3)="---"),'Treatment Models'!B14<>"",'Treatment Models'!D14>0),$L$25>0),1,0) -> 0 | E30: =IF(Language=1,Language!$A$187,Language!$B$187) -> Suivi et traçage des clients | F30: HDAs | H30: 45 | I30: 30 | J30: - | K30: 60 | L30: ='Treatment Models'!$D$14 -> 3 | M30: 0 | N30: 0 | O30: - | P30: 0 | R30: 0 | AG30: =IF(OR($F30="",LEFT($F30,3)="---"),0,IF(VLOOKUP($A30,'Staff Time Data'!$A$4:$N$600,2,FALSE)>0,VLOOKUP($A30,'Staff Time Data'!$A$4:$N$600,3,FALSE),VLOOKUP($A30,'Staff Time Data'!$A$4:$N$600,9,FALSE))/IF(OR($G30="O",$G30="o",$G30="Y",$G30="y"),$N$25,1)) -> 45 | AH30: =IF(OR($F30="",LEFT($F30,3)="---"),0,IF(VLOOKUP($A30,'Staff Time Data'!$A$4:$N$600,2,FALSE)>0,VLOOKUP($A30,'Staff Time Data'!$A$4:$N$600,7,FALSE),VLOOKUP($A30,'Staff Time Data'!$A$4:$N$600,13,FALSE))/IF(OR($G30="O",$G30="o",$G30="Y",$G30="y"),$N$25,1)) -> 30 | AI30: - | AJ30: =IF(OR($F30="",LEFT($F30,3)="---"),0,IF(VLOOKUP($A30,'Staff Time Data'!$A$4:$N$600,2,FALSE)>0,VLOOKUP($A30,'Staff Time Data'!$A$4:$N$600,8,FALSE),VLOOKUP($A30,'Staff Time Data'!$A$4:$N$600,14,FALSE))/IF(OR($G30="O",$G30="o",$G30="Y",$G30="y"),$N$25,1)) -> 60 | AK30: 45 | AL30: 30 | AM30: - | AN30: 60 | AO30: 0 | AP30: HDAs
A31: =IF(Language=2,VLOOKUP(B31,'Staff Time Data'!$S$4:$T$550,2,FALSE),B31) -> FHI-Consultation/ART Refill-Non-physician Clinicians | B31: =IF(ISNUMBER(MATCH(F31,'Drop-down Lists'!$J$3:$J$24,0)),$B$24&"-"&E31&"-"&F31,$B$24&"-"&E31&"-"&VLOOKUP(F31,Providers!$B$19:$S$24,18,FALSE)) -> FHI-Consultation / Évaluation clinique-Clinicien non-médecin (CNP) | C31: =IF(AND(AND(OR($F31="",LEFT($F31,3)="---"),'Treatment Models'!B15<>"",'Treatment Models'!D15>0),$L$25>0),1,0) -> 0 | E31: =IF(Language=1,Language!$A$188,Language!$B$188) -> Consultation / Évaluation clinique | F31: Clinicien non-médecin (CNP) | H31: 2.857142857 | I31: 0.8217418787 | J31: - | K31: 4.892543836 | L31: ='Treatment Models'!$D$15 -> 4 | M31: 0 | N31: 0 | O31: - | P31: 0 | R31: 0 | AG31: =IF(OR($F31="",LEFT($F31,3)="---"),0,IF(VLOOKUP($A31,'Staff Time Data'!$A$4:$N$600,2,FALSE)>0,VLOOKUP($A31,'Staff Time Data'!$A$4:$N$600,3,FALSE),VLOOKUP($A31,'Staff Time Data'!$A$4:$N$600,9,FALSE))/IF(OR($G31="O",$G31="o",$G31="Y",$G31="y"),$N$25,1)) -> 2.857142857 | AH31: =IF(OR($F31="",LEFT($F31,3)="---"),0,IF(VLOOKUP($A31,'Staff Time Data'!$A$4:$N$600,2,FALSE)>0,VLOOKUP($A31,'Staff Time Data'!$A$4:$N$600,7,FALSE),VLOOKUP($A31,'Staff Time Data'!$A$4:$N$600,13,FALSE))/IF(OR($G31="O",$G31="o",$G31="Y",$G31="y"),$N$25,1)) -> 0.8217418787 | AI31: - | AJ31: =IF(OR($F31="",LEFT($F31,3)="---"),0,IF(VLOOKUP($A31,'Staff Time Data'!$A$4:$N$600,2,FALSE)>0,VLOOKUP($A31,'Staff Time Data'!$A$4:$N$600,8,FALSE),VLOOKUP($A31,'Staff Time Data'!$A$4:$N$600,14,FALSE))/IF(OR($G31="O",$G31="o",$G31="Y",$G31="y"),$N$25,1)) -> 4.892543836 | AK31: 2.857142857 | AL31: 0.8217418787 | AM31: - | AN31: 4.892543836 | AO31: 0 | AP31: Clinicien non-médecin (CNP)
A32: =IF(Language=2,VLOOKUP(B32,'Staff Time Data'!$S$4:$T$550,2,FALSE),B32) -> FHI-Plasma Sample Collection or DBS-Lab Assistants/Technicians | B32: =IF(ISNUMBER(MATCH(F32,'Drop-down Lists'!$J$3:$J$24,0)),$B$24&"-"&E32&"-"&F32,$B$24&"-"&E32&"-"&VLOOKUP(F32,Providers!$B$19:$S$24,18,FALSE)) -> FHI-Prise de sang ou taches de sang sec-Technicien de laboratoire (LT) | C32: =IF(AND(AND(OR($F32="",LEFT($F32,3)="---"),'Treatment Models'!B16<>"",'Treatment Models'!D16>0),$L$25>0),1,0) -> 0 | E32: =IF(Language=1,Language!$A$189,Language!$B$189) -> Prise de sang ou taches de sang sec | F32: Technicien de laboratoire (LT) | H32: 5 | I32: 3 | J32: - | K32: 9 | L32: ='Treatment Models'!$D$16 -> 1 | M32: 0 | N32: 0 | O32: - | P32: 0 | R32: 0 | AG32: =IF(OR($F32="",LEFT($F32,3)="---"),0,IF(VLOOKUP($A32,'Staff Time Data'!$A$4:$N$600,2,FALSE)>0,VLOOKUP($A32,'Staff Time Data'!$A$4:$N$600,3,FALSE),VLOOKUP($A32,'Staff Time Data'!$A$4:$N$600,9,FALSE))/IF(OR($G32="O",$G32="o",$G32="Y",$G32="y"),$N$25,1)) -> 5 | AH32: =IF(OR($F32="",LEFT($F32,3)="---"),0,IF(VLOOKUP($A32,'Staff Time Data'!$A$4:$N$600,2,FALSE)>0,VLOOKUP($A32,'Staff Time Data'!$A$4:$N$600,7,FALSE),VLOOKUP($A32,'Staff Time Data'!$A$4:$N$600,13,FALSE))/IF(OR($G32="O",$G32="o",$G32="Y",$G32="y"),$N$25,1)) -> 3 | AI32: - | AJ32: =IF(OR($F32="",LEFT($F32,3)="---"),0,IF(VLOOKUP($A32,'Staff Time Data'!$A$4:$N$600,2,FALSE)>0,VLOOKUP($A32,'Staff Time Data'!$A$4:$N$600,8,FALSE),VLOOKUP($A32,'Staff Time Data'!$A$4:$N$600,14,FALSE))/IF(OR($G32="O",$G32="o",$G32="Y",$G32="y"),$N$25,1)) -> 9 | AK32: 5 | AL32: 3 | AM32: - | AN32: 9 | AO32: 0 | AP32: Technicien de laboratoire (LT)
A33: =IF(Language=2,VLOOKUP(B33,'Staff Time Data'!$S$4:$T$550,2,FALSE),B33) -> FHI-Adherence counseling-Expert Clients/Peer Educators | B33: =IF(ISNUMBER(MATCH(F33,'Drop-down Lists'!$J$3:$J$24,0)),$B$24&"-"&E33&"-"&F33,$B$24&"-"&E33&"-"&VLOOKUP(F33,Providers!$B$19:$S$24,18,FALSE)) -> FHI-Counseling d'adhésion-Pair (P) | C33: =IF(AND(AND(OR($F33="",LEFT($F33,3)="---"),'Treatment Models'!B17<>"",'Treatment Models'!D17>0),$L$25>0),1,0) -> 0 | E33: =IF(Language=1,Language!$A$190,Language!$B$190) -> Counseling d'adhésion | F33: Pair (P) | G33: =G13 -> 0 | H33: 2 | I33: 2 | J33: - | K33: 2 | L33: ='Treatment Models'!$D$17 -> 2 | M33: 0 | N33: 0 | O33: - | P33: 0 | R33: 0 | AG33: =IF(OR($F33="",LEFT($F33,3)="---"),0,IF(VLOOKUP($A33,'Staff Time Data'!$A$4:$N$600,2,FALSE)>0,VLOOKUP($A33,'Staff Time Data'!$A$4:$N$600,3,FALSE),VLOOKUP($A33,'Staff Time Data'!$A$4:$N$600,9,FALSE))/IF(OR($G33="O",$G33="o",$G33="Y",$G33="y"),$N$25,1)) -> 2 | AH33: =IF(OR($F33="",LEFT($F33,3)="---"),0,IF(VLOOKUP($A33,'Staff Time Data'!$A$4:$N$600,2,FALSE)>0,VLOOKUP($A33,'Staff Time Data'!$A$4:$N$600,7,FALSE),VLOOKUP($A33,'Staff Time Data'!$A$4:$N$600,13,FALSE))/IF(OR($G33="O",$G33="o",$G33="Y",$G33="y"),$N$25,1)) -> 2 | AI33: - | AJ33: =IF(OR($F33="",LEFT($F33,3)="---"),0,IF(VLOOKUP($A33,'Staff Time Data'!$A$4:$N$600,2,FALSE)>0,VLOOKUP($A33,'Staff Time Data'!$A$4:$N$600,8,FALSE),VLOOKUP($A33,'Staff Time Data'!$A$4:$N$600,14,FALSE))/IF(OR($G33="O",$G33="o",$G33="Y",$G33="y"),$N$25,1)) -> 2 | AK33: 2 | AL33: 2 | AM33: - | AN33: 2 | AO33: 0 | AP33: Pair (P)
A34: =IF(Language=2,VLOOKUP(B34,'Staff Time Data'!$S$4:$T$550,2,FALSE),B34) -> FHI-Index Testing-Nurses/Midwives | B34: =IF(ISNUMBER(MATCH(F34,'Drop-down Lists'!$J$3:$J$24,0)),$B$24&"-"&E34&"-"&F34,$B$24&"-"&E34&"-"&VLOOKUP(F34,Providers!$B$19:$S$24,18,FALSE)) -> FHI-Reapprovisionnement en médicaments-Infirmier (N) | C34: =IF(AND(AND(OR($F34="",LEFT($F34,3)="---"),'Treatment Models'!B18<>"",'Treatment Models'!D18>0),$L$25>0),1,0) -> 0 | E34: =IF(Language=1,Language!$A$191,Language!$B$191) -> Reapprovisionnement en médicaments | F34: Infirmier (N) | H34: 10 | I34: 5 | J34: - | K34: 15 | L34: ='Treatment Models'!$D$18 -> 0.1 | M34: 0 | N34: 0 | O34: - | P34: 0 | R34: 0 | AG34: =IF(OR($F34="",LEFT($F34,3)="---"),0,IF(VLOOKUP($A34,'Staff Time Data'!$A$4:$N$600,2,FALSE)>0,VLOOKUP($A34,'Staff Time Data'!$A$4:$N$600,3,FALSE),VLOOKUP($A34,'Staff Time Data'!$A$4:$N$600,9,FALSE))/IF(OR($G34="O",$G34="o",$G34="Y",$G34="y"),$N$25,1)) -> 10 | AH34: =IF(OR($F34="",LEFT($F34,3)="---"),0,IF(VLOOKUP($A34,'Staff Time Data'!$A$4:$N$600,2,FALSE)>0,VLOOKUP($A34,'Staff Time Data'!$A$4:$N$600,7,FALSE),VLOOKUP($A34,'Staff Time Data'!$A$4:$N$600,13,FALSE))/IF(OR($G34="O",$G34="o",$G34="Y",$G34="y"),$N$25,1)) -> 5 | AI34: - | AJ34: =IF(OR($F34="",LEFT($F34,3)="---"),0,IF(VLOOKUP($A34,'Staff Time Data'!$A$4:$N$600,2,FALSE)>0,VLOOKUP($A34,'Staff Time Data'!$A$4:$N$600,8,FALSE),VLOOKUP($A34,'Staff Time Data'!$A$4:$N$600,14,FALSE))/IF(OR($G34="O",$G34="o",$G34="Y",$G34="y"),$N$25,1)) -> 15 | AK34: 10 | AL34: 5 | AM34: - | AN34: 15 | AO34: 0 | AP34: Infirmier (N)
A35: =IF(Language=2,VLOOKUP(B35,'Staff Time Data'!$S$4:$T$550,2,FALSE),B35) -> FHI-Updating Records-Auxiliary/assistant nurse - HSA | B35: =IF(ISNUMBER(MATCH(F35,'Drop-down Lists'!$J$3:$J$24,0)),$B$24&"-"&E35&"-"&F35,$B$24&"-"&E35&"-"&VLOOKUP(F35,Providers!$B$19:$S$24,18,FALSE)) -> FHI-Mise à jour des outils-Auxiliaire de soins/Aide-soignant (FBA) | C35: =IF(AND(AND(OR($F35="",LEFT($F35,3)="---"),'Treatment Models'!B19<>"",'Treatment Models'!D19>0),$L$25>0),1,0) -> 0 | E35: =IF(Language=1,Language!$A$192,Language!$B$192) -> Mise à jour des outils | F35: Data/ART Clerk/Officers | H35: 3.65625 | I35: 0.5287509992 | J35: - | K35: 6.783749001 | L35: ='Treatment Models'!$D$19 -> 4 | M35: 0 | N35: 0 | O35: - | P35: 0 | R35: 0 | AG35: =IF(OR($F35="",LEFT($F35,3)="---"),0,IF(VLOOKUP($A35,'Staff Time Data'!$A$4:$N$600,2,FALSE)>0,VLOOKUP($A35,'Staff Time Data'!$A$4:$N$600,3,FALSE),VLOOKUP($A35,'Staff Time Data'!$A$4:$N$600,9,FALSE))/IF(OR($G35="O",$G35="o",$G35="Y",$G35="y"),$N$25,1)) -> 3.65625 | AH35: =IF(OR($F35="",LEFT($F35,3)="---"),0,IF(VLOOKUP($A35,'Staff Time Data'!$A$4:$N$600,2,FALSE)>0,VLOOKUP($A35,'Staff Time Data'!$A$4:$N$600,7,FALSE),VLOOKUP($A35,'Staff Time Data'!$A$4:$N$600,13,FALSE))/IF(OR($G35="O",$G35="o",$G35="Y",$G35="y"),$N$25,1)) -> 0.5287509992 | AI35: - | AJ35: =IF(OR($F35="",LEFT($F35,3)="---"),0,IF(VLOOKUP($A35,'Staff Time Data'!$A$4:$N$600,2,FALSE)>0,VLOOKUP($A35,'Staff Time Data'!$A$4:$N$600,8,FALSE),VLOOKUP($A35,'Staff Time Data'!$A$4:$N$600,14,FALSE))/IF(OR($G35="O",$G35="o",$G35="Y",$G35="y"),$N$25,1)) -> 6.783749001 | AK35: 3.65625 | AL35: 0.5287509992 | AM35: - | AN35: 6.783749001 | AO35: 0 | AP35: Data/ART Clerk/Officers
E36: =IF(Language=1,Language!$A$180,Language!$B$180) -> Tâches Supplémentaires | F36: 0 | AP36: 0
C37: =IF(AND(AND(OR($F37="",LEFT($F37,3)="---"),'Treatment Models'!B21<>"",'Treatment Models'!D21>0),$L$25>0),1,0) -> 0 | E37: =IF('Treatment Models'!$D21>0,'Treatment Models'!$B21,"") -> Dépistage et conseil à l'initiative du prestataire | F37: Infirmier (N) | G37: 0 | H37: =H17 -> 5 | I37: 4 | J37: - | K37: =K17 -> 6 | L37: ='Treatment Models'!$D$21 -> 1 | M37: =$L$25*H37*L37/60 -> 0 | N37: =$L$25*I37*L37/60 -> 0 | O37: - | P37: =$L$25*K37*L37/60 -> 0 | R37: 0 | AO37: 0 | AP37: Infirmier (N)
C38: =IF(AND(AND(OR($F38="",LEFT($F38,3)="---"),'Treatment Models'!B22<>"",'Treatment Models'!D22>0),$L$25>0),1,0) -> 0 | E38: =IF('Treatment Models'!$D22>0,'Treatment Models'!$B22,"") -> Couplage Client-Expert Client | F38: Pair (P) | G38: 0 | H38: 60 | I38: 30 | J38: - | K38: 90 | L38: ='Treatment Models'!$D$22 -> 0.1 | M38: =$L$25*H38*L38/60 -> 0 | N38: =$L$25*I38*L38/60 -> 0 | O38: - | P38: =$L$25*K38*L38/60 -> 0 | R38: 0 | AO38: 0 | AP38: Pair (P)
C39: =IF(AND(AND(OR($F39="",LEFT($F39,3)="---"),'Treatment Models'!B23<>"",'Treatment Models'!D23>0),$L$25>0),1,0) -> 0 | E39: =IF('Treatment Models'!$D23>0,'Treatment Models'!$B23,"") -> Supervision des agents communautaires | F39: Infirmier (N) | G39: y | H39: 18 | I39: 9 | J39: - | K39: 36 | L39: ='Treatment Models'!$D$23 -> 0.1 | M39: =$L$25*H39*L39/60 -> 0 | N39: =$L$25*I39*L39/60 -> 0 | O39: - | P39: =$L$25*K39*L39/60 -> 0 | R39: 0 | AO39: 0 | AP39: Infirmier (N)
AO40: =IF(Model2Clients>0,SUM(AO28:AO39),0) -> 0
E42: =IF(TA_Change3>0,IF(Language=1,Language!$A$416,Language!$B$416),"") -> 
E43: =IF(Language=1,Language!$A$166,Language!$B$166) -> Type de modèle TAR : | F43: =IF(Language=1,Language!$A$169,Language!$B$169) -> Etablissement | L43: =IF(Language=1,Language!$A$171,Language!$B$171) -> Nombre de Clients | N43: =IF(Language=1,Language!$A$172,Language!$B$172) -> Clients par groupe | AP43: Etablissement
A44: =B44 -> FHG | B44: FHG | E44: =IF(Language=1,Language!$A$167,Language!$B$167) -> Modèle TAR : | F44: ='Treatment Models'!$E$4 -> Interim 3 month MMD | AP44: Interim 3 month MMD
E45: =IF(Language=1,Language!$A$168,Language!$B$168) -> Description spécifique au pays : | F45: ='Treatment Models'!$E$9 -> 3 month MMD for established patients | L45: =Clients_FHG -> 0 | N45: 1 | AP45: 3 month MMD for established patients
E47: =IF(Language=1,Language!$A$174,Language!$B$174) -> Tâches critiques pour la prestation de services TAR | F47: =IF(Language=1,Language!$A$175,Language!$B$175) -> Prestataire de service (fournissant les tâches TAR le plus souvent) | G47: =IF(Language=1,Language!$A$184,Language!$B$184) -> Groupe (O/-) | H47: =IF(Language=1,Language!$A$176,Language!$B$176) -> Temps de contact par client (minutes) | I47: =IF(Language=1,Language!$A$177,Language!$B$177) -> Variation (Min - Max) | L47: =IF(Language=1,Language!$A$178,Language!$B$178) -> Nombre de fois par année | M47: =IF(Language=1,Language!$A$179,Language!$B$179) -> Heures nécessaires | N47: =IF(Language=1,Language!$A$177,Language!$B$177) -> Variation (Min - Max) | AP47: Prestataire de service (fournissant les tâches TAR le plus souvent)
A48: =IF(Language=2,VLOOKUP(B48,'Staff Time Data'!$S$4:$T$550,2,FALSE),B48) -> FHG-Registration-Auxiliary/assistant nurse - HSA | B48: =IF(ISNUMBER(MATCH(F48,'Drop-down Lists'!$J$3:$J$24,0)),$B$44&"-"&E48&"-"&F48,$B$44&"-"&E48&"-"&VLOOKUP(F48,Providers!$B$19:$S$24,18,FALSE)) -> FHG-Enregistrement-Auxiliaire de soins/Aide-soignant (FBA) | C48: =IF(AND(AND(OR($F48="",LEFT($F48,3)="---"),'Treatment Models'!B12<>"",'Treatment Models'!E12>0),$L$45>0),1,0) -> 0 | E48: =IF(Language=1,Language!$A$185,Language!$B$185) -> Enregistrement | F48: =F8 -> Data/ART Clerk/Officers | H48: =AG48 -> 1.333333333 | I48: 0.8169355538 | J48: - | K48: 1.849731113 | L48: ='Treatment Models'!$E$12 -> 4 | M48: =$L$45*H48*L48/60 -> 0 | N48: =$L$45*I48*L48/60 -> 0 | O48: - | P48: =$L$45*K48*L48/60 -> 0 | R48: =IF(AND(OR(F48="",LEFT(F48,3)="---"),E48<>""),1,0) -> 0 | AG48: =IF(OR($F48="",LEFT($F48,3)="---"),0,IF(VLOOKUP($A48,'Staff Time Data'!$A$4:$N$600,2,FALSE)>0,VLOOKUP($A48,'Staff Time Data'!$A$4:$N$600,3,FALSE),VLOOKUP($A48,'Staff Time Data'!$A$4:$N$600,9,FALSE))/IF(OR($G48="O",$G48="o",$G48="Y",$G48="y"),$N$45,1)) -> 1.333333333 | AH48: =IF(OR($F48="",LEFT($F48,3)="---"),0,IF(VLOOKUP($A48,'Staff Time Data'!$A$4:$N$600,2,FALSE)>0,VLOOKUP($A48,'Staff Time Data'!$A$4:$N$600,7,FALSE),VLOOKUP($A48,'Staff Time Data'!$A$4:$N$600,13,FALSE))/IF(OR($G48="O",$G48="o",$G48="Y",$G48="y"),$N$45,1)) -> 0.8169355538 | AI48: - | AJ48: =IF(OR($F48="",LEFT($F48,3)="---"),0,IF(VLOOKUP($A48,'Staff Time Data'!$A$4:$N$600,2,FALSE)>0,VLOOKUP($A48,'Staff Time Data'!$A$4:$N$600,8,FALSE),VLOOKUP($A48,'Staff Time Data'!$A$4:$N$600,14,FALSE))/IF(OR($G48="O",$G48="o",$G48="Y",$G48="y"),$N$45,1)) -> 1.849731113 | AK48: 1.333333333 | AL48: 0.8169355538 | AM48: - | AN48: 1.849731113 | AO48: =IF(AP48=F48,0,1) -> 0 | AP48: Data/ART Clerk/Officers
A49: =IF(Language=2,VLOOKUP(B49,'Staff Time Data'!$S$4:$T$550,2,FALSE),B49) -> FHG-Health Education-Expert Clients/Peer Educators | B49: =IF(ISNUMBER(MATCH(F49,'Drop-down Lists'!$J$3:$J$24,0)),$B$44&"-"&E49&"-"&F49,$B$44&"-"&E49&"-"&VLOOKUP(F49,Providers!$B$19:$S$24,18,FALSE)) -> FHG-Éducation à la santé-Pair (P) | C49: =IF(AND(AND(OR($F49="",LEFT($F49,3)="---"),'Treatment Models'!B13<>"",'Treatment Models'!E13>0),$L$45>0),1,0) -> 0 | E49: =IF(Language=1,Language!$A$186,Language!$B$186) -> Éducation à la santé | F49: Pair (P) | G49: =G9 -> 0 | H49: 29.11111111 | I49: 19.77777778 | J49: - | K49: 38.44444444 | L49: ='Treatment Models'!$E$13 -> 2 | M49: 0 | N49: 0 | O49: - | P49: 0 | R49: =IF(AND(OR(F49="",LEFT(F49,3)="---"),E49<>""),1,0) -> 0 | AG49: =IF(OR($F49="",LEFT($F49,3)="---"),0,IF(VLOOKUP($A49,'Staff Time Data'!$A$4:$N$600,2,FALSE)>0,VLOOKUP($A49,'Staff Time Data'!$A$4:$N$600,3,FALSE),VLOOKUP($A49,'Staff Time Data'!$A$4:$N$600,9,FALSE))/IF(OR($G49="O",$G49="o",$G49="Y",$G49="y"),$N$45,1)) -> 29.11111111 | AH49: =IF(OR($F49="",LEFT($F49,3)="---"),0,IF(VLOOKUP($A49,'Staff Time Data'!$A$4:$N$600,2,FALSE)>0,VLOOKUP($A49,'Staff Time Data'!$A$4:$N$600,7,FALSE),VLOOKUP($A49,'Staff Time Data'!$A$4:$N$600,13,FALSE))/IF(OR($G49="O",$G49="o",$G49="Y",$G49="y"),$N$45,1)) -> 19.77777778 | AI49: - | AJ49: =IF(OR($F49="",LEFT($F49,3)="---"),0,IF(VLOOKUP($A49,'Staff Time Data'!$A$4:$N$600,2,FALSE)>0,VLOOKUP($A49,'Staff Time Data'!$A$4:$N$600,8,FALSE),VLOOKUP($A49,'Staff Time Data'!$A$4:$N$600,14,FALSE))/IF(OR($G49="O",$G49="o",$G49="Y",$G49="y"),$N$45,1)) -> 38.44444444 | AK49: 29.11111111 | AL49: 19.77777778 | AM49: - | AN49: 38.44444444 | AO49: =IF(AP49=F49,0,1) -> 0 | AP49: Pair (P)
A50: =IF(Language=2,VLOOKUP(B50,'Staff Time Data'!$S$4:$T$550,2,FALSE),B50) -> FHG-Client follow-up & tracing-Community Health Workers | B50: =IF(ISNUMBER(MATCH(F50,'Drop-down Lists'!$J$3:$J$24,0)),$B$44&"-"&E50&"-"&F50,$B$44&"-"&E50&"-"&VLOOKUP(F50,Providers!$B$19:$S$24,18,FALSE)) -> FHG-Suivi et traçage des clients-Agent de santé communautaire (ASC) | C50: =IF(AND(AND(OR($F50="",LEFT($F50,3)="---"),'Treatment Models'!B14<>"",'Treatment Models'!E14>0),$L$45>0),1,0) -> 0 | E50: =IF(Language=1,Language!$A$187,Language!$B$187) -> Suivi et traçage des clients | F50: HDAs | H50: 45 | I50: 30 | J50: - | K50: 60 | L50: ='Treatment Models'!$E$14 -> 0.3 | M50: 0 | N50: 0 | O50: - | P50: 0 | R50: 0 | AG50: =IF(OR($F50="",LEFT($F50,3)="---"),0,IF(VLOOKUP($A50,'Staff Time Data'!$A$4:$N$600,2,FALSE)>0,VLOOKUP($A50,'Staff Time Data'!$A$4:$N$600,3,FALSE),VLOOKUP($A50,'Staff Time Data'!$A$4:$N$600,9,FALSE))/IF(OR($G50="O",$G50="o",$G50="Y",$G50="y"),$N$45,1)) -> 45 | AH50: =IF(OR($F50="",LEFT($F50,3)="---"),0,IF(VLOOKUP($A50,'Staff Time Data'!$A$4:$N$600,2,FALSE)>0,VLOOKUP($A50,'Staff Time Data'!$A$4:$N$600,7,FALSE),VLOOKUP($A50,'Staff Time Data'!$A$4:$N$600,13,FALSE))/IF(OR($G50="O",$G50="o",$G50="Y",$G50="y"),$N$45,1)) -> 30 | AI50: - | AJ50: =IF(OR($F50="",LEFT($F50,3)="---"),0,IF(VLOOKUP($A50,'Staff Time Data'!$A$4:$N$600,2,FALSE)>0,VLOOKUP($A50,'Staff Time Data'!$A$4:$N$600,8,FALSE),VLOOKUP($A50,'Staff Time Data'!$A$4:$N$600,14,FALSE))/IF(OR($G50="O",$G50="o",$G50="Y",$G50="y"),$N$45,1)) -> 60 | AK50: 45 | AL50: 30 | AM50: - | AN50: 60 | AO50: 0 | AP50: HDAs
A51: =IF(Language=2,VLOOKUP(B51,'Staff Time Data'!$S$4:$T$550,2,FALSE),B51) -> FHG-Consultation/ART Refill-Non-physician Clinicians | B51: =IF(ISNUMBER(MATCH(F51,'Drop-down Lists'!$J$3:$J$24,0)),$B$44&"-"&E51&"-"&F51,$B$44&"-"&E51&"-"&VLOOKUP(F51,Providers!$B$19:$S$24,18,FALSE)) -> FHG-Consultation / Évaluation clinique-Clinicien non-médecin (CNP) | C51: =IF(AND(AND(OR($F51="",LEFT($F51,3)="---"),'Treatment Models'!B15<>"",'Treatment Models'!E15>0),$L$45>0),1,0) -> 0 | E51: =IF(Language=1,Language!$A$188,Language!$B$188) -> Consultation / Évaluation clinique | F51: Clinicien non-médecin (CNP) | H51: 4.857142857 | I51: 1.698213295 | J51: - | K51: 8.016072419 | L51: ='Treatment Models'!$E$15 -> 4 | M51: 0 | N51: 0 | O51: - | P51: 0 | R51: 0 | AG51: =IF(OR($F51="",LEFT($F51,3)="---"),0,IF(VLOOKUP($A51,'Staff Time Data'!$A$4:$N$600,2,FALSE)>0,VLOOKUP($A51,'Staff Time Data'!$A$4:$N$600,3,FALSE),VLOOKUP($A51,'Staff Time Data'!$A$4:$N$600,9,FALSE))/IF(OR($G51="O",$G51="o",$G51="Y",$G51="y"),$N$45,1)) -> 4.857142857 | AH51: =IF(OR($F51="",LEFT($F51,3)="---"),0,IF(VLOOKUP($A51,'Staff Time Data'!$A$4:$N$600,2,FALSE)>0,VLOOKUP($A51,'Staff Time Data'!$A$4:$N$600,7,FALSE),VLOOKUP($A51,'Staff Time Data'!$A$4:$N$600,13,FALSE))/IF(OR($G51="O",$G51="o",$G51="Y",$G51="y"),$N$45,1)) -> 1.698213295 | AI51: - | AJ51: =IF(OR($F51="",LEFT($F51,3)="---"),0,IF(VLOOKUP($A51,'Staff Time Data'!$A$4:$N$600,2,FALSE)>0,VLOOKUP($A51,'Staff Time Data'!$A$4:$N$600,8,FALSE),VLOOKUP($A51,'Staff Time Data'!$A$4:$N$600,14,FALSE))/IF(OR($G51="O",$G51="o",$G51="Y",$G51="y"),$N$45,1)) -> 8.016072419 | AK51: 4.857142857 | AL51: 1.698213295 | AM51: - | AN51: 8.016072419 | AO51: 0 | AP51: Clinicien non-médecin (CNP)
A52: =IF(Language=2,VLOOKUP(B52,'Staff Time Data'!$S$4:$T$550,2,FALSE),B52) -> FHG-Plasma Sample Collection or DBS-Lab Assistants/Technicians | B52: =IF(ISNUMBER(MATCH(F52,'Drop-down Lists'!$J$3:$J$24,0)),$B$44&"-"&E52&"-"&F52,$B$44&"-"&E52&"-"&VLOOKUP(F52,Providers!$B$19:$S$24,18,FALSE)) -> FHG-Prise de sang ou taches de sang sec-Technicien de laboratoire (LT) | C52: =IF(AND(AND(OR($F52="",LEFT($F52,3)="---"),'Treatment Models'!B16<>"",'Treatment Models'!E16>0),$L$45>0),1,0) -> 0 | E52: =IF(Language=1,Language!$A$189,Language!$B$189) -> Prise de sang ou taches de sang sec | F52: Technicien de laboratoire (LT) | H52: 5 | I52: 3 | J52: - | K52: 9 | L52: ='Treatment Models'!$E$16 -> 1 | M52: 0 | N52: 0 | O52: - | P52: 0 | R52: 0 | AG52: =IF(OR($F52="",LEFT($F52,3)="---"),0,IF(VLOOKUP($A52,'Staff Time Data'!$A$4:$N$600,2,FALSE)>0,VLOOKUP($A52,'Staff Time Data'!$A$4:$N$600,3,FALSE),VLOOKUP($A52,'Staff Time Data'!$A$4:$N$600,9,FALSE))/IF(OR($G52="O",$G52="o",$G52="Y",$G52="y"),$N$45,1)) -> 5 | AH52: =IF(OR($F52="",LEFT($F52,3)="---"),0,IF(VLOOKUP($A52,'Staff Time Data'!$A$4:$N$600,2,FALSE)>0,VLOOKUP($A52,'Staff Time Data'!$A$4:$N$600,7,FALSE),VLOOKUP($A52,'Staff Time Data'!$A$4:$N$600,13,FALSE))/IF(OR($G52="O",$G52="o",$G52="Y",$G52="y"),$N$45,1)) -> 3 | AI52: - | AJ52: =IF(OR($F52="",LEFT($F52,3)="---"),0,IF(VLOOKUP($A52,'Staff Time Data'!$A$4:$N$600,2,FALSE)>0,VLOOKUP($A52,'Staff Time Data'!$A$4:$N$600,8,FALSE),VLOOKUP($A52,'Staff Time Data'!$A$4:$N$600,14,FALSE))/IF(OR($G52="O",$G52="o",$G52="Y",$G52="y"),$N$45,1)) -> 9 | AK52: 5 | AL52: 3 | AM52: - | AN52: 9 | AO52: 0 | AP52: Technicien de laboratoire (LT)
A53: =IF(Language=2,VLOOKUP(B53,'Staff Time Data'!$S$4:$T$550,2,FALSE),B53) -> FHG-Adherence counseling-Expert Clients/Peer Educators | B53: =IF(ISNUMBER(MATCH(F53,'Drop-down Lists'!$J$3:$J$24,0)),$B$44&"-"&E53&"-"&F53,$B$44&"-"&E53&"-"&VLOOKUP(F53,Providers!$B$19:$S$24,18,FALSE)) -> FHG-Counseling d'adhésion-Pair (P) | C53: =IF(AND(AND(OR($F53="",LEFT($F53,3)="---"),'Treatment Models'!B17<>"",'Treatment Models'!E17>0),$L$45>0),1,0) -> 0 | E53: =IF(Language=1,Language!$A$190,Language!$B$190) -> Counseling d'adhésion | F53: Pair (P) | G53: =G13 -> 0 | H53: 8.333333333 | I53: 4.400565012 | J53: - | K53: 12.26610165 | L53: ='Treatment Models'!$E$17 -> 2 | M53: 0 | N53: 0 | O53: - | P53: 0 | R53: 0 | AG53: =IF(OR($F53="",LEFT($F53,3)="---"),0,IF(VLOOKUP($A53,'Staff Time Data'!$A$4:$N$600,2,FALSE)>0,VLOOKUP($A53,'Staff Time Data'!$A$4:$N$600,3,FALSE),VLOOKUP($A53,'Staff Time Data'!$A$4:$N$600,9,FALSE))/IF(OR($G53="O",$G53="o",$G53="Y",$G53="y"),$N$45,1)) -> 8.333333333 | AH53: =IF(OR($F53="",LEFT($F53,3)="---"),0,IF(VLOOKUP($A53,'Staff Time Data'!$A$4:$N$600,2,FALSE)>0,VLOOKUP($A53,'Staff Time Data'!$A$4:$N$600,7,FALSE),VLOOKUP($A53,'Staff Time Data'!$A$4:$N$600,13,FALSE))/IF(OR($G53="O",$G53="o",$G53="Y",$G53="y"),$N$45,1)) -> 4.400565012 | AI53: - | AJ53: =IF(OR($F53="",LEFT($F53,3)="---"),0,IF(VLOOKUP($A53,'Staff Time Data'!$A$4:$N$600,2,FALSE)>0,VLOOKUP($A53,'Staff Time Data'!$A$4:$N$600,8,FALSE),VLOOKUP($A53,'Staff Time Data'!$A$4:$N$600,14,FALSE))/IF(OR($G53="O",$G53="o",$G53="Y",$G53="y"),$N$45,1)) -> 12.26610165 | AK53: 8.333333333 | AL53: 4.400565012 | AM53: - | AN53: 12.26610165 | AO53: 0 | AP53: Pair (P)
A54: =IF(Language=2,VLOOKUP(B54,'Staff Time Data'!$S$4:$T$550,2,FALSE),B54) -> FHG-Index Testing-Nurses/Midwives | B54: =IF(ISNUMBER(MATCH(F54,'Drop-down Lists'!$J$3:$J$24,0)),$B$44&"-"&E54&"-"&F54,$B$44&"-"&E54&"-"&VLOOKUP(F54,Providers!$B$19:$S$24,18,FALSE)) -> FHG-Reapprovisionnement en médicaments-Infirmier (N) | C54: =IF(AND(AND(OR($F54="",LEFT($F54,3)="---"),'Treatment Models'!B18<>"",'Treatment Models'!E18>0),$L$45>0),1,0) -> 0 | E54: =IF(Language=1,Language!$A$191,Language!$B$191) -> Reapprovisionnement en médicaments | F54: Infirmier (N) | H54: 10 | I54: 5 | J54: - | K54: 15 | L54: ='Treatment Models'!$E$18 -> 0.1 | M54: 0 | N54: 0 | O54: - | P54: 0 | R54: 0 | AG54: =IF(OR($F54="",LEFT($F54,3)="---"),0,IF(VLOOKUP($A54,'Staff Time Data'!$A$4:$N$600,2,FALSE)>0,VLOOKUP($A54,'Staff Time Data'!$A$4:$N$600,3,FALSE),VLOOKUP($A54,'Staff Time Data'!$A$4:$N$600,9,FALSE))/IF(OR($G54="O",$G54="o",$G54="Y",$G54="y"),$N$45,1)) -> 10 | AH54: =IF(OR($F54="",LEFT($F54,3)="---"),0,IF(VLOOKUP($A54,'Staff Time Data'!$A$4:$N$600,2,FALSE)>0,VLOOKUP($A54,'Staff Time Data'!$A$4:$N$600,7,FALSE),VLOOKUP($A54,'Staff Time Data'!$A$4:$N$600,13,FALSE))/IF(OR($G54="O",$G54="o",$G54="Y",$G54="y"),$N$45,1)) -> 5 | AI54: - | AJ54: =IF(OR($F54="",LEFT($F54,3)="---"),0,IF(VLOOKUP($A54,'Staff Time Data'!$A$4:$N$600,2,FALSE)>0,VLOOKUP($A54,'Staff Time Data'!$A$4:$N$600,8,FALSE),VLOOKUP($A54,'Staff Time Data'!$A$4:$N$600,14,FALSE))/IF(OR($G54="O",$G54="o",$G54="Y",$G54="y"),$N$45,1)) -> 15 | AK54: 10 | AL54: 5 | AM54: - | AN54: 15 | AO54: 0 | AP54: Infirmier (N)
A55: =IF(Language=2,VLOOKUP(B55,'Staff Time Data'!$S$4:$T$550,2,FALSE),B55) -> FHG-Updating Records-Auxiliary/assistant nurse - HSA | B55: =IF(ISNUMBER(MATCH(F55,'Drop-down Lists'!$J$3:$J$24,0)),$B$44&"-"&E55&"-"&F55,$B$44&"-"&E55&"-"&VLOOKUP(F55,Providers!$B$19:$S$24,18,FALSE)) -> FHG-Mise à jour des outils-Auxiliaire de soins/Aide-soignant (FBA) | C55: =IF(AND(AND(OR($F55="",LEFT($F55,3)="---"),'Treatment Models'!B19<>"",'Treatment Models'!E19>0),$L$45>0),1,0) -> 0 | E55: =IF(Language=1,Language!$A$192,Language!$B$192) -> Mise à jour des outils | F55: Data/ART Clerk/Officers | H55: 1.5 | I55: 0.7928932188 | J55: - | K55: 2.207106781 | L55: ='Treatment Models'!$E$19 -> 4 | M55: 0 | N55: 0 | O55: - | P55: 0 | R55: 0 | AG55: =IF(OR($F55="",LEFT($F55,3)="---"),0,IF(VLOOKUP($A55,'Staff Time Data'!$A$4:$N$600,2,FALSE)>0,VLOOKUP($A55,'Staff Time Data'!$A$4:$N$600,3,FALSE),VLOOKUP($A55,'Staff Time Data'!$A$4:$N$600,9,FALSE))/IF(OR($G55="O",$G55="o",$G55="Y",$G55="y"),$N$45,1)) -> 1.5 | AH55: =IF(OR($F55="",LEFT($F55,3)="---"),0,IF(VLOOKUP($A55,'Staff Time Data'!$A$4:$N$600,2,FALSE)>0,VLOOKUP($A55,'Staff Time Data'!$A$4:$N$600,7,FALSE),VLOOKUP($A55,'Staff Time Data'!$A$4:$N$600,13,FALSE))/IF(OR($G55="O",$G55="o",$G55="Y",$G55="y"),$N$45,1)) -> 0.7928932188 | AI55: - | AJ55: =IF(OR($F55="",LEFT($F55,3)="---"),0,IF(VLOOKUP($A55,'Staff Time Data'!$A$4:$N$600,2,FALSE)>0,VLOOKUP($A55,'Staff Time Data'!$A$4:$N$600,8,FALSE),VLOOKUP($A55,'Staff Time Data'!$A$4:$N$600,14,FALSE))/IF(OR($G55="O",$G55="o",$G55="Y",$G55="y"),$N$45,1)) -> 2.207106781 | AK55: 1.5 | AL55: 0.7928932188 | AM55: - | AN55: 2.207106781 | AO55: 0 | AP55: Data/ART Clerk/Officers
E56: =IF(Language=1,Language!$A$180,Language!$B$180) -> Tâches Supplémentaires | F56: 0 | AP56: 0
C57: =IF(AND(AND(OR($F57="",LEFT($F57,3)="---"),'Treatment Models'!B21<>"",'Treatment Models'!E21>0),$L$45>0),1,0) -> 0 | E57: =IF('Treatment Models'!$E21>0,'Treatment Models'!$B21,"") -> Dépistage et conseil à l'initiative du prestataire | F57: Infirmier (N) | G57: 0 | H57: =H17 -> 5 | I57: 4 | J57: - | K57: =K17 -> 6 | L57: ='Treatment Models'!$E$21 -> 1 | M57: =$L$45*H57*L57/60 -> 0 | N57: =$L$45*I57*L57/60 -> 0 | O57: - | P57: =$L$45*K57*L57/60 -> 0 | R57: 0 | AO57: 0 | AP57: Infirmier (N)
C58: =IF(AND(AND(OR($F58="",LEFT($F58,3)="---"),'Treatment Models'!B22<>"",'Treatment Models'!E22>0),$L$45>0),1,0) -> 0 | E58: =IF('Treatment Models'!$E22>0,'Treatment Models'!$B22,"") -> Couplage Client-Expert Client | F58: Pair (P) | G58: 0 | H58: 60 | I58: 30 | J58: - | K58: 90 | L58: ='Treatment Models'!$E$22 -> 0.1 | M58: =$L$45*H58*L58/60 -> 0 | N58: =$L$45*I58*L58/60 -> 0 | O58: - | P58: =$L$45*K58*L58/60 -> 0 | R58: 0 | AO58: 0 | AP58: Pair (P)
C59: =IF(AND(AND(OR($F59="",LEFT($F59,3)="---"),'Treatment Models'!B23<>"",'Treatment Models'!E23>0),$L$45>0),1,0) -> 0 | E59: =IF('Treatment Models'!$E23>0,'Treatment Models'!$B23,"") -> Supervision des agents communautaires | F59: Infirmier (N) | G59: y | H59: 18 | I59: 9 | J59: - | K59: 36 | L59: ='Treatment Models'!$E$23 -> 0.1 | M59: =$L$45*H59*L59/60 -> 0 | N59: =$L$45*I59*L59/60 -> 0 | O59: - | P59: =$L$45*K59*L59/60 -> 0 | R59: 0 | AO59: 0 | AP59: Infirmier (N)
AO60: =IF(Model3Clients>0,SUM(AO48:AO59),0) -> 0
E63: =IF(Language=1,Language!$A$166,Language!$B$166) -> Type de modèle TAR : | F63: =IF(Language=1,Language!$A$170,Language!$B$170) -> Communauté | L63: =IF(Language=1,Language!$A$171,Language!$B$171) -> Nombre de Clients | N63: =IF(Language=1,Language!$A$172,Language!$B$172) -> Clients par groupe | AP63: Communauté
A64: =B64 -> OHG | B64: OHG | E64: =IF(Language=1,Language!$A$167,Language!$B$167) -> Modèle TAR : | F64: ='Treatment Models'!$F$4 -> 0 | AP64: 0
E65: =IF(Language=1,Language!$A$168,Language!$B$168) -> Description spécifique au pays : | F65: ='Treatment Models'!$F$9 -> 0 | L65: =Clients_OHG -> 0 | N65: 1 | AP65: 0
E67: =IF(Language=1,Language!$A$174,Language!$B$174) -> Tâches critiques pour la prestation de services TAR | F67: =IF(Language=1,Language!$A$175,Language!$B$175) -> Prestataire de service (fournissant les tâches TAR le plus souvent) | H67: =IF(Language=1,Language!$A$176,Language!$A$176) -> Contact Time per Client (Mins) | I67: =IF(Language=1,Language!$A$177,Language!$A$177) -> Range (Min - Max) | L67: =IF(Language=1,Language!$A$178,Language!$B$178) -> Nombre de fois par année | M67: =IF(Language=1,Language!$A$180,Language!$B$180) -> Tâches Supplémentaires | N67: =IF(Language=1,Language!$A$177,Language!$B$177) -> Variation (Min - Max) | AP67: Prestataire de service (fournissant les tâches TAR le plus souvent)
A68: =IF(Language=2,VLOOKUP(B68,'Staff Time Data'!$S$4:$T$550,2,FALSE),B68) ->  | B68: =IF(ISNUMBER(MATCH(F68,'Drop-down Lists'!$J$3:$J$24,0)),$B$64&"-"&E68&"-"&F68,$B$64&"-"&E68&"-"&VLOOKUP(F68,Providers!$B$19:$S$24,18)) -> OHG-Enregistrement- | E68: =IF(Language=1,Language!$A$185,Language!$B$185) -> Enregistrement | H68: =IF($F68="",0,IF(VLOOKUP($A68,'Staff Time Data'!$A$4:$N$600,2,FALSE)>0,VLOOKUP($A68,'Staff Time Data'!$A$4:$N$600,3,FALSE),VLOOKUP($A68,'Staff Time Data'!$A$4:$N$600,9,FALSE))) -> 0 | I68: =IF($F68="",0,IF(VLOOKUP($A68,'Staff Time Data'!$A$4:$N$600,2,FALSE)>0,VLOOKUP($A68,'Staff Time Data'!$A$4:$N$600,7,FALSE),VLOOKUP($A68,'Staff Time Data'!$A$4:$N$600,13,FALSE))) -> 0 | J68: - | K68: =IF($F68="",0,IF(VLOOKUP($A68,'Staff Time Data'!$A$4:$N$600,2,FALSE)>0,VLOOKUP($A68,'Staff Time Data'!$A$4:$N$600,8,FALSE),VLOOKUP($A68,'Staff Time Data'!$A$4:$N$600,14,FALSE))) -> 0 | L68: ='Treatment Models'!$F$12 -> 0 | M68: =$L$65*H68*L68/60 -> 0 | N68: =$L$65*I68*L68/60 -> 0 | O68: - | P68: =$L$65*K68*L68/60 -> 0
A69: =IF(Language=2,VLOOKUP(B69,'Staff Time Data'!$S$4:$T$550,2,FALSE),B69) ->  | B69: =IF(ISNUMBER(MATCH(F69,'Drop-down Lists'!$J$3:$J$24,0)),$B$64&"-"&E69&"-"&F69,$B$64&"-"&E69&"-"&VLOOKUP(F69,Providers!$B$19:$S$24,18)) -> OHG-Éducation à la santé- | E69: =IF(Language=1,Language!$A$186,Language!$B$186) -> Éducation à la santé | H69: =IF($F69="",0,IF(VLOOKUP($A69,'Staff Time Data'!$A$4:$N$600,2,FALSE)>0,VLOOKUP($A69,'Staff Time Data'!$A$4:$N$600,3,FALSE),VLOOKUP($A69,'Staff Time Data'!$A$4:$N$600,9,FALSE))) -> 0 | I69: =IF($F69="",0,IF(VLOOKUP($A69,'Staff Time Data'!$A$4:$N$600,2,FALSE)>0,VLOOKUP($A69,'Staff Time Data'!$A$4:$N$600,7,FALSE),VLOOKUP($A69,'Staff Time Data'!$A$4:$N$600,13,FALSE))) -> 0 | J69: - | K69: =IF($F69="",0,IF(VLOOKUP($A69,'Staff Time Data'!$A$4:$N$600,2,FALSE)>0,VLOOKUP($A69,'Staff Time Data'!$A$4:$N$600,8,FALSE),VLOOKUP($A69,'Staff Time Data'!$A$4:$N$600,14,FALSE))) -> 0 | L69: ='Treatment Models'!$F$13 -> 0 | M69: 0 | N69: 0 | O69: - | P69: 0
A70: =IF(Language=2,VLOOKUP(B70,'Staff Time Data'!$S$4:$T$550,2,FALSE),B70) ->  | B70: =IF(ISNUMBER(MATCH(F70,'Drop-down Lists'!$J$3:$J$24,0)),$B$64&"-"&E70&"-"&F70,$B$64&"-"&E70&"-"&VLOOKUP(F70,Providers!$B$19:$S$24,18)) -> OHG-Suivi et traçage des clients- | E70: =IF(Language=1,Language!$A$187,Language!$B$187) -> Suivi et traçage des clients | H70: =IF($F70="",0,IF(VLOOKUP($A70,'Staff Time Data'!$A$4:$N$600,2,FALSE)>0,VLOOKUP($A70,'Staff Time Data'!$A$4:$N$600,3,FALSE),VLOOKUP($A70,'Staff Time Data'!$A$4:$N$600,9,FALSE))) -> 0 | I70: =IF($F70="",0,IF(VLOOKUP($A70,'Staff Time Data'!$A$4:$N$600,2,FALSE)>0,VLOOKUP($A70,'Staff Time Data'!$A$4:$N$600,7,FALSE),VLOOKUP($A70,'Staff Time Data'!$A$4:$N$600,13,FALSE))) -> 0 | J70: - | K70: =IF($F70="",0,IF(VLOOKUP($A70,'Staff Time Data'!$A$4:$N$600,2,FALSE)>0,VLOOKUP($A70,'Staff Time Data'!$A$4:$N$600,8,FALSE),VLOOKUP($A70,'Staff Time Data'!$A$4:$N$600,14,FALSE))) -> 0 | L70: ='Treatment Models'!$F$14 -> 0 | M70: 0 | N70: 0 | O70: - | P70: 0
A71: =IF(Language=2,VLOOKUP(B71,'Staff Time Data'!$S$4:$T$550,2,FALSE),B71) ->  | B71: =IF(ISNUMBER(MATCH(F71,'Drop-down Lists'!$J$3:$J$24,0)),$B$64&"-"&E71&"-"&F71,$B$64&"-"&E71&"-"&VLOOKUP(F71,Providers!$B$19:$S$24,18)) -> OHG-Consultation / Évaluation clinique- | E71: =IF(Language=1,Language!$A$188,Language!$B$188) -> Consultation / Évaluation clinique | H71: =IF($F71="",0,IF(VLOOKUP($A71,'Staff Time Data'!$A$4:$N$600,2,FALSE)>0,VLOOKUP($A71,'Staff Time Data'!$A$4:$N$600,3,FALSE),VLOOKUP($A71,'Staff Time Data'!$A$4:$N$600,9,FALSE))) -> 0 | I71: =IF($F71="",0,IF(VLOOKUP($A71,'Staff Time Data'!$A$4:$N$600,2,FALSE)>0,VLOOKUP($A71,'Staff Time Data'!$A$4:$N$600,7,FALSE),VLOOKUP($A71,'Staff Time Data'!$A$4:$N$600,13,FALSE))) -> 0 | J71: - | K71: =IF($F71="",0,IF(VLOOKUP($A71,'Staff Time Data'!$A$4:$N$600,2,FALSE)>0,VLOOKUP($A71,'Staff Time Data'!$A$4:$N$600,8,FALSE),VLOOKUP($A71,'Staff Time Data'!$A$4:$N$600,14,FALSE))) -> 0 | L71: ='Treatment Models'!$F$15 -> 0 | M71: 0 | N71: 0 | O71: - | P71: 0
A72: =IF(Language=2,VLOOKUP(B72,'Staff Time Data'!$S$4:$T$550,2,FALSE),B72) -> OHG-Plasma Sample Collection or DBS-Community Health Workers | B72: =IF(ISNUMBER(MATCH(F72,'Drop-down Lists'!$J$3:$J$24,0)),$B$64&"-"&E72&"-"&F72,$B$64&"-"&E72&"-"&VLOOKUP(F72,Providers!$B$19:$S$24,18)) -> OHG-Prise de sang ou taches de sang sec-Agent de santé communautaire (ASC) | E72: =IF(Language=1,Language!$A$189,Language!$B$189) -> Prise de sang ou taches de sang sec | F72: Lab Assistants and Technicians | H72: =IF($F72="",0,IF(VLOOKUP($A72,'Staff Time Data'!$A$4:$N$600,2,FALSE)>0,VLOOKUP($A72,'Staff Time Data'!$A$4:$N$600,3,FALSE),VLOOKUP($A72,'Staff Time Data'!$A$4:$N$600,9,FALSE))) -> 5 | I72: =IF($F72="",0,IF(VLOOKUP($A72,'Staff Time Data'!$A$4:$N$600,2,FALSE)>0,VLOOKUP($A72,'Staff Time Data'!$A$4:$N$600,7,FALSE),VLOOKUP($A72,'Staff Time Data'!$A$4:$N$600,13,FALSE))) -> 3 | J72: - | K72: =IF($F72="",0,IF(VLOOKUP($A72,'Staff Time Data'!$A$4:$N$600,2,FALSE)>0,VLOOKUP($A72,'Staff Time Data'!$A$4:$N$600,8,FALSE),VLOOKUP($A72,'Staff Time Data'!$A$4:$N$600,14,FALSE))) -> 9 | L72: ='Treatment Models'!$F$16 -> 0 | M72: 0 | N72: 0 | O72: - | P72: 0 | AP72: Lab Assistants and Technicians
A73: =IF(Language=2,VLOOKUP(B73,'Staff Time Data'!$S$4:$T$550,2,FALSE),B73) ->  | B73: =IF(ISNUMBER(MATCH(F73,'Drop-down Lists'!$J$3:$J$24,0)),$B$64&"-"&E73&"-"&F73,$B$64&"-"&E73&"-"&VLOOKUP(F73,Providers!$B$19:$S$24,18)) -> OHG-Counseling d'adhésion- | E73: =IF(Language=1,Language!$A$190,Language!$B$190) -> Counseling d'adhésion | H73: =IF($F73="",0,IF(VLOOKUP($A73,'Staff Time Data'!$A$4:$N$600,2,FALSE)>0,VLOOKUP($A73,'Staff Time Data'!$A$4:$N$600,3,FALSE),VLOOKUP($A73,'Staff Time Data'!$A$4:$N$600,9,FALSE))) -> 0 | I73: =IF($F73="",0,IF(VLOOKUP($A73,'Staff Time Data'!$A$4:$N$600,2,FALSE)>0,VLOOKUP($A73,'Staff Time Data'!$A$4:$N$600,7,FALSE),VLOOKUP($A73,'Staff Time Data'!$A$4:$N$600,13,FALSE))) -> 0 | J73: - | K73: =IF($F73="",0,IF(VLOOKUP($A73,'Staff Time Data'!$A$4:$N$600,2,FALSE)>0,VLOOKUP($A73,'Staff Time Data'!$A$4:$N$600,8,FALSE),VLOOKUP($A73,'Staff Time Data'!$A$4:$N$600,14,FALSE))) -> 0 | L73: ='Treatment Models'!$F$17 -> 0 | M73: 0 | N73: 0 | O73: - | P73: 0
A74: =IF(Language=2,VLOOKUP(B74,'Staff Time Data'!$S$4:$T$550,2,FALSE),B74) ->  | B74: =IF(ISNUMBER(MATCH(F74,'Drop-down Lists'!$J$3:$J$24,0)),$B$64&"-"&E74&"-"&F74,$B$64&"-"&E74&"-"&VLOOKUP(F74,Providers!$B$19:$S$24,18)) -> OHG-Reapprovisionnement en médicaments- | E74: =IF(Language=1,Language!$A$191,Language!$B$191) -> Reapprovisionnement en médicaments | H74: =IF($F74="",0,IF(VLOOKUP($A74,'Staff Time Data'!$A$4:$N$600,2,FALSE)>0,VLOOKUP($A74,'Staff Time Data'!$A$4:$N$600,3,FALSE),VLOOKUP($A74,'Staff Time Data'!$A$4:$N$600,9,FALSE))) -> 0 | I74: =IF($F74="",0,IF(VLOOKUP($A74,'Staff Time Data'!$A$4:$N$600,2,FALSE)>0,VLOOKUP($A74,'Staff Time Data'!$A$4:$N$600,7,FALSE),VLOOKUP($A74,'Staff Time Data'!$A$4:$N$600,13,FALSE))) -> 0 | J74: - | K74: =IF($F74="",0,IF(VLOOKUP($A74,'Staff Time Data'!$A$4:$N$600,2,FALSE)>0,VLOOKUP($A74,'Staff Time Data'!$A$4:$N$600,8,FALSE),VLOOKUP($A74,'Staff Time Data'!$A$4:$N$600,14,FALSE))) -> 0 | L74: ='Treatment Models'!$F$18 -> 0 | M74: 0 | N74: 0 | O74: - | P74: 0
A75: =IF(Language=2,VLOOKUP(B75,'Staff Time Data'!$S$4:$T$550,2,FALSE),B75) ->  | B75: =IF(ISNUMBER(MATCH(F75,'Drop-down Lists'!$J$3:$J$24,0)),$B$64&"-"&E75&"-"&F75,$B$64&"-"&E75&"-"&VLOOKUP(F75,Providers!$B$19:$S$24,18)) -> OHG-Mise à jour des outils- | E75: =IF(Language=1,Language!$A$192,Language!$B$192) -> Mise à jour des outils | H75: =IF($F75="",0,IF(VLOOKUP($A75,'Staff Time Data'!$A$4:$N$600,2,FALSE)>0,VLOOKUP($A75,'Staff Time Data'!$A$4:$N$600,3,FALSE),VLOOKUP($A75,'Staff Time Data'!$A$4:$N$600,9,FALSE))) -> 0 | I75: =IF($F75="",0,IF(VLOOKUP($A75,'Staff Time Data'!$A$4:$N$600,2,FALSE)>0,VLOOKUP($A75,'Staff Time Data'!$A$4:$N$600,7,FALSE),VLOOKUP($A75,'Staff Time Data'!$A$4:$N$600,13,FALSE))) -> 0 | J75: - | K75: =IF($F75="",0,IF(VLOOKUP($A75,'Staff Time Data'!$A$4:$N$600,2,FALSE)>0,VLOOKUP($A75,'Staff Time Data'!$A$4:$N$600,8,FALSE),VLOOKUP($A75,'Staff Time Data'!$A$4:$N$600,14,FALSE))) -> 0 | L75: ='Treatment Models'!$F$19 -> 0 | M75: 0 | N75: 0 | O75: - | P75: 0
E76: =IF(Language=1,Language!$A$180,Language!$B$180) -> Tâches Supplémentaires
E77: =IF('Treatment Models'!$F$21="","",'Treatment Models'!$B$21) ->  | J77: - | L77: ='Treatment Models'!$F$21 -> 0 | M77: =$L$65*H77*L77/60 -> 0 | N77: =$L$65*I77*L77/60 -> 0 | O77: - | P77: =$L$65*K77*L77/60 -> 0
E78: =IF('Treatment Models'!$F$22="","",'Treatment Models'!$B$22) ->  | J78: - | L78: ='Treatment Models'!$F$22 -> 0 | M78: =$L$65*H78*L78/60 -> 0 | N78: =$L$65*I78*L78/60 -> 0 | O78: - | P78: =$L$65*K78*L78/60 -> 0
E79: =IF('Treatment Models'!$F$23="","",'Treatment Models'!$B$23) -> Supervision des agents communautaires | J79: - | L79: ='Treatment Models'!$F$23 -> 0.1 | M79: =$L$65*H79*L79/60 -> 0 | N79: =$L$65*I79*L79/60 -> 0 | O79: - | P79: =$L$65*K79*L79/60 -> 0
E82: =IF(TA_Change4>0,IF(Language=1,Language!$A$416,Language!$B$416),"") ->  | N82: =IF(Language=1,Language!$A$173,Language!$B$173) -> Clients par groupe pour les tâches menés en groupe
E83: =IF(Language=1,Language!$A$166,Language!$B$166) -> Type de modèle TAR : | F83: =IF(Language=1,Language!$A$170,Language!$B$170) -> Communauté | L83: =IF(Language=1,Language!$A$171,Language!$B$171) -> Nombre de Clients | AP83: Communauté
A84: =B84 -> OHI | B84: OHI | E84: =IF(Language=1,Language!$A$167,Language!$B$167) -> Modèle TAR : | F84: ='Treatment Models'!$G$4 -> 6 month MMD | AP84: 6 month MMD
E85: =IF(Language=1,Language!$A$168,Language!$B$168) -> Description spécifique au pays : | F85: ='Treatment Models'!$G$9 -> 6 month MMD with appointment spacing | L85: =Clients_OHI -> 0 | N85: 1 | AP85: 6 month MMD with appointment spacing
E87: =IF(Language=1,Language!$A$174,Language!$B$174) -> Tâches critiques pour la prestation de services TAR | F87: =IF(Language=1,Language!$A$175,Language!$B$175) -> Prestataire de service (fournissant les tâches TAR le plus souvent) | G87: =IF(Language=1,Language!$A$184,Language!$B$184) -> Groupe (O/-) | H87: =IF(Language=1,Language!$A$176,Language!$B$176) -> Temps de contact par client (minutes) | I87: =IF(Language=1,Language!$A$177,Language!$B$177) -> Variation (Min - Max) | L87: =IF(Language=1,Language!$A$178,Language!$B$178) -> Nombre de fois par année | M87: =IF(Language=1,Language!$A$179,Language!$B$179) -> Heures nécessaires | N87: =IF(Language=1,Language!$A$177,Language!$B$177) -> Variation (Min - Max) | AP87: Prestataire de service (fournissant les tâches TAR le plus souvent)
A88: =IF(Language=2,VLOOKUP(B88,'Staff Time Data'!$S$4:$T$550,2,FALSE),B88) -> OHI-Registration-Auxiliary/assistant nurse - HSA | B88: =IF(ISNUMBER(MATCH(F88,'Drop-down Lists'!$J$3:$J$24,0)),$B$84&"-"&E88&"-"&F88,$B$84&"-"&E88&"-"&VLOOKUP(F88,Providers!$B$19:$S$24,18,FALSE)) -> OHI-Enregistrement-Auxiliaire de soins/Aide-soignant (FBA) | C88: =IF(AND(AND(OR($F88="",LEFT($F88,3)="---"),'Treatment Models'!B12<>"",'Treatment Models'!G12>0),$L$85>0),1,0) -> 0 | E88: =IF(Language=1,Language!$A$185,Language!$B$185) -> Enregistrement | F88: =F8 -> Data/ART Clerk/Officers | H88: =AG88 -> 1.317073171 | I88: 0.3568902613 | J88: - | K88: 2.27725608 | L88: ='Treatment Models'!$G12 -> 2 | M88: =$L$85*H88*L88/60 -> 0 | N88: =$L$85*I88*L88/60 -> 0 | O88: - | P88: =$L$85*K88*L88/60 -> 0 | R88: =IF(AND(OR(F88="",LEFT(F88,3)="---"),E88<>""),1,0) -> 0 | AG88: =IF(OR($F88="",LEFT($F88,3)="---"),0,IF(VLOOKUP($A88,'Staff Time Data'!$A$4:$N$600,2,FALSE)>0,VLOOKUP($A88,'Staff Time Data'!$A$4:$N$600,3,FALSE),VLOOKUP($A88,'Staff Time Data'!$A$4:$N$600,9,FALSE))/IF(OR($G88="O",$G88="o",$G88="Y",$G88="y"),$N$85,1)) -> 1.317073171 | AH88: =IF(OR($F88="",LEFT($F88,3)="---"),0,IF(VLOOKUP($A88,'Staff Time Data'!$A$4:$N$600,2,FALSE)>0,VLOOKUP($A88,'Staff Time Data'!$A$4:$N$600,7,FALSE),VLOOKUP($A88,'Staff Time Data'!$A$4:$N$600,13,FALSE))/IF(OR($G88="O",$G88="o",$G88="Y",$G88="y"),$N$85,1)) -> 0.3568902613 | AI88: - | AJ88: =IF(OR($F88="",LEFT($F88,3)="---"),0,IF(VLOOKUP($A88,'Staff Time Data'!$A$4:$N$600,2,FALSE)>0,VLOOKUP($A88,'Staff Time Data'!$A$4:$N$600,8,FALSE),VLOOKUP($A88,'Staff Time Data'!$A$4:$N$600,14,FALSE))/IF(OR($G88="O",$G88="o",$G88="Y",$G88="y"),$N$85,1)) -> 2.27725608 | AK88: 1.317073171 | AL88: 0.3568902613 | AM88: - | AN88: 2.27725608 | AO88: =IF(AP88=F88,0,1) -> 0 | AP88: Data/ART Clerk/Officers
A89: =IF(Language=2,VLOOKUP(B89,'Staff Time Data'!$S$4:$T$550,2,FALSE),B89) -> OHI-Health Education-Expert Clients/Peer Educators | B89: =IF(ISNUMBER(MATCH(F89,'Drop-down Lists'!$J$3:$J$24,0)),$B$84&"-"&E89&"-"&F89,$B$84&"-"&E89&"-"&VLOOKUP(F89,Providers!$B$19:$S$24,18,FALSE)) -> OHI-Éducation à la santé-Pair (P) | C89: =IF(AND(AND(OR($F89="",LEFT($F89,3)="---"),'Treatment Models'!B13<>"",'Treatment Models'!G13>0),$L$85>0),1,0) -> 0 | E89: =IF(Language=1,Language!$A$186,Language!$B$186) -> Éducation à la santé | F89: Pair (P) | G89: =G9 -> 0 | H89: 11.12962963 | I89: 4.330500117 | J89: - | K89: 17.92875914 | L89: ='Treatment Models'!$G13 -> 1 | M89: 0 | N89: 0 | O89: - | P89: 0 | R89: =IF(AND(OR(F89="",LEFT(F89,3)="---"),E89<>""),1,0) -> 0 | AG89: =IF(OR($F89="",LEFT($F89,3)="---"),0,IF(VLOOKUP($A89,'Staff Time Data'!$A$4:$N$600,2,FALSE)>0,VLOOKUP($A89,'Staff Time Data'!$A$4:$N$600,3,FALSE),VLOOKUP($A89,'Staff Time Data'!$A$4:$N$600,9,FALSE))/IF(OR($G89="O",$G89="o",$G89="Y",$G89="y"),$N$85,1)) -> 11.12962963 | AH89: =IF(OR($F89="",LEFT($F89,3)="---"),0,IF(VLOOKUP($A89,'Staff Time Data'!$A$4:$N$600,2,FALSE)>0,VLOOKUP($A89,'Staff Time Data'!$A$4:$N$600,7,FALSE),VLOOKUP($A89,'Staff Time Data'!$A$4:$N$600,13,FALSE))/IF(OR($G89="O",$G89="o",$G89="Y",$G89="y"),$N$85,1)) -> 4.330500117 | AI89: - | AJ89: =IF(OR($F89="",LEFT($F89,3)="---"),0,IF(VLOOKUP($A89,'Staff Time Data'!$A$4:$N$600,2,FALSE)>0,VLOOKUP($A89,'Staff Time Data'!$A$4:$N$600,8,FALSE),VLOOKUP($A89,'Staff Time Data'!$A$4:$N$600,14,FALSE))/IF(OR($G89="O",$G89="o",$G89="Y",$G89="y"),$N$85,1)) -> 17.92875914 | AK89: 11.12962963 | AL89: 4.330500117 | AM89: - | AN89: 17.92875914 | AO89: =IF(AP89=F89,0,1) -> 0 | AP89: Pair (P)
A90: =IF(Language=2,VLOOKUP(B90,'Staff Time Data'!$S$4:$T$550,2,FALSE),B90) -> OHI-Client follow-up & tracing-Community Health Workers | B90: =IF(ISNUMBER(MATCH(F90,'Drop-down Lists'!$J$3:$J$24,0)),$B$84&"-"&E90&"-"&F90,$B$84&"-"&E90&"-"&VLOOKUP(F90,Providers!$B$19:$S$24,18,FALSE)) -> OHI-Suivi et traçage des clients-Agent de santé communautaire (ASC) | C90: =IF(AND(AND(OR($F90="",LEFT($F90,3)="---"),'Treatment Models'!B14<>"",'Treatment Models'!G14>0),$L$85>0),1,0) -> 0 | E90: =IF(Language=1,Language!$A$187,Language!$B$187) -> Suivi et traçage des clients | F90: HDAs | H90: 45 | I90: 30 | J90: - | K90: 60 | L90: ='Treatment Models'!$G14 -> 1 | M90: 0 | N90: 0 | O90: - | P90: 0 | R90: 0 | AG90: =IF(OR($F90="",LEFT($F90,3)="---"),0,IF(VLOOKUP($A90,'Staff Time Data'!$A$4:$N$600,2,FALSE)>0,VLOOKUP($A90,'Staff Time Data'!$A$4:$N$600,3,FALSE),VLOOKUP($A90,'Staff Time Data'!$A$4:$N$600,9,FALSE))/IF(OR($G90="O",$G90="o",$G90="Y",$G90="y"),$N$85,1)) -> 45 | AH90: =IF(OR($F90="",LEFT($F90,3)="---"),0,IF(VLOOKUP($A90,'Staff Time Data'!$A$4:$N$600,2,FALSE)>0,VLOOKUP($A90,'Staff Time Data'!$A$4:$N$600,7,FALSE),VLOOKUP($A90,'Staff Time Data'!$A$4:$N$600,13,FALSE))/IF(OR($G90="O",$G90="o",$G90="Y",$G90="y"),$N$85,1)) -> 30 | AI90: - | AJ90: =IF(OR($F90="",LEFT($F90,3)="---"),0,IF(VLOOKUP($A90,'Staff Time Data'!$A$4:$N$600,2,FALSE)>0,VLOOKUP($A90,'Staff Time Data'!$A$4:$N$600,8,FALSE),VLOOKUP($A90,'Staff Time Data'!$A$4:$N$600,14,FALSE))/IF(OR($G90="O",$G90="o",$G90="Y",$G90="y"),$N$85,1)) -> 60 | AK90: 45 | AL90: 30 | AM90: - | AN90: 60 | AO90: 0 | AP90: HDAs
A91: =IF(Language=2,VLOOKUP(B91,'Staff Time Data'!$S$4:$T$550,2,FALSE),B91) -> OHI-Consultation/ART Refill-Non-physician Clinicians | B91: =IF(ISNUMBER(MATCH(F91,'Drop-down Lists'!$J$3:$J$24,0)),$B$84&"-"&E91&"-"&F91,$B$84&"-"&E91&"-"&VLOOKUP(F91,Providers!$B$19:$S$24,18,FALSE)) -> OHI-Consultation / Évaluation clinique-Clinicien non-médecin (CNP) | C91: =IF(AND(AND(OR($F91="",LEFT($F91,3)="---"),'Treatment Models'!B15<>"",'Treatment Models'!G15>0),$L$85>0),1,0) -> 0 | E91: =IF(Language=1,Language!$A$188,Language!$B$188) -> Consultation / Évaluation clinique | F91: Clinicien non-médecin (CNP) | H91: 3.5 | I91: 1.629171307 | J91: - | K91: 5.370828693 | L91: ='Treatment Models'!$G15 -> 2 | M91: 0 | N91: 0 | O91: - | P91: 0 | R91: 0 | AG91: =IF(OR($F91="",LEFT($F91,3)="---"),0,IF(VLOOKUP($A91,'Staff Time Data'!$A$4:$N$600,2,FALSE)>0,VLOOKUP($A91,'Staff Time Data'!$A$4:$N$600,3,FALSE),VLOOKUP($A91,'Staff Time Data'!$A$4:$N$600,9,FALSE))/IF(OR($G91="O",$G91="o",$G91="Y",$G91="y"),$N$85,1)) -> 3.5 | AH91: =IF(OR($F91="",LEFT($F91,3)="---"),0,IF(VLOOKUP($A91,'Staff Time Data'!$A$4:$N$600,2,FALSE)>0,VLOOKUP($A91,'Staff Time Data'!$A$4:$N$600,7,FALSE),VLOOKUP($A91,'Staff Time Data'!$A$4:$N$600,13,FALSE))/IF(OR($G91="O",$G91="o",$G91="Y",$G91="y"),$N$85,1)) -> 1.629171307 | AI91: - | AJ91: =IF(OR($F91="",LEFT($F91,3)="---"),0,IF(VLOOKUP($A91,'Staff Time Data'!$A$4:$N$600,2,FALSE)>0,VLOOKUP($A91,'Staff Time Data'!$A$4:$N$600,8,FALSE),VLOOKUP($A91,'Staff Time Data'!$A$4:$N$600,14,FALSE))/IF(OR($G91="O",$G91="o",$G91="Y",$G91="y"),$N$85,1)) -> 5.370828693 | AK91: 3.5 | AL91: 1.629171307 | AM91: - | AN91: 5.370828693 | AO91: 0 | AP91: Clinicien non-médecin (CNP)
A92: =IF(Language=2,VLOOKUP(B92,'Staff Time Data'!$S$4:$T$550,2,FALSE),B92) -> OHI-Plasma Sample Collection or DBS-Lab Assistants/Technicians | B92: =IF(ISNUMBER(MATCH(F92,'Drop-down Lists'!$J$3:$J$24,0)),$B$84&"-"&E92&"-"&F92,$B$84&"-"&E92&"-"&VLOOKUP(F92,Providers!$B$19:$S$24,18,FALSE)) -> OHI-Prise de sang ou taches de sang sec-Technicien de laboratoire (LT) | C92: =IF(AND(AND(OR($F92="",LEFT($F92,3)="---"),'Treatment Models'!B16<>"",'Treatment Models'!G16>0),$L$85>0),1,0) -> 0 | E92: =IF(Language=1,Language!$A$189,Language!$B$189) -> Prise de sang ou taches de sang sec | F92: Technicien de laboratoire (LT) | H92: 5 | I92: 3 | J92: - | K92: 9 | L92: ='Treatment Models'!$G16 -> 1 | M92: 0 | N92: 0 | O92: - | P92: 0 | R92: 0 | AG92: =IF(OR($F92="",LEFT($F92,3)="---"),0,IF(VLOOKUP($A92,'Staff Time Data'!$A$4:$N$600,2,FALSE)>0,VLOOKUP($A92,'Staff Time Data'!$A$4:$N$600,3,FALSE),VLOOKUP($A92,'Staff Time Data'!$A$4:$N$600,9,FALSE))/IF(OR($G92="O",$G92="o",$G92="Y",$G92="y"),$N$85,1)) -> 5 | AH92: =IF(OR($F92="",LEFT($F92,3)="---"),0,IF(VLOOKUP($A92,'Staff Time Data'!$A$4:$N$600,2,FALSE)>0,VLOOKUP($A92,'Staff Time Data'!$A$4:$N$600,7,FALSE),VLOOKUP($A92,'Staff Time Data'!$A$4:$N$600,13,FALSE))/IF(OR($G92="O",$G92="o",$G92="Y",$G92="y"),$N$85,1)) -> 3 | AI92: - | AJ92: =IF(OR($F92="",LEFT($F92,3)="---"),0,IF(VLOOKUP($A92,'Staff Time Data'!$A$4:$N$600,2,FALSE)>0,VLOOKUP($A92,'Staff Time Data'!$A$4:$N$600,8,FALSE),VLOOKUP($A92,'Staff Time Data'!$A$4:$N$600,14,FALSE))/IF(OR($G92="O",$G92="o",$G92="Y",$G92="y"),$N$85,1)) -> 9 | AK92: 5 | AL92: 3 | AM92: - | AN92: 9 | AO92: 0 | AP92: Technicien de laboratoire (LT)
A93: =IF(Language=2,VLOOKUP(B93,'Staff Time Data'!$S$4:$T$550,2,FALSE),B93) -> OHI-Adherence counseling-Expert Clients/Peer Educators | B93: =IF(ISNUMBER(MATCH(F93,'Drop-down Lists'!$J$3:$J$24,0)),$B$84&"-"&E93&"-"&F93,$B$84&"-"&E93&"-"&VLOOKUP(F93,Providers!$B$19:$S$24,18,FALSE)) -> OHI-Counseling d'adhésion-Pair (P) | C93: =IF(AND(AND(OR($F93="",LEFT($F93,3)="---"),'Treatment Models'!B17<>"",'Treatment Models'!G17>0),$L$85>0),1,0) -> 0 | E93: =IF(Language=1,Language!$A$190,Language!$B$190) -> Counseling d'adhésion | F93: Pair (P) | G93: =G13 -> 0 | H93: 3.75 | I93: 3.128418439 | J93: - | K93: 4.371581561 | L93: ='Treatment Models'!$G17 -> 1 | M93: 0 | N93: 0 | O93: - | P93: 0 | R93: 0 | AG93: =IF(OR($F93="",LEFT($F93,3)="---"),0,IF(VLOOKUP($A93,'Staff Time Data'!$A$4:$N$600,2,FALSE)>0,VLOOKUP($A93,'Staff Time Data'!$A$4:$N$600,3,FALSE),VLOOKUP($A93,'Staff Time Data'!$A$4:$N$600,9,FALSE))/IF(OR($G93="O",$G93="o",$G93="Y",$G93="y"),$N$85,1)) -> 3.75 | AH93: =IF(OR($F93="",LEFT($F93,3)="---"),0,IF(VLOOKUP($A93,'Staff Time Data'!$A$4:$N$600,2,FALSE)>0,VLOOKUP($A93,'Staff Time Data'!$A$4:$N$600,7,FALSE),VLOOKUP($A93,'Staff Time Data'!$A$4:$N$600,13,FALSE))/IF(OR($G93="O",$G93="o",$G93="Y",$G93="y"),$N$85,1)) -> 3.128418439 | AI93: - | AJ93: =IF(OR($F93="",LEFT($F93,3)="---"),0,IF(VLOOKUP($A93,'Staff Time Data'!$A$4:$N$600,2,FALSE)>0,VLOOKUP($A93,'Staff Time Data'!$A$4:$N$600,8,FALSE),VLOOKUP($A93,'Staff Time Data'!$A$4:$N$600,14,FALSE))/IF(OR($G93="O",$G93="o",$G93="Y",$G93="y"),$N$85,1)) -> 4.371581561 | AK93: 3.75 | AL93: 3.128418439 | AM93: - | AN93: 4.371581561 | AO93: 0 | AP93: Pair (P)
A94: =IF(Language=2,VLOOKUP(B94,'Staff Time Data'!$S$4:$T$550,2,FALSE),B94) -> OHI-Index Testing-Nurses/Midwives | B94: =IF(ISNUMBER(MATCH(F94,'Drop-down Lists'!$J$3:$J$24,0)),$B$84&"-"&E94&"-"&F94,$B$84&"-"&E94&"-"&VLOOKUP(F94,Providers!$B$19:$S$24,18,FALSE)) -> OHI-Reapprovisionnement en médicaments-Infirmier (N) | C94: =IF(AND(AND(OR($F94="",LEFT($F94,3)="---"),'Treatment Models'!B18<>"",'Treatment Models'!G18>0),$L$85>0),1,0) -> 0 | E94: =IF(Language=1,Language!$A$191,Language!$B$191) -> Reapprovisionnement en médicaments | F94: Infirmier (N) | H94: 10 | I94: 5 | J94: - | K94: 15 | L94: ='Treatment Models'!$G18 -> 0.1 | M94: 0 | N94: 0 | O94: - | P94: 0 | R94: 0 | AG94: =IF(OR($F94="",LEFT($F94,3)="---"),0,IF(VLOOKUP($A94,'Staff Time Data'!$A$4:$N$600,2,FALSE)>0,VLOOKUP($A94,'Staff Time Data'!$A$4:$N$600,3,FALSE),VLOOKUP($A94,'Staff Time Data'!$A$4:$N$600,9,FALSE))/IF(OR($G94="O",$G94="o",$G94="Y",$G94="y"),$N$85,1)) -> 10 | AH94: =IF(OR($F94="",LEFT($F94,3)="---"),0,IF(VLOOKUP($A94,'Staff Time Data'!$A$4:$N$600,2,FALSE)>0,VLOOKUP($A94,'Staff Time Data'!$A$4:$N$600,7,FALSE),VLOOKUP($A94,'Staff Time Data'!$A$4:$N$600,13,FALSE))/IF(OR($G94="O",$G94="o",$G94="Y",$G94="y"),$N$85,1)) -> 5 | AI94: - | AJ94: =IF(OR($F94="",LEFT($F94,3)="---"),0,IF(VLOOKUP($A94,'Staff Time Data'!$A$4:$N$600,2,FALSE)>0,VLOOKUP($A94,'Staff Time Data'!$A$4:$N$600,8,FALSE),VLOOKUP($A94,'Staff Time Data'!$A$4:$N$600,14,FALSE))/IF(OR($G94="O",$G94="o",$G94="Y",$G94="y"),$N$85,1)) -> 15 | AK94: 10 | AL94: 5 | AM94: - | AN94: 15 | AO94: 0 | AP94: Infirmier (N)
A95: =IF(Language=2,VLOOKUP(B95,'Staff Time Data'!$S$4:$T$550,2,FALSE),B95) -> OHI-Updating Records-Auxiliary/assistant nurse - HSA | B95: =IF(ISNUMBER(MATCH(F95,'Drop-down Lists'!$J$3:$J$24,0)),$B$84&"-"&E95&"-"&F95,$B$84&"-"&E95&"-"&VLOOKUP(F95,Providers!$B$19:$S$24,18,FALSE)) -> OHI-Mise à jour des outils-Auxiliaire de soins/Aide-soignant (FBA) | C95: =IF(AND(AND(OR($F95="",LEFT($F95,3)="---"),'Treatment Models'!B19<>"",'Treatment Models'!G19>0),$L$85>0),1,0) -> 0 | E95: =IF(Language=1,Language!$A$192,Language!$B$192) -> Mise à jour des outils | F95: Data/ART Clerk/Officers | H95: 3.5 | I95: 2.922649731 | J95: - | K95: 4.077350269 | L95: ='Treatment Models'!$G19 -> 2 | M95: 0 | N95: 0 | O95: - | P95: 0 | R95: 0 | AG95: =IF(OR($F95="",LEFT($F95,3)="---"),0,IF(VLOOKUP($A95,'Staff Time Data'!$A$4:$N$600,2,FALSE)>0,VLOOKUP($A95,'Staff Time Data'!$A$4:$N$600,3,FALSE),VLOOKUP($A95,'Staff Time Data'!$A$4:$N$600,9,FALSE))/IF(OR($G95="O",$G95="o",$G95="Y",$G95="y"),$N$85,1)) -> 3.5 | AH95: =IF(OR($F95="",LEFT($F95,3)="---"),0,IF(VLOOKUP($A95,'Staff Time Data'!$A$4:$N$600,2,FALSE)>0,VLOOKUP($A95,'Staff Time Data'!$A$4:$N$600,7,FALSE),VLOOKUP($A95,'Staff Time Data'!$A$4:$N$600,13,FALSE))/IF(OR($G95="O",$G95="o",$G95="Y",$G95="y"),$N$85,1)) -> 2.922649731 | AI95: - | AJ95: =IF(OR($F95="",LEFT($F95,3)="---"),0,IF(VLOOKUP($A95,'Staff Time Data'!$A$4:$N$600,2,FALSE)>0,VLOOKUP($A95,'Staff Time Data'!$A$4:$N$600,8,FALSE),VLOOKUP($A95,'Staff Time Data'!$A$4:$N$600,14,FALSE))/IF(OR($G95="O",$G95="o",$G95="Y",$G95="y"),$N$85,1)) -> 4.077350269 | AK95: 3.5 | AL95: 2.922649731 | AM95: - | AN95: 4.077350269 | AO95: 0 | AP95: Data/ART Clerk/Officers
E96: =IF(Language=1,Language!$A$180,Language!$B$180) -> Tâches Supplémentaires | F96: 0 | AP96: 0
C97: =IF(AND(AND(OR($F97="",LEFT($F97,3)="---"),'Treatment Models'!B21<>"",'Treatment Models'!G21>0),$L$85>0),1,0) -> 0 | E97: =IF('Treatment Models'!$G21>0,'Treatment Models'!$B21,"") -> Dépistage et conseil à l'initiative du prestataire | F97: Infirmier (N) | G97: 0 | H97: =H17 -> 5 | I97: 4 | J97: - | K97: =K17 -> 6 | L97: ='Treatment Models'!$G21 -> 1 | M97: =$L$85*H97*L97/60 -> 0 | N97: =$L$85*I97*L97/60 -> 0 | O97: - | P97: =$L$85*K97*L97/60 -> 0 | R97: 0 | AO97: 0 | AP97: Infirmier (N)
C98: =IF(AND(AND(OR($F98="",LEFT($F98,3)="---"),'Treatment Models'!B22<>"",'Treatment Models'!G22>0),$L$85>0),1,0) -> 0 | E98: =IF('Treatment Models'!$G22>0,'Treatment Models'!$B22,"") -> Couplage Client-Expert Client | F98: Pair (P) | G98: 0 | H98: 60 | I98: 30 | J98: - | K98: 90 | L98: ='Treatment Models'!$G22 -> 0.1 | M98: =$L$85*H98*L98/60 -> 0 | N98: =$L$85*I98*L98/60 -> 0 | O98: - | P98: =$L$85*K98*L98/60 -> 0 | R98: 0 | AO98: 0 | AP98: Pair (P)
C99: =IF(AND(AND(OR($F99="",LEFT($F99,3)="---"),'Treatment Models'!B23<>"",'Treatment Models'!G23>0),$L$85>0),1,0) -> 0 | E99: =IF('Treatment Models'!$G23>0,'Treatment Models'!$B23,"") -> Supervision des agents communautaires | F99: Infirmier (N) | G99: y | H99: 18 | I99: 9 | J99: - | K99: 36 | L99: ='Treatment Models'!$G23 -> 0.1 | M99: =$L$85*H99*L99/60 -> 0 | N99: =$L$85*I99*L99/60 -> 0 | O99: - | P99: =$L$85*K99*L99/60 -> 0 | R99: 0 | AO99: 0 | AP99: Infirmier (N)
AO100: =IF(Model4Clients>0,SUM(AO88:AO99),0) -> 0
E102: =IF(TA_Change5>0,IF(Language=1,Language!$A$416,Language!$B$416),"") -> 
E103: =IF(Language=1,Language!$A$166,Language!$B$166) -> Type de modèle TAR : | F103: =IF(Language=1,Language!$A$170,Language!$B$170) -> Communauté | L103: =IF(Language=1,Language!$A$171,Language!$B$171) -> Nombre de Clients | N103: =IF(Language=1,Language!$A$172,Language!$B$172) -> Clients par groupe | AP103: Communauté
A104: =B104 -> OCG | B104: OCG | E104: =IF(Language=1,Language!$A$167,Language!$B$167) -> Modèle TAR : | F104: ='Treatment Models'!$H$4 -> 12 month MMD | AP104: 12 month MMD
E105: =IF(Language=1,Language!$A$168,Language!$B$168) -> Description spécifique au pays : | F105: ='Treatment Models'!$H$9 -> 12 month MMD with appointment spacing | L105: =Clients_OCG -> 0 | N105: 5 | AP105: 12 month MMD with appointment spacing
E107: =IF(Language=1,Language!$A$174,Language!$B$174) -> Tâches critiques pour la prestation de services TAR | F107: =IF(Language=1,Language!$A$175,Language!$B$175) -> Prestataire de service (fournissant les tâches TAR le plus souvent) | G107: =IF(Language=1,Language!$A$184,Language!$B$184) -> Groupe (O/-) | H107: =IF(Language=1,Language!$A$176,Language!$B$176) -> Temps de contact par client (minutes) | I107: =IF(Language=1,Language!$A$177,Language!$B$177) -> Variation (Min - Max) | L107: =IF(Language=1,Language!$A$178,Language!$B$178) -> Nombre de fois par année | M107: =IF(Language=1,Language!$A$179,Language!$B$179) -> Heures nécessaires | N107: =IF(Language=1,Language!$A$177,Language!$B$177) -> Variation (Min - Max) | AP107: Prestataire de service (fournissant les tâches TAR le plus souvent)
A108: =IF(Language=2,VLOOKUP(B108,'Staff Time Data'!$S$4:$T$550,2,FALSE),B108) -> OCG-Registration-Auxiliary/assistant nurse - HSA | B108: =IF(ISNUMBER(MATCH(F108,'Drop-down Lists'!$J$3:$J$24,0)),$B$104&"-"&E108&"-"&F108,$B$104&"-"&E108&"-"&VLOOKUP(F108,Providers!$B$19:$S$24,18,FALSE)) -> OCG-Enregistrement-Auxiliaire de soins/Aide-soignant (FBA) | C108: =IF(AND(AND(OR($F108="",LEFT($F108,3)="---"),'Treatment Models'!B12<>"",'Treatment Models'!H12>0),$L$105>0),1,0) -> 0 | E108: =IF(Language=1,Language!$A$185,Language!$B$185) -> Enregistrement | F108: =F8 -> Data/ART Clerk/Officers | H108: =AG108 -> 3.181818182 | I108: 0.7620622323 | J108: - | K108: 5.601574131 | L108: ='Treatment Models'!$H12 -> 1 | M108: =$L$105*H108*L108/60 -> 0 | N108: =$L$105*I108*L108/60 -> 0 | O108: - | P108: =$L$105*K108*L108/60 -> 0 | R108: =IF(AND(OR(F108="",LEFT(F108,3)="---"),E108<>""),1,0) -> 0 | AG108: =IF(OR($F108="",LEFT($F108,3)="---"),0,IF(VLOOKUP($A108,'Staff Time Data'!$A$4:$N$600,2,FALSE)>0,VLOOKUP($A108,'Staff Time Data'!$A$4:$N$600,3,FALSE),VLOOKUP($A108,'Staff Time Data'!$A$4:$N$600,9,FALSE))/IF(OR($G108="O",$G108="o",$G108="Y",$G108="y"),$N$105,1)) -> 3.181818182 | AH108: =IF(OR($F108="",LEFT($F108,3)="---"),0,IF(VLOOKUP($A108,'Staff Time Data'!$A$4:$N$600,2,FALSE)>0,VLOOKUP($A108,'Staff Time Data'!$A$4:$N$600,7,FALSE),VLOOKUP($A108,'Staff Time Data'!$A$4:$N$600,13,FALSE))/IF(OR($G108="O",$G108="o",$G108="Y",$G108="y"),$N$105,1)) -> 0.7620622323 | AI108: - | AJ108: =IF(OR($F108="",LEFT($F108,3)="---"),0,IF(VLOOKUP($A108,'Staff Time Data'!$A$4:$N$600,2,FALSE)>0,VLOOKUP($A108,'Staff Time Data'!$A$4:$N$600,8,FALSE),VLOOKUP($A108,'Staff Time Data'!$A$4:$N$600,14,FALSE))/IF(OR($G108="O",$G108="o",$G108="Y",$G108="y"),$N$105,1)) -> 5.601574131 | AK108: 3.181818182 | AL108: 0.7620622323 | AM108: - | AN108: 5.601574131 | AO108: =IF(AP108=F108,0,1) -> 0 | AP108: Data/ART Clerk/Officers
A109: =IF(Language=2,VLOOKUP(B109,'Staff Time Data'!$S$4:$T$550,2,FALSE),B109) -> OCG-Health Education-Expert Clients/Peer Educators | B109: =IF(ISNUMBER(MATCH(F109,'Drop-down Lists'!$J$3:$J$24,0)),$B$104&"-"&E109&"-"&F109,$B$104&"-"&E109&"-"&VLOOKUP(F109,Providers!$B$19:$S$24,18,FALSE)) -> OCG-Éducation à la santé-Pair (P) | C109: =IF(AND(AND(OR($F109="",LEFT($F109,3)="---"),'Treatment Models'!B13<>"",'Treatment Models'!H13>0),$L$105>0),1,0) -> 0 | E109: =IF(Language=1,Language!$A$186,Language!$B$186) -> Éducation à la santé | F109: Pair (P) | G109: =G9 -> 0 | H109: 15.85542169 | I109: 9.026265166 | J109: - | K109: 22.68457821 | L109: ='Treatment Models'!$H13 -> 1 | M109: 0 | N109: 0 | O109: - | P109: 0 | R109: =IF(AND(OR(F109="",LEFT(F109,3)="---"),E109<>""),1,0) -> 0 | AG109: =IF(OR($F109="",LEFT($F109,3)="---"),0,IF(VLOOKUP($A109,'Staff Time Data'!$A$4:$N$600,2,FALSE)>0,VLOOKUP($A109,'Staff Time Data'!$A$4:$N$600,3,FALSE),VLOOKUP($A109,'Staff Time Data'!$A$4:$N$600,9,FALSE))/IF(OR($G109="O",$G109="o",$G109="Y",$G109="y"),$N$105,1)) -> 15.85542169 | AH109: =IF(OR($F109="",LEFT($F109,3)="---"),0,IF(VLOOKUP($A109,'Staff Time Data'!$A$4:$N$600,2,FALSE)>0,VLOOKUP($A109,'Staff Time Data'!$A$4:$N$600,7,FALSE),VLOOKUP($A109,'Staff Time Data'!$A$4:$N$600,13,FALSE))/IF(OR($G109="O",$G109="o",$G109="Y",$G109="y"),$N$105,1)) -> 9.026265166 | AI109: - | AJ109: =IF(OR($F109="",LEFT($F109,3)="---"),0,IF(VLOOKUP($A109,'Staff Time Data'!$A$4:$N$600,2,FALSE)>0,VLOOKUP($A109,'Staff Time Data'!$A$4:$N$600,8,FALSE),VLOOKUP($A109,'Staff Time Data'!$A$4:$N$600,14,FALSE))/IF(OR($G109="O",$G109="o",$G109="Y",$G109="y"),$N$105,1)) -> 22.68457821 | AK109: 15.85542169 | AL109: 9.026265166 | AM109: - | AN109: 22.68457821 | AO109: =IF(AP109=F109,0,1) -> 0 | AP109: Pair (P)
A110: =IF(Language=2,VLOOKUP(B110,'Staff Time Data'!$S$4:$T$550,2,FALSE),B110) -> OCG-Client follow-up & tracing-Community Health Workers | B110: =IF(ISNUMBER(MATCH(F110,'Drop-down Lists'!$J$3:$J$24,0)),$B$104&"-"&E110&"-"&F110,$B$104&"-"&E110&"-"&VLOOKUP(F110,Providers!$B$19:$S$24,18,FALSE)) -> OCG-Suivi et traçage des clients-Agent de santé communautaire (ASC) | C110: =IF(AND(AND(OR($F110="",LEFT($F110,3)="---"),'Treatment Models'!B14<>"",'Treatment Models'!H14>0),$L$105>0),1,0) -> 0 | E110: =IF(Language=1,Language!$A$187,Language!$B$187) -> Suivi et traçage des clients | F110: HDAs | H110: 45 | I110: 30 | J110: - | K110: 60 | L110: ='Treatment Models'!$H14 -> 1 | M110: 0 | N110: 0 | O110: - | P110: 0 | R110: 0 | AG110: =IF(OR($F110="",LEFT($F110,3)="---"),0,IF(VLOOKUP($A110,'Staff Time Data'!$A$4:$N$600,2,FALSE)>0,VLOOKUP($A110,'Staff Time Data'!$A$4:$N$600,3,FALSE),VLOOKUP($A110,'Staff Time Data'!$A$4:$N$600,9,FALSE))/IF(OR($G110="O",$G110="o",$G110="Y",$G110="y"),$N$105,1)) -> 45 | AH110: =IF(OR($F110="",LEFT($F110,3)="---"),0,IF(VLOOKUP($A110,'Staff Time Data'!$A$4:$N$600,2,FALSE)>0,VLOOKUP($A110,'Staff Time Data'!$A$4:$N$600,7,FALSE),VLOOKUP($A110,'Staff Time Data'!$A$4:$N$600,13,FALSE))/IF(OR($G110="O",$G110="o",$G110="Y",$G110="y"),$N$105,1)) -> 30 | AI110: - | AJ110: =IF(OR($F110="",LEFT($F110,3)="---"),0,IF(VLOOKUP($A110,'Staff Time Data'!$A$4:$N$600,2,FALSE)>0,VLOOKUP($A110,'Staff Time Data'!$A$4:$N$600,8,FALSE),VLOOKUP($A110,'Staff Time Data'!$A$4:$N$600,14,FALSE))/IF(OR($G110="O",$G110="o",$G110="Y",$G110="y"),$N$105,1)) -> 60 | AK110: 45 | AL110: 30 | AM110: - | AN110: 60 | AO110: 0 | AP110: HDAs
A111: =IF(Language=2,VLOOKUP(B111,'Staff Time Data'!$S$4:$T$550,2,FALSE),B111) -> OCG-Consultation/ART Refill-Non-physician Clinicians | B111: =IF(ISNUMBER(MATCH(F111,'Drop-down Lists'!$J$3:$J$24,0)),$B$104&"-"&E111&"-"&F111,$B$104&"-"&E111&"-"&VLOOKUP(F111,Providers!$B$19:$S$24,18,FALSE)) -> OCG-Consultation / Évaluation clinique-Clinicien non-médecin (CNP) | C111: =IF(AND(AND(OR($F111="",LEFT($F111,3)="---"),'Treatment Models'!B15<>"",'Treatment Models'!H15>0),$L$105>0),1,0) -> 0 | E111: =IF(Language=1,Language!$A$188,Language!$B$188) -> Consultation / Évaluation clinique | F111: Clinicien non-médecin (CNP) | H111: 7.913043478 | I111: 1.771433951 | J111: - | K111: 14.05465301 | L111: ='Treatment Models'!$H15 -> 1 | M111: 0 | N111: 0 | O111: - | P111: 0 | R111: 0 | AG111: =IF(OR($F111="",LEFT($F111,3)="---"),0,IF(VLOOKUP($A111,'Staff Time Data'!$A$4:$N$600,2,FALSE)>0,VLOOKUP($A111,'Staff Time Data'!$A$4:$N$600,3,FALSE),VLOOKUP($A111,'Staff Time Data'!$A$4:$N$600,9,FALSE))/IF(OR($G111="O",$G111="o",$G111="Y",$G111="y"),$N$105,1)) -> 7.913043478 | AH111: =IF(OR($F111="",LEFT($F111,3)="---"),0,IF(VLOOKUP($A111,'Staff Time Data'!$A$4:$N$600,2,FALSE)>0,VLOOKUP($A111,'Staff Time Data'!$A$4:$N$600,7,FALSE),VLOOKUP($A111,'Staff Time Data'!$A$4:$N$600,13,FALSE))/IF(OR($G111="O",$G111="o",$G111="Y",$G111="y"),$N$105,1)) -> 1.771433951 | AI111: - | AJ111: =IF(OR($F111="",LEFT($F111,3)="---"),0,IF(VLOOKUP($A111,'Staff Time Data'!$A$4:$N$600,2,FALSE)>0,VLOOKUP($A111,'Staff Time Data'!$A$4:$N$600,8,FALSE),VLOOKUP($A111,'Staff Time Data'!$A$4:$N$600,14,FALSE))/IF(OR($G111="O",$G111="o",$G111="Y",$G111="y"),$N$105,1)) -> 14.05465301 | AK111: 7.913043478 | AL111: 1.771433951 | AM111: - | AN111: 14.05465301 | AO111: 0 | AP111: Clinicien non-médecin (CNP)
A112: =IF(Language=2,VLOOKUP(B112,'Staff Time Data'!$S$4:$T$550,2,FALSE),B112) -> OCG-Plasma Sample Collection or DBS-Lab Assistants/Technicians | B112: =IF(ISNUMBER(MATCH(F112,'Drop-down Lists'!$J$3:$J$24,0)),$B$104&"-"&E112&"-"&F112,$B$104&"-"&E112&"-"&VLOOKUP(F112,Providers!$B$19:$S$24,18,FALSE)) -> OCG-Prise de sang ou taches de sang sec-Technicien de laboratoire (LT) | C112: =IF(AND(AND(OR($F112="",LEFT($F112,3)="---"),'Treatment Models'!B16<>"",'Treatment Models'!H16>0),$L$105>0),1,0) -> 0 | E112: =IF(Language=1,Language!$A$189,Language!$B$189) -> Prise de sang ou taches de sang sec | F112: Technicien de laboratoire (LT) | H112: 5 | I112: 3 | J112: - | K112: 9 | L112: ='Treatment Models'!$H16 -> 1 | M112: 0 | N112: 0 | O112: - | P112: 0 | R112: 0 | AG112: =IF(OR($F112="",LEFT($F112,3)="---"),0,IF(VLOOKUP($A112,'Staff Time Data'!$A$4:$N$600,2,FALSE)>0,VLOOKUP($A112,'Staff Time Data'!$A$4:$N$600,3,FALSE),VLOOKUP($A112,'Staff Time Data'!$A$4:$N$600,9,FALSE))/IF(OR($G112="O",$G112="o",$G112="Y",$G112="y"),$N$105,1)) -> 5 | AH112: =IF(OR($F112="",LEFT($F112,3)="---"),0,IF(VLOOKUP($A112,'Staff Time Data'!$A$4:$N$600,2,FALSE)>0,VLOOKUP($A112,'Staff Time Data'!$A$4:$N$600,7,FALSE),VLOOKUP($A112,'Staff Time Data'!$A$4:$N$600,13,FALSE))/IF(OR($G112="O",$G112="o",$G112="Y",$G112="y"),$N$105,1)) -> 3 | AI112: - | AJ112: =IF(OR($F112="",LEFT($F112,3)="---"),0,IF(VLOOKUP($A112,'Staff Time Data'!$A$4:$N$600,2,FALSE)>0,VLOOKUP($A112,'Staff Time Data'!$A$4:$N$600,8,FALSE),VLOOKUP($A112,'Staff Time Data'!$A$4:$N$600,14,FALSE))/IF(OR($G112="O",$G112="o",$G112="Y",$G112="y"),$N$105,1)) -> 9 | AK112: 5 | AL112: 3 | AM112: - | AN112: 9 | AO112: 0 | AP112: Technicien de laboratoire (LT)
A113: =IF(Language=2,VLOOKUP(B113,'Staff Time Data'!$S$4:$T$550,2,FALSE),B113) -> OCG-Adherence counseling-Expert Clients/Peer Educators | B113: =IF(ISNUMBER(MATCH(F113,'Drop-down Lists'!$J$3:$J$24,0)),$B$104&"-"&E113&"-"&F113,$B$104&"-"&E113&"-"&VLOOKUP(F113,Providers!$B$19:$S$24,18,FALSE)) -> OCG-Counseling d'adhésion-Pair (P) | C113: =IF(AND(AND(OR($F113="",LEFT($F113,3)="---"),'Treatment Models'!B17<>"",'Treatment Models'!H17>0),$L$105>0),1,0) -> 0 | E113: =IF(Language=1,Language!$A$190,Language!$B$190) -> Counseling d'adhésion | F113: Pair (P) | G113: =G13 -> 0 | H113: 15 | I113: 7.928932188 | J113: - | K113: 22.07106781 | L113: ='Treatment Models'!$H17 -> 1 | M113: 0 | N113: 0 | O113: - | P113: 0 | R113: 0 | AG113: =IF(OR($F113="",LEFT($F113,3)="---"),0,IF(VLOOKUP($A113,'Staff Time Data'!$A$4:$N$600,2,FALSE)>0,VLOOKUP($A113,'Staff Time Data'!$A$4:$N$600,3,FALSE),VLOOKUP($A113,'Staff Time Data'!$A$4:$N$600,9,FALSE))/IF(OR($G113="O",$G113="o",$G113="Y",$G113="y"),$N$105,1)) -> 15 | AH113: =IF(OR($F113="",LEFT($F113,3)="---"),0,IF(VLOOKUP($A113,'Staff Time Data'!$A$4:$N$600,2,FALSE)>0,VLOOKUP($A113,'Staff Time Data'!$A$4:$N$600,7,FALSE),VLOOKUP($A113,'Staff Time Data'!$A$4:$N$600,13,FALSE))/IF(OR($G113="O",$G113="o",$G113="Y",$G113="y"),$N$105,1)) -> 7.928932188 | AI113: - | AJ113: =IF(OR($F113="",LEFT($F113,3)="---"),0,IF(VLOOKUP($A113,'Staff Time Data'!$A$4:$N$600,2,FALSE)>0,VLOOKUP($A113,'Staff Time Data'!$A$4:$N$600,8,FALSE),VLOOKUP($A113,'Staff Time Data'!$A$4:$N$600,14,FALSE))/IF(OR($G113="O",$G113="o",$G113="Y",$G113="y"),$N$105,1)) -> 22.07106781 | AK113: 15 | AL113: 7.928932188 | AM113: - | AN113: 22.07106781 | AO113: 0 | AP113: Pair (P)
A114: =IF(Language=2,VLOOKUP(B114,'Staff Time Data'!$S$4:$T$550,2,FALSE),B114) -> OCG-Index Testing-Nurses/Midwives | B114: =IF(ISNUMBER(MATCH(F114,'Drop-down Lists'!$J$3:$J$24,0)),$B$104&"-"&E114&"-"&F114,$B$104&"-"&E114&"-"&VLOOKUP(F114,Providers!$B$19:$S$24,18,FALSE)) -> OCG-Reapprovisionnement en médicaments-Infirmier (N) | C114: =IF(AND(AND(OR($F114="",LEFT($F114,3)="---"),'Treatment Models'!B18<>"",'Treatment Models'!H18>0),$L$105>0),1,0) -> 0 | E114: =IF(Language=1,Language!$A$191,Language!$B$191) -> Reapprovisionnement en médicaments | F114: Infirmier (N) | H114: 10 | I114: 5 | J114: - | K114: 15 | L114: ='Treatment Models'!$H18 -> 0.1 | M114: 0 | N114: 0 | O114: - | P114: 0 | R114: 0 | AG114: =IF(OR($F114="",LEFT($F114,3)="---"),0,IF(VLOOKUP($A114,'Staff Time Data'!$A$4:$N$600,2,FALSE)>0,VLOOKUP($A114,'Staff Time Data'!$A$4:$N$600,3,FALSE),VLOOKUP($A114,'Staff Time Data'!$A$4:$N$600,9,FALSE))/IF(OR($G114="O",$G114="o",$G114="Y",$G114="y"),$N$105,1)) -> 10 | AH114: =IF(OR($F114="",LEFT($F114,3)="---"),0,IF(VLOOKUP($A114,'Staff Time Data'!$A$4:$N$600,2,FALSE)>0,VLOOKUP($A114,'Staff Time Data'!$A$4:$N$600,7,FALSE),VLOOKUP($A114,'Staff Time Data'!$A$4:$N$600,13,FALSE))/IF(OR($G114="O",$G114="o",$G114="Y",$G114="y"),$N$105,1)) -> 5 | AI114: - | AJ114: =IF(OR($F114="",LEFT($F114,3)="---"),0,IF(VLOOKUP($A114,'Staff Time Data'!$A$4:$N$600,2,FALSE)>0,VLOOKUP($A114,'Staff Time Data'!$A$4:$N$600,8,FALSE),VLOOKUP($A114,'Staff Time Data'!$A$4:$N$600,14,FALSE))/IF(OR($G114="O",$G114="o",$G114="Y",$G114="y"),$N$105,1)) -> 15 | AK114: 10 | AL114: 5 | AM114: - | AN114: 15 | AO114: 0 | AP114: Infirmier (N)
A115: =IF(Language=2,VLOOKUP(B115,'Staff Time Data'!$S$4:$T$550,2,FALSE),B115) -> OCG-Updating Records-Auxiliary/assistant nurse - HSA | B115: =IF(ISNUMBER(MATCH(F115,'Drop-down Lists'!$J$3:$J$24,0)),$B$104&"-"&E115&"-"&F115,$B$104&"-"&E115&"-"&VLOOKUP(F115,Providers!$B$19:$S$24,18,FALSE)) -> OCG-Mise à jour des outils-Auxiliaire de soins/Aide-soignant (FBA) | C115: =IF(AND(AND(OR($F115="",LEFT($F115,3)="---"),'Treatment Models'!B19<>"",'Treatment Models'!H19>0),$L$105>0),1,0) -> 0 | E115: =IF(Language=1,Language!$A$192,Language!$B$192) -> Mise à jour des outils | F115: Data/ART Clerk/Officers | H115: 6.545454545 | I115: 3.371698526 | J115: - | K115: 9.719210565 | L115: ='Treatment Models'!$H19 -> 1 | M115: 0 | N115: 0 | O115: - | P115: 0 | R115: 0 | AG115: =IF(OR($F115="",LEFT($F115,3)="---"),0,IF(VLOOKUP($A115,'Staff Time Data'!$A$4:$N$600,2,FALSE)>0,VLOOKUP($A115,'Staff Time Data'!$A$4:$N$600,3,FALSE),VLOOKUP($A115,'Staff Time Data'!$A$4:$N$600,9,FALSE))/IF(OR($G115="O",$G115="o",$G115="Y",$G115="y"),$N$105,1)) -> 6.545454545 | AH115: =IF(OR($F115="",LEFT($F115,3)="---"),0,IF(VLOOKUP($A115,'Staff Time Data'!$A$4:$N$600,2,FALSE)>0,VLOOKUP($A115,'Staff Time Data'!$A$4:$N$600,7,FALSE),VLOOKUP($A115,'Staff Time Data'!$A$4:$N$600,13,FALSE))/IF(OR($G115="O",$G115="o",$G115="Y",$G115="y"),$N$105,1)) -> 3.371698526 | AI115: - | AJ115: =IF(OR($F115="",LEFT($F115,3)="---"),0,IF(VLOOKUP($A115,'Staff Time Data'!$A$4:$N$600,2,FALSE)>0,VLOOKUP($A115,'Staff Time Data'!$A$4:$N$600,8,FALSE),VLOOKUP($A115,'Staff Time Data'!$A$4:$N$600,14,FALSE))/IF(OR($G115="O",$G115="o",$G115="Y",$G115="y"),$N$105,1)) -> 9.719210565 | AK115: 6.545454545 | AL115: 3.371698526 | AM115: - | AN115: 9.719210565 | AO115: 0 | AP115: Data/ART Clerk/Officers
E116: =IF(Language=1,Language!$A$180,Language!$B$180) -> Tâches Supplémentaires | F116: 0 | AP116: 0
C117: =IF(AND(AND(OR($F117="",LEFT($F117,3)="---"),'Treatment Models'!B21<>"",'Treatment Models'!H21>0),$L$105>0),1,0) -> 0 | E117: =IF('Treatment Models'!$H21>0,'Treatment Models'!$B21,"") -> Dépistage et conseil à l'initiative du prestataire | F117: Infirmier (N) | G117: 0 | H117: =H17 -> 5 | I117: 4 | J117: - | K117: =K17 -> 6 | L117: ='Treatment Models'!$H21 -> 1 | M117: =$L$105*H117*L117/60 -> 0 | N117: =$L$105*I117*L117/60 -> 0 | O117: - | P117: =$L$105*K117*L117/60 -> 0 | R117: 0 | AO117: 0 | AP117: Infirmier (N)
C118: =IF(AND(AND(OR($F118="",LEFT($F118,3)="---"),'Treatment Models'!B22<>"",'Treatment Models'!H22>0),$L$105>0),1,0) -> 0 | E118: =IF('Treatment Models'!$H22>0,'Treatment Models'!$B22,"") -> Couplage Client-Expert Client | F118: Pair (P) | G118: 0 | H118: 60 | I118: 30 | J118: - | K118: 90 | L118: ='Treatment Models'!$H22 -> 0.05 | M118: =$L$105*H118*L118/60 -> 0 | N118: =$L$105*I118*L118/60 -> 0 | O118: - | P118: =$L$105*K118*L118/60 -> 0 | R118: 0 | AO118: 0 | AP118: Pair (P)
C119: =IF(AND(AND(OR($F119="",LEFT($F119,3)="---"),'Treatment Models'!B23<>"",'Treatment Models'!H23>0),$L$105>0),1,0) -> 0 | E119: =IF('Treatment Models'!$H23>0,'Treatment Models'!$B23,"") -> Supervision des agents communautaires | F119: Infirmier (N) | G119: y | H119: 18 | I119: 9 | J119: - | K119: 36 | L119: ='Treatment Models'!$H23 -> 0.1 | M119: =$L$105*H119*L119/60 -> 0 | N119: =$L$105*I119*L119/60 -> 0 | O119: - | P119: =$L$105*K119*L119/60 -> 0 | R119: 0 | AO119: 0 | AP119: Infirmier (N)
AO120: =IF(Model5Clients>0,SUM(AO108:AO119),0) -> 0
AO121: =SUM(AO120,AO100,AO60,AO40,AO20) -> 0

Sheet Tasksharing (hidden)
B1: =IF(Language=1,Language!$A$221,Language!$B$221) -> Partage de Tâches | BW1: =IF(Language=1,Language!$A$221,Language!$B$221) -> Partage de Tâches | CD1: =IF(TS_Number_or_Percent<>CB2,IF(Language=1,Language!$A$239,Language!$B$239),"") ->  | EU1: Enrollment/Registration | EV1: Health Education | EW1: Triage | EX1: Consultation/Clinical Assessment | EY1: Laboratory Work | EZ1: Adherence Counseling | FA1: Drug Dispensing | FB1: Updating Records | FC1: Updating Records | FD1: Updating Records | FE1: Updating Records | HQ1: Client Numbers
BW2: =IF(Language=1,Language!$A$238,Language!$B$238) -> Choisir entre utiliser le nombre de clients et le % du nombre total de cas | BX2: % du nombre total de cas | CA2: =IF(OR($BX$2=Language!$A$236,$BX$2=Language!$B$236),1,2) -> 2 | CB2: 2 | HQ2: % of Client Load
HR3: =OR(EV8>0,HR8>0) -> FALSE | ID3: =OR(CL8>0,ID8>0) -> FALSE
B4: =IF(Language=1,Language!$A$222,Language!$B$222) -> Scénario de Base - Selon la Répartition Actuelle des Tâches | N4: Total Number of Client Contacts | Z4: Hours needed to service all clients in this model in a year | BW4: =IF(Language=1,Language!$A$223,Language!$B$223) -> Scénario 1 - Avec Partage de Tâches | CJ4: Total Number of Client Contacts | CV4: Hours needed to service all clients in this model in a year | ES4: =IF(Language=1,Language!$A$224,Language!$B$224) -> Scénario 2 - Avec Partage de Tâches | FF4: Total Number of Client Contacts | FR4: Hours needed to service all clients in this model in a year | HR4: =OR(EV8>0,HR9>0) -> FALSE | ID4: =OR(CL8>0,ID9>0) -> FALSE
B5: ='Treatment Models'!$C$4 -> 1. Soins standard | E5: =IF(Language=1,Language!$A$226,Language!$B$226)&": "&TEXT(Clients_SM,"#,##0") -> Nombre de clients: 0 | J5: Note: | AP5: MINIMUM | BF5: MAXIMUM | BW5: ='Treatment Models'!$C$4 -> 1. Soins standard | CA5: =IF(Language=1,Language!$A$226&": "&TEXT(Clients_SM,"#,##0"),Language!$B$226&": "&TEXT(Clients_SM,"#.##0")) -> Nombre de clients: .0 | CF5: Note: | DL5: MINIMUM | EB5: MAXIMUM | ES5: ='Treatment Models'!$C$4 -> 1. Soins standard | EW5: =IF(Language=1,Language!$A$226&": "&TEXT(Clients_SM,"#,##0"),Language!$B$226&": "&TEXT(Clients_SM,"#.##0")) -> Nombre de clients: .0 | FB5: Note: | GH5: MINIMUM | GX5: MAXIMUM
B6: ='Treatment Models'!$C$9 -> Standard Care | BW6: ='Treatment Models'!$C$9 -> Standard Care | ES6: ='Treatment Models'!$C$9 -> Standard Care
B7: =IF(Language=1,Language!$A$112,Language!$B$112) -> Catégorie de prestataires | C7: ='Task Assignment'!$E$8 -> Enregistrement | D7: ='Task Assignment'!$E$9 -> Éducation à la santé | E7: ='Task Assignment'!$E$10 -> Suivi et traçage des clients | F7: ='Task Assignment'!$E$11 -> Consultation / Évaluation clinique | G7: ='Task Assignment'!$E$12 -> Prise de sang ou taches de sang sec | H7: ='Task Assignment'!$E$13 -> Counseling d'adhésion | I7: ='Task Assignment'!$E$14 -> Reapprovisionnement en médicaments | J7: ='Task Assignment'!$E$15 -> Mise à jour des outils | K7: ='Task Assignment'!$E$17 -> Dépistage et conseil à l'initiative du prestataire | L7: ='Task Assignment'!$E$18 -> Couplage Client-Expert Client | M7: ='Task Assignment'!$E$19 -> Supervision des agents communautaires | N7: ='Task Assignment'!$E$8 -> Enregistrement | O7: ='Task Assignment'!$E$9 -> Éducation à la santé | P7: ='Task Assignment'!$E$10 -> Suivi et traçage des clients | Q7: ='Task Assignment'!$E$11 -> Consultation / Évaluation clinique | R7: ='Task Assignment'!$E$12 -> Prise de sang ou taches de sang sec | S7: ='Task Assignment'!$E$13 -> Counseling d'adhésion | T7: ='Task Assignment'!$E$14 -> Reapprovisionnement en médicaments | U7: ='Task Assignment'!$E$15 -> Mise à jour des outils | V7: ='Task Assignment'!$E$17 -> Dépistage et conseil à l'initiative du prestataire | W7: ='Task Assignment'!$E$18 -> Couplage Client-Expert Client | X7: ='Task Assignment'!$E$19 -> Supervision des agents communautaires | Y7: Total | Z7: ='Task Assignment'!$E$8 -> Enregistrement | AA7: ='Task Assignment'!$E$9 -> Éducation à la santé | AB7: ='Task Assignment'!$E$10 -> Suivi et traçage des clients | AC7: ='Task Assignment'!$E$11 -> Consultation / Évaluation clinique | AD7: ='Task Assignment'!$E$12 -> Prise de sang ou taches de sang sec | AE7: ='Task Assignment'!$E$13 -> Counseling d'adhésion | AF7: ='Task Assignment'!$E$14 -> Reapprovisionnement en médicaments | AG7: ='Task Assignment'!$E$15 -> Mise à jour des outils | AH7: ='Task Assignment'!$E$17 -> Dépistage et conseil à l'initiative du prestataire | AI7: ='Task Assignment'!$E$18 -> Couplage Client-Expert Client | AJ7: ='Task Assignment'!$E$19 -> Supervision des agents communautaires | AK7: Total | AL7: =IF(Language=1,Language!$A$228,Language!$B$228) -> ETP Requis | AM7: =IF(Language=1,Language!$A$229,Language!$B$229) -> ETP Requis pour Tous les Modèles | AN7: =IF(Language=1,Language!$A$230,Language!$B$230) -> ETP Disponibles pour Tous les Modèles | AO7: =IF(Language=1,Language!$A$231,Language!$B$231) -> ETP Surplus ou Manque pour Tous les Modèles | AP7: ='Task Assignment'!$E$8 -> Enregistrement | AQ7: ='Task Assignment'!$E$9 -> Éducation à la santé | AR7: ='Task Assignment'!$E$10 -> Suivi et traçage des clients | AS7: ='Task Assignment'!$E$11 -> Consultation / Évaluation clinique | AT7: ='Task Assignment'!$E$12 -> Prise de sang ou taches de sang sec | AU7: ='Task Assignment'!$E$13 -> Counseling d'adhésion | AV7: ='Task Assignment'!$E$14 -> Reapprovisionnement en médicaments | AW7: ='Task Assignment'!$E$15 -> Mise à jour des outils | AX7: ='Task Assignment'!$E$17 -> Dépistage et conseil à l'initiative du prestataire | AY7: ='Task Assignment'!$E$18 -> Couplage Client-Expert Client | AZ7: ='Task Assignment'!$E$19 -> Supervision des agents communautaires | BA7: Total | BB7: FTE Service Providers Required | BC7: Total FTEs required for all models | BD7: Total FTEs available for all models | BE7: Total FTEs excess or shortage for all models | BF7: ='Task Assignment'!$E$8 -> Enregistrement | BG7: ='Task Assignment'!$E$9 -> Éducation à la santé | BH7: ='Task Assignment'!$E$10 -> Suivi et traçage des clients | BI7: ='Task Assignment'!$E$11 -> Consultation / Évaluation clinique | BJ7: ='Task Assignment'!$E$12 -> Prise de sang ou taches de sang sec | BK7: ='Task Assignment'!$E$13 -> Counseling d'adhésion | BL7: ='Task Assignment'!$E$14 -> Reapprovisionnement en médicaments | BM7: ='Task Assignment'!$E$15 -> Mise à jour des outils | BN7: ='Task Assignment'!$E$17 -> Dépistage et conseil à l'initiative du prestataire | BO7: ='Task Assignment'!$E$18 -> Couplage Client-Expert Client | BP7: ='Task Assignment'!$E$19 -> Supervision des agents communautaires | BQ7: Total | BR7: FTE Service Providers Required | BS7: Total FTEs required for all models | BT7: Total FTEs available for all models | BU7: Total FTEs excess or shortage for all models | BW7: =IF(Language=1,Language!$A$112,Language!$B$112) -> Catégorie de prestataires | BY7: ='Task Assignment'!$E$8 -> Enregistrement | BZ7: ='Task Assignment'!$E$9 -> Éducation à la santé | CA7: ='Task Assignment'!$E$10 -> Suivi et traçage des clients | CB7: ='Task Assignment'!$E$11 -> Consultation / Évaluation clinique | CC7: ='Task Assignment'!$E$12 -> Prise de sang ou taches de sang sec | CD7: ='Task Assignment'!$E$13 -> Counseling d'adhésion | CE7: ='Task Assignment'!$E$14 -> Reapprovisionnement en médicaments | CF7: ='Task Assignment'!$E$15 -> Mise à jour des outils | CG7: ='Task Assignment'!$E$17 -> Dépistage et conseil à l'initiative du prestataire | CH7: ='Task Assignment'!$E$18 -> Couplage Client-Expert Client | CI7: ='Task Assignment'!$E$19 -> Supervision des agents communautaires | CJ7: ='Task Assignment'!$E$8 -> Enregistrement | CK7: ='Task Assignment'!$E$9 -> Éducation à la santé | CL7: ='Task Assignment'!$E$10 -> Suivi et traçage des clients | CM7: ='Task Assignment'!$E$11 -> Consultation / Évaluation clinique | CN7: ='Task Assignment'!$E$12 -> Prise de sang ou taches de sang sec | CO7: ='Task Assignment'!$E$13 -> Counseling d'adhésion | CP7: ='Task Assignment'!$E$14 -> Reapprovisionnement en médicaments | CQ7: ='Task Assignment'!$E$15 -> Mise à jour des outils | CR7: ='Task Assignment'!$E$17 -> Dépistage et conseil à l'initiative du prestataire | CS7: ='Task Assignment'!$E$18 -> Couplage Client-Expert Client | CT7: ='Task Assignment'!$E$19 -> Supervision des agents communautaires | CU7: Total | CV7: ='Task Assignment'!$E$8 -> Enregistrement | CW7: ='Task Assignment'!$E$9 -> Éducation à la santé | CX7: ='Task Assignment'!$E$10 -> Suivi et traçage des clients | CY7: ='Task Assignment'!$E$11 -> Consultation / Évaluation clinique | CZ7: ='Task Assignment'!$E$12 -> Prise de sang ou taches de sang sec | DA7: ='Task Assignment'!$E$13 -> Counseling d'adhésion | DB7: ='Task Assignment'!$E$14 -> Reapprovisionnement en médicaments | DC7: ='Task Assignment'!$E$15 -> Mise à jour des outils | DD7: ='Task Assignment'!$E$17 -> Dépistage et conseil à l'initiative du prestataire | DE7: ='Task Assignment'!$E$18 -> Couplage Client-Expert Client | DF7: ='Task Assignment'!$E$19 -> Supervision des agents communautaires | DG7: Total | DH7: =IF(Language=1,Language!$A$228,Language!$B$228) -> ETP Requis | DI7: =IF(Language=1,Language!$A$229,Language!$B$229) -> ETP Requis pour Tous les Modèles | DJ7: =IF(Language=1,Language!$A$230,Language!$B$230) -> ETP Disponibles pour Tous les Modèles | DK7: =IF(Language=1,Language!$A$231,Language!$B$231) -> ETP Surplus ou Manque pour Tous les Modèles | DL7: ='Task Assignment'!$E$8 -> Enregistrement | DM7: ='Task Assignment'!$E$9 -> Éducation à la santé | DN7: ='Task Assignment'!$E$10 -> Suivi et traçage des clients | DO7: ='Task Assignment'!$E$11 -> Consultation / Évaluation clinique | DP7: ='Task Assignment'!$E$12 -> Prise de sang ou taches de sang sec | DQ7: ='Task Assignment'!$E$13 -> Counseling d'adhésion | DR7: ='Task Assignment'!$E$14 -> Reapprovisionnement en médicaments | DS7: ='Task Assignment'!$E$15 -> Mise à jour des outils | DT7: ='Task Assignment'!$E$17 -> Dépistage et conseil à l'initiative du prestataire | DU7: ='Task Assignment'!$E$18 -> Couplage Client-Expert Client | DV7: ='Task Assignment'!$E$19 -> Supervision des agents communautaires | DW7: Total | DX7: FTE Service Providers Required | DY7: Total FTEs required for all models | DZ7: Total FTEs available for all models | EA7: Total FTEs excess or shortage for all models | EB7: ='Task Assignment'!$E$8 -> Enregistrement | EC7: ='Task Assignment'!$E$9 -> Éducation à la santé | ED7: ='Task Assignment'!$E$10 -> Suivi et traçage des clients | EE7: ='Task Assignment'!$E$11 -> Consultation / Évaluation clinique | EF7: ='Task Assignment'!$E$12 -> Prise de sang ou taches de sang sec | EG7: ='Task Assignment'!$E$13 -> Counseling d'adhésion | EH7: ='Task Assignment'!$E$14 -> Reapprovisionnement en médicaments | EI7: ='Task Assignment'!$E$15 -> Mise à jour des outils | EJ7: ='Task Assignment'!$E$17 -> Dépistage et conseil à l'initiative du prestataire | EK7: ='Task Assignment'!$E$18 -> Couplage Client-Expert Client | EL7: ='Task Assignment'!$E$19 -> Supervision des agents communautaires | EM7: Total | EN7: FTE Service Providers Required | EO7: Total FTEs required for all models | EP7: Total FTEs available for all models | EQ7: Total FTEs excess or shortage for all models | ES7: =IF(Language=1,Language!$A$112,Language!$B$112) -> Catégorie de prestataires | EU7: ='Task Assignment'!$E$8 -> Enregistrement | EV7: ='Task Assignment'!$E$9 -> Éducation à la santé | EW7: ='Task Assignment'!$E$10 -> Suivi et traçage des clients | EX7: ='Task Assignment'!$E$11 -> Consultation / Évaluation clinique | EY7: ='Task Assignment'!$E$12 -> Prise de sang ou taches de sang sec | EZ7: ='Task Assignment'!$E$13 -> Counseling d'adhésion | FA7: ='Task Assignment'!$E$14 -> Reapprovisionnement en médicaments | FB7: ='Task Assignment'!$E$15 -> Mise à jour des outils | FC7: ='Task Assignment'!$E$17 -> Dépistage et conseil à l'initiative du prestataire | FD7: ='Task Assignment'!$E$18 -> Couplage Client-Expert Client | FE7: ='Task Assignment'!$E$19 -> Supervision des agents communautaires | FF7: ='Task Assignment'!$E$8 -> Enregistrement | FG7: ='Task Assignment'!$E$9 -> Éducation à la santé | FH7: ='Task Assignment'!$E$10 -> Suivi et traçage des clients | FI7: ='Task Assignment'!$E$11 -> Consultation / Évaluation clinique | FJ7: ='Task Assignment'!$E$12 -> Prise de sang ou taches de sang sec | FK7: ='Task Assignment'!$E$13 -> Counseling d'adhésion | FL7: ='Task Assignment'!$E$14 -> Reapprovisionnement en médicaments | FM7: ='Task Assignment'!$E$15 -> Mise à jour des outils | FN7: ='Task Assignment'!$E$17 -> Dépistage et conseil à l'initiative du prestataire | FO7: ='Task Assignment'!$E$18 -> Couplage Client-Expert Client | FP7: ='Task Assignment'!$E$19 -> Supervision des agents communautaires | FQ7: Total | FR7: ='Task Assignment'!$E$8 -> Enregistrement | FS7: ='Task Assignment'!$E$9 -> Éducation à la santé | FT7: ='Task Assignment'!$E$10 -> Suivi et traçage des clients | FU7: ='Task Assignment'!$E$11 -> Consultation / Évaluation clinique | FV7: ='Task Assignment'!$E$12 -> Prise de sang ou taches de sang sec | FW7: ='Task Assignment'!$E$13 -> Counseling d'adhésion | FX7: ='Task Assignment'!$E$14 -> Reapprovisionnement en médicaments | FY7: ='Task Assignment'!$E$15 -> Mise à jour des outils | FZ7: ='Task Assignment'!$E$17 -> Dépistage et conseil à l'initiative du prestataire | GA7: ='Task Assignment'!$E$18 -> Couplage Client-Expert Client | GB7: ='Task Assignment'!$E$19 -> Supervision des agents communautaires | GC7: Total | GD7: =IF(Language=1,Language!$A$228,Language!$B$228) -> ETP Requis | GE7: =IF(Language=1,Language!$A$229,Language!$B$229) -> ETP Requis pour Tous les Modèles | GF7: =IF(Language=1,Language!$A$230,Language!$B$230) -> ETP Disponibles pour Tous les Modèles | GG7: =IF(Language=1,Language!$A$231,Language!$B$231) -> ETP Surplus ou Manque pour Tous les Modèles | GH7: ='Task Assignment'!$E$8 -> Enregistrement | GI7: ='Task Assignment'!$E$9 -> Éducation à la santé | GJ7: ='Task Assignment'!$E$10 -> Suivi et traçage des clients | GK7: ='Task Assignment'!$E$11 -> Consultation / Évaluation clinique | GL7: ='Task Assignment'!$E$12 -> Prise de sang ou taches de sang sec | GM7: ='Task Assignment'!$E$13 -> Counseling d'adhésion | GN7: ='Task Assignment'!$E$14 -> Reapprovisionnement en médicaments | GO7: ='Task Assignment'!$E$15 -> Mise à jour des outils | GP7: ='Task Assignment'!$E$17 -> Dépistage et conseil à l'initiative du prestataire | GQ7: ='Task Assignment'!$E$18 -> Couplage Client-Expert Client | GR7: ='Task Assignment'!$E$19 -> Supervision des agents communautaires | GS7: Total | GT7: FTE Service Providers Required | GU7: Total FTEs required for all models | GV7: Total FTEs available for all models | GW7: Total FTEs excess or shortage for all models | GX7: ='Task Assignment'!$E$8 -> Enregistrement | GY7: ='Task Assignment'!$E$9 -> Éducation à la santé | GZ7: ='Task Assignment'!$E$10 -> Suivi et traçage des clients | HA7: ='Task Assignment'!$E$11 -> Consultation / Évaluation clinique | HB7: ='Task Assignment'!$E$12 -> Prise de sang ou taches de sang sec | HC7: ='Task Assignment'!$E$13 -> Counseling d'adhésion | HD7: ='Task Assignment'!$E$14 -> Reapprovisionnement en médicaments | HE7: ='Task Assignment'!$E$15 -> Mise à jour des outils | HF7: ='Task Assignment'!$E$17 -> Dépistage et conseil à l'initiative du prestataire | HG7: ='Task Assignment'!$E$18 -> Couplage Client-Expert Client | HH7: ='Task Assignment'!$E$19 -> Supervision des agents communautaires | HI7: Total | HJ7: FTE Service Providers Required | HK7: Total FTEs required for all models | HL7: Total FTEs available for all models | HM7: Total FTEs excess or shortage for all models
A8: Medical Doctor (MD) | B8: =IF(Language=1,'Drop-down Lists'!$G$4,'Drop-down Lists'!$H$4) -> Docteur en Médecine (MD) | C8: =IF($B8="",0,IF(ISNUMBER(MATCH($B8,'Task Assignment'!$F$8,0)),Clients_SM,0)) -> 0 | D8: =IF($B8="",0,IF(ISNUMBER(MATCH($B8,'Task Assignment'!$F$9,0)),Clients_SM,0)) -> 0 | E8: =IF($B8="",0,IF(ISNUMBER(MATCH($B8,'Task Assignment'!$F$10,0)),Clients_SM,0)) -> 0 | F8: =IF($B8="",0,IF(ISNUMBER(MATCH($B8,'Task Assignment'!$F$11,0)),Clients_SM,0)) -> 0 | G8: =IF($B8="",0,IF(ISNUMBER(MATCH($B8,'Task Assignment'!$F$12,0)),Clients_SM,0)) -> 0 | H8: =IF($B8="",0,IF(ISNUMBER(MATCH($B8,'Task Assignment'!$F$13,0)),Clients_SM,0)) -> 0 | I8: =IF($B8="",0,IF(ISNUMBER(MATCH($B8,'Task Assignment'!$F$14,0)),Clients_SM,0)) -> 0 | J8: =IF($B8="",0,IF(ISNUMBER(MATCH($B8,'Task Assignment'!$F$15,0)),Clients_SM,0)) -> 0 | K8: =IF($B8="",0,IF(ISNUMBER(MATCH($B8,'Task Assignment'!$F$17,0)),Clients_SM,0)) -> 0 | L8: =IF($B8="",0,IF(ISNUMBER(MATCH($B8,'Task Assignment'!$F$18,0)),Clients_SM,0)) -> 0 | M8: =IF($B8="",0,IF(ISNUMBER(MATCH($B8,'Task Assignment'!$F$19,0)),Clients_SM,0)) -> 0 | N8: =C8*'Task Assignment'!$L$8 -> 0 | O8: =D8*'Task Assignment'!$L$9 -> 0 | P8: =E8*'Task Assignment'!$L$10 -> 0 | Q8: =F8*'Task Assignment'!$L$11 -> 0 | R8: =G8*'Task Assignment'!$L$12 -> 0 | S8: =H8*'Task Assignment'!$L$13 -> 0 | T8: =I8*'Task Assignment'!$L$14 -> 0 | U8: =J8*'Task Assignment'!$L$15 -> 0 | V8: =K8*'Task Assignment'!$L$17 -> 0 | W8: =L8*'Task Assignment'!$L$18 -> 0 | X8: =M8*'Task Assignment'!$L$19 -> 0 | Y8: =SUM(N8:X8) -> 0 | Z8: =C8*'Task Assignment'!$H$8*'Task Assignment'!$L$8/60 -> 0 | AA8: =D8*'Task Assignment'!$H$9*'Task Assignment'!$L$9/60 -> 0 | AB8: =E8*'Task Assignment'!$H$10*'Task Assignment'!$L$10/60 -> 0 | AC8: =F8*'Task Assignment'!$H$11*'Task Assignment'!$L$11/60 -> 0 | AD8: =G8*'Task Assignment'!$H$12*'Task Assignment'!$L$12/60 -> 0 | AE8: =H8*'Task Assignment'!$H$13*'Task Assignment'!$L$13/60 -> 0 | AF8: =I8*'Task Assignment'!$H$14*'Task Assignment'!$L$14/60 -> 0 | AG8: =J8*'Task Assignment'!$H$15*'Task Assignment'!$L$15/60 -> 0 | AH8: =K8*'Task Assignment'!$H$17*'Task Assignment'!$L$17/60 -> 0 | AI8: =L8*'Task Assignment'!$H$18*'Task Assignment'!$L$18/60 -> 0 | AJ8: =M8*'Task Assignment'!$H$19*'Task Assignment'!$L$19/60 -> 0 | AK8: =SUM(Z8:AJ8) -> 0 | AL8: =IF(EffWorkingHours_MD=0,0,AK8/EffWorkingHours_MD/50) -> 0 | AM8: =+AL8+AL46+AL84+AL122+AL160+AL198 -> 0 | AN8: =Providers!$Q8 -> 0 | AO8: =AN8-AM8 -> 0 | AP8: =C8*'Task Assignment'!$I$8*'Task Assignment'!$L$8/60 -> 0 | AQ8: =D8*'Task Assignment'!$I$9*'Task Assignment'!$L$9/60 -> 0 | AR8: =E8*'Task Assignment'!$I$10*'Task Assignment'!$L$10/60 -> 0 | AS8: =F8*'Task Assignment'!$I$11*'Task Assignment'!$L$11/60 -> 0 | AT8: =G8*'Task Assignment'!$I$12*'Task Assignment'!$L$12/60 -> 0 | AU8: =H8*'Task Assignment'!$I$13*'Task Assignment'!$L$13/60 -> 0 | AV8: =I8*'Task Assignment'!$I$14*'Task Assignment'!$L$14/60 -> 0 | AW8: =J8*'Task Assignment'!$I$15*'Task Assignment'!$L$15/60 -> 0 | AX8: =K8*'Task Assignment'!$I$17*'Task Assignment'!$L$17/60 -> 0 | AY8: =L8*'Task Assignment'!$I$18*'Task Assignment'!$L$18/60 -> 0 | AZ8: =M8*'Task Assignment'!$I$19*'Task Assignment'!$L$19/60 -> 0 | BA8: =SUM(AP8:AZ8) -> 0 | BB8: =IF(EffWorkingHours_MD=0,0,BA8/EffWorkingHours_MD/50) -> 0 | BC8: =+BB8+BB46+BB84+BB122+BB160+BB198 -> 0 | BD8: =Providers!$Q8 -> 0 | BE8: =BD8-BC8 -> 0 | BF8: =C8*'Task Assignment'!$K$8*'Task Assignment'!$L$8/60 -> 0 | BG8: =D8*'Task Assignment'!$K$9*'Task Assignment'!$L$9/60 -> 0 | BH8: =E8*'Task Assignment'!$K$10*'Task Assignment'!$L$10/60 -> 0 | BI8: =F8*'Task Assignment'!$K$11*'Task Assignment'!$L$11/60 -> 0 | BJ8: =G8*'Task Assignment'!$K$12*'Task Assignment'!$L$12/60 -> 0 | BK8: =H8*'Task Assignment'!$K$13*'Task Assignment'!$L$13/60 -> 0 | BL8: =I8*'Task Assignment'!$K$14*'Task Assignment'!$L$14/60 -> 0 | BM8: =J8*'Task Assignment'!$K$15*'Task Assignment'!$L$15/60 -> 0 | BN8: =K8*'Task Assignment'!$K$17*'Task Assignment'!$L$17/60 -> 0 | BO8: =L8*'Task Assignment'!$K$18*'Task Assignment'!$L$18/60 -> 0 | BP8: =M8*'Task Assignment'!$K$19*'Task Assignment'!$L$19/60 -> 0 | BQ8: =SUM(BF8:BP8) -> 0 | BR8: =IF(EffWorkingHours_MD=0,0,BQ8/EffWorkingHours_MD/50) -> 0 | BS8: =+BR8+BR46+BR84+BR122+BR160+BR198 -> 0 | BT8: =Providers!$Q8 -> 0 | BU8: =BT8-BS8 -> 0 | BW8: =B8 -> Docteur en Médecine (MD) | BX8: No. | BY8: =IF(TS_Number_or_Percent=1,$C8,$BY9*Clients_SM) -> 0 | BZ8: =IF(TS_Number_or_Percent=1,$D8,$BZ9*Clients_SM) -> 0 | CA8: =IF(TS_Number_or_Percent=1,$E8,$CA9*Clients_SM) -> 0 | CB8: =IF(TS_Number_or_Percent=1,$F8,$CB9*Clients_SM) -> 0 | CC8: =IF(TS_Number_or_Percent=1,$G8,$CC9*Clients_SM) -> 0 | CD8: =IF(TS_Number_or_Percent=1,$H8,$CD9*Clients_SM) -> 0 | CE8: =IF(TS_Number_or_Percent=1,$I8,$CE9*Clients_SM) -> 0 | CF8: =IF(TS_Number_or_Percent=1,$J8,$CF9*Clients_SM) -> 0 | CG8: =IF(TS_Number_or_Percent=1,$K8,$CG9*Clients_SM) -> 0 | CH8: =IF(TS_Number_or_Percent=1,$L8,$CH9*Clients_SM) -> 0 | CI8: =IF(TS_Number_or_Percent=1,$M8,$CI9*Clients_SM) -> 0 | CJ8: =BY8*'Task Assignment'!$L$8 -> 0 | CK8: =BZ8*'Task Assignment'!$L$9 -> 0 | CL8: =CA8*'Task Assignment'!$L$10 -> 0 | CM8: =CB8*'Task Assignment'!$L$11 -> 0 | CN8: =CC8*'Task Assignment'!$L$12 -> 0 | CO8: =CD8*'Task Assignment'!$L$13 -> 0 | CP8: =CE8*'Task Assignment'!$L$14 -> 0 | CQ8: =CF8*'Task Assignment'!$L$15 -> 0 | CR8: =CG8*'Task Assignment'!$L$17 -> 0 | CS8: =CH8*'Task Assignment'!$L$18 -> 0 | CT8: =CI8*'Task Assignment'!$L$19 -> 0 | CU8: =SUM(CJ8:CT8) -> 0 | CV8: =BY8*'Task Assignment'!$H$8*'Task Assignment'!$L$8/60 -> 0 | CW8: =BZ8*'Task Assignment'!$H$9*'Task Assignment'!$L$9/60 -> 0 | CX8: =CA8*'Task Assignment'!$H$10*'Task Assignment'!$L$10/60 -> 0 | CY8: =CB8*'Task Assignment'!$H$11*'Task Assignment'!$L$11/60 -> 0 | CZ8: =CC8*'Task Assignment'!$H$12*'Task Assignment'!$L$12/60 -> 0 | DA8: =CD8*'Task Assignment'!$H$13*'Task Assignment'!$L$13/60 -> 0 | DB8: =CE8*'Task Assignment'!$H$14*'Task Assignment'!$L$14/60 -> 0 | DC8: =CF8*'Task Assignment'!$H$15*'Task Assignment'!$L$15/60 -> 0 | DD8: =CG8*'Task Assignment'!$H$17*'Task Assignment'!$L$17/60 -> 0 | DE8: =CH8*'Task Assignment'!$H$18*'Task Assignment'!$L$18/60 -> 0 | DF8: =CI8*'Task Assignment'!$H$19*'Task Assignment'!$L$19/60 -> 0 | DG8: =SUM(CV8:DF8) -> 0 | DH8: =IF(EffWorkingHours_MD=0,0,DG8/EffWorkingHours_MD/50) -> 0 | DI8: =+DH8+DH46+DH84+DH122+DH160+DH198 -> 0 | DJ8: =Providers!$Q8 -> 0 | DK8: =DJ8-DI8 -> 0 | DL8: =BY8*'Task Assignment'!$I$8*'Task Assignment'!$L$8/60 -> 0 | DM8: =BZ8*'Task Assignment'!$I$9*'Task Assignment'!$L$9/60 -> 0 | DN8: =CA8*'Task Assignment'!$I$10*'Task Assignment'!$L$10/60 -> 0 | DO8: =CB8*'Task Assignment'!$I$11*'Task Assignment'!$L$11/60 -> 0 | DP8: =CC8*'Task Assignment'!$I$12*'Task Assignment'!$L$12/60 -> 0 | DQ8: =CD8*'Task Assignment'!$I$13*'Task Assignment'!$L$13/60 -> 0 | DR8: =CE8*'Task Assignment'!$I$14*'Task Assignment'!$L$14/60 -> 0 | DS8: =CF8*'Task Assignment'!$I$15*'Task Assignment'!$L$15/60 -> 0 | DT8: =CG8*'Task Assignment'!$I$17*'Task Assignment'!$L$17/60 -> 0 | DU8: =CH8*'Task Assignment'!$I$18*'Task Assignment'!$L$18/60 -> 0 | DV8: =CI8*'Task Assignment'!$I$19*'Task Assignment'!$L$19/60 -> 0 | DW8: =SUM(DL8:DV8) -> 0 | DX8: =IF(EffWorkingHours_MD=0,0,DW8/EffWorkingHours_MD/50) -> 0 | DY8: =+DX8+DX46+DX84+DX122+DX160+DX198 -> 0 | DZ8: =Providers!$Q8 -> 0 | EA8: =DZ8-DY8 -> 0 | EB8: =BY8*'Task Assignment'!$K$8*'Task Assignment'!$L$8/60 -> 0 | EC8: =BZ8*'Task Assignment'!$K$9*'Task Assignment'!$L$9/60 -> 0 | ED8: =CA8*'Task Assignment'!$K$10*'Task Assignment'!$L$10/60 -> 0 | EE8: =CB8*'Task Assignment'!$K$11*'Task Assignment'!$L$11/60 -> 0 | EF8: =CC8*'Task Assignment'!$K$12*'Task Assignment'!$L$12/60 -> 0 | EG8: =CD8*'Task Assignment'!$K$13*'Task Assignment'!$L$13/60 -> 0 | EH8: =CE8*'Task Assignment'!$K$14*'Task Assignment'!$L$14/60 -> 0 | EI8: =CF8*'Task Assignment'!$K$15*'Task Assignment'!$L$15/60 -> 0 | EJ8: =CG8*'Task Assignment'!$K$17*'Task Assignment'!$L$17/60 -> 0 | EK8: =CH8*'Task Assignment'!$K$18*'Task Assignment'!$L$18/60 -> 0 | EL8: =CI8*'Task Assignment'!$K$19*'Task Assignment'!$L$19/60 -> 0 | EM8: =SUM(EB8:EL8) -> 0 | EN8: =IF(EffWorkingHours_MD=0,0,EM8/EffWorkingHours_MD/50) -> 0 | EO8: =+EN8+EN46+EN84+EN122+EN160+EN198 -> 0 | EP8: =Providers!$Q8 -> 0 | EQ8: =EP8-EO8 -> 0 | ES8: =BW8 -> Docteur en Médecine (MD) | ET8: No. | EU8: =IF(TS_Number_or_Percent=1,$C8,$EU9*Clients_SM) -> 0 | EV8: =IF(TS_Number_or_Percent=1,$D8,$EV9*Clients_SM) -> 0 | EW8: =IF(TS_Number_or_Percent=1,$E8,$EW9*Clients_SM) -> 0 | EX8: =IF(TS_Number_or_Percent=1,$F8,$EX9*Clients_SM) -> 0 | EY8: =IF(TS_Number_or_Percent=1,$G8,$EY9*Clients_SM) -> 0 | EZ8: =IF(TS_Number_or_Percent=1,$H8,$EZ9*Clients_SM) -> 0 | FA8: =IF(TS_Number_or_Percent=1,$I8,$FA9*Clients_SM) -> 0 | FB8: =IF(TS_Number_or_Percent=1,$J8,$FB9*Clients_SM) -> 0 | FC8: =IF(TS_Number_or_Percent=1,$K8,$FC9*Clients_SM) -> 0 | FD8: =IF(TS_Number_or_Percent=1,$L8,$FD9*Clients_SM) -> 0 | FE8: =IF(TS_Number_or_Percent=1,$M8,$FE9*Clients_SM) -> 0 | FF8: =EU8*'Task Assignment'!$L$8 -> 0 | FG8: =EV8*'Task Assignment'!$L$9 -> 0 | FH8: =EW8*'Task Assignment'!$L$10 -> 0 | FI8: =EX8*'Task Assignment'!$L$11 -> 0 | FJ8: =EY8*'Task Assignment'!$L$12 -> 0 | FK8: =EZ8*'Task Assignment'!$L$13 -> 0 | FL8: =FA8*'Task Assignment'!$L$14 -> 0 | FM8: =FB8*'Task Assignment'!$L$15 -> 0 | FN8: =FC8*'Task Assignment'!$L$17 -> 0 | FO8: =FD8*'Task Assignment'!$L$18 -> 0 | FP8: =FE8*'Task Assignment'!$L$19 -> 0 | FQ8: =SUM(FF8:FP8) -> 0 | FR8: =EU8*'Task Assignment'!$H$8*'Task Assignment'!$L$8/60 -> 0 | FS8: =EV8*'Task Assignment'!$H$9*'Task Assignment'!$L$9/60 -> 0 | FT8: =EW8*'Task Assignment'!$H$10*'Task Assignment'!$L$10/60 -> 0 | FU8: =EX8*'Task Assignment'!$H$11*'Task Assignment'!$L$11/60 -> 0 | FV8: =EY8*'Task Assignment'!$H$12*'Task Assignment'!$L$12/60 -> 0 | FW8: =EZ8*'Task Assignment'!$H$13*'Task Assignment'!$L$13/60 -> 0 | FX8: =FA8*'Task Assignment'!$H$14*'Task Assignment'!$L$14/60 -> 0 | FY8: =FB8*'Task Assignment'!$H$15*'Task Assignment'!$L$15/60 -> 0 | FZ8: =FC8*'Task Assignment'!$H$17*'Task Assignment'!$L$17/60 -> 0 | GA8: =FD8*'Task Assignment'!$H$18*'Task Assignment'!$L$18/60 -> 0 | GB8: =FE8*'Task Assignment'!$H$19*'Task Assignment'!$L$19/60 -> 0 | GC8: =SUM(FR8:GB8) -> 0 | GD8: =IF(EffWorkingHours_MD=0,0,GC8/EffWorkingHours_MD/50) -> 0 | GE8: =+GD8+GD46+GD84+GD122+GD160+GD198 -> 0 | GF8: =Providers!$Q8 -> 0 | GG8: =GF8-GE8 -> 0 | GH8: =EU8*'Task Assignment'!$I$8*'Task Assignment'!$L$8/60 -> 0 | GI8: =EV8*'Task Assignment'!$I$9*'Task Assignment'!$L$9/60 -> 0 | GJ8: =EW8*'Task Assignment'!$I$10*'Task Assignment'!$L$10/60 -> 0 | GK8: =EX8*'Task Assignment'!$I$11*'Task Assignment'!$L$11/60 -> 0 | GL8: =EY8*'Task Assignment'!$I$12*'Task Assignment'!$L$12/60 -> 0 | GM8: =EZ8*'Task Assignment'!$I$13*'Task Assignment'!$L$13/60 -> 0 | GN8: =FA8*'Task Assignment'!$I$14*'Task Assignment'!$L$14/60 -> 0 | GO8: =FB8*'Task Assignment'!$I$15*'Task Assignment'!$L$15/60 -> 0 | GP8: =FC8*'Task Assignment'!$I$17*'Task Assignment'!$L$17/60 -> 0 | GQ8: =FD8*'Task Assignment'!$I$18*'Task Assignment'!$L$18/60 -> 0 | GR8: =FE8*'Task Assignment'!$I$19*'Task Assignment'!$L$19/60 -> 0 | GS8: =SUM(GH8:GR8) -> 0 | GT8: =IF(EffWorkingHours_MD=0,0,GS8/EffWorkingHours_MD/50) -> 0 | GU8: =+GT8+GT47+GT84+GT122+GT160+GT198 -> 0 | GV8: =Providers!$Q8 -> 0 | GW8: =GV8-GU8 -> 0 | GX8: =EU8*'Task Assignment'!$K$8*'Task Assignment'!$L$8/60 -> 0 | GY8: =EV8*'Task Assignment'!$K$9*'Task Assignment'!$L$9/60 -> 0 | GZ8: =EW8*'Task Assignment'!$K$10*'Task Assignment'!$L$10/60 -> 0 | HA8: =EX8*'Task Assignment'!$K$11*'Task Assignment'!$L$11/60 -> 0 | HB8: =EY8*'Task Assignment'!$K$12*'Task Assignment'!$L$12/60 -> 0 | HC8: =EZ8*'Task Assignment'!$K$13*'Task Assignment'!$L$13/60 -> 0 | HD8: =FA8*'Task Assignment'!$K$14*'Task Assignment'!$L$14/60 -> 0 | HE8: =FB8*'Task Assignment'!$K$15*'Task Assignment'!$L$15/60 -> 0 | HF8: =FC8*'Task Assignment'!$K$17*'Task Assignment'!$L$17/60 -> 0 | HG8: =FD8*'Task Assignment'!$K$18*'Task Assignment'!$L$18/60 -> 0 | HH8: =FE8*'Task Assignment'!$K$19*'Task Assignment'!$L$19/60 -> 0 | HI8: =SUM(GX8:HH8) -> 0 | HJ8: =IF(EffWorkingHours_MD=0,0,HI8/EffWorkingHours_MD/50) -> 0 | HK8: =+HJ8+HJ46+HJ84+HJ122+HJ160+HJ198 -> 0 | HL8: =Providers!$Q8 -> 0 | HM8: =HL8-HK8 -> 0 | HR8: =IF(TS_Number_or_Percent=1,$C8,$BY9*Clients_SM) -> 0 | HS8: =IF(TS_Number_or_Percent=1,$D8,$BZ9*Clients_SM) -> 0 | HT8: =IF(TS_Number_or_Percent=1,$E8,$CA9*Clients_SM) -> 0 | HU8: =IF(TS_Number_or_Percent=1,$F8,$CB9*Clients_SM) -> 0 | HV8: =IF(TS_Number_or_Percent=1,$G8,$CC9*Clients_SM) -> 0 | HW8: =IF(TS_Number_or_Percent=1,$H8,$CD9*Clients_SM) -> 0 | HX8: =IF(TS_Number_or_Percent=1,$I8,$CE9*Clients_SM) -> 0 | HY8: =IF(TS_Number_or_Percent=1,$J8,$CF9*Clients_SM) -> 0 | HZ8: =IF(TS_Number_or_Percent=1,$K8,$CG9*Clients_SM) -> 0 | IA8: =IF(TS_Number_or_Percent=1,$L8,$CH9*Clients_SM) -> 0 | IB8: =IF(TS_Number_or_Percent=1,$M8,$CI9*Clients_SM) -> 0 | ID8: =IF(TS_Number_or_Percent=1,$C8,$EU9*Clients_SM) -> 0 | IE8: =IF(TS_Number_or_Percent=1,$D8,$EV9*Clients_SM) -> 0 | IF8: =IF(TS_Number_or_Percent=1,$E8,$EW9*Clients_SM) -> 0 | IG8: =IF(TS_Number_or_Percent=1,$F8,$EX9*Clients_SM) -> 0 | IH8: =IF(TS_Number_or_Percent=1,$G8,$EY9*Clients_SM) -> 0 | II8: =IF(TS_Number_or_Percent=1,$H8,$EZ9*Clients_SM) -> 0 | IJ8: =IF(TS_Number_or_Percent=1,$I8,$FA9*Clients_SM) -> 0 | IK8: =IF(TS_Number_or_Percent=1,$J8,$FB9*Clients_SM) -> 0 | IL8: =IF(TS_Number_or_Percent=1,$K8,$FC9*Clients_SM) -> 0 | IM8: =IF(TS_Number_or_Percent=1,$L8,$FD9*Clients_SM) -> 0 | IN8: =IF(TS_Number_or_Percent=1,$M8,$FE9*Clients_SM) -> 0
BX9: % | BY9: =IF(Clients_SM=0,0,IF(TS_Number_or_Percent=1,$BY8/Clients_SM,$C8/Clients_SM)) -> 0 | BZ9: =IF(Clients_SM=0,0,IF(TS_Number_or_Percent=1,$BZ8/Clients_SM,D8/Clients_SM)) -> 0 | CA9: =IF(Clients_SM=0,0,IF(TS_Number_or_Percent=1,$CA8/Clients_SM,E8/Clients_SM)) -> 0 | CB9: 0.02 | CC9: =IF(Clients_SM=0,0,IF(TS_Number_or_Percent=1,$CC8/Clients_SM,G8/Clients_SM)) -> 0 | CD9: =IF(Clients_SM=0,0,IF(TS_Number_or_Percent=1,$CD8/Clients_SM,H8/Clients_SM)) -> 0 | CE9: =IF(Clients_SM=0,0,IF(TS_Number_or_Percent=1,$CE8/Clients_SM,I8/Clients_SM)) -> 0 | CF9: =IF(Clients_SM=0,0,IF(TS_Number_or_Percent=1,$CF8/Clients_SM,J8/Clients_SM)) -> 0 | CG9: =IF(Clients_SM=0,0,IF(TS_Number_or_Percent=1,$CG8/Clients_SM,K8/Clients_SM)) -> 0 | CH9: =IF(Clients_SM=0,0,IF(TS_Number_or_Percent=1,$CH8/Clients_SM,L8/Clients_SM)) -> 0 | CI9: =IF(Clients_SM=0,0,IF(TS_Number_or_Percent=1,$CI8/Clients_SM,M8/Clients_SM)) -> 0 | ET9: % | EU9: =IF(Clients_SM=0,0,IF(TS_Number_or_Percent=1,$EU8/Clients_SM,C8/Clients_SM)) -> 0 | EV9: =IF(Clients_SM=0,0,IF(TS_Number_or_Percent=1,$EV8/Clients_SM,D8/Clients_SM)) -> 0 | EW9: =IF(Clients_SM=0,0,IF(TS_Number_or_Percent=1,$EW8/Clients_SM,$E8/Clients_SM)) -> 0 | EX9: =IF(Clients_SM=0,0,IF(TS_Number_or_Percent=1,$EX8/Clients_SM,$F8/Clients_SM)) -> 0 | EY9: =IF(Clients_SM=0,0,IF(TS_Number_or_Percent=1,$EY8/Clients_SM,G8/Clients_SM)) -> 0 | EZ9: =IF(Clients_SM=0,0,IF(TS_Number_or_Percent=1,$EZ8/Clients_SM,H8/Clients_SM)) -> 0 | FA9: =IF(Clients_SM=0,0,IF(TS_Number_or_Percent=1,$FA8/Clients_SM,I8/Clients_SM)) -> 0 | FB9: =IF(Clients_SM=0,0,IF(TS_Number_or_Percent=1,$FB8/Clients_SM,J8/Clients_SM)) -> 0 | FC9: =IF(Clients_SM=0,0,IF(TS_Number_or_Percent=1,$FC8/Clients_SM,K8/Clients_SM)) -> 0 | FD9: =IF(Clients_SM=0,0,IF(TS_Number_or_Percent=1,$FD8/Clients_SM,L8/Clients_SM)) -> 0 | FE9: =IF(Clients_SM=0,0,IF(TS_Number_or_Percent=1,$FE8/Clients_SM,M8/Clients_SM)) -> 0 | HR9: =IF(Clients_SM=0,0,IF(TS_Number_or_Percent=1,$BY8/Clients_SM,$C8/Clients_SM)) -> 0 | HS9: =IF(Clients_SM=0,0,IF(TS_Number_or_Percent=1,$BZ8/Clients_SM,EW8/Clients_SM)) -> 0 | HT9: =IF(Clients_SM=0,0,IF(TS_Number_or_Percent=1,$CA8/Clients_SM,EX8/Clients_SM)) -> 0 | HU9: =IF(Clients_SM=0,0,IF(TS_Number_or_Percent=1,$CB8/Clients_SM,EY8/Clients_SM)) -> 0 | HV9: =IF(Clients_SM=0,0,IF(TS_Number_or_Percent=1,$CC8/Clients_SM,EZ8/Clients_SM)) -> 0 | HW9: =IF(Clients_SM=0,0,IF(TS_Number_or_Percent=1,$CD8/Clients_SM,FA8/Clients_SM)) -> 0 | HX9: =IF(Clients_SM=0,0,IF(TS_Number_or_Percent=1,$CE8/Clients_SM,FB8/Clients_SM)) -> 0 | HY9: =IF(Clients_SM=0,0,IF(TS_Number_or_Percent=1,$CF8/Clients_SM,FC8/Clients_SM)) -> 0 | HZ9: =IF(Clients_SM=0,0,IF(TS_Number_or_Percent=1,$CG8/Clients_SM,FD8/Clients_SM)) -> 0 | IA9: =IF(Clients_SM=0,0,IF(TS_Number_or_Percent=1,$CH8/Clients_SM,FE8/Clients_SM)) -> 0 | IB9: =IF(Clients_SM=0,0,IF(TS_Number_or_Percent=1,$CI8/Clients_SM,FF8/Clients_SM)) -> 0 | ID9: =IF(Clients_SM=0,0,IF(TS_Number_or_Percent=1,$EU8/Clients_SM,CL8/Clients_SM)) -> 0 | IE9: =IF(Clients_SM=0,0,IF(TS_Number_or_Percent=1,$EV8/Clients_SM,CM8/Clients_SM)) -> 0 | IF9: =IF(Clients_SM=0,0,IF(TS_Number_or_Percent=1,$EW8/Clients_SM,$E8/Clients_SM)) -> 0 | IG9: =IF(Clients_SM=0,0,IF(TS_Number_or_Percent=1,$EX8/Clients_SM,$F8/Clients_SM)) -> 0 | IH9: =IF(Clients_SM=0,0,IF(TS_Number_or_Percent=1,$EY8/Clients_SM,CP8/Clients_SM)) -> 0 | II9: =IF(Clients_SM=0,0,IF(TS_Number_or_Percent=1,$EZ8/Clients_SM,CQ8/Clients_SM)) -> 0 | IJ9: =IF(Clients_SM=0,0,IF(TS_Number_or_Percent=1,$FA8/Clients_SM,CR8/Clients_SM)) -> 0 | IK9: =IF(Clients_SM=0,0,IF(TS_Number_or_Percent=1,$FB8/Clients_SM,CS8/Clients_SM)) -> 0 | IL9: =IF(Clients_SM=0,0,IF(TS_Number_or_Percent=1,$FC8/Clients_SM,CT8/Clients_SM)) -> 0 | IM9: =IF(Clients_SM=0,0,IF(TS_Number_or_Percent=1,$FD8/Clients_SM,CU8/Clients_SM)) -> 0 | IN9: =IF(Clients_SM=0,0,IF(TS_Number_or_Percent=1,$FE8/Clients_SM,CV8/Clients_SM)) -> 0
A10: Non Physician Clinican (NPC) | B10: =IF(Language=1,'Drop-down Lists'!$G$5,'Drop-down Lists'!$H$5) -> Clinicien non-médecin (CNP) | C10: =IF($B10="",0,IF(ISNUMBER(MATCH($B10,'Task Assignment'!$F$8,0)),Clients_SM,0)) -> 0 | D10: =IF($B10="",0,IF(ISNUMBER(MATCH($B10,'Task Assignment'!$F$9,0)),Clients_SM,0)) -> 0 | E10: =IF($B10="",0,IF(ISNUMBER(MATCH($B10,'Task Assignment'!$F$10,0)),Clients_SM,0)) -> 0 | F10: =IF($B10="",0,IF(ISNUMBER(MATCH($B10,'Task Assignment'!$F$11,0)),Clients_SM,0)) -> 0 | G10: =IF($B10="",0,IF(ISNUMBER(MATCH($B10,'Task Assignment'!$F$12,0)),Clients_SM,0)) -> 0 | H10: =IF($B10="",0,IF(ISNUMBER(MATCH($B10,'Task Assignment'!$F$13,0)),Clients_SM,0)) -> 0 | I10: =IF($B10="",0,IF(ISNUMBER(MATCH($B10,'Task Assignment'!$F$14,0)),Clients_SM,0)) -> 0 | J10: =IF($B10="",0,IF(ISNUMBER(MATCH($B10,'Task Assignment'!$F$15,0)),Clients_SM,0)) -> 0 | K10: =IF($B10="",0,IF(ISNUMBER(MATCH($B10,'Task Assignment'!$F$17,0)),Clients_SM,0)) -> 0 | L10: =IF($B10="",0,IF(ISNUMBER(MATCH($B10,'Task Assignment'!$F$18,0)),Clients_SM,0)) -> 0 | M10: =IF($B10="",0,IF(ISNUMBER(MATCH($B10,'Task Assignment'!$F$19,0)),Clients_SM,0)) -> 0 | N10: =C10*'Task Assignment'!$L$8 -> 0 | O10: =D10*'Task Assignment'!$L$9 -> 0 | P10: =E10*'Task Assignment'!$L$10 -> 0 | Q10: =F10*'Task Assignment'!$L$11 -> 0 | R10: =G10*'Task Assignment'!$L$12 -> 0 | S10: =H10*'Task Assignment'!$L$13 -> 0 | T10: =I10*'Task Assignment'!$L$14 -> 0 | U10: =J10*'Task Assignment'!$L$15 -> 0 | V10: =K10*'Task Assignment'!$L$17 -> 0 | W10: =L10*'Task Assignment'!$L$18 -> 0 | X10: =M10*'Task Assignment'!$L$19 -> 0 | Y10: =SUM(N10:X10) -> 0 | Z10: =C10*'Task Assignment'!$H$8*'Task Assignment'!$L$8/60 -> 0 | AA10: =D10*'Task Assignment'!$H$9*'Task Assignment'!$L$9/60 -> 0 | AB10: =E10*'Task Assignment'!$H$10*'Task Assignment'!$L$10/60 -> 0 | AC10: =F10*'Task Assignment'!$H$11*'Task Assignment'!$L$11/60 -> 0 | AD10: =G10*'Task Assignment'!$H$12*'Task Assignment'!$L$12/60 -> 0 | AE10: =H10*'Task Assignment'!$H$13*'Task Assignment'!$L$13/60 -> 0 | AF10: =I10*'Task Assignment'!$H$14*'Task Assignment'!$L$14/60 -> 0 | AG10: =J10*'Task Assignment'!$H$15*'Task Assignment'!$L$15/60 -> 0 | AH10: =K10*'Task Assignment'!$H$17*'Task Assignment'!$L$17/60 -> 0 | AI10: =L10*'Task Assignment'!$H$18*'Task Assignment'!$L$18/60 -> 0 | AJ10: =M10*'Task Assignment'!$H$19*'Task Assignment'!$L$19/60 -> 0 | AK10: =SUM(Z10:AJ10) -> 0 | AL10: =IF(EffWorkingHours_NPC=0,0,AK10/EffWorkingHours_NPC/50) -> 0 | AM10: =+AL10+AL48+AL86+AL124+AL162+AL200 -> 0 | AN10: =Providers!$Q9 -> 0 | AO10: 0 | AP10: =C10*'Task Assignment'!$I$8*'Task Assignment'!$L$8/60 -> 0 | AQ10: =D10*'Task Assignment'!$I$9*'Task Assignment'!$L$9/60 -> 0 | AR10: =E10*'Task Assignment'!$I$10*'Task Assignment'!$L$10/60 -> 0 | AS10: =F10*'Task Assignment'!$I$11*'Task Assignment'!$L$11/60 -> 0 | AT10: =G10*'Task Assignment'!$I$12*'Task Assignment'!$L$12/60 -> 0 | AU10: =H10*'Task Assignment'!$I$13*'Task Assignment'!$L$13/60 -> 0 | AV10: =I10*'Task Assignment'!$I$14*'Task Assignment'!$L$14/60 -> 0 | AW10: =J10*'Task Assignment'!$I$15*'Task Assignment'!$L$15/60 -> 0 | AX10: =K10*'Task Assignment'!$I$17*'Task Assignment'!$L$17/60 -> 0 | AY10: =L10*'Task Assignment'!$I$18*'Task Assignment'!$L$18/60 -> 0 | AZ10: =M10*'Task Assignment'!$I$19*'Task Assignment'!$L$19/60 -> 0 | BA10: =SUM(AP10:AZ10) -> 0 | BB10: =IF(EffWorkingHours_NPC=0,0,BA10/EffWorkingHours_NPC/50) -> 0 | BC10: =+BB10+BB48+BB86+BB124+BB162+BB200 -> 0 | BD10: =Providers!$Q9 -> 0 | BE10: =BD10-BC10 -> 0 | BF10: =C10*'Task Assignment'!$K$8*'Task Assignment'!$L$8/60 -> 0 | BG10: =D10*'Task Assignment'!$K$9*'Task Assignment'!$L$9/60 -> 0 | BH10: =E10*'Task Assignment'!$K$10*'Task Assignment'!$L$10/60 -> 0 | BI10: =F10*'Task Assignment'!$K$11*'Task Assignment'!$L$11/60 -> 0 | BJ10: =G10*'Task Assignment'!$K$12*'Task Assignment'!$L$12/60 -> 0 | BK10: =H10*'Task Assignment'!$K$13*'Task Assignment'!$L$13/60 -> 0 | BL10: =I10*'Task Assignment'!$K$14*'Task Assignment'!$L$14/60 -> 0 | BM10: =J10*'Task Assignment'!$K$15*'Task Assignment'!$L$15/60 -> 0 | BN10: =K10*'Task Assignment'!$K$17*'Task Assignment'!$L$17/60 -> 0 | BO10: =L10*'Task Assignment'!$K$18*'Task Assignment'!$L$18/60 -> 0 | BP10: =M10*'Task Assignment'!$K$19*'Task Assignment'!$L$19/60 -> 0 | BQ10: =SUM(BF10:BP10) -> 0 | BR10: =IF(EffWorkingHours_NPC=0,0,BQ10/EffWorkingHours_NPC/50) -> 0 | BS10: =+BR10+BR48+BR86+BR124+BR162+BR200 -> 0 | BT10: =Providers!$Q9 -> 0 | BU10: =BT10-BS10 -> 0 | BW10: Clinicien non-médecin (CNP) | BX10: No. | BY10: =IF(TS_Number_or_Percent=1,$C10,$BY11*Clients_SM) -> 0 | BZ10: =IF(TS_Number_or_Percent=1,$D10,$BZ11*Clients_SM) -> 0 | CA10: =IF(TS_Number_or_Percent=1,$E10,$CA11*Clients_SM) -> 0 | CB10: =IF(TS_Number_or_Percent=1,$F10,$CB11*Clients_SM) -> 0 | CC10: =IF(TS_Number_or_Percent=1,$G10,$CC11*Clients_SM) -> 0 | CD10: =IF(TS_Number_or_Percent=1,$H10,$CD11*Clients_SM) -> 0 | CE10: =IF(TS_Number_or_Percent=1,$I10,$CE11*Clients_SM) -> 0 | CF10: =IF(TS_Number_or_Percent=1,$J10,$CF11*Clients_SM) -> 0 | CG10: =IF(TS_Number_or_Percent=1,$K10,$CG11*Clients_SM) -> 0 | CH10: =IF(TS_Number_or_Percent=1,$L10,$CH11*Clients_SM) -> 0 | CI10: =IF(TS_Number_or_Percent=1,$M10,$CI11*Clients_SM) -> 0 | CJ10: =BY10*'Task Assignment'!$L$8 -> 0 | CK10: =BZ10*'Task Assignment'!$L$9 -> 0 | CL10: =CA10*'Task Assignment'!$L$10 -> 0 | CM10: =CB10*'Task Assignment'!$L$11 -> 0 | CN10: =CC10*'Task Assignment'!$L$12 -> 0 | CO10: =CD10*'Task Assignment'!$L$13 -> 0 | CP10: =CE10*'Task Assignment'!$L$14 -> 0 | CQ10: =CF10*'Task Assignment'!$L$15 -> 0 | CR10: =CG10*'Task Assignment'!$L$17 -> 0 | CS10: =CH10*'Task Assignment'!$L$18 -> 0 | CT10: =CI10*'Task Assignment'!$L$19 -> 0 | CU10: =SUM(CJ10:CT10) -> 0 | CV10: =BY10*'Task Assignment'!$H$8*'Task Assignment'!$L$8/60 -> 0 | CW10: =BZ10*'Task Assignment'!$H$9*'Task Assignment'!$L$9/60 -> 0 | CX10: =CA10*'Task Assignment'!$H$10*'Task Assignment'!$L$10/60 -> 0 | CY10: =CB10*'Task Assignment'!$H$11*'Task Assignment'!$L$11/60 -> 0 | CZ10: =CC10*'Task Assignment'!$H$12*'Task Assignment'!$L$12/60 -> 0 | DA10: =CD10*'Task Assignment'!$H$13*'Task Assignment'!$L$13/60 -> 0 | DB10: =CE10*'Task Assignment'!$H$14*'Task Assignment'!$L$14/60 -> 0 | DC10: =CF10*'Task Assignment'!$H$15*'Task Assignment'!$L$15/60 -> 0 | DD10: =CG10*'Task Assignment'!$H$17*'Task Assignment'!$L$17/60 -> 0 | DE10: =CH10*'Task Assignment'!$H$18*'Task Assignment'!$L$18/60 -> 0 | DF10: =CI10*'Task Assignment'!$H$19*'Task Assignment'!$L$19/60 -> 0 | DG10: =SUM(CV10:DF10) -> 0 | DH10: =IF(EffWorkingHours_NPC=0,0,DG10/EffWorkingHours_NPC/50) -> 0 | DI10: =+DH10+DH48+DH86+DH124+DH162+DH200 -> 0 | DJ10: =Providers!$Q9 -> 0 | DK10: =DJ10-DI10 -> 0 | DL10: =BY10*'Task Assignment'!$I$8*'Task Assignment'!$L$8/60 -> 0 | DM10: =BZ10*'Task Assignment'!$I$9*'Task Assignment'!$L$9/60 -> 0 | DN10: =CA10*'Task Assignment'!$I$10*'Task Assignment'!$L$10/60 -> 0 | DO10: =CB10*'Task Assignment'!$I$11*'Task Assignment'!$L$11/60 -> 0 | DP10: =CC10*'Task Assignment'!$I$12*'Task Assignment'!$L$12/60 -> 0 | DQ10: =CD10*'Task Assignment'!$I$13*'Task Assignment'!$L$13/60 -> 0 | DR10: =CE10*'Task Assignment'!$I$14*'Task Assignment'!$L$14/60 -> 0 | DS10: =CF10*'Task Assignment'!$I$15*'Task Assignment'!$L$15/60 -> 0 | DT10: =CG10*'Task Assignment'!$I$17*'Task Assignment'!$L$17/60 -> 0 | DU10: =CH10*'Task Assignment'!$I$18*'Task Assignment'!$L$18/60 -> 0 | DV10: =CI10*'Task Assignment'!$I$19*'Task Assignment'!$L$19/60 -> 0 | DW10: =SUM(DL10:DV10) -> 0 | DX10: =IF(EffWorkingHours_NPC=0,0,DW10/EffWorkingHours_NPC/50) -> 0 | DY10: =+DX10+DX48+DX86+DX124+DX162+DX200 -> 0 | DZ10: =Providers!$Q9 -> 0 | EA10: =DZ10-DY10 -> 0 | EB10: =BY10*'Task Assignment'!$K$8*'Task Assignment'!$L$8/60 -> 0 | EC10: =BZ10*'Task Assignment'!$K$9*'Task Assignment'!$L$9/60 -> 0 | ED10: =CA10*'Task Assignment'!$K$10*'Task Assignment'!$L$10/60 -> 0 | EE10: =CB10*'Task Assignment'!$K$11*'Task Assignment'!$L$11/60 -> 0 | EF10: =CC10*'Task Assignment'!$K$12*'Task Assignment'!$L$12/60 -> 0 | EG10: =CD10*'Task Assignment'!$K$13*'Task Assignment'!$L$13/60 -> 0 | EH10: =CE10*'Task Assignment'!$K$14*'Task Assignment'!$L$14/60 -> 0 | EI10: =CF10*'Task Assignment'!$K$15*'Task Assignment'!$L$15/60 -> 0 | EJ10: =CG10*'Task Assignment'!$K$17*'Task Assignment'!$L$17/60 -> 0 | EK10: =CH10*'Task Assignment'!$K$18*'Task Assignment'!$L$18/60 -> 0 | EL10: =CI10*'Task Assignment'!$K$19*'Task Assignment'!$L$19/60 -> 0 | EM10: =SUM(EB10:EL10) -> 0 | EN10: =IF(EffWorkingHours_NPC=0,0,EM10/EffWorkingHours_NPC/50) -> 0 | EO10: =+EN10+EN48+EN86+EN124+EN162+EN200 -> 0 | EP10: =Providers!$Q9 -> 0 | EQ10: =EP10-EO10 -> 0 | ES10: =BW10 -> Clinicien non-médecin (CNP) | ET10: No. | EU10: =IF(TS_Number_or_Percent=1,$C10,$EU11*Clients_SM) -> 0 | EV10: =IF(TS_Number_or_Percent=1,$D10,$EV11*Clients_SM) -> 0 | EW10: =IF(TS_Number_or_Percent=1,$E10,$EW11*Clients_SM) -> 0 | EX10: =IF(TS_Number_or_Percent=1,$F10,$EX11*Clients_SM) -> 0 | EY10: =IF(TS_Number_or_Percent=1,$G10,$EY11*Clients_SM) -> 0 | EZ10: =IF(TS_Number_or_Percent=1,$H10,$EZ11*Clients_SM) -> 0 | FA10: =IF(TS_Number_or_Percent=1,$I10,$FA11*Clients_SM) -> 0 | FB10: =IF(TS_Number_or_Percent=1,$J10,$FB11*Clients_SM) -> 0 | FC10: =IF(TS_Number_or_Percent=1,$K10,$FC11*Clients_SM) -> 0 | FD10: =IF(TS_Number_or_Percent=1,$L10,$FD11*Clients_SM) -> 0 | FE10: =IF(TS_Number_or_Percent=1,$M10,$FE11*Clients_SM) -> 0 | FF10: =EU10*'Task Assignment'!$L$8 -> 0 | FG10: =EV10*'Task Assignment'!$L$9 -> 0 | FH10: =EW10*'Task Assignment'!$L$10 -> 0 | FI10: =EX10*'Task Assignment'!$L$11 -> 0 | FJ10: =EY10*'Task Assignment'!$L$12 -> 0 | FK10: =EZ10*'Task Assignment'!$L$13 -> 0 | FL10: =FA10*'Task Assignment'!$L$14 -> 0 | FM10: =FB10*'Task Assignment'!$L$15 -> 0 | FN10: =FC10*'Task Assignment'!$L$17 -> 0 | FO10: =FD10*'Task Assignment'!$L$18 -> 0 | FP10: =FE10*'Task Assignment'!$L$19 -> 0 | FQ10: =SUM(FF10:FP10) -> 0 | FR10: =EU10*'Task Assignment'!$H$8*'Task Assignment'!$L$8/60 -> 0 | FS10: =EV10*'Task Assignment'!$H$9*'Task Assignment'!$L$9/60 -> 0 | FT10: =EW10*'Task Assignment'!$H$10*'Task Assignment'!$L$10/60 -> 0 | FU10: =EX10*'Task Assignment'!$H$11*'Task Assignment'!$L$11/60 -> 0 | FV10: =EY10*'Task Assignment'!$H$12*'Task Assignment'!$L$12/60 -> 0 | FW10: =EZ10*'Task Assignment'!$H$13*'Task Assignment'!$L$13/60 -> 0 | FX10: =FA10*'Task Assignment'!$H$14*'Task Assignment'!$L$14/60 -> 0 | FY10: =FB10*'Task Assignment'!$H$15*'Task Assignment'!$L$15/60 -> 0 | FZ10: =FC10*'Task Assignment'!$H$17*'Task Assignment'!$L$17/60 -> 0 | GA10: =FD10*'Task Assignment'!$H$18*'Task Assignment'!$L$18/60 -> 0 | GB10: =FE10*'Task Assignment'!$H$19*'Task Assignment'!$L$19/60 -> 0 | GC10: =SUM(FR10:GB10) -> 0 | GD10: =IF(EffWorkingHours_NPC=0,0,GC10/EffWorkingHours_NPC/50) -> 0 | GE10: =+GD10+GD48+GD86+GD124+GD162+GD200 -> 0 | GF10: =Providers!$Q9 -> 0 | GG10: =GF10-GE10 -> 0 | GH10: =EU10*'Task Assignment'!$I$8*'Task Assignment'!$L$8/60 -> 0 | GI10: =EV10*'Task Assignment'!$I$9*'Task Assignment'!$L$9/60 -> 0 | GJ10: =EW10*'Task Assignment'!$I$10*'Task Assignment'!$L$10/60 -> 0 | GK10: =EX10*'Task Assignment'!$I$11*'Task Assignment'!$L$11/60 -> 0 | GL10: =EY10*'Task Assignment'!$I$12*'Task Assignment'!$L$12/60 -> 0 | GM10: =EZ10*'Task Assignment'!$I$13*'Task Assignment'!$L$13/60 -> 0 | GN10: =FA10*'Task Assignment'!$I$14*'Task Assignment'!$L$14/60 -> 0 | GO10: =FB10*'Task Assignment'!$I$15*'Task Assignment'!$L$15/60 -> 0 | GP10: =FC10*'Task Assignment'!$I$17*'Task Assignment'!$L$17/60 -> 0 | GQ10: =FD10*'Task Assignment'!$I$18*'Task Assignment'!$L$18/60 -> 0 | GR10: =FE10*'Task Assignment'!$I$19*'Task Assignment'!$L$19/60 -> 0 | GS10: =SUM(GH10:GR10) -> 0 | GT10: =IF(EffWorkingHours_NPC=0,0,GS10/EffWorkingHours_NPC/50) -> 0 | GU10: =+GT10+GT48+GT86+GT124+GT162+GT200 -> 0 | GV10: =Providers!$Q9 -> 0 | GW10: =GV10-GU10 -> 0 | GX10: =EU10*'Task Assignment'!$K$8*'Task Assignment'!$L$8/60 -> 0 | GY10: =EV10*'Task Assignment'!$K$9*'Task Assignment'!$L$9/60 -> 0 | GZ10: =EW10*'Task Assignment'!$K$10*'Task Assignment'!$L$10/60 -> 0 | HA10: =EX10*'Task Assignment'!$K$11*'Task Assignment'!$L$11/60 -> 0 | HB10: =EY10*'Task Assignment'!$K$12*'Task Assignment'!$L$12/60 -> 0 | HC10: =EZ10*'Task Assignment'!$K$13*'Task Assignment'!$L$13/60 -> 0 | HD10: =FA10*'Task Assignment'!$K$14*'Task Assignment'!$L$14/60 -> 0 | HE10: =FB10*'Task Assignment'!$K$15*'Task Assignment'!$L$15/60 -> 0 | HF10: =FC10*'Task Assignment'!$K$17*'Task Assignment'!$L$17/60 -> 0 | HG10: =FD10*'Task Assignment'!$K$18*'Task Assignment'!$L$18/60 -> 0 | HH10: =FE10*'Task Assignment'!$K$19*'Task Assignment'!$L$19/60 -> 0 | HI10: =SUM(GX10:HH10) -> 0 | HJ10: =IF(EffWorkingHours_NPC=0,0,HI10/EffWorkingHours_NPC/50) -> 0 | HK10: =+HJ10+HJ48+HJ86+HJ124+HJ162+HJ200 -> 0 | HL10: =Providers!$Q9 -> 0 | HM10: =HL10-HK10 -> 0 | HR10: =IF(TS_Number_or_Percent=1,$C10,$BY11*Clients_SM) -> 0 | HS10: =IF(TS_Number_or_Percent=1,$D10,$BZ11*Clients_SM) -> 0 | HT10: =IF(TS_Number_or_Percent=1,$E10,$CA11*Clients_SM) -> 0 | HU10: =IF(TS_Number_or_Percent=1,$F10,$CB11*Clients_SM) -> 0 | HV10: =IF(TS_Number_or_Percent=1,$G10,$CC11*Clients_SM) -> 0 | HW10: =IF(TS_Number_or_Percent=1,$H10,$CD11*Clients_SM) -> 0 | HX10: =IF(TS_Number_or_Percent=1,$I10,$CE11*Clients_SM) -> 0 | HY10: =IF(TS_Number_or_Percent=1,$J10,$CF11*Clients_SM) -> 0 | HZ10: =IF(TS_Number_or_Percent=1,$K10,$CG11*Clients_SM) -> 0 | IA10: =IF(TS_Number_or_Percent=1,$L10,$CH11*Clients_SM) -> 0 | IB10: =IF(TS_Number_or_Percent=1,$M10,$CI11*Clients_SM) -> 0 | ID10: =IF(TS_Number_or_Percent=1,$C10,$EU11*Clients_SM) -> 0 | IE10: =IF(TS_Number_or_Percent=1,$D10,$EV11*Clients_SM) -> 0 | IF10: =IF(TS_Number_or_Percent=1,$E10,$EW11*Clients_SM) -> 0 | IG10: =IF(TS_Number_or_Percent=1,$F10,$EX11*Clients_SM) -> 0 | IH10: =IF(TS_Number_or_Percent=1,$G10,$EY11*Clients_SM) -> 0 | II10: =IF(TS_Number_or_Percent=1,$H10,$EZ11*Clients_SM) -> 0 | IJ10: =IF(TS_Number_or_Percent=1,$I10,$FA11*Clients_SM) -> 0 | IK10: =IF(TS_Number_or_Percent=1,$J10,$FB11*Clients_SM) -> 0 | IL10: =IF(TS_Number_or_Percent=1,$K10,$FC11*Clients_SM) -> 0 | IM10: =IF(TS_Number_or_Percent=1,$L10,$FD11*Clients_SM) -> 0 | IN10: =IF(TS_Number_or_Percent=1,$M10,$FE11*Clients_SM) -> 0
BX11: % | BY11: =IF(Clients_SM=0,0,IF(TS_Number_or_Percent=1,$BY10/Clients_SM,$C10/Clients_SM)) -> 0 | BZ11: 0.06 | CA11: =IF(Clients_SM=0,0,IF(TS_Number_or_Percent=1,$CA10/Clients_SM,E10/Clients_SM)) -> 0 | CB11: 0.87 | CC11: =IF(Clients_SM=0,0,IF(TS_Number_or_Percent=1,$CC10/Clients_SM,G10/Clients_SM)) -> 0 | CD11: =IF(Clients_SM=0,0,IF(TS_Number_or_Percent=1,$CD10/Clients_SM,H10/Clients_SM)) -> 0 | CE11: =IF(Clients_SM=0,0,IF(TS_Number_or_Percent=1,$CE10/Clients_SM,I10/Clients_SM)) -> 0 | CF11: =IF(Clients_SM=0,0,IF(TS_Number_or_Percent=1,$CF10/Clients_SM,J10/Clients_SM)) -> 0 | CG11: =IF(Clients_SM=0,0,IF(TS_Number_or_Percent=1,$CG10/Clients_SM,K10/Clients_SM)) -> 0 | CH11: =IF(Clients_SM=0,0,IF(TS_Number_or_Percent=1,$CH10/Clients_SM,L10/Clients_SM)) -> 0 | CI11: =IF(Clients_SM=0,0,IF(TS_Number_or_Percent=1,$CI10/Clients_SM,M10/Clients_SM)) -> 0 | ET11: % | EU11: =IF(Clients_SM=0,0,IF(TS_Number_or_Percent=1,$EU10/Clients_SM,C10/Clients_SM)) -> 0 | EV11: =IF(Clients_SM=0,0,IF(TS_Number_or_Percent=1,$EV10/Clients_SM,D10/Clients_SM)) -> 0 | EW11: =IF(Clients_SM=0,0,IF(TS_Number_or_Percent=1,$EW10/Clients_SM,$E10/Clients_SM)) -> 0 | EX11: =IF(Clients_SM=0,0,IF(TS_Number_or_Percent=1,$EX10/Clients_SM,$F10/Clients_SM)) -> 0 | EY11: =IF(Clients_SM=0,0,IF(TS_Number_or_Percent=1,$EY10/Clients_SM,G10/Clients_SM)) -> 0 | EZ11: =IF(Clients_SM=0,0,IF(TS_Number_or_Percent=1,$EZ10/Clients_SM,H10/Clients_SM)) -> 0 | FA11: =IF(Clients_SM=0,0,IF(TS_Number_or_Percent=1,$FA10/Clients_SM,I10/Clients_SM)) -> 0 | FB11: =IF(Clients_SM=0,0,IF(TS_Number_or_Percent=1,$FB10/Clients_SM,J10/Clients_SM)) -> 0 | FC11: =IF(Clients_SM=0,0,IF(TS_Number_or_Percent=1,$FC10/Clients_SM,K10/Clients_SM)) -> 0 | FD11: =IF(Clients_SM=0,0,IF(TS_Number_or_Percent=1,$FD10/Clients_SM,L10/Clients_SM)) -> 0 | FE11: =IF(Clients_SM=0,0,IF(TS_Number_or_Percent=1,$FE10/Clients_SM,M10/Clients_SM)) -> 0 | HR11: =IF(Clients_SM=0,0,IF(TS_Number_or_Percent=1,$BY10/Clients_SM,$C10/Clients_SM)) -> 0 | HS11: =IF(Clients_SM=0,0,IF(TS_Number_or_Percent=1,$BZ10/Clients_SM,EW10/Clients_SM)) -> 0 | HT11: =IF(Clients_SM=0,0,IF(TS_Number_or_Percent=1,$CA10/Clients_SM,EX10/Clients_SM)) -> 0 | HU11: =IF(Clients_SM=0,0,IF(TS_Number_or_Percent=1,$CB10/Clients_SM,EY10/Clients_SM)) -> 0 | HV11: =IF(Clients_SM=0,0,IF(TS_Number_or_Percent=1,$CC10/Clients_SM,EZ10/Clients_SM)) -> 0 | HW11: =IF(Clients_SM=0,0,IF(TS_Number_or_Percent=1,$CD10/Clients_SM,FA10/Clients_SM)) -> 0 | HX11: =IF(Clients_SM=0,0,IF(TS_Number_or_Percent=1,$CE10/Clients_SM,FB10/Clients_SM)) -> 0 | HY11: =IF(Clients_SM=0,0,IF(TS_Number_or_Percent=1,$CF10/Clients_SM,FC10/Clients_SM)) -> 0 | HZ11: =IF(Clients_SM=0,0,IF(TS_Number_or_Percent=1,$CG10/Clients_SM,FD10/Clients_SM)) -> 0 | IA11: =IF(Clients_SM=0,0,IF(TS_Number_or_Percent=1,$CH10/Clients_SM,FE10/Clients_SM)) -> 0 | IB11: =IF(Clients_SM=0,0,IF(TS_Number_or_Percent=1,$CI10/Clients_SM,FF10/Clients_SM)) -> 0 | ID11: =IF(Clients_SM=0,0,IF(TS_Number_or_Percent=1,$EU10/Clients_SM,CL10/Clients_SM)) -> 0 | IE11: =IF(Clients_SM=0,0,IF(TS_Number_or_Percent=1,$EV10/Clients_SM,CM10/Clients_SM)) -> 0 | IF11: =IF(Clients_SM=0,0,IF(TS_Number_or_Percent=1,$EW10/Clients_SM,$E10/Clients_SM)) -> 0 | IG11: =IF(Clients_SM=0,0,IF(TS_Number_or_Percent=1,$EX10/Clients_SM,$F10/Clients_SM)) -> 0 | IH11: =IF(Clients_SM=0,0,IF(TS_Number_or_Percent=1,$EY10/Clients_SM,CP10/Clients_SM)) -> 0 | II11: =IF(Clients_SM=0,0,IF(TS_Number_or_Percent=1,$EZ10/Clients_SM,CQ10/Clients_SM)) -> 0 | IJ11: =IF(Clients_SM=0,0,IF(TS_Number_or_Percent=1,$FA10/Clients_SM,CR10/Clients_SM)) -> 0 | IK11: =IF(Clients_SM=0,0,IF(TS_Number_or_Percent=1,$FB10/Clients_SM,CS10/Clients_SM)) -> 0 | IL11: =IF(Clients_SM=0,0,IF(TS_Number_or_Percent=1,$FC10/Clients_SM,CT10/Clients_SM)) -> 0 | IM11: =IF(Clients_SM=0,0,IF(TS_Number_or_Percent=1,$FD10/Clients_SM,CU10/Clients_SM)) -> 0 | IN11: =IF(Clients_SM=0,0,IF(TS_Number_or_Percent=1,$FE10/Clients_SM,CV10/Clients_SM)) -> 0
A12: Pharmacy Technician or Assistant (PTA) | B12: =IF(Language=1,'Drop-down Lists'!$G$6,'Drop-down Lists'!$H$6) -> Pharmacien ou assistant en pharmacie (PTA) | C12: =IF($B12="",0,IF(ISNUMBER(MATCH($B12,'Task Assignment'!$F$8,0)),Clients_SM,0)) -> 0 | D12: =IF($B12="",0,IF(ISNUMBER(MATCH($B12,'Task Assignment'!$F$9,0)),Clients_SM,0)) -> 0 | E12: =IF($B12="",0,IF(ISNUMBER(MATCH($B12,'Task Assignment'!$F$10,0)),Clients_SM,0)) -> 0 | F12: =IF($B12="",0,IF(ISNUMBER(MATCH($B12,'Task Assignment'!$F$11,0)),Clients_SM,0)) -> 0 | G12: =IF($B12="",0,IF(ISNUMBER(MATCH($B12,'Task Assignment'!$F$12,0)),Clients_SM,0)) -> 0 | H12: =IF($B12="",0,IF(ISNUMBER(MATCH($B12,'Task Assignment'!$F$13,0)),Clients_SM,0)) -> 0 | I12: =IF($B12="",0,IF(ISNUMBER(MATCH($B12,'Task Assignment'!$F$14,0)),Clients_SM,0)) -> 0 | J12: =IF($B12="",0,IF(ISNUMBER(MATCH($B12,'Task Assignment'!$F$15,0)),Clients_SM,0)) -> 0 | K12: =IF($B12="",0,IF(ISNUMBER(MATCH($B12,'Task Assignment'!$F$17,0)),Clients_SM,0)) -> 0 | L12: =IF($B12="",0,IF(ISNUMBER(MATCH($B12,'Task Assignment'!$F$18,0)),Clients_SM,0)) -> 0 | M12: =IF($B12="",0,IF(ISNUMBER(MATCH($B12,'Task Assignment'!$F$19,0)),Clients_SM,0)) -> 0 | N12: =C12*'Task Assignment'!$L$8 -> 0 | O12: =D12*'Task Assignment'!$L$9 -> 0 | P12: =E12*'Task Assignment'!$L$10 -> 0 | Q12: =F12*'Task Assignment'!$L$11 -> 0 | R12: =G12*'Task Assignment'!$L$12 -> 0 | S12: =H12*'Task Assignment'!$L$13 -> 0 | T12: =I12*'Task Assignment'!$L$14 -> 0 | U12: =J12*'Task Assignment'!$L$15 -> 0 | V12: =K12*'Task Assignment'!$L$17 -> 0 | W12: =L12*'Task Assignment'!$L$18 -> 0 | X12: =M12*'Task Assignment'!$L$19 -> 0 | Y12: 0 | Z12: =C12*'Task Assignment'!$H$8*'Task Assignment'!$L$8/60 -> 0 | AA12: =D12*'Task Assignment'!$H$9*'Task Assignment'!$L$9/60 -> 0 | AB12: =E12*'Task Assignment'!$H$10*'Task Assignment'!$L$10/60 -> 0 | AC12: =F12*'Task Assignment'!$H$11*'Task Assignment'!$L$11/60 -> 0 | AD12: =G12*'Task Assignment'!$H$12*'Task Assignment'!$L$12/60 -> 0 | AE12: =H12*'Task Assignment'!$H$13*'Task Assignment'!$L$13/60 -> 0 | AF12: =I12*'Task Assignment'!$H$14*'Task Assignment'!$L$14/60 -> 0 | AG12: =J12*'Task Assignment'!$H$15*'Task Assignment'!$L$15/60 -> 0 | AH12: =K12*'Task Assignment'!$H$17*'Task Assignment'!$L$17/60 -> 0 | AI12: =L12*'Task Assignment'!$H$18*'Task Assignment'!$L$18/60 -> 0 | AJ12: =M12*'Task Assignment'!$H$19*'Task Assignment'!$L$19/60 -> 0 | AK12: 0 | AL12: =IF(EffWorkingHours_PTA=0,0,AK12/EffWorkingHours_PTA/50) -> 0 | AM12: =+AL12+AL50+AL88+AL126+AL164+AL202 -> 0 | AN12: =Providers!$Q10 -> 0 | AO12: 0 | AP12: =C12*'Task Assignment'!$I$8*'Task Assignment'!$L$8/60 -> 0 | AQ12: =D12*'Task Assignment'!$I$9*'Task Assignment'!$L$9/60 -> 0 | AR12: =E12*'Task Assignment'!$I$10*'Task Assignment'!$L$10/60 -> 0 | AS12: =F12*'Task Assignment'!$I$11*'Task Assignment'!$L$11/60 -> 0 | AT12: =G12*'Task Assignment'!$I$12*'Task Assignment'!$L$12/60 -> 0 | AU12: =H12*'Task Assignment'!$I$13*'Task Assignment'!$L$13/60 -> 0 | AV12: =I12*'Task Assignment'!$I$14*'Task Assignment'!$L$14/60 -> 0 | AW12: =J12*'Task Assignment'!$I$15*'Task Assignment'!$L$15/60 -> 0 | AX12: =K12*'Task Assignment'!$I$17*'Task Assignment'!$L$17/60 -> 0 | AY12: =L12*'Task Assignment'!$I$18*'Task Assignment'!$L$18/60 -> 0 | AZ12: =M12*'Task Assignment'!$I$19*'Task Assignment'!$L$19/60 -> 0 | BA12: 0 | BB12: =IF(EffWorkingHours_PTA=0,0,BA12/EffWorkingHours_PTA/50) -> 0 | BC12: =+BB12+BB50+BB88+BB126+BB164+BB202 -> 0 | BD12: =Providers!$Q10 -> 0 | BE12: 0 | BF12: =C12*'Task Assignment'!$K$8*'Task Assignment'!$L$8/60 -> 0 | BG12: =D12*'Task Assignment'!$K$9*'Task Assignment'!$L$9/60 -> 0 | BH12: =E12*'Task Assignment'!$K$10*'Task Assignment'!$L$10/60 -> 0 | BI12: =F12*'Task Assignment'!$K$11*'Task Assignment'!$L$11/60 -> 0 | BJ12: =G12*'Task Assignment'!$K$12*'Task Assignment'!$L$12/60 -> 0 | BK12: =H12*'Task Assignment'!$K$13*'Task Assignment'!$L$13/60 -> 0 | BL12: =I12*'Task Assignment'!$K$14*'Task Assignment'!$L$14/60 -> 0 | BM12: =J12*'Task Assignment'!$K$15*'Task Assignment'!$L$15/60 -> 0 | BN12: =K12*'Task Assignment'!$K$17*'Task Assignment'!$L$17/60 -> 0 | BO12: =L12*'Task Assignment'!$K$18*'Task Assignment'!$L$18/60 -> 0 | BP12: =M12*'Task Assignment'!$K$19*'Task Assignment'!$L$19/60 -> 0 | BQ12: 0 | BR12: =IF(EffWorkingHours_PTA=0,0,BQ12/EffWorkingHours_PTA/50) -> 0 | BS12: =+BR12+BR50+BR88+BR126+BR164+BR202 -> 0 | BT12: =Providers!$Q10 -> 0 | BU12: 0 | BW12: Pharmacien ou assistant en pharmacie (PTA) | BX12: No. | BY12: =IF(TS_Number_or_Percent=1,$C12,$BY13*Clients_SM) -> 0 | BZ12: =IF(TS_Number_or_Percent=1,$D12,$BZ13*Clients_SM) -> 0 | CA12: =IF(TS_Number_or_Percent=1,$E12,$CA13*Clients_SM) -> 0 | CB12: =IF(TS_Number_or_Percent=1,$F12,$CB13*Clients_SM) -> 0 | CC12: =IF(TS_Number_or_Percent=1,$G12,$CC13*Clients_SM) -> 0 | CD12: =IF(TS_Number_or_Percent=1,$H12,$CD13*Clients_SM) -> 0 | CE12: =IF(TS_Number_or_Percent=1,$I12,$CE13*Clients_SM) -> 0 | CF12: =IF(TS_Number_or_Percent=1,$J12,$CF13*Clients_SM) -> 0 | CG12: =IF(TS_Number_or_Percent=1,$K12,$CG13*Clients_SM) -> 0 | CH12: =IF(TS_Number_or_Percent=1,$L12,$CH13*Clients_SM) -> 0 | CI12: =IF(TS_Number_or_Percent=1,$M12,$CI13*Clients_SM) -> 0 | CJ12: =BY12*'Task Assignment'!$L$8 -> 0 | CK12: =BZ12*'Task Assignment'!$L$9 -> 0 | CL12: =CA12*'Task Assignment'!$L$10 -> 0 | CM12: =CB12*'Task Assignment'!$L$11 -> 0 | CN12: =CC12*'Task Assignment'!$L$12 -> 0 | CO12: =CD12*'Task Assignment'!$L$13 -> 0 | CP12: =CE12*'Task Assignment'!$L$14 -> 0 | CQ12: =CF12*'Task Assignment'!$L$15 -> 0 | CR12: =CG12*'Task Assignment'!$L$17 -> 0 | CS12: =CH12*'Task Assignment'!$L$18 -> 0 | CT12: =CI12*'Task Assignment'!$L$19 -> 0 | CU12: 0 | CV12: =BY12*'Task Assignment'!$H$8*'Task Assignment'!$L$8/60 -> 0 | CW12: =BZ12*'Task Assignment'!$H$9*'Task Assignment'!$L$9/60 -> 0 | CX12: =CA12*'Task Assignment'!$H$10*'Task Assignment'!$L$10/60 -> 0 | CY12: =CB12*'Task Assignment'!$H$11*'Task Assignment'!$L$11/60 -> 0 | CZ12: =CC12*'Task Assignment'!$H$12*'Task Assignment'!$L$12/60 -> 0 | DA12: =CD12*'Task Assignment'!$H$13*'Task Assignment'!$L$13/60 -> 0 | DB12: =CE12*'Task Assignment'!$H$14*'Task Assignment'!$L$14/60 -> 0 | DC12: =CF12*'Task Assignment'!$H$15*'Task Assignment'!$L$15/60 -> 0 | DD12: =CG12*'Task Assignment'!$H$17*'Task Assignment'!$L$17/60 -> 0 | DE12: =CH12*'Task Assignment'!$H$18*'Task Assignment'!$L$18/60 -> 0 | DF12: =CI12*'Task Assignment'!$H$19*'Task Assignment'!$L$19/60 -> 0 | DG12: 0 | DH12: =IF(EffWorkingHours_PTA=0,0,DG12/EffWorkingHours_PTA/50) -> 0 | DI12: =+DH12+DH50+DH88+DH126+DH164+DH202 -> 0 | DJ12: =Providers!$Q10 -> 0 | DK12: 0 | DL12: =BY12*'Task Assignment'!$I$8*'Task Assignment'!$L$8/60 -> 0 | DM12: =BZ12*'Task Assignment'!$I$9*'Task Assignment'!$L$9/60 -> 0 | DN12: =CA12*'Task Assignment'!$I$10*'Task Assignment'!$L$10/60 -> 0 | DO12: =CB12*'Task Assignment'!$I$11*'Task Assignment'!$L$11/60 -> 0 | DP12: =CC12*'Task Assignment'!$I$12*'Task Assignment'!$L$12/60 -> 0 | DQ12: =CD12*'Task Assignment'!$I$13*'Task Assignment'!$L$13/60 -> 0 | DR12: =CE12*'Task Assignment'!$I$14*'Task Assignment'!$L$14/60 -> 0 | DS12: =CF12*'Task Assignment'!$I$15*'Task Assignment'!$L$15/60 -> 0 | DT12: =CG12*'Task Assignment'!$I$17*'Task Assignment'!$L$17/60 -> 0 | DU12: =CH12*'Task Assignment'!$I$18*'Task Assignment'!$L$18/60 -> 0 | DV12: =CI12*'Task Assignment'!$I$19*'Task Assignment'!$L$19/60 -> 0 | DW12: 0 | DX12: =IF(EffWorkingHours_PTA=0,0,DW12/EffWorkingHours_PTA/50) -> 0 | DY12: =+DX12+DX50+DX88+DX126+DX164+DX202 -> 0 | DZ12: =Providers!$Q10 -> 0 | EA12: 0 | EB12: =BY12*'Task Assignment'!$K$8*'Task Assignment'!$L$8/60 -> 0 | EC12: =BZ12*'Task Assignment'!$K$9*'Task Assignment'!$L$9/60 -> 0 | ED12: =CA12*'Task Assignment'!$K$10*'Task Assignment'!$L$10/60 -> 0 | EE12: =CB12*'Task Assignment'!$K$11*'Task Assignment'!$L$11/60 -> 0 | EF12: =CC12*'Task Assignment'!$K$12*'Task Assignment'!$L$12/60 -> 0 | EG12: =CD12*'Task Assignment'!$K$13*'Task Assignment'!$L$13/60 -> 0 | EH12: =CE12*'Task Assignment'!$K$14*'Task Assignment'!$L$14/60 -> 0 | EI12: =CF12*'Task Assignment'!$K$15*'Task Assignment'!$L$15/60 -> 0 | EJ12: =CG12*'Task Assignment'!$K$17*'Task Assignment'!$L$17/60 -> 0 | EK12: =CH12*'Task Assignment'!$K$18*'Task Assignment'!$L$18/60 -> 0 | EL12: =CI12*'Task Assignment'!$K$19*'Task Assignment'!$L$19/60 -> 0 | EM12: 0 | EN12: =IF(EffWorkingHours_PTA=0,0,EM12/EffWorkingHours_PTA/50) -> 0 | EO12: =+EN12+EN50+EN88+EN126+EN164+EN202 -> 0 | EP12: =Providers!$Q10 -> 0 | EQ12: 0 | ES12: =BW12 -> Pharmacien ou assistant en pharmacie (PTA) | ET12: No. | EU12: =IF(TS_Number_or_Percent=1,$C12,$EU13*Clients_SM) -> 0 | EV12: =IF(TS_Number_or_Percent=1,$D12,$EV13*Clients_SM) -> 0 | EW12: =IF(TS_Number_or_Percent=1,$E12,$EW13*Clients_SM) -> 0 | EX12: =IF(TS_Number_or_Percent=1,$F12,$EX13*Clients_SM) -> 0 | EY12: =IF(TS_Number_or_Percent=1,$G12,$EY13*Clients_SM) -> 0 | EZ12: =IF(TS_Number_or_Percent=1,$H12,$EZ13*Clients_SM) -> 0 | FA12: =IF(TS_Number_or_Percent=1,$I12,$FA13*Clients_SM) -> 0 | FB12: =IF(TS_Number_or_Percent=1,$J12,$FB13*Clients_SM) -> 0 | FC12: =IF(TS_Number_or_Percent=1,$K12,$FC13*Clients_SM) -> 0 | FD12: =IF(TS_Number_or_Percent=1,$L12,$FD13*Clients_SM) -> 0 | FE12: =IF(TS_Number_or_Percent=1,$M12,$FE13*Clients_SM) -> 0 | FF12: =EU12*'Task Assignment'!$L$8 -> 0 | FG12: =EV12*'Task Assignment'!$L$9 -> 0 | FH12: =EW12*'Task Assignment'!$L$10 -> 0 | FI12: =EX12*'Task Assignment'!$L$11 -> 0 | FJ12: =EY12*'Task Assignment'!$L$12 -> 0 | FK12: =EZ12*'Task Assignment'!$L$13 -> 0 | FL12: =FA12*'Task Assignment'!$L$14 -> 0 | FM12: =FB12*'Task Assignment'!$L$15 -> 0 | FN12: =FC12*'Task Assignment'!$L$17 -> 0 | FO12: =FD12*'Task Assignment'!$L$18 -> 0 | FP12: =FE12*'Task Assignment'!$L$19 -> 0 | FQ12: 0 | FR12: =EU12*'Task Assignment'!$H$8*'Task Assignment'!$L$8/60 -> 0 | FS12: =EV12*'Task Assignment'!$H$9*'Task Assignment'!$L$9/60 -> 0 | FT12: =EW12*'Task Assignment'!$H$10*'Task Assignment'!$L$10/60 -> 0 | FU12: =EX12*'Task Assignment'!$H$11*'Task Assignment'!$L$11/60 -> 0 | FV12: =EY12*'Task Assignment'!$H$12*'Task Assignment'!$L$12/60 -> 0 | FW12: =EZ12*'Task Assignment'!$H$13*'Task Assignment'!$L$13/60 -> 0 | FX12: =FA12*'Task Assignment'!$H$14*'Task Assignment'!$L$14/60 -> 0 | FY12: =FB12*'Task Assignment'!$H$15*'Task Assignment'!$L$15/60 -> 0 | FZ12: =FC12*'Task Assignment'!$H$17*'Task Assignment'!$L$17/60 -> 0 | GA12: =FD12*'Task Assignment'!$H$18*'Task Assignment'!$L$18/60 -> 0 | GB12: =FE12*'Task Assignment'!$H$19*'Task Assignment'!$L$19/60 -> 0 | GC12: 0 | GD12: =IF(EffWorkingHours_PTA=0,0,GC12/EffWorkingHours_PTA/50) -> 0 | GE12: =+GD12+GD50+GD88+GD126+GD164+GD202 -> 0 | GF12: =Providers!$Q10 -> 0 | GG12: 0 | GH12: =EU12*'Task Assignment'!$I$8*'Task Assignment'!$L$8/60 -> 0 | GI12: =EV12*'Task Assignment'!$I$9*'Task Assignment'!$L$9/60 -> 0 | GJ12: =EW12*'Task Assignment'!$I$10*'Task Assignment'!$L$10/60 -> 0 | GK12: =EX12*'Task Assignment'!$I$11*'Task Assignment'!$L$11/60 -> 0 | GL12: =EY12*'Task Assignment'!$I$12*'Task Assignment'!$L$12/60 -> 0 | GM12: =EZ12*'Task Assignment'!$I$13*'Task Assignment'!$L$13/60 -> 0 | GN12: =FA12*'Task Assignment'!$I$14*'Task Assignment'!$L$14/60 -> 0 | GO12: =FB12*'Task Assignment'!$I$15*'Task Assignment'!$L$15/60 -> 0 | GP12: =FC12*'Task Assignment'!$I$17*'Task Assignment'!$L$17/60 -> 0 | GQ12: =FD12*'Task Assignment'!$I$18*'Task Assignment'!$L$18/60 -> 0 | GR12: =FE12*'Task Assignment'!$I$19*'Task Assignment'!$L$19/60 -> 0 | GS12: 0 | GT12: =IF(EffWorkingHours_PTA=0,0,GS12/EffWorkingHours_PTA/50) -> 0 | GU12: =+GT12+GT50+GT88+GT126+GT164+GT202 -> 0 | GV12: =Providers!$Q10 -> 0 | GW12: 0 | GX12: =EU12*'Task Assignment'!$K$8*'Task Assignment'!$L$8/60 -> 0 | GY12: =EV12*'Task Assignment'!$K$9*'Task Assignment'!$L$9/60 -> 0 | GZ12: =EW12*'Task Assignment'!$K$10*'Task Assignment'!$L$10/60 -> 0 | HA12: =EX12*'Task Assignment'!$K$11*'Task Assignment'!$L$11/60 -> 0 | HB12: =EY12*'Task Assignment'!$K$12*'Task Assignment'!$L$12/60 -> 0 | HC12: =EZ12*'Task Assignment'!$K$13*'Task Assignment'!$L$13/60 -> 0 | HD12: =FA12*'Task Assignment'!$K$14*'Task Assignment'!$L$14/60 -> 0 | HE12: =FB12*'Task Assignment'!$K$15*'Task Assignment'!$L$15/60 -> 0 | HF12: =FC12*'Task Assignment'!$K$17*'Task Assignment'!$L$17/60 -> 0 | HG12: =FD12*'Task Assignment'!$K$18*'Task Assignment'!$L$18/60 -> 0 | HH12: =FE12*'Task Assignment'!$K$19*'Task Assignment'!$L$19/60 -> 0 | HI12: 0 | HJ12: =IF(EffWorkingHours_PTA=0,0,HI12/EffWorkingHours_PTA/50) -> 0 | HK12: =+HJ12+HJ50+HJ88+HJ126+HJ164+HJ202 -> 0 | HL12: =Providers!$Q10 -> 0 | HM12: 0 | HR12: =IF(TS_Number_or_Percent=1,$C12,$BY13*Clients_SM) -> 0 | HS12: =IF(TS_Number_or_Percent=1,$D12,$BZ13*Clients_SM) -> 0 | HT12: =IF(TS_Number_or_Percent=1,$E12,$CA13*Clients_SM) -> 0 | HU12: =IF(TS_Number_or_Percent=1,$F12,$CB13*Clients_SM) -> 0 | HV12: =IF(TS_Number_or_Percent=1,$G12,$CC13*Clients_SM) -> 0 | HW12: =IF(TS_Number_or_Percent=1,$H12,$CD13*Clients_SM) -> 0 | HX12: =IF(TS_Number_or_Percent=1,$I12,$CE13*Clients_SM) -> 0 | HY12: =IF(TS_Number_or_Percent=1,$J12,$CF13*Clients_SM) -> 0 | HZ12: =IF(TS_Number_or_Percent=1,$K12,$CG13*Clients_SM) -> 0 | IA12: =IF(TS_Number_or_Percent=1,$L12,$CH13*Clients_SM) -> 0 | IB12: =IF(TS_Number_or_Percent=1,$M12,$CI13*Clients_SM) -> 0 | ID12: =IF(TS_Number_or_Percent=1,$C12,$EU13*Clients_SM) -> 0 | IE12: =IF(TS_Number_or_Percent=1,$D12,$EV13*Clients_SM) -> 0 | IF12: =IF(TS_Number_or_Percent=1,$E12,$EW13*Clients_SM) -> 0 | IG12: =IF(TS_Number_or_Percent=1,$F12,$EX13*Clients_SM) -> 0 | IH12: =IF(TS_Number_or_Percent=1,$G12,$EY13*Clients_SM) -> 0 | II12: =IF(TS_Number_or_Percent=1,$H12,$EZ13*Clients_SM) -> 0 | IJ12: =IF(TS_Number_or_Percent=1,$I12,$FA13*Clients_SM) -> 0 | IK12: =IF(TS_Number_or_Percent=1,$J12,$FB13*Clients_SM) -> 0 | IL12: =IF(TS_Number_or_Percent=1,$K12,$FC13*Clients_SM) -> 0 | IM12: =IF(TS_Number_or_Percent=1,$L12,$FD13*Clients_SM) -> 0 | IN12: =IF(TS_Number_or_Percent=1,$M12,$FE13*Clients_SM) -> 0
BX13: % | BY13: =IF(Clients_SM=0,0,IF(TS_Number_or_Percent=1,$BY12/Clients_SM,$C12/Clients_SM)) -> 0 | BZ13: =IF(Clients_SM=0,0,IF(TS_Number_or_Percent=1,$BZ12/Clients_SM,D12/Clients_SM)) -> 0 | CA13: =IF(Clients_SM=0,0,IF(TS_Number_or_Percent=1,$CA12/Clients_SM,E12/Clients_SM)) -> 0 | CB13: 0.11 | CC13: =IF(Clients_SM=0,0,IF(TS_Number_or_Percent=1,$CC12/Clients_SM,G12/Clients_SM)) -> 0 | CD13: =IF(Clients_SM=0,0,IF(TS_Number_or_Percent=1,$CD12/Clients_SM,H12/Clients_SM)) -> 0 | CE13: =IF(Clients_SM=0,0,IF(TS_Number_or_Percent=1,$CE12/Clients_SM,I12/Clients_SM)) -> 0 | CF13: =IF(Clients_SM=0,0,IF(TS_Number_or_Percent=1,$CF12/Clients_SM,J12/Clients_SM)) -> 0 | CG13: 0 | CH13: =IF(Clients_SM=0,0,IF(TS_Number_or_Percent=1,$CH12/Clients_SM,L12/Clients_SM)) -> 0 | CI13: =IF(Clients_SM=0,0,IF(TS_Number_or_Percent=1,$CI12/Clients_SM,M12/Clients_SM)) -> 0 | ET13: % | EU13: =IF(Clients_SM=0,0,IF(TS_Number_or_Percent=1,$EU12/Clients_SM,C12/Clients_SM)) -> 0 | EV13: =IF(Clients_SM=0,0,IF(TS_Number_or_Percent=1,$EV12/Clients_SM,D12/Clients_SM)) -> 0 | EW13: =IF(Clients_SM=0,0,IF(TS_Number_or_Percent=1,$EW12/Clients_SM,$E12/Clients_SM)) -> 0 | EX13: =IF(Clients_SM=0,0,IF(TS_Number_or_Percent=1,$EX12/Clients_SM,$F12/Clients_SM)) -> 0 | EY13: =IF(Clients_SM=0,0,IF(TS_Number_or_Percent=1,$EY12/Clients_SM,G12/Clients_SM)) -> 0 | EZ13: =IF(Clients_SM=0,0,IF(TS_Number_or_Percent=1,$EZ12/Clients_SM,H12/Clients_SM)) -> 0 | FA13: =IF(Clients_SM=0,0,IF(TS_Number_or_Percent=1,$FA12/Clients_SM,I12/Clients_SM)) -> 0 | FB13: =IF(Clients_SM=0,0,IF(TS_Number_or_Percent=1,$FB12/Clients_SM,J12/Clients_SM)) -> 0 | FC13: =IF(Clients_SM=0,0,IF(TS_Number_or_Percent=1,$FC12/Clients_SM,K12/Clients_SM)) -> 0 | FD13: =IF(Clients_SM=0,0,IF(TS_Number_or_Percent=1,$FD12/Clients_SM,L12/Clients_SM)) -> 0 | FE13: =IF(Clients_SM=0,0,IF(TS_Number_or_Percent=1,$FE12/Clients_SM,M12/Clients_SM)) -> 0 | HR13: =IF(Clients_SM=0,0,IF(TS_Number_or_Percent=1,$BY12/Clients_SM,$C12/Clients_SM)) -> 0 | HS13: =IF(Clients_SM=0,0,IF(TS_Number_or_Percent=1,$BZ12/Clients_SM,EW12/Clients_SM)) -> 0 | HT13: =IF(Clients_SM=0,0,IF(TS_Number_or_Percent=1,$CA12/Clients_SM,EX12/Clients_SM)) -> 0 | HU13: =IF(Clients_SM=0,0,IF(TS_Number_or_Percent=1,$CB12/Clients_SM,EY12/Clients_SM)) -> 0 | HV13: =IF(Clients_SM=0,0,IF(TS_Number_or_Percent=1,$CC12/Clients_SM,EZ12/Clients_SM)) -> 0 | HW13: =IF(Clients_SM=0,0,IF(TS_Number_or_Percent=1,$CD12/Clients_SM,FA12/Clients_SM)) -> 0 | HX13: =IF(Clients_SM=0,0,IF(TS_Number_or_Percent=1,$CE12/Clients_SM,FB12/Clients_SM)) -> 0 | HY13: =IF(Clients_SM=0,0,IF(TS_Number_or_Percent=1,$CF12/Clients_SM,FC12/Clients_SM)) -> 0 | HZ13: =IF(Clients_SM=0,0,IF(TS_Number_or_Percent=1,$CG12/Clients_SM,FD12/Clients_SM)) -> 0 | IA13: =IF(Clients_SM=0,0,IF(TS_Number_or_Percent=1,$CH12/Clients_SM,FE12/Clients_SM)) -> 0 | IB13: =IF(Clients_SM=0,0,IF(TS_Number_or_Percent=1,$CI12/Clients_SM,FF12/Clients_SM)) -> 0 | ID13: =IF(Clients_SM=0,0,IF(TS_Number_or_Percent=1,$EU12/Clients_SM,CL12/Clients_SM)) -> 0 | IE13: =IF(Clients_SM=0,0,IF(TS_Number_or_Percent=1,$EV12/Clients_SM,CM12/Clients_SM)) -> 0 | IF13: =IF(Clients_SM=0,0,IF(TS_Number_or_Percent=1,$EW12/Clients_SM,$E12/Clients_SM)) -> 0 | IG13: =IF(Clients_SM=0,0,IF(TS_Number_or_Percent=1,$EX12/Clients_SM,$F12/Clients_SM)) -> 0 | IH13: =IF(Clients_SM=0,0,IF(TS_Number_or_Percent=1,$EY12/Clients_SM,CP12/Clients_SM)) -> 0 | II13: =IF(Clients_SM=0,0,IF(TS_Number_or_Percent=1,$EZ12/Clients_SM,CQ12/Clients_SM)) -> 0 | IJ13: =IF(Clients_SM=0,0,IF(TS_Number_or_Percent=1,$FA12/Clients_SM,CR12/Clients_SM)) -> 0 | IK13: =IF(Clients_SM=0,0,IF(TS_Number_or_Percent=1,$FB12/Clients_SM,CS12/Clients_SM)) -> 0 | IL13: =IF(Clients_SM=0,0,IF(TS_Number_or_Percent=1,$FC12/Clients_SM,CT12/Clients_SM)) -> 0 | IM13: =IF(Clients_SM=0,0,IF(TS_Number_or_Percent=1,$FD12/Clients_SM,CU12/Clients_SM)) -> 0 | IN13: =IF(Clients_SM=0,0,IF(TS_Number_or_Percent=1,$FE12/Clients_SM,CV12/Clients_SM)) -> 0
A14: Nurse (N) | B14: =IF(Language=1,'Drop-down Lists'!$G$7,'Drop-down Lists'!$H$7) -> Infirmier (N) | C14: =IF($B14="",0,IF(ISNUMBER(MATCH($B14,'Task Assignment'!$F$8,0)),Clients_SM,0)) -> 0 | D14: =IF($B14="",0,IF(ISNUMBER(MATCH($B14,'Task Assignment'!$F$9,0)),Clients_SM,0)) -> 0 | E14: =IF($B14="",0,IF(ISNUMBER(MATCH($B14,'Task Assignment'!$F$10,0)),Clients_SM,0)) -> 0 | F14: =IF($B14="",0,IF(ISNUMBER(MATCH($B14,'Task Assignment'!$F$11,0)),Clients_SM,0)) -> 0 | G14: =IF($B14="",0,IF(ISNUMBER(MATCH($B14,'Task Assignment'!$F$12,0)),Clients_SM,0)) -> 0 | H14: =IF($B14="",0,IF(ISNUMBER(MATCH($B14,'Task Assignment'!$F$13,0)),Clients_SM,0)) -> 0 | I14: =IF($B14="",0,IF(ISNUMBER(MATCH($B14,'Task Assignment'!$F$14,0)),Clients_SM,0)) -> 0 | J14: =IF($B14="",0,IF(ISNUMBER(MATCH($B14,'Task Assignment'!$F$15,0)),Clients_SM,0)) -> 0 | K14: =IF($B14="",0,IF(ISNUMBER(MATCH($B14,'Task Assignment'!$F$17,0)),Clients_SM,0)) -> 0 | L14: =IF($B14="",0,IF(ISNUMBER(MATCH($B14,'Task Assignment'!$F$18,0)),Clients_SM,0)) -> 0 | M14: =IF($B14="",0,IF(ISNUMBER(MATCH($B14,'Task Assignment'!$F$19,0)),Clients_SM,0)) -> 0 | N14: =C14*'Task Assignment'!$L$8 -> 0 | O14: =D14*'Task Assignment'!$L$9 -> 0 | P14: =E14*'Task Assignment'!$L$10 -> 0 | Q14: =F14*'Task Assignment'!$L$11 -> 0 | R14: =G14*'Task Assignment'!$L$12 -> 0 | S14: =H14*'Task Assignment'!$L$13 -> 0 | T14: =I14*'Task Assignment'!$L$14 -> 0 | U14: =J14*'Task Assignment'!$L$15 -> 0 | V14: =K14*'Task Assignment'!$L$17 -> 0 | W14: =L14*'Task Assignment'!$L$18 -> 0 | X14: =M14*'Task Assignment'!$L$19 -> 0 | Y14: 0 | Z14: =C14*'Task Assignment'!$H$8*'Task Assignment'!$L$8/60 -> 0 | AA14: =D14*'Task Assignment'!$H$9*'Task Assignment'!$L$9/60 -> 0 | AB14: =E14*'Task Assignment'!$H$10*'Task Assignment'!$L$10/60 -> 0 | AC14: =F14*'Task Assignment'!$H$11*'Task Assignment'!$L$11/60 -> 0 | AD14: =G14*'Task Assignment'!$H$12*'Task Assignment'!$L$12/60 -> 0 | AE14: =H14*'Task Assignment'!$H$13*'Task Assignment'!$L$13/60 -> 0 | AF14: =I14*'Task Assignment'!$H$14*'Task Assignment'!$L$14/60 -> 0 | AG14: =J14*'Task Assignment'!$H$15*'Task Assignment'!$L$15/60 -> 0 | AH14: =K14*'Task Assignment'!$H$17*'Task Assignment'!$L$17/60 -> 0 | AI14: =L14*'Task Assignment'!$H$18*'Task Assignment'!$L$18/60 -> 0 | AJ14: =M14*'Task Assignment'!$H$19*'Task Assignment'!$L$19/60 -> 0 | AK14: 0 | AL14: =IF(EffWorkingHours_N=0,0,AK14/EffWorkingHours_N/50) -> 0 | AM14: =+AL14+AL52+AL90+AL128+AL166+AL204 -> 0 | AN14: =Providers!$Q11 -> 0 | AO14: 0 | AP14: =C14*'Task Assignment'!$I$8*'Task Assignment'!$L$8/60 -> 0 | AQ14: =D14*'Task Assignment'!$I$9*'Task Assignment'!$L$9/60 -> 0 | AR14: =E14*'Task Assignment'!$I$10*'Task Assignment'!$L$10/60 -> 0 | AS14: =F14*'Task Assignment'!$I$11*'Task Assignment'!$L$11/60 -> 0 | AT14: =G14*'Task Assignment'!$I$12*'Task Assignment'!$L$12/60 -> 0 | AU14: =H14*'Task Assignment'!$I$13*'Task Assignment'!$L$13/60 -> 0 | AV14: =I14*'Task Assignment'!$I$14*'Task Assignment'!$L$14/60 -> 0 | AW14: =J14*'Task Assignment'!$I$15*'Task Assignment'!$L$15/60 -> 0 | AX14: =K14*'Task Assignment'!$I$17*'Task Assignment'!$L$17/60 -> 0 | AY14: =L14*'Task Assignment'!$I$18*'Task Assignment'!$L$18/60 -> 0 | AZ14: =M14*'Task Assignment'!$I$19*'Task Assignment'!$L$19/60 -> 0 | BA14: 0 | BB14: =IF(EffWorkingHours_N=0,0,BA14/EffWorkingHours_N/50) -> 0 | BC14: =+BB14+BB52+BB90+BB128+BB166+BB204 -> 0 | BD14: =Providers!$Q11 -> 0 | BE14: 0 | BF14: =C14*'Task Assignment'!$K$8*'Task Assignment'!$L$8/60 -> 0 | BG14: =D14*'Task Assignment'!$K$9*'Task Assignment'!$L$9/60 -> 0 | BH14: =E14*'Task Assignment'!$K$10*'Task Assignment'!$L$10/60 -> 0 | BI14: =F14*'Task Assignment'!$K$11*'Task Assignment'!$L$11/60 -> 0 | BJ14: =G14*'Task Assignment'!$K$12*'Task Assignment'!$L$12/60 -> 0 | BK14: =H14*'Task Assignment'!$K$13*'Task Assignment'!$L$13/60 -> 0 | BL14: =I14*'Task Assignment'!$K$14*'Task Assignment'!$L$14/60 -> 0 | BM14: =J14*'Task Assignment'!$K$15*'Task Assignment'!$L$15/60 -> 0 | BN14: =K14*'Task Assignment'!$K$17*'Task Assignment'!$L$17/60 -> 0 | BO14: =L14*'Task Assignment'!$K$18*'Task Assignment'!$L$18/60 -> 0 | BP14: =M14*'Task Assignment'!$K$19*'Task Assignment'!$L$19/60 -> 0 | BQ14: 0 | BR14: =IF(EffWorkingHours_N=0,0,BQ14/EffWorkingHours_N/50) -> 0 | BS14: =+BR14+BR52+BR90+BR128+BR166+BR204 -> 0 | BT14: =Providers!$Q11 -> 0 | BU14: 0 | BW14: Infirmier (N) | BX14: No. | BY14: =IF(TS_Number_or_Percent=1,$C14,$BY15*Clients_SM) -> 0 | BZ14: =IF(TS_Number_or_Percent=1,$D14,$BZ15*Clients_SM) -> 0 | CA14: =IF(TS_Number_or_Percent=1,$E14,$CA15*Clients_SM) -> 0 | CB14: =IF(TS_Number_or_Percent=1,$F14,$CB15*Clients_SM) -> 0 | CC14: =IF(TS_Number_or_Percent=1,$G14,$CC15*Clients_SM) -> 0 | CD14: =IF(TS_Number_or_Percent=1,$H14,$CD15*Clients_SM) -> 0 | CE14: =IF(TS_Number_or_Percent=1,$I14,$CE15*Clients_SM) -> 0 | CF14: =IF(TS_Number_or_Percent=1,$J14,$CF15*Clients_SM) -> 0 | CG14: =IF(TS_Number_or_Percent=1,$K14,$CG15*Clients_SM) -> 0 | CH14: =IF(TS_Number_or_Percent=1,$L14,$CH15*Clients_SM) -> 0 | CI14: =IF(TS_Number_or_Percent=1,$M14,$CI15*Clients_SM) -> 0 | CJ14: =BY14*'Task Assignment'!$L$8 -> 0 | CK14: =BZ14*'Task Assignment'!$L$9 -> 0 | CL14: =CA14*'Task Assignment'!$L$10 -> 0 | CM14: =CB14*'Task Assignment'!$L$11 -> 0 | CN14: =CC14*'Task Assignment'!$L$12 -> 0 | CO14: =CD14*'Task Assignment'!$L$13 -> 0 | CP14: =CE14*'Task Assignment'!$L$14 -> 0 | CQ14: =CF14*'Task Assignment'!$L$15 -> 0 | CR14: =CG14*'Task Assignment'!$L$17 -> 0 | CS14: =CH14*'Task Assignment'!$L$18 -> 0 | CT14: =CI14*'Task Assignment'!$L$19 -> 0 | CU14: 0 | CV14: =BY14*'Task Assignment'!$H$8*'Task Assignment'!$L$8/60 -> 0 | CW14: =BZ14*'Task Assignment'!$H$9*'Task Assignment'!$L$9/60 -> 0 | CX14: =CA14*'Task Assignment'!$H$10*'Task Assignment'!$L$10/60 -> 0 | CY14: =CB14*'Task Assignment'!$H$11*'Task Assignment'!$L$11/60 -> 0 | CZ14: =CC14*'Task Assignment'!$H$12*'Task Assignment'!$L$12/60 -> 0 | DA14: =CD14*'Task Assignment'!$H$13*'Task Assignment'!$L$13/60 -> 0 | DB14: =CE14*'Task Assignment'!$H$14*'Task Assignment'!$L$14/60 -> 0 | DC14: =CF14*'Task Assignment'!$H$15*'Task Assignment'!$L$15/60 -> 0 | DD14: =CG14*'Task Assignment'!$H$17*'Task Assignment'!$L$17/60 -> 0 | DE14: =CH14*'Task Assignment'!$H$18*'Task Assignment'!$L$18/60 -> 0 | DF14: =CI14*'Task Assignment'!$H$19*'Task Assignment'!$L$19/60 -> 0 | DG14: 0 | DH14: =IF(EffWorkingHours_N=0,0,DG14/EffWorkingHours_N/50) -> 0 | DI14: =+DH14+DH52+DH90+DH128+DH166+DH204 -> 0 | DJ14: =Providers!$Q11 -> 0 | DK14: 0 | DL14: =BY14*'Task Assignment'!$I$8*'Task Assignment'!$L$8/60 -> 0 | DM14: =BZ14*'Task Assignment'!$I$9*'Task Assignment'!$L$9/60 -> 0 | DN14: =CA14*'Task Assignment'!$I$10*'Task Assignment'!$L$10/60 -> 0 | DO14: =CB14*'Task Assignment'!$I$11*'Task Assignment'!$L$11/60 -> 0 | DP14: =CC14*'Task Assignment'!$I$12*'Task Assignment'!$L$12/60 -> 0 | DQ14: =CD14*'Task Assignment'!$I$13*'Task Assignment'!$L$13/60 -> 0 | DR14: =CE14*'Task Assignment'!$I$14*'Task Assignment'!$L$14/60 -> 0 | DS14: =CF14*'Task Assignment'!$I$15*'Task Assignment'!$L$15/60 -> 0 | DT14: =CG14*'Task Assignment'!$I$17*'Task Assignment'!$L$17/60 -> 0 | DU14: =CH14*'Task Assignment'!$I$18*'Task Assignment'!$L$18/60 -> 0 | DV14: =CI14*'Task Assignment'!$I$19*'Task Assignment'!$L$19/60 -> 0 | DW14: 0 | DX14: =IF(EffWorkingHours_N=0,0,DW14/EffWorkingHours_N/50) -> 0 | DY14: =+DX14+DX52+DX90+DX128+DX166+DX204 -> 0 | DZ14: =Providers!$Q11 -> 0 | EA14: 0 | EB14: =BY14*'Task Assignment'!$K$8*'Task Assignment'!$L$8/60 -> 0 | EC14: =BZ14*'Task Assignment'!$K$9*'Task Assignment'!$L$9/60 -> 0 | ED14: =CA14*'Task Assignment'!$K$10*'Task Assignment'!$L$10/60 -> 0 | EE14: =CB14*'Task Assignment'!$K$11*'Task Assignment'!$L$11/60 -> 0 | EF14: =CC14*'Task Assignment'!$K$12*'Task Assignment'!$L$12/60 -> 0 | EG14: =CD14*'Task Assignment'!$K$13*'Task Assignment'!$L$13/60 -> 0 | EH14: =CE14*'Task Assignment'!$K$14*'Task Assignment'!$L$14/60 -> 0 | EI14: =CF14*'Task Assignment'!$K$15*'Task Assignment'!$L$15/60 -> 0 | EJ14: =CG14*'Task Assignment'!$K$17*'Task Assignment'!$L$17/60 -> 0 | EK14: =CH14*'Task Assignment'!$K$18*'Task Assignment'!$L$18/60 -> 0 | EL14: =CI14*'Task Assignment'!$K$19*'Task Assignment'!$L$19/60 -> 0 | EM14: 0 | EN14: =IF(EffWorkingHours_N=0,0,EM14/EffWorkingHours_N/50) -> 0 | EO14: =+EN14+EN52+EN90+EN128+EN166+EN204 -> 0 | EP14: =Providers!$Q11 -> 0 | EQ14: 0 | ES14: =BW14 -> Infirmier (N) | ET14: No. | EU14: =IF(TS_Number_or_Percent=1,$C14,$EU15*Clients_SM) -> 0 | EV14: =IF(TS_Number_or_Percent=1,$D14,$EV15*Clients_SM) -> 0 | EW14: =IF(TS_Number_or_Percent=1,$E14,$EW15*Clients_SM) -> 0 | EX14: =IF(TS_Number_or_Percent=1,$F14,$EX15*Clients_SM) -> 0 | EY14: =IF(TS_Number_or_Percent=1,$G14,$EY15*Clients_SM) -> 0 | EZ14: =IF(TS_Number_or_Percent=1,$H14,$EZ15*Clients_SM) -> 0 | FA14: =IF(TS_Number_or_Percent=1,$I14,$FA15*Clients_SM) -> 0 | FB14: =IF(TS_Number_or_Percent=1,$J14,$FB15*Clients_SM) -> 0 | FC14: =IF(TS_Number_or_Percent=1,$K14,$FC15*Clients_SM) -> 0 | FD14: =IF(TS_Number_or_Percent=1,$L14,$FD15*Clients_SM) -> 0 | FE14: =IF(TS_Number_or_Percent=1,$M14,$FE15*Clients_SM) -> 0 | FF14: =EU14*'Task Assignment'!$L$8 -> 0 | FG14: =EV14*'Task Assignment'!$L$9 -> 0 | FH14: =EW14*'Task Assignment'!$L$10 -> 0 | FI14: =EX14*'Task Assignment'!$L$11 -> 0 | FJ14: =EY14*'Task Assignment'!$L$12 -> 0 | FK14: =EZ14*'Task Assignment'!$L$13 -> 0 | FL14: =FA14*'Task Assignment'!$L$14 -> 0 | FM14: =FB14*'Task Assignment'!$L$15 -> 0 | FN14: =FC14*'Task Assignment'!$L$17 -> 0 | FO14: =FD14*'Task Assignment'!$L$18 -> 0 | FP14: =FE14*'Task Assignment'!$L$19 -> 0 | FQ14: 0 | FR14: =EU14*'Task Assignment'!$H$8*'Task Assignment'!$L$8/60 -> 0 | FS14: =EV14*'Task Assignment'!$H$9*'Task Assignment'!$L$9/60 -> 0 | FT14: =EW14*'Task Assignment'!$H$10*'Task Assignment'!$L$10/60 -> 0 | FU14: =EX14*'Task Assignment'!$H$11*'Task Assignment'!$L$11/60 -> 0 | FV14: =EY14*'Task Assignment'!$H$12*'Task Assignment'!$L$12/60 -> 0 | FW14: =EZ14*'Task Assignment'!$H$13*'Task Assignment'!$L$13/60 -> 0 | FX14: =FA14*'Task Assignment'!$H$14*'Task Assignment'!$L$14/60 -> 0 | FY14: =FB14*'Task Assignment'!$H$15*'Task Assignment'!$L$15/60 -> 0 | FZ14: =FC14*'Task Assignment'!$H$17*'Task Assignment'!$L$17/60 -> 0 | GA14: =FD14*'Task Assignment'!$H$18*'Task Assignment'!$L$18/60 -> 0 | GB14: =FE14*'Task Assignment'!$H$19*'Task Assignment'!$L$19/60 -> 0 | GC14: 0 | GD14: =IF(EffWorkingHours_N=0,0,GC14/EffWorkingHours_N/50) -> 0 | GE14: =+GD14+GD52+GD90+GD128+GD166+GD204 -> 0 | GF14: =Providers!$Q11 -> 0 | GG14: 0 | GH14: =EU14*'Task Assignment'!$I$8*'Task Assignment'!$L$8/60 -> 0 | GI14: =EV14*'Task Assignment'!$I$9*'Task Assignment'!$L$9/60 -> 0 | GJ14: =EW14*'Task Assignment'!$I$10*'Task Assignment'!$L$10/60 -> 0 | GK14: =EX14*'Task Assignment'!$I$11*'Task Assignment'!$L$11/60 -> 0 | GL14: =EY14*'Task Assignment'!$I$12*'Task Assignment'!$L$12/60 -> 0 | GM14: =EZ14*'Task Assignment'!$I$13*'Task Assignment'!$L$13/60 -> 0 | GN14: =FA14*'Task Assignment'!$I$14*'Task Assignment'!$L$14/60 -> 0 | GO14: =FB14*'Task Assignment'!$I$15*'Task Assignment'!$L$15/60 -> 0 | GP14: =FC14*'Task Assignment'!$I$17*'Task Assignment'!$L$17/60 -> 0 | GQ14: =FD14*'Task Assignment'!$I$18*'Task Assignment'!$L$18/60 -> 0 | GR14: =FE14*'Task Assignment'!$I$19*'Task Assignment'!$L$19/60 -> 0 | GS14: 0 | GT14: =IF(EffWorkingHours_N=0,0,GS14/EffWorkingHours_N/50) -> 0 | GU14: =+GT14+GT52+GT90+GT128+GT166+GT204 -> 0 | GV14: =Providers!$Q11 -> 0 | GW14: 0 | GX14: =EU14*'Task Assignment'!$K$8*'Task Assignment'!$L$8/60 -> 0 | GY14: =EV14*'Task Assignment'!$K$9*'Task Assignment'!$L$9/60 -> 0 | GZ14: =EW14*'Task Assignment'!$K$10*'Task Assignment'!$L$10/60 -> 0 | HA14: =EX14*'Task Assignment'!$K$11*'Task Assignment'!$L$11/60 -> 0 | HB14: =EY14*'Task Assignment'!$K$12*'Task Assignment'!$L$12/60 -> 0 | HC14: =EZ14*'Task Assignment'!$K$13*'Task Assignment'!$L$13/60 -> 0 | HD14: =FA14*'Task Assignment'!$K$14*'Task Assignment'!$L$14/60 -> 0 | HE14: =FB14*'Task Assignment'!$K$15*'Task Assignment'!$L$15/60 -> 0 | HF14: =FC14*'Task Assignment'!$K$17*'Task Assignment'!$L$17/60 -> 0 | HG14: =FD14*'Task Assignment'!$K$18*'Task Assignment'!$L$18/60 -> 0 | HH14: =FE14*'Task Assignment'!$K$19*'Task Assignment'!$L$19/60 -> 0 | HI14: 0 | HJ14: =IF(EffWorkingHours_N=0,0,HI14/EffWorkingHours_N/50) -> 0 | HK14: =+HJ14+HJ52+HJ90+HJ128+HJ166+HJ204 -> 0 | HL14: =Providers!$Q11 -> 0 | HM14: 0 | HR14: =IF(TS_Number_or_Percent=1,$C14,$BY15*Clients_SM) -> 0 | HS14: =IF(TS_Number_or_Percent=1,$D14,$BZ15*Clients_SM) -> 0 | HT14: =IF(TS_Number_or_Percent=1,$E14,$CA15*Clients_SM) -> 0 | HU14: =IF(TS_Number_or_Percent=1,$F14,$CB15*Clients_SM) -> 0 | HV14: =IF(TS_Number_or_Percent=1,$G14,$CC15*Clients_SM) -> 0 | HW14: =IF(TS_Number_or_Percent=1,$H14,$CD15*Clients_SM) -> 0 | HX14: =IF(TS_Number_or_Percent=1,$I14,$CE15*Clients_SM) -> 0 | HY14: =IF(TS_Number_or_Percent=1,$J14,$CF15*Clients_SM) -> 0 | HZ14: =IF(TS_Number_or_Percent=1,$K14,$CG15*Clients_SM) -> 0 | IA14: =IF(TS_Number_or_Percent=1,$L14,$CH15*Clients_SM) -> 0 | IB14: =IF(TS_Number_or_Percent=1,$M14,$CI15*Clients_SM) -> 0 | ID14: =IF(TS_Number_or_Percent=1,$C14,$EU15*Clients_SM) -> 0 | IE14: =IF(TS_Number_or_Percent=1,$D14,$EV15*Clients_SM) -> 0 | IF14: =IF(TS_Number_or_Percent=1,$E14,$EW15*Clients_SM) -> 0 | IG14: =IF(TS_Number_or_Percent=1,$F14,$EX15*Clients_SM) -> 0 | IH14: =IF(TS_Number_or_Percent=1,$G14,$EY15*Clients_SM) -> 0 | II14: =IF(TS_Number_or_Percent=1,$H14,$EZ15*Clients_SM) -> 0 | IJ14: =IF(TS_Number_or_Percent=1,$I14,$FA15*Clients_SM) -> 0 | IK14: =IF(TS_Number_or_Percent=1,$J14,$FB15*Clients_SM) -> 0 | IL14: =IF(TS_Number_or_Percent=1,$K14,$FC15*Clients_SM) -> 0 | IM14: =IF(TS_Number_or_Percent=1,$L14,$FD15*Clients_SM) -> 0 | IN14: =IF(TS_Number_or_Percent=1,$M14,$FE15*Clients_SM) -> 0
BX15: % | BY15: =IF(Clients_SM=0,0,IF(TS_Number_or_Percent=1,$BY14/Clients_SM,$C14/Clients_SM)) -> 0 | BZ15: 0.04 | CA15: 0 | CB15: 0 | CC15: 0.5 | CD15: =IF(Clients_SM=0,0,IF(TS_Number_or_Percent=1,$CD14/Clients_SM,H14/Clients_SM)) -> 0 | CE15: 0.9 | CF15: =IF(Clients_SM=0,0,IF(TS_Number_or_Percent=1,$CF14/Clients_SM,J14/Clients_SM)) -> 0 | CG15: 1 | CH15: =IF(Clients_SM=0,0,IF(TS_Number_or_Percent=1,$CH14/Clients_SM,L14/Clients_SM)) -> 0 | CI15: =IF(Clients_SM=0,0,IF(TS_Number_or_Percent=1,$CI14/Clients_SM,M14/Clients_SM)) -> 0 | ET15: % | EU15: =IF(Clients_SM=0,0,IF(TS_Number_or_Percent=1,$EU14/Clients_SM,C14/Clients_SM)) -> 0 | EV15: =IF(Clients_SM=0,0,IF(TS_Number_or_Percent=1,$EV14/Clients_SM,D14/Clients_SM)) -> 0 | EW15: =IF(Clients_SM=0,0,IF(TS_Number_or_Percent=1,$EW14/Clients_SM,$E14/Clients_SM)) -> 0 | EX15: =IF(Clients_SM=0,0,IF(TS_Number_or_Percent=1,$EX14/Clients_SM,$F14/Clients_SM)) -> 0 | EY15: =IF(Clients_SM=0,0,IF(TS_Number_or_Percent=1,$EY14/Clients_SM,G14/Clients_SM)) -> 0 | EZ15: =IF(Clients_SM=0,0,IF(TS_Number_or_Percent=1,$EZ14/Clients_SM,H14/Clients_SM)) -> 0 | FA15: =IF(Clients_SM=0,0,IF(TS_Number_or_Percent=1,$FA14/Clients_SM,I14/Clients_SM)) -> 0 | FB15: =IF(Clients_SM=0,0,IF(TS_Number_or_Percent=1,$FB14/Clients_SM,J14/Clients_SM)) -> 0 | FC15: =IF(Clients_SM=0,0,IF(TS_Number_or_Percent=1,$FC14/Clients_SM,K14/Clients_SM)) -> 0 | FD15: =IF(Clients_SM=0,0,IF(TS_Number_or_Percent=1,$FD14/Clients_SM,L14/Clients_SM)) -> 0 | FE15: =IF(Clients_SM=0,0,IF(TS_Number_or_Percent=1,$FE14/Clients_SM,M14/Clients_SM)) -> 0 | HR15: =IF(Clients_SM=0,0,IF(TS_Number_or_Percent=1,$BY14/Clients_SM,$C14/Clients_SM)) -> 0 | HS15: =IF(Clients_SM=0,0,IF(TS_Number_or_Percent=1,$BZ14/Clients_SM,EW14/Clients_SM)) -> 0 | HT15: =IF(Clients_SM=0,0,IF(TS_Number_or_Percent=1,$CA14/Clients_SM,EX14/Clients_SM)) -> 0 | HU15: =IF(Clients_SM=0,0,IF(TS_Number_or_Percent=1,$CB14/Clients_SM,EY14/Clients_SM)) -> 0 | HV15: =IF(Clients_SM=0,0,IF(TS_Number_or_Percent=1,$CC14/Clients_SM,EZ14/Clients_SM)) -> 0 | HW15: =IF(Clients_SM=0,0,IF(TS_Number_or_Percent=1,$CD14/Clients_SM,FA14/Clients_SM)) -> 0 | HX15: =IF(Clients_SM=0,0,IF(TS_Number_or_Percent=1,$CE14/Clients_SM,FB14/Clients_SM)) -> 0 | HY15: =IF(Clients_SM=0,0,IF(TS_Number_or_Percent=1,$CF14/Clients_SM,FC14/Clients_SM)) -> 0 | HZ15: =IF(Clients_SM=0,0,IF(TS_Number_or_Percent=1,$CG14/Clients_SM,FD14/Clients_SM)) -> 0 | IA15: =IF(Clients_SM=0,0,IF(TS_Number_or_Percent=1,$CH14/Clients_SM,FE14/Clients_SM)) -> 0 | IB15: =IF(Clients_SM=0,0,IF(TS_Number_or_Percent=1,$CI14/Clients_SM,FF14/Clients_SM)) -> 0 | ID15: =IF(Clients_SM=0,0,IF(TS_Number_or_Percent=1,$EU14/Clients_SM,CL14/Clients_SM)) -> 0 | IE15: =IF(Clients_SM=0,0,IF(TS_Number_or_Percent=1,$EV14/Clients_SM,CM14/Clients_SM)) -> 0 | IF15: =IF(Clients_SM=0,0,IF(TS_Number_or_Percent=1,$EW14/Clients_SM,$E14/Clients_SM)) -> 0 | IG15: =IF(Clients_SM=0,0,IF(TS_Number_or_Percent=1,$EX14/Clients_SM,$F14/Clients_SM)) -> 0 | IH15: =IF(Clients_SM=0,0,IF(TS_Number_or_Percent=1,$EY14/Clients_SM,CP14/Clients_SM)) -> 0 | II15: =IF(Clients_SM=0,0,IF(TS_Number_or_Percent=1,$EZ14/Clients_SM,CQ14/Clients_SM)) -> 0 | IJ15: =IF(Clients_SM=0,0,IF(TS_Number_or_Percent=1,$FA14/Clients_SM,CR14/Clients_SM)) -> 0 | IK15: =IF(Clients_SM=0,0,IF(TS_Number_or_Percent=1,$FB14/Clients_SM,CS14/Clients_SM)) -> 0 | IL15: =IF(Clients_SM=0,0,IF(TS_Number_or_Percent=1,$FC14/Clients_SM,CT14/Clients_SM)) -> 0 | IM15: =IF(Clients_SM=0,0,IF(TS_Number_or_Percent=1,$FD14/Clients_SM,CU14/Clients_SM)) -> 0 | IN15: =IF(Clients_SM=0,0,IF(TS_Number_or_Percent=1,$FE14/Clients_SM,CV14/Clients_SM)) -> 0
A16: Laboratory Technician (LT) | B16: =IF(Language=1,'Drop-down Lists'!$G$8,'Drop-down Lists'!$H$8) -> Technicien de laboratoire (LT) | C16: =IF($B16="",0,IF(ISNUMBER(MATCH($B16,'Task Assignment'!$F$8,0)),Clients_SM,0)) -> 0 | D16: =IF($B16="",0,IF(ISNUMBER(MATCH($B16,'Task Assignment'!$F$9,0)),Clients_SM,0)) -> 0 | E16: =IF($B16="",0,IF(ISNUMBER(MATCH($B16,'Task Assignment'!$F$10,0)),Clients_SM,0)) -> 0 | F16: =IF($B16="",0,IF(ISNUMBER(MATCH($B16,'Task Assignment'!$F$11,0)),Clients_SM,0)) -> 0 | G16: =IF($B16="",0,IF(ISNUMBER(MATCH($B16,'Task Assignment'!$F$12,0)),Clients_SM,0)) -> 0 | H16: =IF($B16="",0,IF(ISNUMBER(MATCH($B16,'Task Assignment'!$F$13,0)),Clients_SM,0)) -> 0 | I16: =IF($B16="",0,IF(ISNUMBER(MATCH($B16,'Task Assignment'!$F$14,0)),Clients_SM,0)) -> 0 | J16: =IF($B16="",0,IF(ISNUMBER(MATCH($B16,'Task Assignment'!$F$15,0)),Clients_SM,0)) -> 0 | K16: =IF($B16="",0,IF(ISNUMBER(MATCH($B16,'Task Assignment'!$F$17,0)),Clients_SM,0)) -> 0 | L16: =IF($B16="",0,IF(ISNUMBER(MATCH($B16,'Task Assignment'!$F$18,0)),Clients_SM,0)) -> 0 | M16: =IF($B16="",0,IF(ISNUMBER(MATCH($B16,'Task Assignment'!$F$19,0)),Clients_SM,0)) -> 0 | N16: =C16*'Task Assignment'!$L$8 -> 0 | O16: =D16*'Task Assignment'!$L$9 -> 0 | P16: =E16*'Task Assignment'!$L$10 -> 0 | Q16: =F16*'Task Assignment'!$L$11 -> 0 | R16: =G16*'Task Assignment'!$L$12 -> 0 | S16: =H16*'Task Assignment'!$L$13 -> 0 | T16: =I16*'Task Assignment'!$L$14 -> 0 | U16: =J16*'Task Assignment'!$L$15 -> 0 | V16: =K16*'Task Assignment'!$L$17 -> 0 | W16: =L16*'Task Assignment'!$L$18 -> 0 | X16: =M16*'Task Assignment'!$L$19 -> 0 | Y16: 0 | Z16: =C16*'Task Assignment'!$H$8*'Task Assignment'!$L$8/60 -> 0 | AA16: =D16*'Task Assignment'!$H$9*'Task Assignment'!$L$9/60 -> 0 | AB16: =E16*'Task Assignment'!$H$10*'Task Assignment'!$L$10/60 -> 0 | AC16: =F16*'Task Assignment'!$H$11*'Task Assignment'!$L$11/60 -> 0 | AD16: =G16*'Task Assignment'!$H$12*'Task Assignment'!$L$12/60 -> 0 | AE16: =H16*'Task Assignment'!$H$13*'Task Assignment'!$L$13/60 -> 0 | AF16: =I16*'Task Assignment'!$H$14*'Task Assignment'!$L$14/60 -> 0 | AG16: =J16*'Task Assignment'!$H$15*'Task Assignment'!$L$15/60 -> 0 | AH16: =K16*'Task Assignment'!$H$17*'Task Assignment'!$L$17/60 -> 0 | AI16: =L16*'Task Assignment'!$H$18*'Task Assignment'!$L$18/60 -> 0 | AJ16: =M16*'Task Assignment'!$H$19*'Task Assignment'!$L$19/60 -> 0 | AK16: 0 | AL16: =IF(EffWorkingHours_LT=0,0,AK16/EffWorkingHours_LT/50) -> 0 | AM16: =+AL16+AL54+AL92+AL130+AL168+AL206 -> 0 | AN16: =Providers!$Q12 -> 0 | AO16: 0 | AP16: =C16*'Task Assignment'!$I$8*'Task Assignment'!$L$8/60 -> 0 | AQ16: =D16*'Task Assignment'!$I$9*'Task Assignment'!$L$9/60 -> 0 | AR16: =E16*'Task Assignment'!$I$10*'Task Assignment'!$L$10/60 -> 0 | AS16: =F16*'Task Assignment'!$I$11*'Task Assignment'!$L$11/60 -> 0 | AT16: =G16*'Task Assignment'!$I$12*'Task Assignment'!$L$12/60 -> 0 | AU16: =H16*'Task Assignment'!$I$13*'Task Assignment'!$L$13/60 -> 0 | AV16: =I16*'Task Assignment'!$I$14*'Task Assignment'!$L$14/60 -> 0 | AW16: =J16*'Task Assignment'!$I$15*'Task Assignment'!$L$15/60 -> 0 | AX16: =K16*'Task Assignment'!$I$17*'Task Assignment'!$L$17/60 -> 0 | AY16: =L16*'Task Assignment'!$I$18*'Task Assignment'!$L$18/60 -> 0 | AZ16: =M16*'Task Assignment'!$I$19*'Task Assignment'!$L$19/60 -> 0 | BA16: 0 | BB16: =IF(EffWorkingHours_LT=0,0,BA16/EffWorkingHours_LT/50) -> 0 | BC16: =+BB16+BB54+BB92+BB130+BB168+BB206 -> 0 | BD16: =Providers!$Q12 -> 0 | BE16: 0 | BF16: =C16*'Task Assignment'!$K$8*'Task Assignment'!$L$8/60 -> 0 | BG16: =D16*'Task Assignment'!$K$9*'Task Assignment'!$L$9/60 -> 0 | BH16: =E16*'Task Assignment'!$K$10*'Task Assignment'!$L$10/60 -> 0 | BI16: =F16*'Task Assignment'!$K$11*'Task Assignment'!$L$11/60 -> 0 | BJ16: =G16*'Task Assignment'!$K$12*'Task Assignment'!$L$12/60 -> 0 | BK16: =H16*'Task Assignment'!$K$13*'Task Assignment'!$L$13/60 -> 0 | BL16: =I16*'Task Assignment'!$K$14*'Task Assignment'!$L$14/60 -> 0 | BM16: =J16*'Task Assignment'!$K$15*'Task Assignment'!$L$15/60 -> 0 | BN16: =K16*'Task Assignment'!$K$17*'Task Assignment'!$L$17/60 -> 0 | BO16: =L16*'Task Assignment'!$K$18*'Task Assignment'!$L$18/60 -> 0 | BP16: =M16*'Task Assignment'!$K$19*'Task Assignment'!$L$19/60 -> 0 | BQ16: 0 | BR16: =IF(EffWorkingHours_LT=0,0,BQ16/EffWorkingHours_LT/50) -> 0 | BS16: =+BR16+BR54+BR92+BR130+BR168+BR206 -> 0 | BT16: =Providers!$Q12 -> 0 | BU16: 0 | BW16: Technicien de laboratoire (LT) | BX16: No. | BY16: =IF(TS_Number_or_Percent=1,$C16,$BY17*Clients_SM) -> 0 | BZ16: =IF(TS_Number_or_Percent=1,$D16,$BZ17*Clients_SM) -> 0 | CA16: =IF(TS_Number_or_Percent=1,$E16,$CA17*Clients_SM) -> 0 | CB16: =IF(TS_Number_or_Percent=1,$F16,$CB17*Clients_SM) -> 0 | CC16: =IF(TS_Number_or_Percent=1,$G16,$CC17*Clients_SM) -> 0 | CD16: =IF(TS_Number_or_Percent=1,$H16,$CD17*Clients_SM) -> 0 | CE16: =IF(TS_Number_or_Percent=1,$I16,$CE17*Clients_SM) -> 0 | CF16: =IF(TS_Number_or_Percent=1,$J16,$CF17*Clients_SM) -> 0 | CG16: =IF(TS_Number_or_Percent=1,$K16,$CG17*Clients_SM) -> 0 | CH16: =IF(TS_Number_or_Percent=1,$L16,$CH17*Clients_SM) -> 0 | CI16: =IF(TS_Number_or_Percent=1,$M16,$CI17*Clients_SM) -> 0 | CJ16: =BY16*'Task Assignment'!$L$8 -> 0 | CK16: =BZ16*'Task Assignment'!$L$9 -> 0 | CL16: =CA16*'Task Assignment'!$L$10 -> 0 | CM16: =CB16*'Task Assignment'!$L$11 -> 0 | CN16: =CC16*'Task Assignment'!$L$12 -> 0 | CO16: =CD16*'Task Assignment'!$L$13 -> 0 | CP16: =CE16*'Task Assignment'!$L$14 -> 0 | CQ16: =CF16*'Task Assignment'!$L$15 -> 0 | CR16: =CG16*'Task Assignment'!$L$17 -> 0 | CS16: =CH16*'Task Assignment'!$L$18 -> 0 | CT16: =CI16*'Task Assignment'!$L$19 -> 0 | CU16: 0 | CV16: =BY16*'Task Assignment'!$H$8*'Task Assignment'!$L$8/60 -> 0 | CW16: =BZ16*'Task Assignment'!$H$9*'Task Assignment'!$L$9/60 -> 0 | CX16: =CA16*'Task Assignment'!$H$10*'Task Assignment'!$L$10/60 -> 0 | CY16: =CB16*'Task Assignment'!$H$11*'Task Assignment'!$L$11/60 -> 0 | CZ16: =CC16*'Task Assignment'!$H$12*'Task Assignment'!$L$12/60 -> 0 | DA16: =CD16*'Task Assignment'!$H$13*'Task Assignment'!$L$13/60 -> 0 | DB16: =CE16*'Task Assignment'!$H$14*'Task Assignment'!$L$14/60 -> 0 | DC16: =CF16*'Task Assignment'!$H$15*'Task Assignment'!$L$15/60 -> 0 | DD16: =CG16*'Task Assignment'!$H$17*'Task Assignment'!$L$17/60 -> 0 | DE16: =CH16*'Task Assignment'!$H$18*'Task Assignment'!$L$18/60 -> 0 | DF16: =CI16*'Task Assignment'!$H$19*'Task Assignment'!$L$19/60 -> 0 | DG16: 0 | DH16: =IF(EffWorkingHours_LT=0,0,DG16/EffWorkingHours_LT/50) -> 0 | DI16: =+DH16+DH54+DH92+DH130+DH168+DH206 -> 0 | DJ16: =Providers!$Q12 -> 0 | DK16: 0 | DL16: =BY16*'Task Assignment'!$I$8*'Task Assignment'!$L$8/60 -> 0 | DM16: =BZ16*'Task Assignment'!$I$9*'Task Assignment'!$L$9/60 -> 0 | DN16: =CA16*'Task Assignment'!$I$10*'Task Assignment'!$L$10/60 -> 0 | DO16: =CB16*'Task Assignment'!$I$11*'Task Assignment'!$L$11/60 -> 0 | DP16: =CC16*'Task Assignment'!$I$12*'Task Assignment'!$L$12/60 -> 0 | DQ16: =CD16*'Task Assignment'!$I$13*'Task Assignment'!$L$13/60 -> 0 | DR16: =CE16*'Task Assignment'!$I$14*'Task Assignment'!$L$14/60 -> 0 | DS16: =CF16*'Task Assignment'!$I$15*'Task Assignment'!$L$15/60 -> 0 | DT16: =CG16*'Task Assignment'!$I$17*'Task Assignment'!$L$17/60 -> 0 | DU16: =CH16*'Task Assignment'!$I$18*'Task Assignment'!$L$18/60 -> 0 | DV16: =CI16*'Task Assignment'!$I$19*'Task Assignment'!$L$19/60 -> 0 | DW16: 0 | DX16: =IF(EffWorkingHours_LT=0,0,DW16/EffWorkingHours_LT/50) -> 0 | DY16: =+DX16+DX54+DX92+DX130+DX168+DX206 -> 0 | DZ16: =Providers!$Q12 -> 0 | EA16: 0 | EB16: =BY16*'Task Assignment'!$K$8*'Task Assignment'!$L$8/60 -> 0 | EC16: =BZ16*'Task Assignment'!$K$9*'Task Assignment'!$L$9/60 -> 0 | ED16: =CA16*'Task Assignment'!$K$10*'Task Assignment'!$L$10/60 -> 0 | EE16: =CB16*'Task Assignment'!$K$11*'Task Assignment'!$L$11/60 -> 0 | EF16: =CC16*'Task Assignment'!$K$12*'Task Assignment'!$L$12/60 -> 0 | EG16: =CD16*'Task Assignment'!$K$13*'Task Assignment'!$L$13/60 -> 0 | EH16: =CE16*'Task Assignment'!$K$14*'Task Assignment'!$L$14/60 -> 0 | EI16: =CF16*'Task Assignment'!$K$15*'Task Assignment'!$L$15/60 -> 0 | EJ16: =CG16*'Task Assignment'!$K$17*'Task Assignment'!$L$17/60 -> 0 | EK16: =CH16*'Task Assignment'!$K$18*'Task Assignment'!$L$18/60 -> 0 | EL16: =CI16*'Task Assignment'!$K$19*'Task Assignment'!$L$19/60 -> 0 | EM16: 0 | EN16: =IF(EffWorkingHours_LT=0,0,EM16/EffWorkingHours_LT/50) -> 0 | EO16: =+EN16+EN54+EN92+EN130+EN168+EN206 -> 0 | EP16: =Providers!$Q12 -> 0 | EQ16: 0 | ES16: =BW16 -> Technicien de laboratoire (LT) | ET16: No. | EU16: =IF(TS_Number_or_Percent=1,$C16,$EU17*Clients_SM) -> 0 | EV16: =IF(TS_Number_or_Percent=1,$D16,$EV17*Clients_SM) -> 0 | EW16: =IF(TS_Number_or_Percent=1,$E16,$EW17*Clients_SM) -> 0 | EX16: =IF(TS_Number_or_Percent=1,$F16,$EX17*Clients_SM) -> 0 | EY16: =IF(TS_Number_or_Percent=1,$G16,$EY17*Clients_SM) -> 0 | EZ16: =IF(TS_Number_or_Percent=1,$H16,$EZ17*Clients_SM) -> 0 | FA16: =IF(TS_Number_or_Percent=1,$I16,$FA17*Clients_SM) -> 0 | FB16: =IF(TS_Number_or_Percent=1,$J16,$FB17*Clients_SM) -> 0 | FC16: =IF(TS_Number_or_Percent=1,$K16,$FC17*Clients_SM) -> 0 | FD16: =IF(TS_Number_or_Percent=1,$L16,$FD17*Clients_SM) -> 0 | FE16: =IF(TS_Number_or_Percent=1,$M16,$FE17*Clients_SM) -> 0 | FF16: =EU16*'Task Assignment'!$L$8 -> 0 | FG16: =EV16*'Task Assignment'!$L$9 -> 0 | FH16: =EW16*'Task Assignment'!$L$10 -> 0 | FI16: =EX16*'Task Assignment'!$L$11 -> 0 | FJ16: =EY16*'Task Assignment'!$L$12 -> 0 | FK16: =EZ16*'Task Assignment'!$L$13 -> 0 | FL16: =FA16*'Task Assignment'!$L$14 -> 0 | FM16: =FB16*'Task Assignment'!$L$15 -> 0 | FN16: =FC16*'Task Assignment'!$L$17 -> 0 | FO16: =FD16*'Task Assignment'!$L$18 -> 0 | FP16: =FE16*'Task Assignment'!$L$19 -> 0 | FQ16: 0 | FR16: =EU16*'Task Assignment'!$H$8*'Task Assignment'!$L$8/60 -> 0 | FS16: =EV16*'Task Assignment'!$H$9*'Task Assignment'!$L$9/60 -> 0 | FT16: =EW16*'Task Assignment'!$H$10*'Task Assignment'!$L$10/60 -> 0 | FU16: =EX16*'Task Assignment'!$H$11*'Task Assignment'!$L$11/60 -> 0 | FV16: =EY16*'Task Assignment'!$H$12*'Task Assignment'!$L$12/60 -> 0 | FW16: =EZ16*'Task Assignment'!$H$13*'Task Assignment'!$L$13/60 -> 0 | FX16: =FA16*'Task Assignment'!$H$14*'Task Assignment'!$L$14/60 -> 0 | FY16: =FB16*'Task Assignment'!$H$15*'Task Assignment'!$L$15/60 -> 0 | FZ16: =FC16*'Task Assignment'!$H$17*'Task Assignment'!$L$17/60 -> 0 | GA16: =FD16*'Task Assignment'!$H$18*'Task Assignment'!$L$18/60 -> 0 | GB16: =FE16*'Task Assignment'!$H$19*'Task Assignment'!$L$19/60 -> 0 | GC16: 0 | GD16: =IF(EffWorkingHours_LT=0,0,GC16/EffWorkingHours_LT/50) -> 0 | GE16: =+GD16+GD54+GD92+GD130+GD168+GD206 -> 0 | GF16: =Providers!$Q12 -> 0 | GG16: 0 | GH16: =EU16*'Task Assignment'!$I$8*'Task Assignment'!$L$8/60 -> 0 | GI16: =EV16*'Task Assignment'!$I$9*'Task Assignment'!$L$9/60 -> 0 | GJ16: =EW16*'Task Assignment'!$I$10*'Task Assignment'!$L$10/60 -> 0 | GK16: =EX16*'Task Assignment'!$I$11*'Task Assignment'!$L$11/60 -> 0 | GL16: =EY16*'Task Assignment'!$I$12*'Task Assignment'!$L$12/60 -> 0 | GM16: =EZ16*'Task Assignment'!$I$13*'Task Assignment'!$L$13/60 -> 0 | GN16: =FA16*'Task Assignment'!$I$14*'Task Assignment'!$L$14/60 -> 0 | GO16: =FB16*'Task Assignment'!$I$15*'Task Assignment'!$L$15/60 -> 0 | GP16: =FC16*'Task Assignment'!$I$17*'Task Assignment'!$L$17/60 -> 0 | GQ16: =FD16*'Task Assignment'!$I$18*'Task Assignment'!$L$18/60 -> 0 | GR16: =FE16*'Task Assignment'!$I$19*'Task Assignment'!$L$19/60 -> 0 | GS16: 0 | GT16: =IF(EffWorkingHours_LT=0,0,GS16/EffWorkingHours_LT/50) -> 0 | GU16: =+GT16+GT54+GT92+GT130+GT168+GT206 -> 0 | GV16: =Providers!$Q12 -> 0 | GW16: 0 | GX16: =EU16*'Task Assignment'!$K$8*'Task Assignment'!$L$8/60 -> 0 | GY16: =EV16*'Task Assignment'!$K$9*'Task Assignment'!$L$9/60 -> 0 | GZ16: =EW16*'Task Assignment'!$K$10*'Task Assignment'!$L$10/60 -> 0 | HA16: =EX16*'Task Assignment'!$K$11*'Task Assignment'!$L$11/60 -> 0 | HB16: =EY16*'Task Assignment'!$K$12*'Task Assignment'!$L$12/60 -> 0 | HC16: =EZ16*'Task Assignment'!$K$13*'Task Assignment'!$L$13/60 -> 0 | HD16: =FA16*'Task Assignment'!$K$14*'Task Assignment'!$L$14/60 -> 0 | HE16: =FB16*'Task Assignment'!$K$15*'Task Assignment'!$L$15/60 -> 0 | HF16: =FC16*'Task Assignment'!$K$17*'Task Assignment'!$L$17/60 -> 0 | HG16: =FD16*'Task Assignment'!$K$18*'Task Assignment'!$L$18/60 -> 0 | HH16: =FE16*'Task Assignment'!$K$19*'Task Assignment'!$L$19/60 -> 0 | HI16: 0 | HJ16: =IF(EffWorkingHours_LT=0,0,HI16/EffWorkingHours_LT/50) -> 0 | HK16: =+HJ16+HJ54+HJ92+HJ130+HJ168+HJ206 -> 0 | HL16: =Providers!$Q12 -> 0 | HM16: 0 | HR16: =IF(TS_Number_or_Percent=1,$C16,$BY17*Clients_SM) -> 0 | HS16: =IF(TS_Number_or_Percent=1,$D16,$BZ17*Clients_SM) -> 0 | HT16: =IF(TS_Number_or_Percent=1,$E16,$CA17*Clients_SM) -> 0 | HU16: =IF(TS_Number_or_Percent=1,$F16,$CB17*Clients_SM) -> 0 | HV16: =IF(TS_Number_or_Percent=1,$G16,$CC17*Clients_SM) -> 0 | HW16: =IF(TS_Number_or_Percent=1,$H16,$CD17*Clients_SM) -> 0 | HX16: =IF(TS_Number_or_Percent=1,$I16,$CE17*Clients_SM) -> 0 | HY16: =IF(TS_Number_or_Percent=1,$J16,$CF17*Clients_SM) -> 0 | HZ16: =IF(TS_Number_or_Percent=1,$K16,$CG17*Clients_SM) -> 0 | IA16: =IF(TS_Number_or_Percent=1,$L16,$CH17*Clients_SM) -> 0 | IB16: =IF(TS_Number_or_Percent=1,$M16,$CI17*Clients_SM) -> 0 | ID16: =IF(TS_Number_or_Percent=1,$C16,$EU17*Clients_SM) -> 0 | IE16: =IF(TS_Number_or_Percent=1,$D16,$EV17*Clients_SM) -> 0 | IF16: =IF(TS_Number_or_Percent=1,$E16,$EW17*Clients_SM) -> 0 | IG16: =IF(TS_Number_or_Percent=1,$F16,$EX17*Clients_SM) -> 0 | IH16: =IF(TS_Number_or_Percent=1,$G16,$EY17*Clients_SM) -> 0 | II16: =IF(TS_Number_or_Percent=1,$H16,$EZ17*Clients_SM) -> 0 | IJ16: =IF(TS_Number_or_Percent=1,$I16,$FA17*Clients_SM) -> 0 | IK16: =IF(TS_Number_or_Percent=1,$J16,$FB17*Clients_SM) -> 0 | IL16: =IF(TS_Number_or_Percent=1,$K16,$FC17*Clients_SM) -> 0 | IM16: =IF(TS_Number_or_Percent=1,$L16,$FD17*Clients_SM) -> 0 | IN16: =IF(TS_Number_or_Percent=1,$M16,$FE17*Clients_SM) -> 0
BX17: % | BY17: =IF(Clients_SM=0,0,IF(TS_Number_or_Percent=1,$BY16/Clients_SM,$C16/Clients_SM)) -> 0 | BZ17: =IF(Clients_SM=0,0,IF(TS_Number_or_Percent=1,$BZ16/Clients_SM,D16/Clients_SM)) -> 0 | CA17: =IF(Clients_SM=0,0,IF(TS_Number_or_Percent=1,$CA16/Clients_SM,E16/Clients_SM)) -> 0 | CB17: =IF(Clients_SM=0,0,IF(TS_Number_or_Percent=1,$CB16/Clients_SM,F16/Clients_SM)) -> 0 | CC17: 0.5 | CD17: =IF(Clients_SM=0,0,IF(TS_Number_or_Percent=1,$CD16/Clients_SM,H16/Clients_SM)) -> 0 | CE17: 0.1 | CF17: =IF(Clients_SM=0,0,IF(TS_Number_or_Percent=1,$CF16/Clients_SM,J16/Clients_SM)) -> 0 | CG17: =IF(Clients_SM=0,0,IF(TS_Number_or_Percent=1,$CG16/Clients_SM,K16/Clients_SM)) -> 0 | CH17: =IF(Clients_SM=0,0,IF(TS_Number_or_Percent=1,$CH16/Clients_SM,L16/Clients_SM)) -> 0 | CI17: =IF(Clients_SM=0,0,IF(TS_Number_or_Percent=1,$CI16/Clients_SM,M16/Clients_SM)) -> 0 | ET17: % | EU17: =IF(Clients_SM=0,0,IF(TS_Number_or_Percent=1,$EU16/Clients_SM,C16/Clients_SM)) -> 0 | EV17: =IF(Clients_SM=0,0,IF(TS_Number_or_Percent=1,$EV16/Clients_SM,D16/Clients_SM)) -> 0 | EW17: =IF(Clients_SM=0,0,IF(TS_Number_or_Percent=1,$EW16/Clients_SM,$E16/Clients_SM)) -> 0 | EX17: =IF(Clients_SM=0,0,IF(TS_Number_or_Percent=1,$EX16/Clients_SM,$F16/Clients_SM)) -> 0 | EY17: =IF(Clients_SM=0,0,IF(TS_Number_or_Percent=1,$EY16/Clients_SM,G16/Clients_SM)) -> 0 | EZ17: =IF(Clients_SM=0,0,IF(TS_Number_or_Percent=1,$EZ16/Clients_SM,H16/Clients_SM)) -> 0 | FA17: =IF(Clients_SM=0,0,IF(TS_Number_or_Percent=1,$FA16/Clients_SM,I16/Clients_SM)) -> 0 | FB17: =IF(Clients_SM=0,0,IF(TS_Number_or_Percent=1,$FB16/Clients_SM,J16/Clients_SM)) -> 0 | FC17: =IF(Clients_SM=0,0,IF(TS_Number_or_Percent=1,$FC16/Clients_SM,K16/Clients_SM)) -> 0 | FD17: =IF(Clients_SM=0,0,IF(TS_Number_or_Percent=1,$FD16/Clients_SM,L16/Clients_SM)) -> 0 | FE17: =IF(Clients_SM=0,0,IF(TS_Number_or_Percent=1,$FE16/Clients_SM,M16/Clients_SM)) -> 0 | HR17: =IF(Clients_SM=0,0,IF(TS_Number_or_Percent=1,$BY16/Clients_SM,$C16/Clients_SM)) -> 0 | HS17: =IF(Clients_SM=0,0,IF(TS_Number_or_Percent=1,$BZ16/Clients_SM,EW16/Clients_SM)) -> 0 | HT17: =IF(Clients_SM=0,0,IF(TS_Number_or_Percent=1,$CA16/Clients_SM,EX16/Clients_SM)) -> 0 | HU17: =IF(Clients_SM=0,0,IF(TS_Number_or_Percent=1,$CB16/Clients_SM,EY16/Clients_SM)) -> 0 | HV17: =IF(Clients_SM=0,0,IF(TS_Number_or_Percent=1,$CC16/Clients_SM,EZ16/Clients_SM)) -> 0 | HW17: =IF(Clients_SM=0,0,IF(TS_Number_or_Percent=1,$CD16/Clients_SM,FA16/Clients_SM)) -> 0 | HX17: =IF(Clients_SM=0,0,IF(TS_Number_or_Percent=1,$CE16/Clients_SM,FB16/Clients_SM)) -> 0 | HY17: =IF(Clients_SM=0,0,IF(TS_Number_or_Percent=1,$CF16/Clients_SM,FC16/Clients_SM)) -> 0 | HZ17: =IF(Clients_SM=0,0,IF(TS_Number_or_Percent=1,$CG16/Clients_SM,FD16/Clients_SM)) -> 0 | IA17: =IF(Clients_SM=0,0,IF(TS_Number_or_Percent=1,$CH16/Clients_SM,FE16/Clients_SM)) -> 0 | IB17: =IF(Clients_SM=0,0,IF(TS_Number_or_Percent=1,$CI16/Clients_SM,FF16/Clients_SM)) -> 0 | ID17: =IF(Clients_SM=0,0,IF(TS_Number_or_Percent=1,$EU16/Clients_SM,CL16/Clients_SM)) -> 0 | IE17: =IF(Clients_SM=0,0,IF(TS_Number_or_Percent=1,$EV16/Clients_SM,CM16/Clients_SM)) -> 0 | IF17: =IF(Clients_SM=0,0,IF(TS_Number_or_Percent=1,$EW16/Clients_SM,$E16/Clients_SM)) -> 0 | IG17: =IF(Clients_SM=0,0,IF(TS_Number_or_Percent=1,$EX16/Clients_SM,$F16/Clients_SM)) -> 0 | IH17: =IF(Clients_SM=0,0,IF(TS_Number_or_Percent=1,$EY16/Clients_SM,CP16/Clients_SM)) -> 0 | II17: =IF(Clients_SM=0,0,IF(TS_Number_or_Percent=1,$EZ16/Clients_SM,CQ16/Clients_SM)) -> 0 | IJ17: =IF(Clients_SM=0,0,IF(TS_Number_or_Percent=1,$FA16/Clients_SM,CR16/Clients_SM)) -> 0 | IK17: =IF(Clients_SM=0,0,IF(TS_Number_or_Percent=1,$FB16/Clients_SM,CS16/Clients_SM)) -> 0 | IL17: =IF(Clients_SM=0,0,IF(TS_Number_or_Percent=1,$FC16/Clients_SM,CT16/Clients_SM)) -> 0 | IM17: =IF(Clients_SM=0,0,IF(TS_Number_or_Percent=1,$FD16/Clients_SM,CU16/Clients_SM)) -> 0 | IN17: =IF(Clients_SM=0,0,IF(TS_Number_or_Percent=1,$FE16/Clients_SM,CV16/Clients_SM)) -> 0
A18: Community Health Worker (CHW) | B18: =IF(Language=1,'Drop-down Lists'!$G$9,'Drop-down Lists'!$H$9) -> Agent de santé communautaire (ASC) | C18: =IF($B18="",0,IF(ISNUMBER(MATCH($B18,'Task Assignment'!$F$8,0)),Clients_SM,0)) -> 0 | D18: =IF($B18="",0,IF(ISNUMBER(MATCH($B18,'Task Assignment'!$F$9,0)),Clients_SM,0)) -> 0 | E18: =IF($B18="",0,IF(ISNUMBER(MATCH($B18,'Task Assignment'!$F$10,0)),Clients_SM,0)) -> 0 | F18: =IF($B18="",0,IF(ISNUMBER(MATCH($B18,'Task Assignment'!$F$11,0)),Clients_SM,0)) -> 0 | G18: =IF($B18="",0,IF(ISNUMBER(MATCH($B18,'Task Assignment'!$F$12,0)),Clients_SM,0)) -> 0 | H18: =IF($B18="",0,IF(ISNUMBER(MATCH($B18,'Task Assignment'!$F$13,0)),Clients_SM,0)) -> 0 | I18: =IF($B18="",0,IF(ISNUMBER(MATCH($B18,'Task Assignment'!$F$14,0)),Clients_SM,0)) -> 0 | J18: =IF($B18="",0,IF(ISNUMBER(MATCH($B18,'Task Assignment'!$F$15,0)),Clients_SM,0)) -> 0 | K18: =IF($B18="",0,IF(ISNUMBER(MATCH($B18,'Task Assignment'!$F$17,0)),Clients_SM,0)) -> 0 | L18: =IF($B18="",0,IF(ISNUMBER(MATCH($B18,'Task Assignment'!$F$18,0)),Clients_SM,0)) -> 0 | M18: =IF($B18="",0,IF(ISNUMBER(MATCH($B18,'Task Assignment'!$F$19,0)),Clients_SM,0)) -> 0 | N18: =C18*'Task Assignment'!$L$8 -> 0 | O18: =D18*'Task Assignment'!$L$9 -> 0 | P18: =E18*'Task Assignment'!$L$10 -> 0 | Q18: =F18*'Task Assignment'!$L$11 -> 0 | R18: =G18*'Task Assignment'!$L$12 -> 0 | S18: =H18*'Task Assignment'!$L$13 -> 0 | T18: =I18*'Task Assignment'!$L$14 -> 0 | U18: =J18*'Task Assignment'!$L$15 -> 0 | V18: =K18*'Task Assignment'!$L$17 -> 0 | W18: =L18*'Task Assignment'!$L$18 -> 0 | X18: =M18*'Task Assignment'!$L$19 -> 0 | Y18: 0 | Z18: =C18*'Task Assignment'!$H$8*'Task Assignment'!$L$8/60 -> 0 | AA18: =D18*'Task Assignment'!$H$9*'Task Assignment'!$L$9/60 -> 0 | AB18: =E18*'Task Assignment'!$H$10*'Task Assignment'!$L$10/60 -> 0 | AC18: =F18*'Task Assignment'!$H$11*'Task Assignment'!$L$11/60 -> 0 | AD18: =G18*'Task Assignment'!$H$12*'Task Assignment'!$L$12/60 -> 0 | AE18: =H18*'Task Assignment'!$H$13*'Task Assignment'!$L$13/60 -> 0 | AF18: =I18*'Task Assignment'!$H$14*'Task Assignment'!$L$14/60 -> 0 | AG18: =J18*'Task Assignment'!$H$15*'Task Assignment'!$L$15/60 -> 0 | AH18: =K18*'Task Assignment'!$H$17*'Task Assignment'!$L$17/60 -> 0 | AI18: =L18*'Task Assignment'!$H$18*'Task Assignment'!$L$18/60 -> 0 | AJ18: =M18*'Task Assignment'!$H$19*'Task Assignment'!$L$19/60 -> 0 | AK18: 0 | AL18: =IF(EffWorkingHours_CHW=0,0,AK18/EffWorkingHours_CHW/50) -> 0 | AM18: =+AL18+AL56+AL94+AL132+AL170+AL208 -> 0 | AN18: =Providers!$Q13 -> 0 | AO18: 0 | AP18: =C18*'Task Assignment'!$I$8*'Task Assignment'!$L$8/60 -> 0 | AQ18: =D18*'Task Assignment'!$I$9*'Task Assignment'!$L$9/60 -> 0 | AR18: =E18*'Task Assignment'!$I$10*'Task Assignment'!$L$10/60 -> 0 | AS18: =F18*'Task Assignment'!$I$11*'Task Assignment'!$L$11/60 -> 0 | AT18: =G18*'Task Assignment'!$I$12*'Task Assignment'!$L$12/60 -> 0 | AU18: =H18*'Task Assignment'!$I$13*'Task Assignment'!$L$13/60 -> 0 | AV18: =I18*'Task Assignment'!$I$14*'Task Assignment'!$L$14/60 -> 0 | AW18: =J18*'Task Assignment'!$I$15*'Task Assignment'!$L$15/60 -> 0 | AX18: =K18*'Task Assignment'!$I$17*'Task Assignment'!$L$17/60 -> 0 | AY18: =L18*'Task Assignment'!$I$18*'Task Assignment'!$L$18/60 -> 0 | AZ18: =M18*'Task Assignment'!$I$19*'Task Assignment'!$L$19/60 -> 0 | BA18: 0 | BB18: =IF(EffWorkingHours_CHW=0,0,BA18/EffWorkingHours_CHW/50) -> 0 | BC18: =+BB18+BB56+BB94+BB132+BB170+BB208 -> 0 | BD18: =Providers!$Q13 -> 0 | BE18: 0 | BF18: =C18*'Task Assignment'!$K$8*'Task Assignment'!$L$8/60 -> 0 | BG18: =D18*'Task Assignment'!$K$9*'Task Assignment'!$L$9/60 -> 0 | BH18: =E18*'Task Assignment'!$K$10*'Task Assignment'!$L$10/60 -> 0 | BI18: =F18*'Task Assignment'!$K$11*'Task Assignment'!$L$11/60 -> 0 | BJ18: =G18*'Task Assignment'!$K$12*'Task Assignment'!$L$12/60 -> 0 | BK18: =H18*'Task Assignment'!$K$13*'Task Assignment'!$L$13/60 -> 0 | BL18: =I18*'Task Assignment'!$K$14*'Task Assignment'!$L$14/60 -> 0 | BM18: =J18*'Task Assignment'!$K$15*'Task Assignment'!$L$15/60 -> 0 | BN18: =K18*'Task Assignment'!$K$17*'Task Assignment'!$L$17/60 -> 0 | BO18: =L18*'Task Assignment'!$K$18*'Task Assignment'!$L$18/60 -> 0 | BP18: =M18*'Task Assignment'!$K$19*'Task Assignment'!$L$19/60 -> 0 | BQ18: 0 | BR18: =IF(EffWorkingHours_CHW=0,0,BQ18/EffWorkingHours_CHW/50) -> 0 | BS18: =+BR18+BR56+BR94+BR132+BR170+BR208 -> 0 | BT18: =Providers!$Q13 -> 0 | BU18: 0 | BW18: Agent de santé communautaire (ASC) | BX18: No. | BY18: =IF(TS_Number_or_Percent=1,$C18,$BY19*Clients_SM) -> 0 | BZ18: =IF(TS_Number_or_Percent=1,$D18,$BZ19*Clients_SM) -> 0 | CA18: =IF(TS_Number_or_Percent=1,$E18,$CA19*Clients_SM) -> 0 | CB18: =IF(TS_Number_or_Percent=1,$F18,$CB19*Clients_SM) -> 0 | CC18: =IF(TS_Number_or_Percent=1,$G18,$CC19*Clients_SM) -> 0 | CD18: =IF(TS_Number_or_Percent=1,$H18,$CD19*Clients_SM) -> 0 | CE18: =IF(TS_Number_or_Percent=1,$I18,$CE19*Clients_SM) -> 0 | CF18: =IF(TS_Number_or_Percent=1,$J18,$CF19*Clients_SM) -> 0 | CG18: =IF(TS_Number_or_Percent=1,$K18,$CG19*Clients_SM) -> 0 | CH18: =IF(TS_Number_or_Percent=1,$L18,$CH19*Clients_SM) -> 0 | CI18: =IF(TS_Number_or_Percent=1,$M18,$CI19*Clients_SM) -> 0 | CJ18: =BY18*'Task Assignment'!$L$8 -> 0 | CK18: =BZ18*'Task Assignment'!$L$9 -> 0 | CL18: =CA18*'Task Assignment'!$L$10 -> 0 | CM18: =CB18*'Task Assignment'!$L$11 -> 0 | CN18: =CC18*'Task Assignment'!$L$12 -> 0 | CO18: =CD18*'Task Assignment'!$L$13 -> 0 | CP18: =CE18*'Task Assignment'!$L$14 -> 0 | CQ18: =CF18*'Task Assignment'!$L$15 -> 0 | CR18: =CG18*'Task Assignment'!$L$17 -> 0 | CS18: =CH18*'Task Assignment'!$L$18 -> 0 | CT18: =CI18*'Task Assignment'!$L$19 -> 0 | CU18: 0 | CV18: =BY18*'Task Assignment'!$H$8*'Task Assignment'!$L$8/60 -> 0 | CW18: =BZ18*'Task Assignment'!$H$9*'Task Assignment'!$L$9/60 -> 0 | CX18: =CA18*'Task Assignment'!$H$10*'Task Assignment'!$L$10/60 -> 0 | CY18: =CB18*'Task Assignment'!$H$11*'Task Assignment'!$L$11/60 -> 0 | CZ18: =CC18*'Task Assignment'!$H$12*'Task Assignment'!$L$12/60 -> 0 | DA18: =CD18*'Task Assignment'!$H$13*'Task Assignment'!$L$13/60 -> 0 | DB18: =CE18*'Task Assignment'!$H$14*'Task Assignment'!$L$14/60 -> 0 | DC18: =CF18*'Task Assignment'!$H$15*'Task Assignment'!$L$15/60 -> 0 | DD18: =CG18*'Task Assignment'!$H$17*'Task Assignment'!$L$17/60 -> 0 | DE18: =CH18*'Task Assignment'!$H$18*'Task Assignment'!$L$18/60 -> 0 | DF18: =CI18*'Task Assignment'!$H$19*'Task Assignment'!$L$19/60 -> 0 | DG18: 0 | DH18: =IF(EffWorkingHours_CHW=0,0,DG18/EffWorkingHours_CHW/50) -> 0 | DI18: =+DH18+DH56+DH94+DH132+DH170+DH208 -> 0 | DJ18: =Providers!$Q13 -> 0 | DK18: 0 | DL18: =BY18*'Task Assignment'!$I$8*'Task Assignment'!$L$8/60 -> 0 | DM18: =BZ18*'Task Assignment'!$I$9*'Task Assignment'!$L$9/60 -> 0 | DN18: =CA18*'Task Assignment'!$I$10*'Task Assignment'!$L$10/60 -> 0 | DO18: =CB18*'Task Assignment'!$I$11*'Task Assignment'!$L$11/60 -> 0 | DP18: =CC18*'Task Assignment'!$I$12*'Task Assignment'!$L$12/60 -> 0 | DQ18: =CD18*'Task Assignment'!$I$13*'Task Assignment'!$L$13/60 -> 0 | DR18: =CE18*'Task Assignment'!$I$14*'Task Assignment'!$L$14/60 -> 0 | DS18: =CF18*'Task Assignment'!$I$15*'Task Assignment'!$L$15/60 -> 0 | DT18: =CG18*'Task Assignment'!$I$17*'Task Assignment'!$L$17/60 -> 0 | DU18: =CH18*'Task Assignment'!$I$18*'Task Assignment'!$L$18/60 -> 0 | DV18: =CI18*'Task Assignment'!$I$19*'Task Assignment'!$L$19/60 -> 0 | DW18: 0 | DX18: =IF(EffWorkingHours_CHW=0,0,DW18/EffWorkingHours_CHW/50) -> 0 | DY18: =+DX18+DX56+DX94+DX132+DX170+DX208 -> 0 | DZ18: =Providers!$Q13 -> 0 | EA18: 0 | EB18: =BY18*'Task Assignment'!$K$8*'Task Assignment'!$L$8/60 -> 0 | EC18: =BZ18*'Task Assignment'!$K$9*'Task Assignment'!$L$9/60 -> 0 | ED18: =CA18*'Task Assignment'!$K$10*'Task Assignment'!$L$10/60 -> 0 | EE18: =CB18*'Task Assignment'!$K$11*'Task Assignment'!$L$11/60 -> 0 | EF18: =CC18*'Task Assignment'!$K$12*'Task Assignment'!$L$12/60 -> 0 | EG18: =CD18*'Task Assignment'!$K$13*'Task Assignment'!$L$13/60 -> 0 | EH18: =CE18*'Task Assignment'!$K$14*'Task Assignment'!$L$14/60 -> 0 | EI18: =CF18*'Task Assignment'!$K$15*'Task Assignment'!$L$15/60 -> 0 | EJ18: =CG18*'Task Assignment'!$K$17*'Task Assignment'!$L$17/60 -> 0 | EK18: =CH18*'Task Assignment'!$K$18*'Task Assignment'!$L$18/60 -> 0 | EL18: =CI18*'Task Assignment'!$K$19*'Task Assignment'!$L$19/60 -> 0 | EM18: 0 | EN18: =IF(EffWorkingHours_CHW=0,0,EM18/EffWorkingHours_CHW/50) -> 0 | EO18: =+EN18+EN56+EN94+EN132+EN170+EN208 -> 0 | EP18: =Providers!$Q13 -> 0 | EQ18: 0 | ES18: =BW18 -> Agent de santé communautaire (ASC) | ET18: No. | EU18: =IF(TS_Number_or_Percent=1,$C18,$EU19*Clients_SM) -> 0 | EV18: =IF(TS_Number_or_Percent=1,$D18,$EV19*Clients_SM) -> 0 | EW18: =IF(TS_Number_or_Percent=1,$E18,$EW19*Clients_SM) -> 0 | EX18: =IF(TS_Number_or_Percent=1,$F18,$EX19*Clients_SM) -> 0 | EY18: =IF(TS_Number_or_Percent=1,$G18,$EY19*Clients_SM) -> 0 | EZ18: =IF(TS_Number_or_Percent=1,$H18,$EZ19*Clients_SM) -> 0 | FA18: =IF(TS_Number_or_Percent=1,$I18,$FA19*Clients_SM) -> 0 | FB18: =IF(TS_Number_or_Percent=1,$J18,$FB19*Clients_SM) -> 0 | FC18: =IF(TS_Number_or_Percent=1,$K18,$FC19*Clients_SM) -> 0 | FD18: =IF(TS_Number_or_Percent=1,$L18,$FD19*Clients_SM) -> 0 | FE18: =IF(TS_Number_or_Percent=1,$M18,$FE19*Clients_SM) -> 0 | FF18: =EU18*'Task Assignment'!$L$8 -> 0 | FG18: =EV18*'Task Assignment'!$L$9 -> 0 | FH18: =EW18*'Task Assignment'!$L$10 -> 0 | FI18: =EX18*'Task Assignment'!$L$11 -> 0 | FJ18: =EY18*'Task Assignment'!$L$12 -> 0 | FK18: =EZ18*'Task Assignment'!$L$13 -> 0 | FL18: =FA18*'Task Assignment'!$L$14 -> 0 | FM18: =FB18*'Task Assignment'!$L$15 -> 0 | FN18: =FC18*'Task Assignment'!$L$17 -> 0 | FO18: =FD18*'Task Assignment'!$L$18 -> 0 | FP18: =FE18*'Task Assignment'!$L$19 -> 0 | FQ18: 0 | FR18: =EU18*'Task Assignment'!$H$8*'Task Assignment'!$L$8/60 -> 0 | FS18: =EV18*'Task Assignment'!$H$9*'Task Assignment'!$L$9/60 -> 0 | FT18: =EW18*'Task Assignment'!$H$10*'Task Assignment'!$L$10/60 -> 0 | FU18: =EX18*'Task Assignment'!$H$11*'Task Assignment'!$L$11/60 -> 0 | FV18: =EY18*'Task Assignment'!$H$12*'Task Assignment'!$L$12/60 -> 0 | FW18: =EZ18*'Task Assignment'!$H$13*'Task Assignment'!$L$13/60 -> 0 | FX18: =FA18*'Task Assignment'!$H$14*'Task Assignment'!$L$14/60 -> 0 | FY18: =FB18*'Task Assignment'!$H$15*'Task Assignment'!$L$15/60 -> 0 | FZ18: =FC18*'Task Assignment'!$H$17*'Task Assignment'!$L$17/60 -> 0 | GA18: =FD18*'Task Assignment'!$H$18*'Task Assignment'!$L$18/60 -> 0 | GB18: =FE18*'Task Assignment'!$H$19*'Task Assignment'!$L$19/60 -> 0 | GC18: 0 | GD18: =IF(EffWorkingHours_CHW=0,0,GC18/EffWorkingHours_CHW/50) -> 0 | GE18: =+GD18+GD56+GD94+GD132+GD170+GD208 -> 0 | GF18: =Providers!$Q13 -> 0 | GG18: 0 | GH18: =EU18*'Task Assignment'!$I$8*'Task Assignment'!$L$8/60 -> 0 | GI18: =EV18*'Task Assignment'!$I$9*'Task Assignment'!$L$9/60 -> 0 | GJ18: =EW18*'Task Assignment'!$I$10*'Task Assignment'!$L$10/60 -> 0 | GK18: =EX18*'Task Assignment'!$I$11*'Task Assignment'!$L$11/60 -> 0 | GL18: =EY18*'Task Assignment'!$I$12*'Task Assignment'!$L$12/60 -> 0 | GM18: =EZ18*'Task Assignment'!$I$13*'Task Assignment'!$L$13/60 -> 0 | GN18: =FA18*'Task Assignment'!$I$14*'Task Assignment'!$L$14/60 -> 0 | GO18: =FB18*'Task Assignment'!$I$15*'Task Assignment'!$L$15/60 -> 0 | GP18: =FC18*'Task Assignment'!$I$17*'Task Assignment'!$L$17/60 -> 0 | GQ18: =FD18*'Task Assignment'!$I$18*'Task Assignment'!$L$18/60 -> 0 | GR18: =FE18*'Task Assignment'!$I$19*'Task Assignment'!$L$19/60 -> 0 | GS18: 0 | GT18: =IF(EffWorkingHours_CHW=0,0,GS18/EffWorkingHours_CHW/50) -> 0 | GU18: =+GT18+GT56+GT94+GT132+GT170+GT208 -> 0 | GV18: =Providers!$Q13 -> 0 | GW18: 0 | GX18: =EU18*'Task Assignment'!$K$8*'Task Assignment'!$L$8/60 -> 0 | GY18: =EV18*'Task Assignment'!$K$9*'Task Assignment'!$L$9/60 -> 0 | GZ18: =EW18*'Task Assignment'!$K$10*'Task Assignment'!$L$10/60 -> 0 | HA18: =EX18*'Task Assignment'!$K$11*'Task Assignment'!$L$11/60 -> 0 | HB18: =EY18*'Task Assignment'!$K$12*'Task Assignment'!$L$12/60 -> 0 | HC18: =EZ18*'Task Assignment'!$K$13*'Task Assignment'!$L$13/60 -> 0 | HD18: =FA18*'Task Assignment'!$K$14*'Task Assignment'!$L$14/60 -> 0 | HE18: =FB18*'Task Assignment'!$K$15*'Task Assignment'!$L$15/60 -> 0 | HF18: =FC18*'Task Assignment'!$K$17*'Task Assignment'!$L$17/60 -> 0 | HG18: =FD18*'Task Assignment'!$K$18*'Task Assignment'!$L$18/60 -> 0 | HH18: =FE18*'Task Assignment'!$K$19*'Task Assignment'!$L$19/60 -> 0 | HI18: 0 | HJ18: =IF(EffWorkingHours_CHW=0,0,HI18/EffWorkingHours_CHW/50) -> 0 | HK18: =+HJ18+HJ56+HJ94+HJ132+HJ170+HJ208 -> 0 | HL18: =Providers!$Q13 -> 0 | HM18: 0 | HR18: =IF(TS_Number_or_Percent=1,$C18,$BY19*Clients_SM) -> 0 | HS18: =IF(TS_Number_or_Percent=1,$D18,$BZ19*Clients_SM) -> 0 | HT18: =IF(TS_Number_or_Percent=1,$E18,$CA19*Clients_SM) -> 0 | HU18: =IF(TS_Number_or_Percent=1,$F18,$CB19*Clients_SM) -> 0 | HV18: =IF(TS_Number_or_Percent=1,$G18,$CC19*Clients_SM) -> 0 | HW18: =IF(TS_Number_or_Percent=1,$H18,$CD19*Clients_SM) -> 0 | HX18: =IF(TS_Number_or_Percent=1,$I18,$CE19*Clients_SM) -> 0 | HY18: =IF(TS_Number_or_Percent=1,$J18,$CF19*Clients_SM) -> 0 | HZ18: =IF(TS_Number_or_Percent=1,$K18,$CG19*Clients_SM) -> 0 | IA18: =IF(TS_Number_or_Percent=1,$L18,$CH19*Clients_SM) -> 0 | IB18: =IF(TS_Number_or_Percent=1,$M18,$CI19*Clients_SM) -> 0 | ID18: =IF(TS_Number_or_Percent=1,$C18,$EU19*Clients_SM) -> 0 | IE18: =IF(TS_Number_or_Percent=1,$D18,$EV19*Clients_SM) -> 0 | IF18: =IF(TS_Number_or_Percent=1,$E18,$EW19*Clients_SM) -> 0 | IG18: =IF(TS_Number_or_Percent=1,$F18,$EX19*Clients_SM) -> 0 | IH18: =IF(TS_Number_or_Percent=1,$G18,$EY19*Clients_SM) -> 0 | II18: =IF(TS_Number_or_Percent=1,$H18,$EZ19*Clients_SM) -> 0 | IJ18: =IF(TS_Number_or_Percent=1,$I18,$FA19*Clients_SM) -> 0 | IK18: =IF(TS_Number_or_Percent=1,$J18,$FB19*Clients_SM) -> 0 | IL18: =IF(TS_Number_or_Percent=1,$K18,$FC19*Clients_SM) -> 0 | IM18: =IF(TS_Number_or_Percent=1,$L18,$FD19*Clients_SM) -> 0 | IN18: =IF(TS_Number_or_Percent=1,$M18,$FE19*Clients_SM) -> 0
BX19: % | BY19: =IF(Clients_SM=0,0,IF(TS_Number_or_Percent=1,$BY18/Clients_SM,$C18/Clients_SM)) -> 0 | BZ19: 0.21 | CA19: 0.25 | CB19: =IF(Clients_SM=0,0,IF(TS_Number_or_Percent=1,$CB18/Clients_SM,F18/Clients_SM)) -> 0 | CC19: =IF(Clients_SM=0,0,IF(TS_Number_or_Percent=1,$CC18/Clients_SM,G18/Clients_SM)) -> 0 | CD19: =IF(Clients_SM=0,0,IF(TS_Number_or_Percent=1,$CD18/Clients_SM,H18/Clients_SM)) -> 0 | CE19: =IF(Clients_SM=0,0,IF(TS_Number_or_Percent=1,$CE18/Clients_SM,I18/Clients_SM)) -> 0 | CF19: =IF(Clients_SM=0,0,IF(TS_Number_or_Percent=1,$CF18/Clients_SM,J18/Clients_SM)) -> 0 | CG19: =IF(Clients_SM=0,0,IF(TS_Number_or_Percent=1,$CG18/Clients_SM,K18/Clients_SM)) -> 0 | CH19: =IF(Clients_SM=0,0,IF(TS_Number_or_Percent=1,$CH18/Clients_SM,L18/Clients_SM)) -> 0 | CI19: 0 | ET19: % | EU19: =IF(Clients_SM=0,0,IF(TS_Number_or_Percent=1,$EU18/Clients_SM,C18/Clients_SM)) -> 0 | EV19: =IF(Clients_SM=0,0,IF(TS_Number_or_Percent=1,$EV18/Clients_SM,D18/Clients_SM)) -> 0 | EW19: =IF(Clients_SM=0,0,IF(TS_Number_or_Percent=1,$EW18/Clients_SM,$E18/Clients_SM)) -> 0 | EX19: =IF(Clients_SM=0,0,IF(TS_Number_or_Percent=1,$EX18/Clients_SM,$F18/Clients_SM)) -> 0 | EY19: =IF(Clients_SM=0,0,IF(TS_Number_or_Percent=1,$EY18/Clients_SM,G18/Clients_SM)) -> 0 | EZ19: =IF(Clients_SM=0,0,IF(TS_Number_or_Percent=1,$EZ18/Clients_SM,H18/Clients_SM)) -> 0 | FA19: =IF(Clients_SM=0,0,IF(TS_Number_or_Percent=1,$FA18/Clients_SM,I18/Clients_SM)) -> 0 | FB19: =IF(Clients_SM=0,0,IF(TS_Number_or_Percent=1,$FB18/Clients_SM,J18/Clients_SM)) -> 0 | FC19: =IF(Clients_SM=0,0,IF(TS_Number_or_Percent=1,$FC18/Clients_SM,K18/Clients_SM)) -> 0 | FD19: =IF(Clients_SM=0,0,IF(TS_Number_or_Percent=1,$FD18/Clients_SM,L18/Clients_SM)) -> 0 | FE19: =IF(Clients_SM=0,0,IF(TS_Number_or_Percent=1,$FE18/Clients_SM,M18/Clients_SM)) -> 0 | HR19: =IF(Clients_SM=0,0,IF(TS_Number_or_Percent=1,$BY18/Clients_SM,$C18/Clients_SM)) -> 0 | HS19: =IF(Clients_SM=0,0,IF(TS_Number_or_Percent=1,$BZ18/Clients_SM,EW18/Clients_SM)) -> 0 | HT19: =IF(Clients_SM=0,0,IF(TS_Number_or_Percent=1,$CA18/Clients_SM,EX18/Clients_SM)) -> 0 | HU19: =IF(Clients_SM=0,0,IF(TS_Number_or_Percent=1,$CB18/Clients_SM,EY18/Clients_SM)) -> 0 | HV19: =IF(Clients_SM=0,0,IF(TS_Number_or_Percent=1,$CC18/Clients_SM,EZ18/Clients_SM)) -> 0 | HW19: =IF(Clients_SM=0,0,IF(TS_Number_or_Percent=1,$CD18/Clients_SM,FA18/Clients_SM)) -> 0 | HX19: =IF(Clients_SM=0,0,IF(TS_Number_or_Percent=1,$CE18/Clients_SM,FB18/Clients_SM)) -> 0 | HY19: =IF(Clients_SM=0,0,IF(TS_Number_or_Percent=1,$CF18/Clients_SM,FC18/Clients_SM)) -> 0 | HZ19: =IF(Clients_SM=0,0,IF(TS_Number_or_Percent=1,$CG18/Clients_SM,FD18/Clients_SM)) -> 0 | IA19: =IF(Clients_SM=0,0,IF(TS_Number_or_Percent=1,$CH18/Clients_SM,FE18/Clients_SM)) -> 0 | IB19: =IF(Clients_SM=0,0,IF(TS_Number_or_Percent=1,$CI18/Clients_SM,FF18/Clients_SM)) -> 0 | ID19: =IF(Clients_SM=0,0,IF(TS_Number_or_Percent=1,$EU18/Clients_SM,CL18/Clients_SM)) -> 0 | IE19: =IF(Clients_SM=0,0,IF(TS_Number_or_Percent=1,$EV18/Clients_SM,CM18/Clients_SM)) -> 0 | IF19: =IF(Clients_SM=0,0,IF(TS_Number_or_Percent=1,$EW18/Clients_SM,$E18/Clients_SM)) -> 0 | IG19: =IF(Clients_SM=0,0,IF(TS_Number_or_Percent=1,$EX18/Clients_SM,$F18/Clients_SM)) -> 0 | IH19: =IF(Clients_SM=0,0,IF(TS_Number_or_Percent=1,$EY18/Clients_SM,CP18/Clients_SM)) -> 0 | II19: =IF(Clients_SM=0,0,IF(TS_Number_or_Percent=1,$EZ18/Clients_SM,CQ18/Clients_SM)) -> 0 | IJ19: =IF(Clients_SM=0,0,IF(TS_Number_or_Percent=1,$FA18/Clients_SM,CR18/Clients_SM)) -> 0 | IK19: =IF(Clients_SM=0,0,IF(TS_Number_or_Percent=1,$FB18/Clients_SM,CS18/Clients_SM)) -> 0 | IL19: =IF(Clients_SM=0,0,IF(TS_Number_or_Percent=1,$FC18/Clients_SM,CT18/Clients_SM)) -> 0 | IM19: =IF(Clients_SM=0,0,IF(TS_Number_or_Percent=1,$FD18/Clients_SM,CU18/Clients_SM)) -> 0 | IN19: =IF(Clients_SM=0,0,IF(TS_Number_or_Percent=1,$FE18/Clients_SM,CV18/Clients_SM)) -> 0
A20: Facility-based Auxiliary (FBA) | B20: =IF(Language=1,'Drop-down Lists'!$G$10,'Drop-down Lists'!$H$10) -> Auxiliaire de soins/Aide-soignant (FBA) | C20: =IF($B20="",0,IF(ISNUMBER(MATCH($B20,'Task Assignment'!$F$8,0)),Clients_SM,0)) -> 0 | D20: =IF($B20="",0,IF(ISNUMBER(MATCH($B20,'Task Assignment'!$F$9,0)),Clients_SM,0)) -> 0 | E20: =IF($B20="",0,IF(ISNUMBER(MATCH($B20,'Task Assignment'!$F$10,0)),Clients_SM,0)) -> 0 | F20: =IF($B20="",0,IF(ISNUMBER(MATCH($B20,'Task Assignment'!$F$11,0)),Clients_SM,0)) -> 0 | G20: =IF($B20="",0,IF(ISNUMBER(MATCH($B20,'Task Assignment'!$F$12,0)),Clients_SM,0)) -> 0 | H20: =IF($B20="",0,IF(ISNUMBER(MATCH($B20,'Task Assignment'!$F$13,0)),Clients_SM,0)) -> 0 | I20: =IF($B20="",0,IF(ISNUMBER(MATCH($B20,'Task Assignment'!$F$14,0)),Clients_SM,0)) -> 0 | J20: =IF($B20="",0,IF(ISNUMBER(MATCH($B20,'Task Assignment'!$F$15,0)),Clients_SM,0)) -> 0 | K20: =IF($B20="",0,IF(ISNUMBER(MATCH($B20,'Task Assignment'!$F$17,0)),Clients_SM,0)) -> 0 | L20: =IF($B20="",0,IF(ISNUMBER(MATCH($B20,'Task Assignment'!$F$18,0)),Clients_SM,0)) -> 0 | M20: =IF($B20="",0,IF(ISNUMBER(MATCH($B20,'Task Assignment'!$F$19,0)),Clients_SM,0)) -> 0 | N20: =C20*'Task Assignment'!$L$8 -> 0 | O20: =D20*'Task Assignment'!$L$9 -> 0 | P20: =E20*'Task Assignment'!$L$10 -> 0 | Q20: =F20*'Task Assignment'!$L$11 -> 0 | R20: =G20*'Task Assignment'!$L$12 -> 0 | S20: =H20*'Task Assignment'!$L$13 -> 0 | T20: =I20*'Task Assignment'!$L$14 -> 0 | U20: =J20*'Task Assignment'!$L$15 -> 0 | V20: =K20*'Task Assignment'!$L$17 -> 0 | W20: =L20*'Task Assignment'!$L$18 -> 0 | X20: =M20*'Task Assignment'!$L$19 -> 0 | Y20: 0 | Z20: =C20*'Task Assignment'!$H$8*'Task Assignment'!$L$8/60 -> 0 | AA20: =D20*'Task Assignment'!$H$9*'Task Assignment'!$L$9/60 -> 0 | AB20: =E20*'Task Assignment'!$H$10*'Task Assignment'!$L$10/60 -> 0 | AC20: =F20*'Task Assignment'!$H$11*'Task Assignment'!$L$11/60 -> 0 | AD20: =G20*'Task Assignment'!$H$12*'Task Assignment'!$L$12/60 -> 0 | AE20: =H20*'Task Assignment'!$H$13*'Task Assignment'!$L$13/60 -> 0 | AF20: =I20*'Task Assignment'!$H$14*'Task Assignment'!$L$14/60 -> 0 | AG20: =J20*'Task Assignment'!$H$15*'Task Assignment'!$L$15/60 -> 0 | AH20: =K20*'Task Assignment'!$H$17*'Task Assignment'!$L$17/60 -> 0 | AI20: =L20*'Task Assignment'!$H$18*'Task Assignment'!$L$18/60 -> 0 | AJ20: =M20*'Task Assignment'!$H$19*'Task Assignment'!$L$19/60 -> 0 | AK20: 0 | AL20: =IF(EffWorkingHours_FBA=0,0,AK20/EffWorkingHours_FBA/50) -> 0 | AM20: =+AL20+AL58+AL96+AL134+AL172+AL210 -> 0 | AN20: =Providers!$Q14 -> 0 | AO20: 0 | AP20: =C20*'Task Assignment'!$I$8*'Task Assignment'!$L$8/60 -> 0 | AQ20: =D20*'Task Assignment'!$I$9*'Task Assignment'!$L$9/60 -> 0 | AR20: =E20*'Task Assignment'!$I$10*'Task Assignment'!$L$10/60 -> 0 | AS20: =F20*'Task Assignment'!$I$11*'Task Assignment'!$L$11/60 -> 0 | AT20: =G20*'Task Assignment'!$I$12*'Task Assignment'!$L$12/60 -> 0 | AU20: =H20*'Task Assignment'!$I$13*'Task Assignment'!$L$13/60 -> 0 | AV20: =I20*'Task Assignment'!$I$14*'Task Assignment'!$L$14/60 -> 0 | AW20: =J20*'Task Assignment'!$I$15*'Task Assignment'!$L$15/60 -> 0 | AX20: =K20*'Task Assignment'!$I$17*'Task Assignment'!$L$17/60 -> 0 | AY20: =L20*'Task Assignment'!$I$18*'Task Assignment'!$L$18/60 -> 0 | AZ20: =M20*'Task Assignment'!$I$19*'Task Assignment'!$L$19/60 -> 0 | BA20: 0 | BB20: =IF(EffWorkingHours_FBA=0,0,BA20/EffWorkingHours_FBA/50) -> 0 | BC20: =+BB20+BB58+BB96+BB134+BB172+BB210 -> 0 | BD20: =Providers!$Q14 -> 0 | BE20: 0 | BF20: =C20*'Task Assignment'!$K$8*'Task Assignment'!$L$8/60 -> 0 | BG20: =D20*'Task Assignment'!$K$9*'Task Assignment'!$L$9/60 -> 0 | BH20: =E20*'Task Assignment'!$K$10*'Task Assignment'!$L$10/60 -> 0 | BI20: =F20*'Task Assignment'!$K$11*'Task Assignment'!$L$11/60 -> 0 | BJ20: =G20*'Task Assignment'!$K$12*'Task Assignment'!$L$12/60 -> 0 | BK20: =H20*'Task Assignment'!$K$13*'Task Assignment'!$L$13/60 -> 0 | BL20: =I20*'Task Assignment'!$K$14*'Task Assignment'!$L$14/60 -> 0 | BM20: =J20*'Task Assignment'!$K$15*'Task Assignment'!$L$15/60 -> 0 | BN20: =K20*'Task Assignment'!$K$17*'Task Assignment'!$L$17/60 -> 0 | BO20: =L20*'Task Assignment'!$K$18*'Task Assignment'!$L$18/60 -> 0 | BP20: =M20*'Task Assignment'!$K$19*'Task Assignment'!$L$19/60 -> 0 | BQ20: 0 | BR20: =IF(EffWorkingHours_FBA=0,0,BQ20/EffWorkingHours_FBA/50) -> 0 | BS20: =+BR20+BR58+BR96+BR134+BR172+BR210 -> 0 | BT20: =Providers!$Q14 -> 0 | BU20: 0 | BW20: Auxiliaire de soins/Aide-soignant (FBA) | BX20: No. | BY20: =IF(TS_Number_or_Percent=1,$C20,$BY21*Clients_SM) -> 0 | BZ20: =IF(TS_Number_or_Percent=1,$D20,$BZ21*Clients_SM) -> 0 | CA20: =IF(TS_Number_or_Percent=1,$E20,$CA21*Clients_SM) -> 0 | CB20: =IF(TS_Number_or_Percent=1,$F20,$CB21*Clients_SM) -> 0 | CC20: =IF(TS_Number_or_Percent=1,$G20,$CC21*Clients_SM) -> 0 | CD20: =IF(TS_Number_or_Percent=1,$H20,$CD21*Clients_SM) -> 0 | CE20: =IF(TS_Number_or_Percent=1,$I20,$CE21*Clients_SM) -> 0 | CF20: =IF(TS_Number_or_Percent=1,$J20,$CF21*Clients_SM) -> 0 | CG20: =IF(TS_Number_or_Percent=1,$K20,$CG21*Clients_SM) -> 0 | CH20: =IF(TS_Number_or_Percent=1,$L20,$CH21*Clients_SM) -> 0 | CI20: =IF(TS_Number_or_Percent=1,$M20,$CI21*Clients_SM) -> 0 | CJ20: =BY20*'Task Assignment'!$L$8 -> 0 | CK20: =BZ20*'Task Assignment'!$L$9 -> 0 | CL20: =CA20*'Task Assignment'!$L$10 -> 0 | CM20: =CB20*'Task Assignment'!$L$11 -> 0 | CN20: =CC20*'Task Assignment'!$L$12 -> 0 | CO20: =CD20*'Task Assignment'!$L$13 -> 0 | CP20: =CE20*'Task Assignment'!$L$14 -> 0 | CQ20: =CF20*'Task Assignment'!$L$15 -> 0 | CR20: =CG20*'Task Assignment'!$L$17 -> 0 | CS20: =CH20*'Task Assignment'!$L$18 -> 0 | CT20: =CI20*'Task Assignment'!$L$19 -> 0 | CU20: 0 | CV20: =BY20*'Task Assignment'!$H$8*'Task Assignment'!$L$8/60 -> 0 | CW20: =BZ20*'Task Assignment'!$H$9*'Task Assignment'!$L$9/60 -> 0 | CX20: =CA20*'Task Assignment'!$H$10*'Task Assignment'!$L$10/60 -> 0 | CY20: =CB20*'Task Assignment'!$H$11*'Task Assignment'!$L$11/60 -> 0 | CZ20: =CC20*'Task Assignment'!$H$12*'Task Assignment'!$L$12/60 -> 0 | DA20: =CD20*'Task Assignment'!$H$13*'Task Assignment'!$L$13/60 -> 0 | DB20: =CE20*'Task Assignment'!$H$14*'Task Assignment'!$L$14/60 -> 0 | DC20: =CF20*'Task Assignment'!$H$15*'Task Assignment'!$L$15/60 -> 0 | DD20: =CG20*'Task Assignment'!$H$17*'Task Assignment'!$L$17/60 -> 0 | DE20: =CH20*'Task Assignment'!$H$18*'Task Assignment'!$L$18/60 -> 0 | DF20: =CI20*'Task Assignment'!$H$19*'Task Assignment'!$L$19/60 -> 0 | DG20: 0 | DH20: =IF(EffWorkingHours_FBA=0,0,DG20/EffWorkingHours_FBA/50) -> 0 | DI20: =+DH20+DH58+DH96+DH134+DH172+DH210 -> 0 | DJ20: =Providers!$Q14 -> 0 | DK20: 0 | DL20: =BY20*'Task Assignment'!$I$8*'Task Assignment'!$L$8/60 -> 0 | DM20: =BZ20*'Task Assignment'!$I$9*'Task Assignment'!$L$9/60 -> 0 | DN20: =CA20*'Task Assignment'!$I$10*'Task Assignment'!$L$10/60 -> 0 | DO20: =CB20*'Task Assignment'!$I$11*'Task Assignment'!$L$11/60 -> 0 | DP20: =CC20*'Task Assignment'!$I$12*'Task Assignment'!$L$12/60 -> 0 | DQ20: =CD20*'Task Assignment'!$I$13*'Task Assignment'!$L$13/60 -> 0 | DR20: =CE20*'Task Assignment'!$I$14*'Task Assignment'!$L$14/60 -> 0 | DS20: =CF20*'Task Assignment'!$I$15*'Task Assignment'!$L$15/60 -> 0 | DT20: =CG20*'Task Assignment'!$I$17*'Task Assignment'!$L$17/60 -> 0 | DU20: =CH20*'Task Assignment'!$I$18*'Task Assignment'!$L$18/60 -> 0 | DV20: =CI20*'Task Assignment'!$I$19*'Task Assignment'!$L$19/60 -> 0 | DW20: 0 | DX20: =IF(EffWorkingHours_FBA=0,0,DW20/EffWorkingHours_FBA/50) -> 0 | DY20: =+DX20+DX58+DX96+DX134+DX172+DX210 -> 0 | DZ20: =Providers!$Q14 -> 0 | EA20: 0 | EB20: =BY20*'Task Assignment'!$K$8*'Task Assignment'!$L$8/60 -> 0 | EC20: =BZ20*'Task Assignment'!$K$9*'Task Assignment'!$L$9/60 -> 0 | ED20: =CA20*'Task Assignment'!$K$10*'Task Assignment'!$L$10/60 -> 0 | EE20: =CB20*'Task Assignment'!$K$11*'Task Assignment'!$L$11/60 -> 0 | EF20: =CC20*'Task Assignment'!$K$12*'Task Assignment'!$L$12/60 -> 0 | EG20: =CD20*'Task Assignment'!$K$13*'Task Assignment'!$L$13/60 -> 0 | EH20: =CE20*'Task Assignment'!$K$14*'Task Assignment'!$L$14/60 -> 0 | EI20: =CF20*'Task Assignment'!$K$15*'Task Assignment'!$L$15/60 -> 0 | EJ20: =CG20*'Task Assignment'!$K$17*'Task Assignment'!$L$17/60 -> 0 | EK20: =CH20*'Task Assignment'!$K$18*'Task Assignment'!$L$18/60 -> 0 | EL20: =CI20*'Task Assignment'!$K$19*'Task Assignment'!$L$19/60 -> 0 | EM20: 0 | EN20: =IF(EffWorkingHours_FBA=0,0,EM20/EffWorkingHours_FBA/50) -> 0 | EO20: =+EN20+EN58+EN96+EN134+EN172+EN210 -> 0 | EP20: =Providers!$Q14 -> 0 | EQ20: 0 | ES20: =BW20 -> Auxiliaire de soins/Aide-soignant (FBA) | ET20: No. | EU20: =IF(TS_Number_or_Percent=1,$C20,$EU21*Clients_SM) -> 0 | EV20: =IF(TS_Number_or_Percent=1,$D20,$EV21*Clients_SM) -> 0 | EW20: =IF(TS_Number_or_Percent=1,$E20,$EW21*Clients_SM) -> 0 | EX20: =IF(TS_Number_or_Percent=1,$F20,$EX21*Clients_SM) -> 0 | EY20: =IF(TS_Number_or_Percent=1,$G20,$EY21*Clients_SM) -> 0 | EZ20: =IF(TS_Number_or_Percent=1,$H20,$EZ21*Clients_SM) -> 0 | FA20: =IF(TS_Number_or_Percent=1,$I20,$FA21*Clients_SM) -> 0 | FB20: =IF(TS_Number_or_Percent=1,$J20,$FB21*Clients_SM) -> 0 | FC20: =IF(TS_Number_or_Percent=1,$K20,$FC21*Clients_SM) -> 0 | FD20: =IF(TS_Number_or_Percent=1,$L20,$FD21*Clients_SM) -> 0 | FE20: =IF(TS_Number_or_Percent=1,$M20,$FE21*Clients_SM) -> 0 | FF20: =EU20*'Task Assignment'!$L$8 -> 0 | FG20: =EV20*'Task Assignment'!$L$9 -> 0 | FH20: =EW20*'Task Assignment'!$L$10 -> 0 | FI20: =EX20*'Task Assignment'!$L$11 -> 0 | FJ20: =EY20*'Task Assignment'!$L$12 -> 0 | FK20: =EZ20*'Task Assignment'!$L$13 -> 0 | FL20: =FA20*'Task Assignment'!$L$14 -> 0 | FM20: =FB20*'Task Assignment'!$L$15 -> 0 | FN20: =FC20*'Task Assignment'!$L$17 -> 0 | FO20: =FD20*'Task Assignment'!$L$18 -> 0 | FP20: =FE20*'Task Assignment'!$L$19 -> 0 | FQ20: 0 | FR20: =EU20*'Task Assignment'!$H$8*'Task Assignment'!$L$8/60 -> 0 | FS20: =EV20*'Task Assignment'!$H$9*'Task Assignment'!$L$9/60 -> 0 | FT20: =EW20*'Task Assignment'!$H$10*'Task Assignment'!$L$10/60 -> 0 | FU20: =EX20*'Task Assignment'!$H$11*'Task Assignment'!$L$11/60 -> 0 | FV20: =EY20*'Task Assignment'!$H$12*'Task Assignment'!$L$12/60 -> 0 | FW20: =EZ20*'Task Assignment'!$H$13*'Task Assignment'!$L$13/60 -> 0 | FX20: =FA20*'Task Assignment'!$H$14*'Task Assignment'!$L$14/60 -> 0 | FY20: =FB20*'Task Assignment'!$H$15*'Task Assignment'!$L$15/60 -> 0 | FZ20: =FC20*'Task Assignment'!$H$17*'Task Assignment'!$L$17/60 -> 0 | GA20: =FD20*'Task Assignment'!$H$18*'Task Assignment'!$L$18/60 -> 0 | GB20: =FE20*'Task Assignment'!$H$19*'Task Assignment'!$L$19/60 -> 0 | GC20: 0 | GD20: =IF(EffWorkingHours_FBA=0,0,GC20/EffWorkingHours_FBA/50) -> 0 | GE20: =+GD20+GD58+GD96+GD134+GD172+GD210 -> 0 | GF20: =Providers!$Q14 -> 0 | GG20: 0 | GH20: =EU20*'Task Assignment'!$I$8*'Task Assignment'!$L$8/60 -> 0 | GI20: =EV20*'Task Assignment'!$I$9*'Task Assignment'!$L$9/60 -> 0 | GJ20: =EW20*'Task Assignment'!$I$10*'Task Assignment'!$L$10/60 -> 0 | GK20: =EX20*'Task Assignment'!$I$11*'Task Assignment'!$L$11/60 -> 0 | GL20: =EY20*'Task Assignment'!$I$12*'Task Assignment'!$L$12/60 -> 0 | GM20: =EZ20*'Task Assignment'!$I$13*'Task Assignment'!$L$13/60 -> 0 | GN20: =FA20*'Task Assignment'!$I$14*'Task Assignment'!$L$14/60 -> 0 | GO20: =FB20*'Task Assignment'!$I$15*'Task Assignment'!$L$15/60 -> 0 | GP20: =FC20*'Task Assignment'!$I$17*'Task Assignment'!$L$17/60 -> 0 | GQ20: =FD20*'Task Assignment'!$I$18*'Task Assignment'!$L$18/60 -> 0 | GR20: =FE20*'Task Assignment'!$I$19*'Task Assignment'!$L$19/60 -> 0 | GS20: 0 | GT20: =IF(EffWorkingHours_FBA=0,0,GS20/EffWorkingHours_FBA/50) -> 0 | GU20: =+GT20+GT58+GT96+GT134+GT172+GT210 -> 0 | GV20: =Providers!$Q14 -> 0 | GW20: 0 | GX20: =EU20*'Task Assignment'!$K$8*'Task Assignment'!$L$8/60 -> 0 | GY20: =EV20*'Task Assignment'!$K$9*'Task Assignment'!$L$9/60 -> 0 | GZ20: =EW20*'Task Assignment'!$K$10*'Task Assignment'!$L$10/60 -> 0 | HA20: =EX20*'Task Assignment'!$K$11*'Task Assignment'!$L$11/60 -> 0 | HB20: =EY20*'Task Assignment'!$K$12*'Task Assignment'!$L$12/60 -> 0 | HC20: =EZ20*'Task Assignment'!$K$13*'Task Assignment'!$L$13/60 -> 0 | HD20: =FA20*'Task Assignment'!$K$14*'Task Assignment'!$L$14/60 -> 0 | HE20: =FB20*'Task Assignment'!$K$15*'Task Assignment'!$L$15/60 -> 0 | HF20: =FC20*'Task Assignment'!$K$17*'Task Assignment'!$L$17/60 -> 0 | HG20: =FD20*'Task Assignment'!$K$18*'Task Assignment'!$L$18/60 -> 0 | HH20: =FE20*'Task Assignment'!$K$19*'Task Assignment'!$L$19/60 -> 0 | HI20: 0 | HJ20: =IF(EffWorkingHours_FBA=0,0,HI20/EffWorkingHours_FBA/50) -> 0 | HK20: =+HJ20+HJ58+HJ96+HJ134+HJ172+HJ210 -> 0 | HL20: =Providers!$Q14 -> 0 | HM20: 0 | HR20: =IF(TS_Number_or_Percent=1,$C20,$BY21*Clients_SM) -> 0 | HS20: =IF(TS_Number_or_Percent=1,$D20,$BZ21*Clients_SM) -> 0 | HT20: =IF(TS_Number_or_Percent=1,$E20,$CA21*Clients_SM) -> 0 | HU20: =IF(TS_Number_or_Percent=1,$F20,$CB21*Clients_SM) -> 0 | HV20: =IF(TS_Number_or_Percent=1,$G20,$CC21*Clients_SM) -> 0 | HW20: =IF(TS_Number_or_Percent=1,$H20,$CD21*Clients_SM) -> 0 | HX20: =IF(TS_Number_or_Percent=1,$I20,$CE21*Clients_SM) -> 0 | HY20: =IF(TS_Number_or_Percent=1,$J20,$CF21*Clients_SM) -> 0 | HZ20: =IF(TS_Number_or_Percent=1,$K20,$CG21*Clients_SM) -> 0 | IA20: =IF(TS_Number_or_Percent=1,$L20,$CH21*Clients_SM) -> 0 | IB20: =IF(TS_Number_or_Percent=1,$M20,$CI21*Clients_SM) -> 0 | ID20: =IF(TS_Number_or_Percent=1,$C20,$EU21*Clients_SM) -> 0 | IE20: =IF(TS_Number_or_Percent=1,$D20,$EV21*Clients_SM) -> 0 | IF20: =IF(TS_Number_or_Percent=1,$E20,$EW21*Clients_SM) -> 0 | IG20: =IF(TS_Number_or_Percent=1,$F20,$EX21*Clients_SM) -> 0 | IH20: =IF(TS_Number_or_Percent=1,$G20,$EY21*Clients_SM) -> 0 | II20: =IF(TS_Number_or_Percent=1,$H20,$EZ21*Clients_SM) -> 0 | IJ20: =IF(TS_Number_or_Percent=1,$I20,$FA21*Clients_SM) -> 0 | IK20: =IF(TS_Number_or_Percent=1,$J20,$FB21*Clients_SM) -> 0 | IL20: =IF(TS_Number_or_Percent=1,$K20,$FC21*Clients_SM) -> 0 | IM20: =IF(TS_Number_or_Percent=1,$L20,$FD21*Clients_SM) -> 0 | IN20: =IF(TS_Number_or_Percent=1,$M20,$FE21*Clients_SM) -> 0
BX21: % | BY21: =IF(Clients_SM=0,0,IF(TS_Number_or_Percent=1,$BY20/Clients_SM,$C20/Clients_SM)) -> 0 | BZ21: 0.01 | CA21: 0.08 | CB21: =IF(Clients_SM=0,0,IF(TS_Number_or_Percent=1,$CB20/Clients_SM,F20/Clients_SM)) -> 0 | CC21: =IF(Clients_SM=0,0,IF(TS_Number_or_Percent=1,$CC20/Clients_SM,G20/Clients_SM)) -> 0 | CD21: =IF(Clients_SM=0,0,IF(TS_Number_or_Percent=1,$CD20/Clients_SM,H20/Clients_SM)) -> 0 | CE21: 0 | CF21: 0 | CG21: =IF(Clients_SM=0,0,IF(TS_Number_or_Percent=1,$CG20/Clients_SM,K20/Clients_SM)) -> 0 | CH21: =IF(Clients_SM=0,0,IF(TS_Number_or_Percent=1,$CH20/Clients_SM,L20/Clients_SM)) -> 0 | CI21: 0 | ET21: % | EU21: =IF(Clients_SM=0,0,IF(TS_Number_or_Percent=1,$EU20/Clients_SM,C20/Clients_SM)) -> 0 | EV21: =IF(Clients_SM=0,0,IF(TS_Number_or_Percent=1,$EV20/Clients_SM,D20/Clients_SM)) -> 0 | EW21: =IF(Clients_SM=0,0,IF(TS_Number_or_Percent=1,$EW20/Clients_SM,$E20/Clients_SM)) -> 0 | EX21: =IF(Clients_SM=0,0,IF(TS_Number_or_Percent=1,$EX20/Clients_SM,$F20/Clients_SM)) -> 0 | EY21: =IF(Clients_SM=0,0,IF(TS_Number_or_Percent=1,$EY20/Clients_SM,G20/Clients_SM)) -> 0 | EZ21: =IF(Clients_SM=0,0,IF(TS_Number_or_Percent=1,$EZ20/Clients_SM,H20/Clients_SM)) -> 0 | FA21: =IF(Clients_SM=0,0,IF(TS_Number_or_Percent=1,$FA20/Clients_SM,I20/Clients_SM)) -> 0 | FB21: =IF(Clients_SM=0,0,IF(TS_Number_or_Percent=1,$FB20/Clients_SM,J20/Clients_SM)) -> 0 | FC21: =IF(Clients_SM=0,0,IF(TS_Number_or_Percent=1,$FC20/Clients_SM,K20/Clients_SM)) -> 0 | FD21: =IF(Clients_SM=0,0,IF(TS_Number_or_Percent=1,$FD20/Clients_SM,L20/Clients_SM)) -> 0 | FE21: =IF(Clients_SM=0,0,IF(TS_Number_or_Percent=1,$FE20/Clients_SM,M20/Clients_SM)) -> 0 | HR21: =IF(Clients_SM=0,0,IF(TS_Number_or_Percent=1,$BY20/Clients_SM,$C20/Clients_SM)) -> 0 | HS21: =IF(Clients_SM=0,0,IF(TS_Number_or_Percent=1,$BZ20/Clients_SM,EW20/Clients_SM)) -> 0 | HT21: =IF(Clients_SM=0,0,IF(TS_Number_or_Percent=1,$CA20/Clients_SM,EX20/Clients_SM)) -> 0 | HU21: =IF(Clients_SM=0,0,IF(TS_Number_or_Percent=1,$CB20/Clients_SM,EY20/Clients_SM)) -> 0 | HV21: =IF(Clients_SM=0,0,IF(TS_Number_or_Percent=1,$CC20/Clients_SM,EZ20/Clients_SM)) -> 0 | HW21: =IF(Clients_SM=0,0,IF(TS_Number_or_Percent=1,$CD20/Clients_SM,FA20/Clients_SM)) -> 0 | HX21: =IF(Clients_SM=0,0,IF(TS_Number_or_Percent=1,$CE20/Clients_SM,FB20/Clients_SM)) -> 0 | HY21: =IF(Clients_SM=0,0,IF(TS_Number_or_Percent=1,$CF20/Clients_SM,FC20/Clients_SM)) -> 0 | HZ21: =IF(Clients_SM=0,0,IF(TS_Number_or_Percent=1,$CG20/Clients_SM,FD20/Clients_SM)) -> 0 | IA21: =IF(Clients_SM=0,0,IF(TS_Number_or_Percent=1,$CH20/Clients_SM,FE20/Clients_SM)) -> 0 | IB21: =IF(Clients_SM=0,0,IF(TS_Number_or_Percent=1,$CI20/Clients_SM,FF20/Clients_SM)) -> 0 | ID21: =IF(Clients_SM=0,0,IF(TS_Number_or_Percent=1,$EU20/Clients_SM,CL20/Clients_SM)) -> 0 | IE21: =IF(Clients_SM=0,0,IF(TS_Number_or_Percent=1,$EV20/Clients_SM,CM20/Clients_SM)) -> 0 | IF21: =IF(Clients_SM=0,0,IF(TS_Number_or_Percent=1,$EW20/Clients_SM,$E20/Clients_SM)) -> 0 | IG21: =IF(Clients_SM=0,0,IF(TS_Number_or_Percent=1,$EX20/Clients_SM,$F20/Clients_SM)) -> 0 | IH21: =IF(Clients_SM=0,0,IF(TS_Number_or_Percent=1,$EY20/Clients_SM,CP20/Clients_SM)) -> 0 | II21: =IF(Clients_SM=0,0,IF(TS_Number_or_Percent=1,$EZ20/Clients_SM,CQ20/Clients_SM)) -> 0 | IJ21: =IF(Clients_SM=0,0,IF(TS_Number_or_Percent=1,$FA20/Clients_SM,CR20/Clients_SM)) -> 0 | IK21: =IF(Clients_SM=0,0,IF(TS_Number_or_Percent=1,$FB20/Clients_SM,CS20/Clients_SM)) -> 0 | IL21: =IF(Clients_SM=0,0,IF(TS_Number_or_Percent=1,$FC20/Clients_SM,CT20/Clients_SM)) -> 0 | IM21: =IF(Clients_SM=0,0,IF(TS_Number_or_Percent=1,$FD20/Clients_SM,CU20/Clients_SM)) -> 0 | IN21: =IF(Clients_SM=0,0,IF(TS_Number_or_Percent=1,$FE20/Clients_SM,CV20/Clients_SM)) -> 0
A22: Peer (P) | B22: =IF(Language=1,'Drop-down Lists'!$G$11,'Drop-down Lists'!$H$11) -> Pair (P) | C22: =IF($B22="",0,IF(ISNUMBER(MATCH($B22,'Task Assignment'!$F$8,0)),Clients_SM,0)) -> 0 | D22: =IF($B22="",0,IF(ISNUMBER(MATCH($B22,'Task Assignment'!$F$9,0)),Clients_SM,0)) -> 0 | E22: =IF($B22="",0,IF(ISNUMBER(MATCH($B22,'Task Assignment'!$F$10,0)),Clients_SM,0)) -> 0 | F22: =IF($B22="",0,IF(ISNUMBER(MATCH($B22,'Task Assignment'!$F$11,0)),Clients_SM,0)) -> 0 | G22: =IF($B22="",0,IF(ISNUMBER(MATCH($B22,'Task Assignment'!$F$12,0)),Clients_SM,0)) -> 0 | H22: =IF($B22="",0,IF(ISNUMBER(MATCH($B22,'Task Assignment'!$F$13,0)),Clients_SM,0)) -> 0 | I22: =IF($B22="",0,IF(ISNUMBER(MATCH($B22,'Task Assignment'!$F$14,0)),Clients_SM,0)) -> 0 | J22: =IF($B22="",0,IF(ISNUMBER(MATCH($B22,'Task Assignment'!$F$15,0)),Clients_SM,0)) -> 0 | K22: =IF($B22="",0,IF(ISNUMBER(MATCH($B22,'Task Assignment'!$F$17,0)),Clients_SM,0)) -> 0 | L22: =IF($B22="",0,IF(ISNUMBER(MATCH($B22,'Task Assignment'!$F$18,0)),Clients_SM,0)) -> 0 | M22: =IF($B22="",0,IF(ISNUMBER(MATCH($B22,'Task Assignment'!$F$19,0)),Clients_SM,0)) -> 0 | N22: =C22*'Task Assignment'!$L$8 -> 0 | O22: =D22*'Task Assignment'!$L$9 -> 0 | P22: =E22*'Task Assignment'!$L$10 -> 0 | Q22: =F22*'Task Assignment'!$L$11 -> 0 | R22: =G22*'Task Assignment'!$L$12 -> 0 | S22: =H22*'Task Assignment'!$L$13 -> 0 | T22: =I22*'Task Assignment'!$L$14 -> 0 | U22: =J22*'Task Assignment'!$L$15 -> 0 | V22: =K22*'Task Assignment'!$L$17 -> 0 | W22: =L22*'Task Assignment'!$L$18 -> 0 | X22: =M22*'Task Assignment'!$L$19 -> 0 | Y22: 0 | Z22: =C22*'Task Assignment'!$H$8*'Task Assignment'!$L$8/60 -> 0 | AA22: =D22*'Task Assignment'!$H$9*'Task Assignment'!$L$9/60 -> 0 | AB22: =E22*'Task Assignment'!$H$10*'Task Assignment'!$L$10/60 -> 0 | AC22: =F22*'Task Assignment'!$H$11*'Task Assignment'!$L$11/60 -> 0 | AD22: =G22*'Task Assignment'!$H$12*'Task Assignment'!$L$12/60 -> 0 | AE22: =H22*'Task Assignment'!$H$13*'Task Assignment'!$L$13/60 -> 0 | AF22: =I22*'Task Assignment'!$H$14*'Task Assignment'!$L$14/60 -> 0 | AG22: =J22*'Task Assignment'!$H$15*'Task Assignment'!$L$15/60 -> 0 | AH22: =K22*'Task Assignment'!$H$17*'Task Assignment'!$L$17/60 -> 0 | AI22: =L22*'Task Assignment'!$H$18*'Task Assignment'!$L$18/60 -> 0 | AJ22: =M22*'Task Assignment'!$H$19*'Task Assignment'!$L$19/60 -> 0 | AK22: 0 | AL22: =IF(EffWorkingHours_P=0,0,AK22/EffWorkingHours_P/50) -> 0 | AM22: =+AL22+AL60+AL98+AL136+AL174+AL212 -> 0 | AN22: =Providers!$Q15 -> 0 | AO22: 0 | AP22: =C22*'Task Assignment'!$I$8*'Task Assignment'!$L$8/60 -> 0 | AQ22: =D22*'Task Assignment'!$I$9*'Task Assignment'!$L$9/60 -> 0 | AR22: =E22*'Task Assignment'!$I$10*'Task Assignment'!$L$10/60 -> 0 | AS22: =F22*'Task Assignment'!$I$11*'Task Assignment'!$L$11/60 -> 0 | AT22: =G22*'Task Assignment'!$I$12*'Task Assignment'!$L$12/60 -> 0 | AU22: =H22*'Task Assignment'!$I$13*'Task Assignment'!$L$13/60 -> 0 | AV22: =I22*'Task Assignment'!$I$14*'Task Assignment'!$L$14/60 -> 0 | AW22: =J22*'Task Assignment'!$I$15*'Task Assignment'!$L$15/60 -> 0 | AX22: =K22*'Task Assignment'!$I$17*'Task Assignment'!$L$17/60 -> 0 | AY22: =L22*'Task Assignment'!$I$18*'Task Assignment'!$L$18/60 -> 0 | AZ22: =M22*'Task Assignment'!$I$19*'Task Assignment'!$L$19/60 -> 0 | BA22: 0 | BB22: =IF(EffWorkingHours_P=0,0,BA22/EffWorkingHours_P/50) -> 0 | BC22: =+BB22+BB60+BB98+BB136+BB174+BB212 -> 0 | BD22: =Providers!$Q15 -> 0 | BE22: 0 | BF22: =C22*'Task Assignment'!$K$8*'Task Assignment'!$L$8/60 -> 0 | BG22: =D22*'Task Assignment'!$K$9*'Task Assignment'!$L$9/60 -> 0 | BH22: =E22*'Task Assignment'!$K$10*'Task Assignment'!$L$10/60 -> 0 | BI22: =F22*'Task Assignment'!$K$11*'Task Assignment'!$L$11/60 -> 0 | BJ22: =G22*'Task Assignment'!$K$12*'Task Assignment'!$L$12/60 -> 0 | BK22: =H22*'Task Assignment'!$K$13*'Task Assignment'!$L$13/60 -> 0 | BL22: =I22*'Task Assignment'!$K$14*'Task Assignment'!$L$14/60 -> 0 | BM22: =J22*'Task Assignment'!$K$15*'Task Assignment'!$L$15/60 -> 0 | BN22: =K22*'Task Assignment'!$K$17*'Task Assignment'!$L$17/60 -> 0 | BO22: =L22*'Task Assignment'!$K$18*'Task Assignment'!$L$18/60 -> 0 | BP22: =M22*'Task Assignment'!$K$19*'Task Assignment'!$L$19/60 -> 0 | BQ22: 0 | BR22: =IF(EffWorkingHours_P=0,0,BQ22/EffWorkingHours_P/50) -> 0 | BS22: =+BR22+BR60+BR98+BR136+BR174+BR212 -> 0 | BT22: =Providers!$Q15 -> 0 | BU22: 0 | BW22: Pair (P) | BX22: No. | BY22: =IF(TS_Number_or_Percent=1,$C22,$BY23*Clients_SM) -> 0 | BZ22: =IF(TS_Number_or_Percent=1,$D22,$BZ23*Clients_SM) -> 0 | CA22: =IF(TS_Number_or_Percent=1,$E22,$CA23*Clients_SM) -> 0 | CB22: =IF(TS_Number_or_Percent=1,$F22,$CB23*Clients_SM) -> 0 | CC22: =IF(TS_Number_or_Percent=1,$G22,$CC23*Clients_SM) -> 0 | CD22: =IF(TS_Number_or_Percent=1,$H22,$CD23*Clients_SM) -> 0 | CE22: =IF(TS_Number_or_Percent=1,$I22,$CE23*Clients_SM) -> 0 | CF22: =IF(TS_Number_or_Percent=1,$J22,$CF23*Clients_SM) -> 0 | CG22: =IF(TS_Number_or_Percent=1,$K22,$CG23*Clients_SM) -> 0 | CH22: =IF(TS_Number_or_Percent=1,$L22,$CH23*Clients_SM) -> 0 | CI22: =IF(TS_Number_or_Percent=1,$M22,$CI23*Clients_SM) -> 0 | CJ22: =BY22*'Task Assignment'!$L$8 -> 0 | CK22: =BZ22*'Task Assignment'!$L$9 -> 0 | CL22: =CA22*'Task Assignment'!$L$10 -> 0 | CM22: =CB22*'Task Assignment'!$L$11 -> 0 | CN22: =CC22*'Task Assignment'!$L$12 -> 0 | CO22: =CD22*'Task Assignment'!$L$13 -> 0 | CP22: =CE22*'Task Assignment'!$L$14 -> 0 | CQ22: =CF22*'Task Assignment'!$L$15 -> 0 | CR22: =CG22*'Task Assignment'!$L$17 -> 0 | CS22: =CH22*'Task Assignment'!$L$18 -> 0 | CT22: =CI22*'Task Assignment'!$L$19 -> 0 | CU22: 0 | CV22: =BY22*'Task Assignment'!$H$8*'Task Assignment'!$L$8/60 -> 0 | CW22: =BZ22*'Task Assignment'!$H$9*'Task Assignment'!$L$9/60 -> 0 | CX22: =CA22*'Task Assignment'!$H$10*'Task Assignment'!$L$10/60 -> 0 | CY22: =CB22*'Task Assignment'!$H$11*'Task Assignment'!$L$11/60 -> 0 | CZ22: =CC22*'Task Assignment'!$H$12*'Task Assignment'!$L$12/60 -> 0 | DA22: =CD22*'Task Assignment'!$H$13*'Task Assignment'!$L$13/60 -> 0 | DB22: =CE22*'Task Assignment'!$H$14*'Task Assignment'!$L$14/60 -> 0 | DC22: =CF22*'Task Assignment'!$H$15*'Task Assignment'!$L$15/60 -> 0 | DD22: =CG22*'Task Assignment'!$H$17*'Task Assignment'!$L$17/60 -> 0 | DE22: =CH22*'Task Assignment'!$H$18*'Task Assignment'!$L$18/60 -> 0 | DF22: =CI22*'Task Assignment'!$H$19*'Task Assignment'!$L$19/60 -> 0 | DG22: 0 | DH22: =IF(EffWorkingHours_P=0,0,DG22/EffWorkingHours_P/50) -> 0 | DI22: =+DH22+DH60+DH98+DH136+DH174+DH212 -> 0 | DJ22: =Providers!$Q15 -> 0 | DK22: 0 | DL22: =BY22*'Task Assignment'!$I$8*'Task Assignment'!$L$8/60 -> 0 | DM22: =BZ22*'Task Assignment'!$I$9*'Task Assignment'!$L$9/60 -> 0 | DN22: =CA22*'Task Assignment'!$I$10*'Task Assignment'!$L$10/60 -> 0 | DO22: =CB22*'Task Assignment'!$I$11*'Task Assignment'!$L$11/60 -> 0 | DP22: =CC22*'Task Assignment'!$I$12*'Task Assignment'!$L$12/60 -> 0 | DQ22: =CD22*'Task Assignment'!$I$13*'Task Assignment'!$L$13/60 -> 0 | DR22: =CE22*'Task Assignment'!$I$14*'Task Assignment'!$L$14/60 -> 0 | DS22: =CF22*'Task Assignment'!$I$15*'Task Assignment'!$L$15/60 -> 0 | DT22: =CG22*'Task Assignment'!$I$17*'Task Assignment'!$L$17/60 -> 0 | DU22: =CH22*'Task Assignment'!$I$18*'Task Assignment'!$L$18/60 -> 0 | DV22: =CI22*'Task Assignment'!$I$19*'Task Assignment'!$L$19/60 -> 0 | DW22: 0 | DX22: =IF(EffWorkingHours_P=0,0,DW22/EffWorkingHours_P/50) -> 0 | DY22: =+DX22+DX60+DX98+DX136+DX174+DX212 -> 0 | DZ22: =Providers!$Q15 -> 0 | EA22: 0 | EB22: =BY22*'Task Assignment'!$K$8*'Task Assignment'!$L$8/60 -> 0 | EC22: =BZ22*'Task Assignment'!$K$9*'Task Assignment'!$L$9/60 -> 0 | ED22: =CA22*'Task Assignment'!$K$10*'Task Assignment'!$L$10/60 -> 0 | EE22: =CB22*'Task Assignment'!$K$11*'Task Assignment'!$L$11/60 -> 0 | EF22: =CC22*'Task Assignment'!$K$12*'Task Assignment'!$L$12/60 -> 0 | EG22: =CD22*'Task Assignment'!$K$13*'Task Assignment'!$L$13/60 -> 0 | EH22: =CE22*'Task Assignment'!$K$14*'Task Assignment'!$L$14/60 -> 0 | EI22: =CF22*'Task Assignment'!$K$15*'Task Assignment'!$L$15/60 -> 0 | EJ22: =CG22*'Task Assignment'!$K$17*'Task Assignment'!$L$17/60 -> 0 | EK22: =CH22*'Task Assignment'!$K$18*'Task Assignment'!$L$18/60 -> 0 | EL22: =CI22*'Task Assignment'!$K$19*'Task Assignment'!$L$19/60 -> 0 | EM22: 0 | EN22: =IF(EffWorkingHours_P=0,0,EM22/EffWorkingHours_P/50) -> 0 | EO22: =+EN22+EN60+EN98+EN136+EN174+EN212 -> 0 | EP22: =Providers!$Q15 -> 0 | EQ22: 0 | ES22: =BW22 -> Pair (P) | ET22: No. | EU22: =IF(TS_Number_or_Percent=1,$C22,$EU23*Clients_SM) -> 0 | EV22: =IF(TS_Number_or_Percent=1,$D22,$EV23*Clients_SM) -> 0 | EW22: =IF(TS_Number_or_Percent=1,$E22,$EW23*Clients_SM) -> 0 | EX22: =IF(TS_Number_or_Percent=1,$F22,$EX23*Clients_SM) -> 0 | EY22: =IF(TS_Number_or_Percent=1,$G22,$EY23*Clients_SM) -> 0 | EZ22: =IF(TS_Number_or_Percent=1,$H22,$EZ23*Clients_SM) -> 0 | FA22: =IF(TS_Number_or_Percent=1,$I22,$FA23*Clients_SM) -> 0 | FB22: =IF(TS_Number_or_Percent=1,$J22,$FB23*Clients_SM) -> 0 | FC22: =IF(TS_Number_or_Percent=1,$K22,$FC23*Clients_SM) -> 0 | FD22: =IF(TS_Number_or_Percent=1,$L22,$FD23*Clients_SM) -> 0 | FE22: =IF(TS_Number_or_Percent=1,$M22,$FE23*Clients_SM) -> 0 | FF22: =EU22*'Task Assignment'!$L$8 -> 0 | FG22: =EV22*'Task Assignment'!$L$9 -> 0 | FH22: =EW22*'Task Assignment'!$L$10 -> 0 | FI22: =EX22*'Task Assignment'!$L$11 -> 0 | FJ22: =EY22*'Task Assignment'!$L$12 -> 0 | FK22: =EZ22*'Task Assignment'!$L$13 -> 0 | FL22: =FA22*'Task Assignment'!$L$14 -> 0 | FM22: =FB22*'Task Assignment'!$L$15 -> 0 | FN22: =FC22*'Task Assignment'!$L$17 -> 0 | FO22: =FD22*'Task Assignment'!$L$18 -> 0 | FP22: =FE22*'Task Assignment'!$L$19 -> 0 | FQ22: 0 | FR22: =EU22*'Task Assignment'!$H$8*'Task Assignment'!$L$8/60 -> 0 | FS22: =EV22*'Task Assignment'!$H$9*'Task Assignment'!$L$9/60 -> 0 | FT22: =EW22*'Task Assignment'!$H$10*'Task Assignment'!$L$10/60 -> 0 | FU22: =EX22*'Task Assignment'!$H$11*'Task Assignment'!$L$11/60 -> 0 | FV22: =EY22*'Task Assignment'!$H$12*'Task Assignment'!$L$12/60 -> 0 | FW22: =EZ22*'Task Assignment'!$H$13*'Task Assignment'!$L$13/60 -> 0 | FX22: =FA22*'Task Assignment'!$H$14*'Task Assignment'!$L$14/60 -> 0 | FY22: =FB22*'Task Assignment'!$H$15*'Task Assignment'!$L$15/60 -> 0 | FZ22: =FC22*'Task Assignment'!$H$17*'Task Assignment'!$L$17/60 -> 0 | GA22: =FD22*'Task Assignment'!$H$18*'Task Assignment'!$L$18/60 -> 0 | GB22: =FE22*'Task Assignment'!$H$19*'Task Assignment'!$L$19/60 -> 0 | GC22: 0 | GD22: =IF(EffWorkingHours_P=0,0,GC22/EffWorkingHours_P/50) -> 0 | GE22: =+GD22+GD60+GD98+GD136+GD174+GD212 -> 0 | GF22: =Providers!$Q15 -> 0 | GG22: 0 | GH22: =EU22*'Task Assignment'!$I$8*'Task Assignment'!$L$8/60 -> 0 | GI22: =EV22*'Task Assignment'!$I$9*'Task Assignment'!$L$9/60 -> 0 | GJ22: =EW22*'Task Assignment'!$I$10*'Task Assignment'!$L$10/60 -> 0 | GK22: =EX22*'Task Assignment'!$I$11*'Task Assignment'!$L$11/60 -> 0 | GL22: =EY22*'Task Assignment'!$I$12*'Task Assignment'!$L$12/60 -> 0 | GM22: =EZ22*'Task Assignment'!$I$13*'Task Assignment'!$L$13/60 -> 0 | GN22: =FA22*'Task Assignment'!$I$14*'Task Assignment'!$L$14/60 -> 0 | GO22: =FB22*'Task Assignment'!$I$15*'Task Assignment'!$L$15/60 -> 0 | GP22: =FC22*'Task Assignment'!$I$17*'Task Assignment'!$L$17/60 -> 0 | GQ22: =FD22*'Task Assignment'!$I$18*'Task Assignment'!$L$18/60 -> 0 | GR22: =FE22*'Task Assignment'!$I$19*'Task Assignment'!$L$19/60 -> 0 | GS22: 0 | GT22: =IF(EffWorkingHours_P=0,0,GS22/EffWorkingHours_P/50) -> 0 | GU22: =+GT22+GT60+GT98+GT136+GT174+GT212 -> 0 | GV22: =Providers!$Q15 -> 0 | GW22: 0 | GX22: =EU22*'Task Assignment'!$K$8*'Task Assignment'!$L$8/60 -> 0 | GY22: =EV22*'Task Assignment'!$K$9*'Task Assignment'!$L$9/60 -> 0 | GZ22: =EW22*'Task Assignment'!$K$10*'Task Assignment'!$L$10/60 -> 0 | HA22: =EX22*'Task Assignment'!$K$11*'Task Assignment'!$L$11/60 -> 0 | HB22: =EY22*'Task Assignment'!$K$12*'Task Assignment'!$L$12/60 -> 0 | HC22: =EZ22*'Task Assignment'!$K$13*'Task Assignment'!$L$13/60 -> 0 | HD22: =FA22*'Task Assignment'!$K$14*'Task Assignment'!$L$14/60 -> 0 | HE22: =FB22*'Task Assignment'!$K$15*'Task Assignment'!$L$15/60 -> 0 | HF22: =FC22*'Task Assignment'!$K$17*'Task Assignment'!$L$17/60 -> 0 | HG22: =FD22*'Task Assignment'!$K$18*'Task Assignment'!$L$18/60 -> 0 | HH22: =FE22*'Task Assignment'!$K$19*'Task Assignment'!$L$19/60 -> 0 | HI22: 0 | HJ22: =IF(EffWorkingHours_P=0,0,HI22/EffWorkingHours_P/50) -> 0 | HK22: =+HJ22+HJ60+HJ98+HJ136+HJ174+HJ212 -> 0 | HL22: =Providers!$Q15 -> 0 | HM22: 0 | HR22: =IF(TS_Number_or_Percent=1,$C22,$BY23*Clients_SM) -> 0 | HS22: =IF(TS_Number_or_Percent=1,$D22,$BZ23*Clients_SM) -> 0 | HT22: =IF(TS_Number_or_Percent=1,$E22,$CA23*Clients_SM) -> 0 | HU22: =IF(TS_Number_or_Percent=1,$F22,$CB23*Clients_SM) -> 0 | HV22: =IF(TS_Number_or_Percent=1,$G22,$CC23*Clients_SM) -> 0 | HW22: =IF(TS_Number_or_Percent=1,$H22,$CD23*Clients_SM) -> 0 | HX22: =IF(TS_Number_or_Percent=1,$I22,$CE23*Clients_SM) -> 0 | HY22: =IF(TS_Number_or_Percent=1,$J22,$CF23*Clients_SM) -> 0 | HZ22: =IF(TS_Number_or_Percent=1,$K22,$CG23*Clients_SM) -> 0 | IA22: =IF(TS_Number_or_Percent=1,$L22,$CH23*Clients_SM) -> 0 | IB22: =IF(TS_Number_or_Percent=1,$M22,$CI23*Clients_SM) -> 0 | ID22: =IF(TS_Number_or_Percent=1,$C22,$EU23*Clients_SM) -> 0 | IE22: =IF(TS_Number_or_Percent=1,$D22,$EV23*Clients_SM) -> 0 | IF22: =IF(TS_Number_or_Percent=1,$E22,$EW23*Clients_SM) -> 0 | IG22: =IF(TS_Number_or_Percent=1,$F22,$EX23*Clients_SM) -> 0 | IH22: =IF(TS_Number_or_Percent=1,$G22,$EY23*Clients_SM) -> 0 | II22: =IF(TS_Number_or_Percent=1,$H22,$EZ23*Clients_SM) -> 0 | IJ22: =IF(TS_Number_or_Percent=1,$I22,$FA23*Clients_SM) -> 0 | IK22: =IF(TS_Number_or_Percent=1,$J22,$FB23*Clients_SM) -> 0 | IL22: =IF(TS_Number_or_Percent=1,$K22,$FC23*Clients_SM) -> 0 | IM22: =IF(TS_Number_or_Percent=1,$L22,$FD23*Clients_SM) -> 0 | IN22: =IF(TS_Number_or_Percent=1,$M22,$FE23*Clients_SM) -> 0
